Workbook

Sheet ورقة1

Sheet البيانات
A1: رقم الحافلة | B1: رقم الرحلة | C1: نوع الرحلة | D1: تاريخ الرحلة | E1: اسم المرشد | F1: فندق المدينة المنورة | G1: فندق مكة المكرمة
A2: 1 | B2: R100 | C2: طيران | D2: 25-9-2018 | E2: محمود
A3: 1 | B3: R101 | C3: حافلات VIP | E3: حذيفه
A4: 1 | B4: R102 | C4: حافلات سياحية | E4: علي
A5: 2 | B5: R103 | C5: طيران | E5: حذيفه
A6: 5 | B6: R104 | E6: علي
B7: R105
B8: R106
B9: R107
B10: R108
B11: R109
B12: R110
B13: R111
B14: R112
B15: R113
B16: R114
B17: R115
B18: R116
B19: R117
B20: R118
B21: R119
B22: R120
B23: R121
B24: R122
B25: R123
B26: R124
B27: R125
B28: R126
B29: R127
B30: R128
B31: R129
B32: R130
B33: R131
B34: R132
B35: R133
B36: R134
B37: R135
B38: R136
B39: R137
B40: R138
B41: R139
B42: R140
B43: R141
B44: R142
B45: R143
B46: R144
B47: R145
B48: R146
B49: R147
B50: R148
B51: R149
B52: R150

Sheet الشيت الرئيسي
B6: قائمة بأسماء المعتمرين | F6: رقم الحافلة
F7: =IFERROR(INDEX(البيانات!$A$2:$A$320,MATCH($B$9,البيانات!$B$2:$B$320,0)),"") -> 1
A9: رقم الرحلة | B9: R100 | D9: نوع الرحلة | F9: =IFERROR(VLOOKUP(F7,البيانات!$A$1:$C$6,3,0),"") -> طيران | I9: فندق المدينة
A11: تاريخ الرحلة | B11: =IFERROR(VLOOKUP(F7,البيانات!$A$1:$D$6,4,0),"") -> 25-9-2018 | D11: اسم المرشد | F11: =IFERROR(VLOOKUP(F7,البيانات!$A$1:$E$6,5,0),"") -> محمود | I11: فندق مكة
A14: الرقم | B14: اسم المعتمر | C14: الجنس | D14: الجنسية | E14: رقم الهوية | F14: رقم جواز السفر | G14: تاريخ الاصدار | H14: تاريخ الانتهاء | I14: اسم المحرم | J14: نوع الخدمة | K14: سعر الشراء | L14: سعر البيع
A15: 1 | B15: محمد | C15: رجل | D15: مصرى | E15: 2135206 | F15: 1236555211 | G15: 2018-01-01 | H15: 2019-12-10 | I15: ننن | J15: طيران | K15: 2000 | L15: 3000
A16: 2
A17: 3
A18: 4
A19: 5
A20: 6
A21: 7
A22: 8
A23: 9
A24: 10
A25: 11
A26: 12
A27: 13
A28: 14
A29: 15
A30: 16
A31: 17
A32: 18
A33: 19
A34: 20
A35: 21
A36: 22
A37: 23
A38: 24
A39: 25
A40: 26
A41: 27
A42: 28
A43: 29
A44: 30
A45: الاجمالي | K45: 2000 | L45: 3000

Sheet R100
F6: رقم الحافلة
C7: حساب الرحلة | F7: =IFERROR(INDEX(البيانات!$A$2:$A$320,MATCH($B$9,البيانات!$B$2:$B$320,0)),"") -> 1
A9: رقم الرحلة | B9: R100 | D9: نوع الرحلة | F9: =IFERROR(VLOOKUP(F7,البيانات!$A$1:$C$6,3,0),"") -> طيران
D10: مدير مسئول
A11: تاريخ الرحلة | B11: =IFERROR(IF(VLOOKUP(F7,البيانات!$A$1:$D$6,4,0)="","",VLOOKUP(F7,البيانات!$A$1:$D$6,4,0)),"") -> 25-9-2018 | D11: اسم المرشد | F11: =IFERROR(VLOOKUP(F7,البيانات!$A$1:$E$6,5,0),"") -> محمود
A14: الرقم | B14: اسم المعتمر | C14: الجنس | D14: الجنسية | E14: رقم الهوية | F14: رقم جواز السفر | G14: تاريخ الاصدار | H14: تاريخ الانتهاء | I14: اسم المحرم | J14: نوع الخدمة | K14: سعر الشراء | L14: سعر البيع
A15: 1 | B15: محمد | C15: رجل | D15: مصرى | E15: 2135206 | F15: 1236555211 | G15: 2018-01-01 | H15: 2019-12-10 | I15: ننن | J15: طيران | K15: 2000 | L15: 3000
A16: 2
A17: 3
A18: 4
A19: 5
A20: 6
A21: 7
A22: 8
A23: 9
A24: 10
A25: 11
A26: 12
A27: 13
A28: 14
A29: 15
A30: 16
A31: 17
A32: 18
A33: 19
A34: 20
A35: 21
A36: 22
A37: 23
A38: 24
A39: 25
A40: 26
A41: 27
A42: 28
A43: 29
A44: 30
A45: الاجمالي | K45: 2000 | L45: 3000

Sheet R101
F6: رقم الحافلة
C7: حساب الرحلة | F7: =IFERROR(INDEX(البيانات!$A$2:$A$320,MATCH($B$9,البيانات!$B$2:$B$320,0)),"") -> 1
A9: رقم الرحلة | B9: R101 | D9: نوع الرحلة | F9: =IFERROR(VLOOKUP(F7,البيانات!$A$1:$C$6,3,0),"") -> طيران
D10: مدير مسئول
A11: تاريخ الرحلة | B11: =IFERROR(IF(VLOOKUP(F7,البيانات!$A$1:$D$6,4,0)="","",VLOOKUP(F7,البيانات!$A$1:$D$6,4,0)),"") -> 25-9-2018 | D11: اسم المرشد | F11: =IFERROR(VLOOKUP(F7,البيانات!$A$1:$E$6,5,0),"") -> محمود
A14: الرقم | B14: اسم المعتمر | C14: الجنس | D14: الجنسية | E14: رقم الهوية | F14: رقم جواز السفر | G14: تاريخ الاصدار | H14: تاريخ الانتهاء | I14: اسم المحرم | J14: نوع الخدمة | K14: سعر الشراء | L14: سعر البيع
A15: 1 | B15: محمد | C15: رجل | D15: مصرى | E15: 2135206 | F15: 1236555211 | G15: 2018-01-01 | H15: 2019-12-10 | I15: ننن | J15: طيران | K15: 2000 | L15: 3000
A16: 2
A17: 3
A18: 4
A19: 5
A20: 6
A21: 7
A22: 8
A23: 9
A24: 10
A25: 11
A26: 12
A27: 13
A28: 14
A29: 15
A30: 16
A31: 17
A32: 18
A33: 19
A34: 20
A35: 21
A36: 22
A37: 23
A38: 24
A39: 25
A40: 26
A41: 27
A42: 28
A43: 29
A44: 30
A45: الاجمالي | K45: 2000 | L45: 3000

Sheet R102
F6: رقم الحافلة
C7: حساب الرحلة | F7: =IFERROR(INDEX(البيانات!$A$2:$A$320,MATCH($B$9,البيانات!$B$2:$B$320,0)),"") -> 1
A9: رقم الرحلة | B9: R102 | D9: نوع الرحلة | F9: =IFERROR(VLOOKUP(F7,البيانات!$A$1:$C$6,3,0),"") -> طيران
D10: مدير مسئول
A11: تاريخ الرحلة | B11: =IFERROR(IF(VLOOKUP(F7,البيانات!$A$1:$D$6,4,0)="","",VLOOKUP(F7,البيانات!$A$1:$D$6,4,0)),"") -> 25-9-2018 | D11: اسم المرشد | F11: =IFERROR(VLOOKUP(F7,البيانات!$A$1:$E$6,5,0),"") -> محمود
A14: الرقم | B14: اسم المعتمر | C14: الجنس | D14: الجنسية | E14: رقم الهوية | F14: رقم جواز السفر | G14: تاريخ الاصدار | H14: تاريخ الانتهاء | I14: اسم المحرم | J14: نوع الخدمة | K14: سعر الشراء | L14: سعر البيع
A15: 1 | B15: محمد | C15: رجل | D15: مصرى | E15: 2135206 | F15: 1236555211 | G15: 2018-01-01 | H15: 2019-12-10 | I15: ننن | J15: طيران | K15: 2000 | L15: 3000
A16: 2
A17: 3
A18: 4
A19: 5
A20: 6
A21: 7
A22: 8
A23: 9
A24: 10
A25: 11
A26: 12
A27: 13
A28: 14
A29: 15
A30: 16
A31: 17
A32: 18
A33: 19
A34: 20
A35: 21
A36: 22
A37: 23
A38: 24
A39: 25
A40: 26
A41: 27
A42: 28
A43: 29
A44: 30
A45: الاجمالي | K45: 2000 | L45: 3000

Sheet R103
F6: رقم الحافلة
C7: حساب الرحلة | F7: =IFERROR(INDEX(البيانات!$A$2:$A$320,MATCH($B$9,البيانات!$B$2:$B$320,0)),"") -> 2
A9: رقم الرحلة | B9: R103 | D9: نوع الرحلة | F9: =IFERROR(VLOOKUP(F7,البيانات!$A$1:$C$6,3,0),"") -> طيران
D10: مدير مسئول
A11: تاريخ الرحلة | B11: =IFERROR(IF(VLOOKUP(F7,البيانات!$A$1:$D$6,4,0)="","",VLOOKUP(F7,البيانات!$A$1:$D$6,4,0)),"") ->  | D11: اسم المرشد | F11: =IFERROR(VLOOKUP(F7,البيانات!$A$1:$E$6,5,0),"") -> حذيفه
A14: الرقم | B14: اسم المعتمر | C14: الجنس | D14: الجنسية | E14: رقم الهوية | F14: رقم جواز السفر | G14: تاريخ الاصدار | H14: تاريخ الانتهاء | I14: اسم المحرم | J14: نوع الخدمة | K14: سعر الشراء | L14: سعر البيع
A15: 1 | B15: محمد | C15: رجل | D15: مصرى | E15: 2135206 | F15: 1236555211 | G15: 2018-01-01 | H15: 2019-12-10 | I15: ننن | J15: طيران | K15: 2000 | L15: 3000
A16: 2
A17: 3
A18: 4
A19: 5
A20: 6
A21: 7
A22: 8
A23: 9
A24: 10
A25: 11
A26: 12
A27: 13
A28: 14
A29: 15
A30: 16
A31: 17
A32: 18
A33: 19
A34: 20
A35: 21
A36: 22
A37: 23
A38: 24
A39: 25
A40: 26
A41: 27
A42: 28
A43: 29
A44: 30
A45: الاجمالي | K45: 2000 | L45: 3000

Sheet R104
F6: رقم الحافلة
C7: حساب الرحلة | F7: =IFERROR(INDEX(البيانات!$A$2:$A$320,MATCH($B$9,البيانات!$B$2:$B$320,0)),"") -> 5
A9: رقم الرحلة | B9: R104 | D9: نوع الرحلة | F9: =IFERROR(VLOOKUP(F7,البيانات!$A$1:$C$6,3,0),"") -> 0
D10: مدير مسئول
A11: تاريخ الرحلة | B11: =IFERROR(IF(VLOOKUP(F7,البيانات!$A$1:$D$6,4,0)="","",VLOOKUP(F7,البيانات!$A$1:$D$6,4,0)),"") ->  | D11: اسم المرشد | F11: =IFERROR(VLOOKUP(F7,البيانات!$A$1:$E$6,5,0),"") -> علي
A14: الرقم | B14: اسم المعتمر | C14: الجنس | D14: الجنسية | E14: رقم الهوية | F14: رقم جواز السفر | G14: تاريخ الاصدار | H14: تاريخ الانتهاء | I14: اسم المحرم | J14: نوع الخدمة | K14: سعر الشراء | L14: سعر البيع
A15: 1 | B15: محمد | C15: رجل | D15: مصرى | E15: 2135206 | F15: 1236555211 | G15: 2018-01-01 | H15: 2019-12-10 | I15: ننن | J15: طيران | K15: 2000 | L15: 3000
A16: 2
A17: 3
A18: 4
A19: 5
A20: 6
A21: 7
A22: 8
A23: 9
A24: 10
A25: 11
A26: 12
A27: 13
A28: 14
A29: 15
A30: 16
A31: 17
A32: 18
A33: 19
A34: 20
A35: 21
A36: 22
A37: 23
A38: 24
A39: 25
A40: 26
A41: 27
A42: 28
A43: 29
A44: 30
A45: الاجمالي | K45: 2000 | L45: 3000

Sheet R105
F6: رقم الحافلة
C7: حساب الرحلة | F7: =IFERROR(INDEX(البيانات!$A$2:$A$320,MATCH($B$9,البيانات!$B$2:$B$320,0)),"") -> 0
A9: رقم الرحلة | B9: R105 | D9: نوع الرحلة | F9: =IFERROR(VLOOKUP(F7,البيانات!$A$1:$C$6,3,0),"") -> 
D10: مدير مسئول
A11: تاريخ الرحلة | B11: =IFERROR(IF(VLOOKUP(F7,البيانات!$A$1:$D$6,4,0)="","",VLOOKUP(F7,البيانات!$A$1:$D$6,4,0)),"") ->  | D11: اسم المرشد | F11: =IFERROR(VLOOKUP(F7,البيانات!$A$1:$E$6,5,0),"") -> 
A14: الرقم | B14: اسم المعتمر | C14: الجنس | D14: الجنسية | E14: رقم الهوية | F14: رقم جواز السفر | G14: تاريخ الاصدار | H14: تاريخ الانتهاء | I14: اسم المحرم | J14: نوع الخدمة | K14: سعر الشراء | L14: سعر البيع
A15: 1 | B15: محمد | C15: رجل | D15: مصرى | E15: 2135206 | F15: 1236555211 | G15: 2018-01-01 | H15: 2019-12-10 | I15: ننن | J15: طيران | K15: 2000 | L15: 3000
A16: 2
A17: 3
A18: 4
A19: 5
A20: 6
A21: 7
A22: 8
A23: 9
A24: 10
A25: 11
A26: 12
A27: 13
A28: 14
A29: 15
A30: 16
A31: 17
A32: 18
A33: 19
A34: 20
A35: 21
A36: 22
A37: 23
A38: 24
A39: 25
A40: 26
A41: 27
A42: 28
A43: 29
A44: 30
A45: الاجمالي | K45: 2000 | L45: 3000

Sheet R106
F6: رقم الحافلة
C7: حساب الرحلة | F7: =IFERROR(INDEX(البيانات!$A$2:$A$320,MATCH($B$9,البيانات!$B$2:$B$320,0)),"") -> 0
A9: رقم الرحلة | B9: R106 | D9: نوع الرحلة | F9: =IFERROR(VLOOKUP(F7,البيانات!$A$1:$C$6,3,0),"") -> 
D10: مدير مسئول
A11: تاريخ الرحلة | B11: =IFERROR(IF(VLOOKUP(F7,البيانات!$A$1:$D$6,4,0)="","",VLOOKUP(F7,البيانات!$A$1:$D$6,4,0)),"") ->  | D11: اسم المرشد | F11: =IFERROR(VLOOKUP(F7,البيانات!$A$1:$E$6,5,0),"") -> 
A14: الرقم | B14: اسم المعتمر | C14: الجنس | D14: الجنسية | E14: رقم الهوية | F14: رقم جواز السفر | G14: تاريخ الاصدار | H14: تاريخ الانتهاء | I14: اسم المحرم | J14: نوع الخدمة | K14: سعر الشراء | L14: سعر البيع
A15: 1 | B15: محمد | C15: رجل | D15: مصرى | E15: 2135206 | F15: 1236555211 | G15: 2018-01-01 | H15: 2019-12-10 | I15: ننن | J15: طيران | K15: 2000 | L15: 3000
A16: 2
A17: 3
A18: 4
A19: 5
A20: 6
A21: 7
A22: 8
A23: 9
A24: 10
A25: 11
A26: 12
A27: 13
A28: 14
A29: 15
A30: 16
A31: 17
A32: 18
A33: 19
A34: 20
A35: 21
A36: 22
A37: 23
A38: 24
A39: 25
A40: 26
A41: 27
A42: 28
A43: 29
A44: 30
A45: الاجمالي | K45: 2000 | L45: 3000

Sheet R107
F6: رقم الحافلة
C7: حساب الرحلة | F7: =IFERROR(INDEX(البيانات!$A$2:$A$320,MATCH($B$9,البيانات!$B$2:$B$320,0)),"") -> 0
A9: رقم الرحلة | B9: R107 | D9: نوع الرحلة | F9: =IFERROR(VLOOKUP(F7,البيانات!$A$1:$C$6,3,0),"") -> 
D10: مدير مسئول
A11: تاريخ الرحلة | B11: =IFERROR(IF(VLOOKUP(F7,البيانات!$A$1:$D$6,4,0)="","",VLOOKUP(F7,البيانات!$A$1:$D$6,4,0)),"") ->  | D11: اسم المرشد | F11: =IFERROR(VLOOKUP(F7,البيانات!$A$1:$E$6,5,0),"") -> 
A14: الرقم | B14: اسم المعتمر | C14: الجنس | D14: الجنسية | E14: رقم الهوية | F14: رقم جواز السفر | G14: تاريخ الاصدار | H14: تاريخ الانتهاء | I14: اسم المحرم | J14: نوع الخدمة | K14: سعر الشراء | L14: سعر البيع
A15: 1 | B15: محمد | C15: رجل | D15: مصرى | E15: 2135206 | F15: 1236555211 | G15: 2018-01-01 | H15: 2019-12-10 | I15: ننن | J15: طيران | K15: 2000 | L15: 3000
A16: 2
A17: 3
A18: 4
A19: 5
A20: 6
A21: 7
A22: 8
A23: 9
A24: 10
A25: 11
A26: 12
A27: 13
A28: 14
A29: 15
A30: 16
A31: 17
A32: 18
A33: 19
A34: 20
A35: 21
A36: 22
A37: 23
A38: 24
A39: 25
A40: 26
A41: 27
A42: 28
A43: 29
A44: 30
A45: الاجمالي | K45: 2000 | L45: 3000

Sheet R108
F6: رقم الحافلة
C7: حساب الرحلة | F7: =IFERROR(INDEX(البيانات!$A$2:$A$320,MATCH($B$9,البيانات!$B$2:$B$320,0)),"") -> 0
A9: رقم الرحلة | B9: R108 | D9: نوع الرحلة | F9: =IFERROR(VLOOKUP(F7,البيانات!$A$1:$C$6,3,0),"") -> 
D10: مدير مسئول
A11: تاريخ الرحلة | B11: =IFERROR(IF(VLOOKUP(F7,البيانات!$A$1:$D$6,4,0)="","",VLOOKUP(F7,البيانات!$A$1:$D$6,4,0)),"") ->  | D11: اسم المرشد | F11: =IFERROR(VLOOKUP(F7,البيانات!$A$1:$E$6,5,0),"") -> 
A14: الرقم | B14: اسم المعتمر | C14: الجنس | D14: الجنسية | E14: رقم الهوية | F14: رقم جواز السفر | G14: تاريخ الاصدار | H14: تاريخ الانتهاء | I14: اسم المحرم | J14: نوع الخدمة | K14: سعر الشراء | L14: سعر البيع
A15: 1 | B15: محمد | C15: رجل | D15: مصرى | E15: 2135206 | F15: 1236555211 | G15: 2018-01-01 | H15: 2019-12-10 | I15: ننن | J15: طيران | K15: 2000 | L15: 3000
A16: 2
A17: 3
A18: 4
A19: 5
A20: 6
A21: 7
A22: 8
A23: 9
A24: 10
A25: 11
A26: 12
A27: 13
A28: 14
A29: 15
A30: 16
A31: 17
A32: 18
A33: 19
A34: 20
A35: 21
A36: 22
A37: 23
A38: 24
A39: 25
A40: 26
A41: 27
A42: 28
A43: 29
A44: 30
A45: الاجمالي | K45: 2000 | L45: 3000

Sheet R109
F6: رقم الحافلة
C7: حساب الرحلة | F7: =IFERROR(INDEX(البيانات!$A$2:$A$320,MATCH($B$9,البيانات!$B$2:$B$320,0)),"") -> 0
A9: رقم الرحلة | B9: R109 | D9: نوع الرحلة | F9: =IFERROR(VLOOKUP(F7,البيانات!$A$1:$C$6,3,0),"") -> 
D10: مدير مسئول
A11: تاريخ الرحلة | B11: =IFERROR(IF(VLOOKUP(F7,البيانات!$A$1:$D$6,4,0)="","",VLOOKUP(F7,البيانات!$A$1:$D$6,4,0)),"") ->  | D11: اسم المرشد | F11: =IFERROR(VLOOKUP(F7,البيانات!$A$1:$E$6,5,0),"") -> 
A14: الرقم | B14: اسم المعتمر | C14: الجنس | D14: الجنسية | E14: رقم الهوية | F14: رقم جواز السفر | G14: تاريخ الاصدار | H14: تاريخ الانتهاء | I14: اسم المحرم | J14: نوع الخدمة | K14: سعر الشراء | L14: سعر البيع
A15: 1 | B15: محمد | C15: رجل | D15: مصرى | E15: 2135206 | F15: 1236555211 | G15: 2018-01-01 | H15: 2019-12-10 | I15: ننن | J15: طيران | K15: 2000 | L15: 3000
A16: 2
A17: 3
A18: 4
A19: 5
A20: 6
A21: 7
A22: 8
A23: 9
A24: 10
A25: 11
A26: 12
A27: 13
A28: 14
A29: 15
A30: 16
A31: 17
A32: 18
A33: 19
A34: 20
A35: 21
A36: 22
A37: 23
A38: 24
A39: 25
A40: 26
A41: 27
A42: 28
A43: 29
A44: 30
A45: الاجمالي | K45: 2000 | L45: 3000

Sheet R1010
F6: رقم الحافلة
C7: حساب الرحلة | F7: =IFERROR(INDEX(البيانات!$A$2:$A$320,MATCH($B$9,البيانات!$B$2:$B$320,0)),"") -> 0
A9: رقم الرحلة | B9: R110 | D9: نوع الرحلة | F9: =IFERROR(VLOOKUP(F7,البيانات!$A$1:$C$6,3,0),"") -> 
D10: مدير مسئول
A11: تاريخ الرحلة | B11: =IFERROR(IF(VLOOKUP(F7,البيانات!$A$1:$D$6,4,0)="","",VLOOKUP(F7,البيانات!$A$1:$D$6,4,0)),"") ->  | D11: اسم المرشد | F11: =IFERROR(VLOOKUP(F7,البيانات!$A$1:$E$6,5,0),"") -> 
A14: الرقم | B14: اسم المعتمر | C14: الجنس | D14: الجنسية | E14: رقم الهوية | F14: رقم جواز السفر | G14: تاريخ الاصدار | H14: تاريخ الانتهاء | I14: اسم المحرم | J14: نوع الخدمة | K14: سعر الشراء | L14: سعر البيع
A15: 1 | B15: محمد | C15: رجل | D15: مصرى | E15: 2135206 | F15: 1236555211 | G15: 2018-01-01 | H15: 2019-12-10 | I15: ننن | J15: طيران | K15: 2000 | L15: 3000
A16: 2
A17: 3
A18: 4
A19: 5
A20: 6
A21: 7
A22: 8
A23: 9
A24: 10
A25: 11
A26: 12
A27: 13
A28: 14
A29: 15
A30: 16
A31: 17
A32: 18
A33: 19
A34: 20
A35: 21
A36: 22
A37: 23
A38: 24
A39: 25
A40: 26
A41: 27
A42: 28
A43: 29
A44: 30
A45: الاجمالي | K45: 2000 | L45: 3000

Sheet R1011
F6: رقم الحافلة
C7: حساب الرحلة | F7: =IFERROR(INDEX(البيانات!$A$2:$A$320,MATCH($B$9,البيانات!$B$2:$B$320,0)),"") -> 0
A9: رقم الرحلة | B9: R111 | D9: نوع الرحلة | F9: =IFERROR(VLOOKUP(F7,البيانات!$A$1:$C$6,3,0),"") -> 
D10: مدير مسئول
A11: تاريخ الرحلة | B11: =IFERROR(IF(VLOOKUP(F7,البيانات!$A$1:$D$6,4,0)="","",VLOOKUP(F7,البيانات!$A$1:$D$6,4,0)),"") ->  | D11: اسم المرشد | F11: =IFERROR(VLOOKUP(F7,البيانات!$A$1:$E$6,5,0),"") -> 
A14: الرقم | B14: اسم المعتمر | C14: الجنس | D14: الجنسية | E14: رقم الهوية | F14: رقم جواز السفر | G14: تاريخ الاصدار | H14: تاريخ الانتهاء | I14: اسم المحرم | J14: نوع الخدمة | K14: سعر الشراء | L14: سعر البيع
A15: 1 | B15: محمد | C15: رجل | D15: مصرى | E15: 2135206 | F15: 1236555211 | G15: 2018-01-01 | H15: 2019-12-10 | I15: ننن | J15: طيران | K15: 2000 | L15: 3000
A16: 2
A17: 3
A18: 4
A19: 5
A20: 6
A21: 7
A22: 8
A23: 9
A24: 10
A25: 11
A26: 12
A27: 13
A28: 14
A29: 15
A30: 16
A31: 17
A32: 18
A33: 19
A34: 20
A35: 21
A36: 22
A37: 23
A38: 24
A39: 25
A40: 26
A41: 27
A42: 28
A43: 29
A44: 30
A45: الاجمالي | K45: 2000 | L45: 3000

Sheet R1012
F6: رقم الحافلة
C7: حساب الرحلة | F7: =IFERROR(INDEX(البيانات!$A$2:$A$320,MATCH($B$9,البيانات!$B$2:$B$320,0)),"") -> 0
A9: رقم الرحلة | B9: R112 | D9: نوع الرحلة | F9: =IFERROR(VLOOKUP(F7,البيانات!$A$1:$C$6,3,0),"") -> 
D10: مدير مسئول
A11: تاريخ الرحلة | B11: =IFERROR(IF(VLOOKUP(F7,البيانات!$A$1:$D$6,4,0)="","",VLOOKUP(F7,البيانات!$A$1:$D$6,4,0)),"") ->  | D11: اسم المرشد | F11: =IFERROR(VLOOKUP(F7,البيانات!$A$1:$E$6,5,0),"") -> 
A14: الرقم | B14: اسم المعتمر | C14: الجنس | D14: الجنسية | E14: رقم الهوية | F14: رقم جواز السفر | G14: تاريخ الاصدار | H14: تاريخ الانتهاء | I14: اسم المحرم | J14: نوع الخدمة | K14: سعر الشراء | L14: سعر البيع
A15: 1 | B15: محمد | C15: رجل | D15: مصرى | E15: 2135206 | F15: 1236555211 | G15: 2018-01-01 | H15: 2019-12-10 | I15: ننن | J15: طيران | K15: 2000 | L15: 3000
A16: 2
A17: 3
A18: 4
A19: 5
A20: 6
A21: 7
A22: 8
A23: 9
A24: 10
A25: 11
A26: 12
A27: 13
A28: 14
A29: 15
A30: 16
A31: 17
A32: 18
A33: 19
A34: 20
A35: 21
A36: 22
A37: 23
A38: 24
A39: 25
A40: 26
A41: 27
A42: 28
A43: 29
A44: 30
A45: الاجمالي | K45: 2000 | L45: 3000

Sheet R113
F6: رقم الحافلة
C7: حساب الرحلة | F7: =IFERROR(INDEX(البيانات!$A$2:$A$320,MATCH($B$9,البيانات!$B$2:$B$320,0)),"") -> 0
A9: رقم الرحلة | B9: R113 | D9: نوع الرحلة | F9: =IFERROR(VLOOKUP(F7,البيانات!$A$1:$C$6,3,0),"") -> 
D10: مدير مسئول
A11: تاريخ الرحلة | B11: =IFERROR(IF(VLOOKUP(F7,البيانات!$A$1:$D$6,4,0)="","",VLOOKUP(F7,البيانات!$A$1:$D$6,4,0)),"") ->  | D11: اسم المرشد | F11: =IFERROR(VLOOKUP(F7,البيانات!$A$1:$E$6,5,0),"") -> 
A14: الرقم | B14: اسم المعتمر | C14: الجنس | D14: الجنسية | E14: رقم الهوية | F14: رقم جواز السفر | G14: تاريخ الاصدار | H14: تاريخ الانتهاء | I14: اسم المحرم | J14: نوع الخدمة | K14: سعر الشراء | L14: سعر البيع
A15: 1 | B15: محمد | C15: رجل | D15: مصرى | E15: 2135206 | F15: 1236555211 | G15: 2018-01-01 | H15: 2019-12-10 | I15: ننن | J15: طيران | K15: 2000 | L15: 3000
A16: 2
A17: 3
A18: 4
A19: 5
A20: 6
A21: 7
A22: 8
A23: 9
A24: 10
A25: 11
A26: 12
A27: 13
A28: 14
A29: 15
A30: 16
A31: 17
A32: 18
A33: 19
A34: 20
A35: 21
A36: 22
A37: 23
A38: 24
A39: 25
A40: 26
A41: 27
A42: 28
A43: 29
A44: 30
A45: الاجمالي | K45: 2000 | L45: 3000

Sheet R114
F6: رقم الحافلة
C7: حساب الرحلة | F7: =IFERROR(INDEX(البيانات!$A$2:$A$320,MATCH($B$9,البيانات!$B$2:$B$320,0)),"") -> 0
A9: رقم الرحلة | B9: R114 | D9: نوع الرحلة | F9: =IFERROR(VLOOKUP(F7,البيانات!$A$1:$C$6,3,0),"") -> 
D10: مدير مسئول
A11: تاريخ الرحلة | B11: =IFERROR(IF(VLOOKUP(F7,البيانات!$A$1:$D$6,4,0)="","",VLOOKUP(F7,البيانات!$A$1:$D$6,4,0)),"") ->  | D11: اسم المرشد | F11: =IFERROR(VLOOKUP(F7,البيانات!$A$1:$E$6,5,0),"") -> 
A14: الرقم | B14: اسم المعتمر | C14: الجنس | D14: الجنسية | E14: رقم الهوية | F14: رقم جواز السفر | G14: تاريخ الاصدار | H14: تاريخ الانتهاء | I14: اسم المحرم | J14: نوع الخدمة | K14: سعر الشراء | L14: سعر البيع
A15: 1 | B15: محمد | C15: رجل | D15: مصرى | E15: 2135206 | F15: 1236555211 | G15: 2018-01-01 | H15: 2019-12-10 | I15: ننن | J15: طيران | K15: 2000 | L15: 3000
A16: 2
A17: 3
A18: 4
A19: 5
A20: 6
A21: 7
A22: 8
A23: 9
A24: 10
A25: 11
A26: 12
A27: 13
A28: 14
A29: 15
A30: 16
A31: 17
A32: 18
A33: 19
A34: 20
A35: 21
A36: 22
A37: 23
A38: 24
A39: 25
A40: 26
A41: 27
A42: 28
A43: 29
A44: 30
A45: الاجمالي | K45: 2000 | L45: 3000

Sheet R115
F6: رقم الحافلة
C7: حساب الرحلة | F7: =IFERROR(INDEX(البيانات!$A$2:$A$320,MATCH($B$9,البيانات!$B$2:$B$320,0)),"") -> 0
A9: رقم الرحلة | B9: R115 | D9: نوع الرحلة | F9: =IFERROR(VLOOKUP(F7,البيانات!$A$1:$C$6,3,0),"") -> 
D10: مدير مسئول
A11: تاريخ الرحلة | B11: =IFERROR(IF(VLOOKUP(F7,البيانات!$A$1:$D$6,4,0)="","",VLOOKUP(F7,البيانات!$A$1:$D$6,4,0)),"") ->  | D11: اسم المرشد | F11: =IFERROR(VLOOKUP(F7,البيانات!$A$1:$E$6,5,0),"") -> 
A14: الرقم | B14: اسم المعتمر | C14: الجنس | D14: الجنسية | E14: رقم الهوية | F14: رقم جواز السفر | G14: تاريخ الاصدار | H14: تاريخ الانتهاء | I14: اسم المحرم | J14: نوع الخدمة | K14: سعر الشراء | L14: سعر البيع
A15: 1 | B15: محمد | C15: رجل | D15: مصرى | E15: 2135206 | F15: 1236555211 | G15: 2018-01-01 | H15: 2019-12-10 | I15: ننن | J15: طيران | K15: 2000 | L15: 3000
A16: 2
A17: 3
A18: 4
A19: 5
A20: 6
A21: 7
A22: 8
A23: 9
A24: 10
A25: 11
A26: 12
A27: 13
A28: 14
A29: 15
A30: 16
A31: 17
A32: 18
A33: 19
A34: 20
A35: 21
A36: 22
A37: 23
A38: 24
A39: 25
A40: 26
A41: 27
A42: 28
A43: 29
A44: 30
A45: الاجمالي | K45: 2000 | L45: 3000

Sheet R116
F6: رقم الحافلة
C7: حساب الرحلة | F7: =IFERROR(INDEX(البيانات!$A$2:$A$320,MATCH($B$9,البيانات!$B$2:$B$320,0)),"") -> 0
A9: رقم الرحلة | B9: R116 | D9: نوع الرحلة | F9: =IFERROR(VLOOKUP(F7,البيانات!$A$1:$C$6,3,0),"") -> 
D10: مدير مسئول
A11: تاريخ الرحلة | B11: =IFERROR(IF(VLOOKUP(F7,البيانات!$A$1:$D$6,4,0)="","",VLOOKUP(F7,البيانات!$A$1:$D$6,4,0)),"") ->  | D11: اسم المرشد | F11: =IFERROR(VLOOKUP(F7,البيانات!$A$1:$E$6,5,0),"") -> 
A14: الرقم | B14: اسم المعتمر | C14: الجنس | D14: الجنسية | E14: رقم الهوية | F14: رقم جواز السفر | G14: تاريخ الاصدار | H14: تاريخ الانتهاء | I14: اسم المحرم | J14: نوع الخدمة | K14: سعر الشراء | L14: سعر البيع
A15: 1 | B15: محمد | C15: رجل | D15: مصرى | E15: 2135206 | F15: 1236555211 | G15: 2018-01-01 | H15: 2019-12-10 | I15: ننن | J15: طيران | K15: 2000 | L15: 3000
A16: 2
A17: 3
A18: 4
A19: 5
A20: 6
A21: 7
A22: 8
A23: 9
A24: 10
A25: 11
A26: 12
A27: 13
A28: 14
A29: 15
A30: 16
A31: 17
A32: 18
A33: 19
A34: 20
A35: 21
A36: 22
A37: 23
A38: 24
A39: 25
A40: 26
A41: 27
A42: 28
A43: 29
A44: 30
A45: الاجمالي | K45: 2000 | L45: 3000

Sheet R117
F6: رقم الحافلة
C7: حساب الرحلة | F7: =IFERROR(INDEX(البيانات!$A$2:$A$320,MATCH($B$9,البيانات!$B$2:$B$320,0)),"") -> 0
A9: رقم الرحلة | B9: R117 | D9: نوع الرحلة | F9: =IFERROR(VLOOKUP(F7,البيانات!$A$1:$C$6,3,0),"") -> 
D10: مدير مسئول
A11: تاريخ الرحلة | B11: =IFERROR(IF(VLOOKUP(F7,البيانات!$A$1:$D$6,4,0)="","",VLOOKUP(F7,البيانات!$A$1:$D$6,4,0)),"") ->  | D11: اسم المرشد | F11: =IFERROR(VLOOKUP(F7,البيانات!$A$1:$E$6,5,0),"") -> 
A14: الرقم | B14: اسم المعتمر | C14: الجنس | D14: الجنسية | E14: رقم الهوية | F14: رقم جواز السفر | G14: تاريخ الاصدار | H14: تاريخ الانتهاء | I14: اسم المحرم | J14: نوع الخدمة | K14: سعر الشراء | L14: سعر البيع
A15: 1 | B15: محمد | C15: رجل | D15: مصرى | E15: 2135206 | F15: 1236555211 | G15: 2018-01-01 | H15: 2019-12-10 | I15: ننن | J15: طيران | K15: 2000 | L15: 3000
A16: 2
A17: 3
A18: 4
A19: 5
A20: 6
A21: 7
A22: 8
A23: 9
A24: 10
A25: 11
A26: 12
A27: 13
A28: 14
A29: 15
A30: 16
A31: 17
A32: 18
A33: 19
A34: 20
A35: 21
A36: 22
A37: 23
A38: 24
A39: 25
A40: 26
A41: 27
A42: 28
A43: 29
A44: 30
A45: الاجمالي | K45: 2000 | L45: 3000

Sheet R118
F6: رقم الحافلة
C7: حساب الرحلة | F7: =IFERROR(INDEX(البيانات!$A$2:$A$320,MATCH($B$9,البيانات!$B$2:$B$320,0)),"") -> 0
A9: رقم الرحلة | B9: R118 | D9: نوع الرحلة | F9: =IFERROR(VLOOKUP(F7,البيانات!$A$1:$C$6,3,0),"") -> 
D10: مدير مسئول
A11: تاريخ الرحلة | B11: =IFERROR(IF(VLOOKUP(F7,البيانات!$A$1:$D$6,4,0)="","",VLOOKUP(F7,البيانات!$A$1:$D$6,4,0)),"") ->  | D11: اسم المرشد | F11: =IFERROR(VLOOKUP(F7,البيانات!$A$1:$E$6,5,0),"") -> 
A14: الرقم | B14: اسم المعتمر | C14: الجنس | D14: الجنسية | E14: رقم الهوية | F14: رقم جواز السفر | G14: تاريخ الاصدار | H14: تاريخ الانتهاء | I14: اسم المحرم | J14: نوع الخدمة | K14: سعر الشراء | L14: سعر البيع
A15: 1 | B15: محمد | C15: رجل | D15: مصرى | E15: 2135206 | F15: 1236555211 | G15: 2018-01-01 | H15: 2019-12-10 | I15: ننن | J15: طيران | K15: 2000 | L15: 3000
A16: 2
A17: 3
A18: 4
A19: 5
A20: 6
A21: 7
A22: 8
A23: 9
A24: 10
A25: 11
A26: 12
A27: 13
A28: 14
A29: 15
A30: 16
A31: 17
A32: 18
A33: 19
A34: 20
A35: 21
A36: 22
A37: 23
A38: 24
A39: 25
A40: 26
A41: 27
A42: 28
A43: 29
A44: 30
A45: الاجمالي | K45: 2000 | L45: 3000

Sheet R119
F6: رقم الحافلة
C7: حساب الرحلة | F7: =IFERROR(INDEX(البيانات!$A$2:$A$320,MATCH($B$9,البيانات!$B$2:$B$320,0)),"") -> 0
A9: رقم الرحلة | B9: R119 | D9: نوع الرحلة | F9: =IFERROR(VLOOKUP(F7,البيانات!$A$1:$C$6,3,0),"") -> 
D10: مدير مسئول
A11: تاريخ الرحلة | B11: =IFERROR(IF(VLOOKUP(F7,البيانات!$A$1:$D$6,4,0)="","",VLOOKUP(F7,البيانات!$A$1:$D$6,4,0)),"") ->  | D11: اسم المرشد | F11: =IFERROR(VLOOKUP(F7,البيانات!$A$1:$E$6,5,0),"") -> 
A14: الرقم | B14: اسم المعتمر | C14: الجنس | D14: الجنسية | E14: رقم الهوية | F14: رقم جواز السفر | G14: تاريخ الاصدار | H14: تاريخ الانتهاء | I14: اسم المحرم | J14: نوع الخدمة | K14: سعر الشراء | L14: سعر البيع
A15: 1 | B15: محمد | C15: رجل | D15: مصرى | E15: 2135206 | F15: 1236555211 | G15: 2018-01-01 | H15: 2019-12-10 | I15: ننن | J15: طيران | K15: 2000 | L15: 3000
A16: 2
A17: 3
A18: 4
A19: 5
A20: 6
A21: 7
A22: 8
A23: 9
A24: 10
A25: 11
A26: 12
A27: 13
A28: 14
A29: 15
A30: 16
A31: 17
A32: 18
A33: 19
A34: 20
A35: 21
A36: 22
A37: 23
A38: 24
A39: 25
A40: 26
A41: 27
A42: 28
A43: 29
A44: 30
A45: الاجمالي | K45: 2000 | L45: 3000

Sheet R120
F6: رقم الحافلة
C7: حساب الرحلة | F7: =IFERROR(INDEX(البيانات!$A$2:$A$320,MATCH($B$9,البيانات!$B$2:$B$320,0)),"") -> 0
A9: رقم الرحلة | B9: R120 | D9: نوع الرحلة | F9: =IFERROR(VLOOKUP(F7,البيانات!$A$1:$C$6,3,0),"") -> 
D10: مدير مسئول
A11: تاريخ الرحلة | B11: =IFERROR(IF(VLOOKUP(F7,البيانات!$A$1:$D$6,4,0)="","",VLOOKUP(F7,البيانات!$A$1:$D$6,4,0)),"") ->  | D11: اسم المرشد | F11: =IFERROR(VLOOKUP(F7,البيانات!$A$1:$E$6,5,0),"") -> 
A14: الرقم | B14: اسم المعتمر | C14: الجنس | D14: الجنسية | E14: رقم الهوية | F14: رقم جواز السفر | G14: تاريخ الاصدار | H14: تاريخ الانتهاء | I14: اسم المحرم | J14: نوع الخدمة | K14: سعر الشراء | L14: سعر البيع
A15: 1 | B15: محمد | C15: رجل | D15: مصرى | E15: 2135206 | F15: 1236555211 | G15: 2018-01-01 | H15: 2019-12-10 | I15: ننن | J15: طيران | K15: 2000 | L15: 3000
A16: 2
A17: 3
A18: 4
A19: 5
A20: 6
A21: 7
A22: 8
A23: 9
A24: 10
A25: 11
A26: 12
A27: 13
A28: 14
A29: 15
A30: 16
A31: 17
A32: 18
A33: 19
A34: 20
A35: 21
A36: 22
A37: 23
A38: 24
A39: 25
A40: 26
A41: 27
A42: 28
A43: 29
A44: 30
A45: الاجمالي | K45: 2000 | L45: 3000

Sheet R121
F6: رقم الحافلة
C7: حساب الرحلة | F7: =IFERROR(INDEX(البيانات!$A$2:$A$320,MATCH($B$9,البيانات!$B$2:$B$320,0)),"") -> 0
A9: رقم الرحلة | B9: R121 | D9: نوع الرحلة | F9: =IFERROR(VLOOKUP(F7,البيانات!$A$1:$C$6,3,0),"") -> 
D10: مدير مسئول
A11: تاريخ الرحلة | B11: =IFERROR(IF(VLOOKUP(F7,البيانات!$A$1:$D$6,4,0)="","",VLOOKUP(F7,البيانات!$A$1:$D$6,4,0)),"") ->  | D11: اسم المرشد | F11: =IFERROR(VLOOKUP(F7,البيانات!$A$1:$E$6,5,0),"") -> 
A14: الرقم | B14: اسم المعتمر | C14: الجنس | D14: الجنسية | E14: رقم الهوية | F14: رقم جواز السفر | G14: تاريخ الاصدار | H14: تاريخ الانتهاء | I14: اسم المحرم | J14: نوع الخدمة | K14: سعر الشراء | L14: سعر البيع
A15: 1 | B15: محمد | C15: رجل | D15: مصرى | E15: 2135206 | F15: 1236555211 | G15: 2018-01-01 | H15: 2019-12-10 | I15: ننن | J15: طيران | K15: 2000 | L15: 3000
A16: 2
A17: 3
A18: 4
A19: 5
A20: 6
A21: 7
A22: 8
A23: 9
A24: 10
A25: 11
A26: 12
A27: 13
A28: 14
A29: 15
A30: 16
A31: 17
A32: 18
A33: 19
A34: 20
A35: 21
A36: 22
A37: 23
A38: 24
A39: 25
A40: 26
A41: 27
A42: 28
A43: 29
A44: 30
A45: الاجمالي | K45: 2000 | L45: 3000

Sheet R122
F6: رقم الحافلة
C7: حساب الرحلة | F7: =IFERROR(INDEX(البيانات!$A$2:$A$320,MATCH($B$9,البيانات!$B$2:$B$320,0)),"") -> 0
A9: رقم الرحلة | B9: R122 | D9: نوع الرحلة | F9: =IFERROR(VLOOKUP(F7,البيانات!$A$1:$C$6,3,0),"") -> 
D10: مدير مسئول
A11: تاريخ الرحلة | B11: =IFERROR(IF(VLOOKUP(F7,البيانات!$A$1:$D$6,4,0)="","",VLOOKUP(F7,البيانات!$A$1:$D$6,4,0)),"") ->  | D11: اسم المرشد | F11: =IFERROR(VLOOKUP(F7,البيانات!$A$1:$E$6,5,0),"") -> 
A14: الرقم | B14: اسم المعتمر | C14: الجنس | D14: الجنسية | E14: رقم الهوية | F14: رقم جواز السفر | G14: تاريخ الاصدار | H14: تاريخ الانتهاء | I14: اسم المحرم | J14: نوع الخدمة | K14: سعر الشراء | L14: سعر البيع
A15: 1 | B15: محمد | C15: رجل | D15: مصرى | E15: 2135206 | F15: 1236555211 | G15: 2018-01-01 | H15: 2019-12-10 | I15: ننن | J15: طيران | K15: 2000 | L15: 3000
A16: 2
A17: 3
A18: 4
A19: 5
A20: 6
A21: 7
A22: 8
A23: 9
A24: 10
A25: 11
A26: 12
A27: 13
A28: 14
A29: 15
A30: 16
A31: 17
A32: 18
A33: 19
A34: 20
A35: 21
A36: 22
A37: 23
A38: 24
A39: 25
A40: 26
A41: 27
A42: 28
A43: 29
A44: 30
A45: الاجمالي | K45: 2000 | L45: 3000

Sheet R123
F6: رقم الحافلة
C7: حساب الرحلة | F7: =IFERROR(INDEX(البيانات!$A$2:$A$320,MATCH($B$9,البيانات!$B$2:$B$320,0)),"") -> 0
A9: رقم الرحلة | B9: R123 | D9: نوع الرحلة | F9: =IFERROR(VLOOKUP(F7,البيانات!$A$1:$C$6,3,0),"") -> 
D10: مدير مسئول
A11: تاريخ الرحلة | B11: =IFERROR(IF(VLOOKUP(F7,البيانات!$A$1:$D$6,4,0)="","",VLOOKUP(F7,البيانات!$A$1:$D$6,4,0)),"") ->  | D11: اسم المرشد | F11: =IFERROR(VLOOKUP(F7,البيانات!$A$1:$E$6,5,0),"") -> 
A14: الرقم | B14: اسم المعتمر | C14: الجنس | D14: الجنسية | E14: رقم الهوية | F14: رقم جواز السفر | G14: تاريخ الاصدار | H14: تاريخ الانتهاء | I14: اسم المحرم | J14: نوع الخدمة | K14: سعر الشراء | L14: سعر البيع
A15: 1 | B15: محمد | C15: رجل | D15: مصرى | E15: 2135206 | F15: 1236555211 | G15: 2018-01-01 | H15: 2019-12-10 | I15: ننن | J15: طيران | K15: 2000 | L15: 3000
A16: 2
A17: 3
A18: 4
A19: 5
A20: 6
A21: 7
A22: 8
A23: 9
A24: 10
A25: 11
A26: 12
A27: 13
A28: 14
A29: 15
A30: 16
A31: 17
A32: 18
A33: 19
A34: 20
A35: 21
A36: 22
A37: 23
A38: 24
A39: 25
A40: 26
A41: 27
A42: 28
A43: 29
A44: 30
A45: الاجمالي | K45: 2000 | L45: 3000

Sheet R124
F6: رقم الحافلة
C7: حساب الرحلة | F7: =IFERROR(INDEX(البيانات!$A$2:$A$320,MATCH($B$9,البيانات!$B$2:$B$320,0)),"") -> 0
A9: رقم الرحلة | B9: R124 | D9: نوع الرحلة | F9: =IFERROR(VLOOKUP(F7,البيانات!$A$1:$C$6,3,0),"") -> 
D10: مدير مسئول
A11: تاريخ الرحلة | B11: =IFERROR(IF(VLOOKUP(F7,البيانات!$A$1:$D$6,4,0)="","",VLOOKUP(F7,البيانات!$A$1:$D$6,4,0)),"") ->  | D11: اسم المرشد | F11: =IFERROR(VLOOKUP(F7,البيانات!$A$1:$E$6,5,0),"") -> 
A14: الرقم | B14: اسم المعتمر | C14: الجنس | D14: الجنسية | E14: رقم الهوية | F14: رقم جواز السفر | G14: تاريخ الاصدار | H14: تاريخ الانتهاء | I14: اسم المحرم | J14: نوع الخدمة | K14: سعر الشراء | L14: سعر البيع
A15: 1 | B15: محمد | C15: رجل | D15: مصرى | E15: 2135206 | F15: 1236555211 | G15: 2018-01-01 | H15: 2019-12-10 | I15: ننن | J15: طيران | K15: 2000 | L15: 3000
A16: 2
A17: 3
A18: 4
A19: 5
A20: 6
A21: 7
A22: 8
A23: 9
A24: 10
A25: 11
A26: 12
A27: 13
A28: 14
A29: 15
A30: 16
A31: 17
A32: 18
A33: 19
A34: 20
A35: 21
A36: 22
A37: 23
A38: 24
A39: 25
A40: 26
A41: 27
A42: 28
A43: 29
A44: 30
A45: الاجمالي | K45: 2000 | L45: 3000

Sheet R125
F6: رقم الحافلة
C7: حساب الرحلة | F7: =IFERROR(INDEX(البيانات!$A$2:$A$320,MATCH($B$9,البيانات!$B$2:$B$320,0)),"") -> 0
A9: رقم الرحلة | B9: R125 | D9: نوع الرحلة | F9: =IFERROR(VLOOKUP(F7,البيانات!$A$1:$C$6,3,0),"") -> 
D10: مدير مسئول
A11: تاريخ الرحلة | B11: =IFERROR(IF(VLOOKUP(F7,البيانات!$A$1:$D$6,4,0)="","",VLOOKUP(F7,البيانات!$A$1:$D$6,4,0)),"") ->  | D11: اسم المرشد | F11: =IFERROR(VLOOKUP(F7,البيانات!$A$1:$E$6,5,0),"") -> 
A14: الرقم | B14: اسم المعتمر | C14: الجنس | D14: الجنسية | E14: رقم الهوية | F14: رقم جواز السفر | G14: تاريخ الاصدار | H14: تاريخ الانتهاء | I14: اسم المحرم | J14: نوع الخدمة | K14: سعر الشراء | L14: سعر البيع
A15: 1 | B15: محمد | C15: رجل | D15: مصرى | E15: 2135206 | F15: 1236555211 | G15: 2018-01-01 | H15: 2019-12-10 | I15: ننن | J15: طيران | K15: 2000 | L15: 3000
A16: 2
A17: 3
A18: 4
A19: 5
A20: 6
A21: 7
A22: 8
A23: 9
A24: 10
A25: 11
A26: 12
A27: 13
A28: 14
A29: 15
A30: 16
A31: 17
A32: 18
A33: 19
A34: 20
A35: 21
A36: 22
A37: 23
A38: 24
A39: 25
A40: 26
A41: 27
A42: 28
A43: 29
A44: 30
A45: الاجمالي | K45: 2000 | L45: 3000

Sheet R126
F6: رقم الحافلة
C7: حساب الرحلة | F7: =IFERROR(INDEX(البيانات!$A$2:$A$320,MATCH($B$9,البيانات!$B$2:$B$320,0)),"") -> 0
A9: رقم الرحلة | B9: R126 | D9: نوع الرحلة | F9: =IFERROR(VLOOKUP(F7,البيانات!$A$1:$C$6,3,0),"") -> 
D10: مدير مسئول
A11: تاريخ الرحلة | B11: =IFERROR(IF(VLOOKUP(F7,البيانات!$A$1:$D$6,4,0)="","",VLOOKUP(F7,البيانات!$A$1:$D$6,4,0)),"") ->  | D11: اسم المرشد | F11: =IFERROR(VLOOKUP(F7,البيانات!$A$1:$E$6,5,0),"") -> 
A14: الرقم | B14: اسم المعتمر | C14: الجنس | D14: الجنسية | E14: رقم الهوية | F14: رقم جواز السفر | G14: تاريخ الاصدار | H14: تاريخ الانتهاء | I14: اسم المحرم | J14: نوع الخدمة | K14: سعر الشراء | L14: سعر البيع
A15: 1 | B15: محمد | C15: رجل | D15: مصرى | E15: 2135206 | F15: 1236555211 | G15: 2018-01-01 | H15: 2019-12-10 | I15: ننن | J15: طيران | K15: 2000 | L15: 3000
A16: 2
A17: 3
A18: 4
A19: 5
A20: 6
A21: 7
A22: 8
A23: 9
A24: 10
A25: 11
A26: 12
A27: 13
A28: 14
A29: 15
A30: 16
A31: 17
A32: 18
A33: 19
A34: 20
A35: 21
A36: 22
A37: 23
A38: 24
A39: 25
A40: 26
A41: 27
A42: 28
A43: 29
A44: 30
A45: الاجمالي | K45: 2000 | L45: 3000

Sheet R127
F6: رقم الحافلة
C7: حساب الرحلة | F7: =IFERROR(INDEX(البيانات!$A$2:$A$320,MATCH($B$9,البيانات!$B$2:$B$320,0)),"") -> 0
A9: رقم الرحلة | B9: R127 | D9: نوع الرحلة | F9: =IFERROR(VLOOKUP(F7,البيانات!$A$1:$C$6,3,0),"") -> 
D10: مدير مسئول
A11: تاريخ الرحلة | B11: =IFERROR(IF(VLOOKUP(F7,البيانات!$A$1:$D$6,4,0)="","",VLOOKUP(F7,البيانات!$A$1:$D$6,4,0)),"") ->  | D11: اسم المرشد | F11: =IFERROR(VLOOKUP(F7,البيانات!$A$1:$E$6,5,0),"") -> 
A14: الرقم | B14: اسم المعتمر | C14: الجنس | D14: الجنسية | E14: رقم الهوية | F14: رقم جواز السفر | G14: تاريخ الاصدار | H14: تاريخ الانتهاء | I14: اسم المحرم | J14: نوع الخدمة | K14: سعر الشراء | L14: سعر البيع
A15: 1 | B15: محمد | C15: رجل | D15: مصرى | E15: 2135206 | F15: 1236555211 | G15: 2018-01-01 | H15: 2019-12-10 | I15: ننن | J15: طيران | K15: 2000 | L15: 3000
A16: 2
A17: 3
A18: 4
A19: 5
A20: 6
A21: 7
A22: 8
A23: 9
A24: 10
A25: 11
A26: 12
A27: 13
A28: 14
A29: 15
A30: 16
A31: 17
A32: 18
A33: 19
A34: 20
A35: 21
A36: 22
A37: 23
A38: 24
A39: 25
A40: 26
A41: 27
A42: 28
A43: 29
A44: 30
A45: الاجمالي | K45: 2000 | L45: 3000

Sheet R128
F6: رقم الحافلة
C7: حساب الرحلة | F7: =IFERROR(INDEX(البيانات!$A$2:$A$320,MATCH($B$9,البيانات!$B$2:$B$320,0)),"") -> 0
A9: رقم الرحلة | B9: R128 | D9: نوع الرحلة | F9: =IFERROR(VLOOKUP(F7,البيانات!$A$1:$C$6,3,0),"") -> 
D10: مدير مسئول
A11: تاريخ الرحلة | B11: =IFERROR(IF(VLOOKUP(F7,البيانات!$A$1:$D$6,4,0)="","",VLOOKUP(F7,البيانات!$A$1:$D$6,4,0)),"") ->  | D11: اسم المرشد | F11: =IFERROR(VLOOKUP(F7,البيانات!$A$1:$E$6,5,0),"") -> 
A14: الرقم | B14: اسم المعتمر | C14: الجنس | D14: الجنسية | E14: رقم الهوية | F14: رقم جواز السفر | G14: تاريخ الاصدار | H14: تاريخ الانتهاء | I14: اسم المحرم | J14: نوع الخدمة | K14: سعر الشراء | L14: سعر البيع
A15: 1 | B15: محمد | C15: رجل | D15: مصرى | E15: 2135206 | F15: 1236555211 | G15: 2018-01-01 | H15: 2019-12-10 | I15: ننن | J15: طيران | K15: 2000 | L15: 3000
A16: 2
A17: 3
A18: 4
A19: 5
A20: 6
A21: 7
A22: 8
A23: 9
A24: 10
A25: 11
A26: 12
A27: 13
A28: 14
A29: 15
A30: 16
A31: 17
A32: 18
A33: 19
A34: 20
A35: 21
A36: 22
A37: 23
A38: 24
A39: 25
A40: 26
A41: 27
A42: 28
A43: 29
A44: 30
A45: الاجمالي | K45: 2000 | L45: 3000

Sheet R129
F6: رقم الحافلة
C7: حساب الرحلة | F7: =IFERROR(INDEX(البيانات!$A$2:$A$320,MATCH($B$9,البيانات!$B$2:$B$320,0)),"") -> 0
A9: رقم الرحلة | B9: R129 | D9: نوع الرحلة | F9: =IFERROR(VLOOKUP(F7,البيانات!$A$1:$C$6,3,0),"") -> 
D10: مدير مسئول
A11: تاريخ الرحلة | B11: =IFERROR(IF(VLOOKUP(F7,البيانات!$A$1:$D$6,4,0)="","",VLOOKUP(F7,البيانات!$A$1:$D$6,4,0)),"") ->  | D11: اسم المرشد | F11: =IFERROR(VLOOKUP(F7,البيانات!$A$1:$E$6,5,0),"") -> 
A14: الرقم | B14: اسم المعتمر | C14: الجنس | D14: الجنسية | E14: رقم الهوية | F14: رقم جواز السفر | G14: تاريخ الاصدار | H14: تاريخ الانتهاء | I14: اسم المحرم | J14: نوع الخدمة | K14: سعر الشراء | L14: سعر البيع
A15: 1 | B15: محمد | C15: رجل | D15: مصرى | E15: 2135206 | F15: 1236555211 | G15: 2018-01-01 | H15: 2019-12-10 | I15: ننن | J15: طيران | K15: 2000 | L15: 3000
A16: 2
A17: 3
A18: 4
A19: 5
A20: 6
A21: 7
A22: 8
A23: 9
A24: 10
A25: 11
A26: 12
A27: 13
A28: 14
A29: 15
A30: 16
A31: 17
A32: 18
A33: 19
A34: 20
A35: 21
A36: 22
A37: 23
A38: 24
A39: 25
A40: 26
A41: 27
A42: 28
A43: 29
A44: 30
A45: الاجمالي | K45: 2000 | L45: 3000

Sheet R130
F6: رقم الحافلة
C7: حساب الرحلة | F7: =IFERROR(INDEX(البيانات!$A$2:$A$320,MATCH($B$9,البيانات!$B$2:$B$320,0)),"") -> 0
A9: رقم الرحلة | B9: R130 | D9: نوع الرحلة | F9: =IFERROR(VLOOKUP(F7,البيانات!$A$1:$C$6,3,0),"") -> 
D10: مدير مسئول
A11: تاريخ الرحلة | B11: =IFERROR(IF(VLOOKUP(F7,البيانات!$A$1:$D$6,4,0)="","",VLOOKUP(F7,البيانات!$A$1:$D$6,4,0)),"") ->  | D11: اسم المرشد | F11: =IFERROR(VLOOKUP(F7,البيانات!$A$1:$E$6,5,0),"") -> 
A14: الرقم | B14: اسم المعتمر | C14: الجنس | D14: الجنسية | E14: رقم الهوية | F14: رقم جواز السفر | G14: تاريخ الاصدار | H14: تاريخ الانتهاء | I14: اسم المحرم | J14: نوع الخدمة | K14: سعر الشراء | L14: سعر البيع
A15: 1 | B15: محمد | C15: رجل | D15: مصرى | E15: 2135206 | F15: 1236555211 | G15: 2018-01-01 | H15: 2019-12-10 | I15: ننن | J15: طيران | K15: 2000 | L15: 3000
A16: 2
A17: 3
A18: 4
A19: 5
A20: 6
A21: 7
A22: 8
A23: 9
A24: 10
A25: 11
A26: 12
A27: 13
A28: 14
A29: 15
A30: 16
A31: 17
A32: 18
A33: 19
A34: 20
A35: 21
A36: 22
A37: 23
A38: 24
A39: 25
A40: 26
A41: 27
A42: 28
A43: 29
A44: 30
A45: الاجمالي | K45: 2000 | L45: 3000

Sheet R131
F6: رقم الحافلة
C7: حساب الرحلة | F7: =IFERROR(INDEX(البيانات!$A$2:$A$320,MATCH($B$9,البيانات!$B$2:$B$320,0)),"") -> 0
A9: رقم الرحلة | B9: R131 | D9: نوع الرحلة | F9: =IFERROR(VLOOKUP(F7,البيانات!$A$1:$C$6,3,0),"") -> 
D10: مدير مسئول
A11: تاريخ الرحلة | B11: =IFERROR(IF(VLOOKUP(F7,البيانات!$A$1:$D$6,4,0)="","",VLOOKUP(F7,البيانات!$A$1:$D$6,4,0)),"") ->  | D11: اسم المرشد | F11: =IFERROR(VLOOKUP(F7,البيانات!$A$1:$E$6,5,0),"") -> 
A14: الرقم | B14: اسم المعتمر | C14: الجنس | D14: الجنسية | E14: رقم الهوية | F14: رقم جواز السفر | G14: تاريخ الاصدار | H14: تاريخ الانتهاء | I14: اسم المحرم | J14: نوع الخدمة | K14: سعر الشراء | L14: سعر البيع
A15: 1 | B15: محمد | C15: رجل | D15: مصرى | E15: 2135206 | F15: 1236555211 | G15: 2018-01-01 | H15: 2019-12-10 | I15: ننن | J15: طيران | K15: 2000 | L15: 3000
A16: 2
A17: 3
A18: 4
A19: 5
A20: 6
A21: 7
A22: 8
A23: 9
A24: 10
A25: 11
A26: 12
A27: 13
A28: 14
A29: 15
A30: 16
A31: 17
A32: 18
A33: 19
A34: 20
A35: 21
A36: 22
A37: 23
A38: 24
A39: 25
A40: 26
A41: 27
A42: 28
A43: 29
A44: 30
A45: الاجمالي | K45: 2000 | L45: 3000

Sheet R132
F6: رقم الحافلة
C7: حساب الرحلة | F7: =IFERROR(INDEX(البيانات!$A$2:$A$320,MATCH($B$9,البيانات!$B$2:$B$320,0)),"") -> 0
A9: رقم الرحلة | B9: R132 | D9: نوع الرحلة | F9: =IFERROR(VLOOKUP(F7,البيانات!$A$1:$C$6,3,0),"") -> 
D10: مدير مسئول
A11: تاريخ الرحلة | B11: =IFERROR(IF(VLOOKUP(F7,البيانات!$A$1:$D$6,4,0)="","",VLOOKUP(F7,البيانات!$A$1:$D$6,4,0)),"") ->  | D11: اسم المرشد | F11: =IFERROR(VLOOKUP(F7,البيانات!$A$1:$E$6,5,0),"") -> 
A14: الرقم | B14: اسم المعتمر | C14: الجنس | D14: الجنسية | E14: رقم الهوية | F14: رقم جواز السفر | G14: تاريخ الاصدار | H14: تاريخ الانتهاء | I14: اسم المحرم | J14: نوع الخدمة | K14: سعر الشراء | L14: سعر البيع
A15: 1 | B15: محمد | C15: رجل | D15: مصرى | E15: 2135206 | F15: 1236555211 | G15: 2018-01-01 | H15: 2019-12-10 | I15: ننن | J15: طيران | K15: 2000 | L15: 3000
A16: 2
A17: 3
A18: 4
A19: 5
A20: 6
A21: 7
A22: 8
A23: 9
A24: 10
A25: 11
A26: 12
A27: 13
A28: 14
A29: 15
A30: 16
A31: 17
A32: 18
A33: 19
A34: 20
A35: 21
A36: 22
A37: 23
A38: 24
A39: 25
A40: 26
A41: 27
A42: 28
A43: 29
A44: 30
A45: الاجمالي | K45: 2000 | L45: 3000

Sheet R133
F6: رقم الحافلة
C7: حساب الرحلة | F7: =IFERROR(INDEX(البيانات!$A$2:$A$320,MATCH($B$9,البيانات!$B$2:$B$320,0)),"") -> 0
A9: رقم الرحلة | B9: R133 | D9: نوع الرحلة | F9: =IFERROR(VLOOKUP(F7,البيانات!$A$1:$C$6,3,0),"") -> 
D10: مدير مسئول
A11: تاريخ الرحلة | B11: =IFERROR(IF(VLOOKUP(F7,البيانات!$A$1:$D$6,4,0)="","",VLOOKUP(F7,البيانات!$A$1:$D$6,4,0)),"") ->  | D11: اسم المرشد | F11: =IFERROR(VLOOKUP(F7,البيانات!$A$1:$E$6,5,0),"") -> 
A14: الرقم | B14: اسم المعتمر | C14: الجنس | D14: الجنسية | E14: رقم الهوية | F14: رقم جواز السفر | G14: تاريخ الاصدار | H14: تاريخ الانتهاء | I14: اسم المحرم | J14: نوع الخدمة | K14: سعر الشراء | L14: سعر البيع
A15: 1 | B15: محمد | C15: رجل | D15: مصرى | E15: 2135206 | F15: 1236555211 | G15: 2018-01-01 | H15: 2019-12-10 | I15: ننن | J15: طيران | K15: 2000 | L15: 3000
A16: 2
A17: 3
A18: 4
A19: 5
A20: 6
A21: 7
A22: 8
A23: 9
A24: 10
A25: 11
A26: 12
A27: 13
A28: 14
A29: 15
A30: 16
A31: 17
A32: 18
A33: 19
A34: 20
A35: 21
A36: 22
A37: 23
A38: 24
A39: 25
A40: 26
A41: 27
A42: 28
A43: 29
A44: 30
A45: الاجمالي | K45: 2000 | L45: 3000

Sheet R134
F6: رقم الحافلة
C7: حساب الرحلة | F7: =IFERROR(INDEX(البيانات!$A$2:$A$320,MATCH($B$9,البيانات!$B$2:$B$320,0)),"") -> 0
A9: رقم الرحلة | B9: R134 | D9: نوع الرحلة | F9: =IFERROR(VLOOKUP(F7,البيانات!$A$1:$C$6,3,0),"") -> 
D10: مدير مسئول
A11: تاريخ الرحلة | B11: =IFERROR(IF(VLOOKUP(F7,البيانات!$A$1:$D$6,4,0)="","",VLOOKUP(F7,البيانات!$A$1:$D$6,4,0)),"") ->  | D11: اسم المرشد | F11: =IFERROR(VLOOKUP(F7,البيانات!$A$1:$E$6,5,0),"") -> 
A14: الرقم | B14: اسم المعتمر | C14: الجنس | D14: الجنسية | E14: رقم الهوية | F14: رقم جواز السفر | G14: تاريخ الاصدار | H14: تاريخ الانتهاء | I14: اسم المحرم | J14: نوع الخدمة | K14: سعر الشراء | L14: سعر البيع
A15: 1 | B15: محمد | C15: رجل | D15: مصرى | E15: 2135206 | F15: 1236555211 | G15: 2018-01-01 | H15: 2019-12-10 | I15: ننن | J15: طيران | K15: 2000 | L15: 3000
A16: 2
A17: 3
A18: 4
A19: 5
A20: 6
A21: 7
A22: 8
A23: 9
A24: 10
A25: 11
A26: 12
A27: 13
A28: 14
A29: 15
A30: 16
A31: 17
A32: 18
A33: 19
A34: 20
A35: 21
A36: 22
A37: 23
A38: 24
A39: 25
A40: 26
A41: 27
A42: 28
A43: 29
A44: 30
A45: الاجمالي | K45: 2000 | L45: 3000

Sheet R135
F6: رقم الحافلة
C7: حساب الرحلة | F7: =IFERROR(INDEX(البيانات!$A$2:$A$320,MATCH($B$9,البيانات!$B$2:$B$320,0)),"") -> 0
A9: رقم الرحلة | B9: R135 | D9: نوع الرحلة | F9: =IFERROR(VLOOKUP(F7,البيانات!$A$1:$C$6,3,0),"") -> 
D10: مدير مسئول
A11: تاريخ الرحلة | B11: =IFERROR(IF(VLOOKUP(F7,البيانات!$A$1:$D$6,4,0)="","",VLOOKUP(F7,البيانات!$A$1:$D$6,4,0)),"") ->  | D11: اسم المرشد | F11: =IFERROR(VLOOKUP(F7,البيانات!$A$1:$E$6,5,0),"") -> 
A14: الرقم | B14: اسم المعتمر | C14: الجنس | D14: الجنسية | E14: رقم الهوية | F14: رقم جواز السفر | G14: تاريخ الاصدار | H14: تاريخ الانتهاء | I14: اسم المحرم | J14: نوع الخدمة | K14: سعر الشراء | L14: سعر البيع
A15: 1 | B15: محمد | C15: رجل | D15: مصرى | E15: 2135206 | F15: 1236555211 | G15: 2018-01-01 | H15: 2019-12-10 | I15: ننن | J15: طيران | K15: 2000 | L15: 3000
A16: 2
A17: 3
A18: 4
A19: 5
A20: 6
A21: 7
A22: 8
A23: 9
A24: 10
A25: 11
A26: 12
A27: 13
A28: 14
A29: 15
A30: 16
A31: 17
A32: 18
A33: 19
A34: 20
A35: 21
A36: 22
A37: 23
A38: 24
A39: 25
A40: 26
A41: 27
A42: 28
A43: 29
A44: 30
A45: الاجمالي | K45: 2000 | L45: 3000

Sheet R136
F6: رقم الحافلة
C7: حساب الرحلة | F7: =IFERROR(INDEX(البيانات!$A$2:$A$320,MATCH($B$9,البيانات!$B$2:$B$320,0)),"") -> 0
A9: رقم الرحلة | B9: R136 | D9: نوع الرحلة | F9: =IFERROR(VLOOKUP(F7,البيانات!$A$1:$C$6,3,0),"") -> 
D10: مدير مسئول
A11: تاريخ الرحلة | B11: =IFERROR(IF(VLOOKUP(F7,البيانات!$A$1:$D$6,4,0)="","",VLOOKUP(F7,البيانات!$A$1:$D$6,4,0)),"") ->  | D11: اسم المرشد | F11: =IFERROR(VLOOKUP(F7,البيانات!$A$1:$E$6,5,0),"") -> 
A14: الرقم | B14: اسم المعتمر | C14: الجنس | D14: الجنسية | E14: رقم الهوية | F14: رقم جواز السفر | G14: تاريخ الاصدار | H14: تاريخ الانتهاء | I14: اسم المحرم | J14: نوع الخدمة | K14: سعر الشراء | L14: سعر البيع
A15: 1 | B15: محمد | C15: رجل | D15: مصرى | E15: 2135206 | F15: 1236555211 | G15: 2018-01-01 | H15: 2019-12-10 | I15: ننن | J15: طيران | K15: 2000 | L15: 3000
A16: 2
A17: 3
A18: 4
A19: 5
A20: 6
A21: 7
A22: 8
A23: 9
A24: 10
A25: 11
A26: 12
A27: 13
A28: 14
A29: 15
A30: 16
A31: 17
A32: 18
A33: 19
A34: 20
A35: 21
A36: 22
A37: 23
A38: 24
A39: 25
A40: 26
A41: 27
A42: 28
A43: 29
A44: 30
A45: الاجمالي | K45: 2000 | L45: 3000

Sheet R137
F6: رقم الحافلة
C7: حساب الرحلة | F7: =IFERROR(INDEX(البيانات!$A$2:$A$320,MATCH($B$9,البيانات!$B$2:$B$320,0)),"") -> 0
A9: رقم الرحلة | B9: R137 | D9: نوع الرحلة | F9: =IFERROR(VLOOKUP(F7,البيانات!$A$1:$C$6,3,0),"") -> 
D10: مدير مسئول
A11: تاريخ الرحلة | B11: =IFERROR(IF(VLOOKUP(F7,البيانات!$A$1:$D$6,4,0)="","",VLOOKUP(F7,البيانات!$A$1:$D$6,4,0)),"") ->  | D11: اسم المرشد | F11: =IFERROR(VLOOKUP(F7,البيانات!$A$1:$E$6,5,0),"") -> 
A14: الرقم | B14: اسم المعتمر | C14: الجنس | D14: الجنسية | E14: رقم الهوية | F14: رقم جواز السفر | G14: تاريخ الاصدار | H14: تاريخ الانتهاء | I14: اسم المحرم | J14: نوع الخدمة | K14: سعر الشراء | L14: سعر البيع
A15: 1 | B15: محمد | C15: رجل | D15: مصرى | E15: 2135206 | F15: 1236555211 | G15: 2018-01-01 | H15: 2019-12-10 | I15: ننن | J15: طيران | K15: 2000 | L15: 3000
A16: 2
A17: 3
A18: 4
A19: 5
A20: 6
A21: 7
A22: 8
A23: 9
A24: 10
A25: 11
A26: 12
A27: 13
A28: 14
A29: 15
A30: 16
A31: 17
A32: 18
A33: 19
A34: 20
A35: 21
A36: 22
A37: 23
A38: 24
A39: 25
A40: 26
A41: 27
A42: 28
A43: 29
A44: 30
A45: الاجمالي | K45: 2000 | L45: 3000

Sheet R138
F6: رقم الحافلة
C7: حساب الرحلة | F7: =IFERROR(INDEX(البيانات!$A$2:$A$320,MATCH($B$9,البيانات!$B$2:$B$320,0)),"") -> 0
A9: رقم الرحلة | B9: R138 | D9: نوع الرحلة | F9: =IFERROR(VLOOKUP(F7,البيانات!$A$1:$C$6,3,0),"") -> 
D10: مدير مسئول
A11: تاريخ الرحلة | B11: =IFERROR(IF(VLOOKUP(F7,البيانات!$A$1:$D$6,4,0)="","",VLOOKUP(F7,البيانات!$A$1:$D$6,4,0)),"") ->  | D11: اسم المرشد | F11: =IFERROR(VLOOKUP(F7,البيانات!$A$1:$E$6,5,0),"") -> 
A14: الرقم | B14: اسم المعتمر | C14: الجنس | D14: الجنسية | E14: رقم الهوية | F14: رقم جواز السفر | G14: تاريخ الاصدار | H14: تاريخ الانتهاء | I14: اسم المحرم | J14: نوع الخدمة | K14: سعر الشراء | L14: سعر البيع
A15: 1 | B15: محمد | C15: رجل | D15: مصرى | E15: 2135206 | F15: 1236555211 | G15: 2018-01-01 | H15: 2019-12-10 | I15: ننن | J15: طيران | K15: 2000 | L15: 3000
A16: 2
A17: 3
A18: 4
A19: 5
A20: 6
A21: 7
A22: 8
A23: 9
A24: 10
A25: 11
A26: 12
A27: 13
A28: 14
A29: 15
A30: 16
A31: 17
A32: 18
A33: 19
A34: 20
A35: 21
A36: 22
A37: 23
A38: 24
A39: 25
A40: 26
A41: 27
A42: 28
A43: 29
A44: 30
A45: الاجمالي | K45: 2000 | L45: 3000

Sheet R139
F6: رقم الحافلة
C7: حساب الرحلة | F7: =IFERROR(INDEX(البيانات!$A$2:$A$320,MATCH($B$9,البيانات!$B$2:$B$320,0)),"") -> 0
A9: رقم الرحلة | B9: R139 | D9: نوع الرحلة | F9: =IFERROR(VLOOKUP(F7,البيانات!$A$1:$C$6,3,0),"") -> 
D10: مدير مسئول
A11: تاريخ الرحلة | B11: =IFERROR(IF(VLOOKUP(F7,البيانات!$A$1:$D$6,4,0)="","",VLOOKUP(F7,البيانات!$A$1:$D$6,4,0)),"") ->  | D11: اسم المرشد | F11: =IFERROR(VLOOKUP(F7,البيانات!$A$1:$E$6,5,0),"") -> 
A14: الرقم | B14: اسم المعتمر | C14: الجنس | D14: الجنسية | E14: رقم الهوية | F14: رقم جواز السفر | G14: تاريخ الاصدار | H14: تاريخ الانتهاء | I14: اسم المحرم | J14: نوع الخدمة | K14: سعر الشراء | L14: سعر البيع
A15: 1 | B15: محمد | C15: رجل | D15: مصرى | E15: 2135206 | F15: 1236555211 | G15: 2018-01-01 | H15: 2019-12-10 | I15: ننن | J15: طيران | K15: 2000 | L15: 3000
A16: 2
A17: 3
A18: 4
A19: 5
A20: 6
A21: 7
A22: 8
A23: 9
A24: 10
A25: 11
A26: 12
A27: 13
A28: 14
A29: 15
A30: 16
A31: 17
A32: 18
A33: 19
A34: 20
A35: 21
A36: 22
A37: 23
A38: 24
A39: 25
A40: 26
A41: 27
A42: 28
A43: 29
A44: 30
A45: الاجمالي | K45: 2000 | L45: 3000

Sheet R140
F6: رقم الحافلة
C7: حساب الرحلة | F7: =IFERROR(INDEX(البيانات!$A$2:$A$320,MATCH($B$9,البيانات!$B$2:$B$320,0)),"") -> 0
A9: رقم الرحلة | B9: R140 | D9: نوع الرحلة | F9: =IFERROR(VLOOKUP(F7,البيانات!$A$1:$C$6,3,0),"") -> 
D10: مدير مسئول
A11: تاريخ الرحلة | B11: =IFERROR(IF(VLOOKUP(F7,البيانات!$A$1:$D$6,4,0)="","",VLOOKUP(F7,البيانات!$A$1:$D$6,4,0)),"") ->  | D11: اسم المرشد | F11: =IFERROR(VLOOKUP(F7,البيانات!$A$1:$E$6,5,0),"") -> 
A14: الرقم | B14: اسم المعتمر | C14: الجنس | D14: الجنسية | E14: رقم الهوية | F14: رقم جواز السفر | G14: تاريخ الاصدار | H14: تاريخ الانتهاء | I14: اسم المحرم | J14: نوع الخدمة | K14: سعر الشراء | L14: سعر البيع
A15: 1 | B15: محمد | C15: رجل | D15: مصرى | E15: 2135206 | F15: 1236555211 | G15: 2018-01-01 | H15: 2019-12-10 | I15: ننن | J15: طيران | K15: 2000 | L15: 3000
A16: 2
A17: 3
A18: 4
A19: 5
A20: 6
A21: 7
A22: 8
A23: 9
A24: 10
A25: 11
A26: 12
A27: 13
A28: 14
A29: 15
A30: 16
A31: 17
A32: 18
A33: 19
A34: 20
A35: 21
A36: 22
A37: 23
A38: 24
A39: 25
A40: 26
A41: 27
A42: 28
A43: 29
A44: 30
A45: الاجمالي | K45: 2000 | L45: 3000

Sheet R141
F6: رقم الحافلة
C7: حساب الرحلة | F7: =IFERROR(INDEX(البيانات!$A$2:$A$320,MATCH($B$9,البيانات!$B$2:$B$320,0)),"") -> 0
A9: رقم الرحلة | B9: R141 | D9: نوع الرحلة | F9: =IFERROR(VLOOKUP(F7,البيانات!$A$1:$C$6,3,0),"") -> 
D10: مدير مسئول
A11: تاريخ الرحلة | B11: =IFERROR(IF(VLOOKUP(F7,البيانات!$A$1:$D$6,4,0)="","",VLOOKUP(F7,البيانات!$A$1:$D$6,4,0)),"") ->  | D11: اسم المرشد | F11: =IFERROR(VLOOKUP(F7,البيانات!$A$1:$E$6,5,0),"") -> 
A14: الرقم | B14: اسم المعتمر | C14: الجنس | D14: الجنسية | E14: رقم الهوية | F14: رقم جواز السفر | G14: تاريخ الاصدار | H14: تاريخ الانتهاء | I14: اسم المحرم | J14: نوع الخدمة | K14: سعر الشراء | L14: سعر البيع
A15: 1 | B15: محمد | C15: رجل | D15: مصرى | E15: 2135206 | F15: 1236555211 | G15: 2018-01-01 | H15: 2019-12-10 | I15: ننن | J15: طيران | K15: 2000 | L15: 3000
A16: 2
A17: 3
A18: 4
A19: 5
A20: 6
A21: 7
A22: 8
A23: 9
A24: 10
A25: 11
A26: 12
A27: 13
A28: 14
A29: 15
A30: 16
A31: 17
A32: 18
A33: 19
A34: 20
A35: 21
A36: 22
A37: 23
A38: 24
A39: 25
A40: 26
A41: 27
A42: 28
A43: 29
A44: 30
A45: الاجمالي | K45: 2000 | L45: 3000

Sheet R142
F6: رقم الحافلة
C7: حساب الرحلة | F7: =IFERROR(INDEX(البيانات!$A$2:$A$320,MATCH($B$9,البيانات!$B$2:$B$320,0)),"") -> 0
A9: رقم الرحلة | B9: R142 | D9: نوع الرحلة | F9: =IFERROR(VLOOKUP(F7,البيانات!$A$1:$C$6,3,0),"") -> 
D10: مدير مسئول
A11: تاريخ الرحلة | B11: =IFERROR(IF(VLOOKUP(F7,البيانات!$A$1:$D$6,4,0)="","",VLOOKUP(F7,البيانات!$A$1:$D$6,4,0)),"") ->  | D11: اسم المرشد | F11: =IFERROR(VLOOKUP(F7,البيانات!$A$1:$E$6,5,0),"") -> 
A14: الرقم | B14: اسم المعتمر | C14: الجنس | D14: الجنسية | E14: رقم الهوية | F14: رقم جواز السفر | G14: تاريخ الاصدار | H14: تاريخ الانتهاء | I14: اسم المحرم | J14: نوع الخدمة | K14: سعر الشراء | L14: سعر البيع
A15: 1 | B15: محمد | C15: رجل | D15: مصرى | E15: 2135206 | F15: 1236555211 | G15: 2018-01-01 | H15: 2019-12-10 | I15: ننن | J15: طيران | K15: 2000 | L15: 3000
A16: 2
A17: 3
A18: 4
A19: 5
A20: 6
A21: 7
A22: 8
A23: 9
A24: 10
A25: 11
A26: 12
A27: 13
A28: 14
A29: 15
A30: 16
A31: 17
A32: 18
A33: 19
A34: 20
A35: 21
A36: 22
A37: 23
A38: 24
A39: 25
A40: 26
A41: 27
A42: 28
A43: 29
A44: 30
A45: الاجمالي | K45: 2000 | L45: 3000

Sheet R143
F6: رقم الحافلة
C7: حساب الرحلة | F7: =IFERROR(INDEX(البيانات!$A$2:$A$320,MATCH($B$9,البيانات!$B$2:$B$320,0)),"") -> 0
A9: رقم الرحلة | B9: R143 | D9: نوع الرحلة | F9: =IFERROR(VLOOKUP(F7,البيانات!$A$1:$C$6,3,0),"") -> 
D10: مدير مسئول
A11: تاريخ الرحلة | B11: =IFERROR(IF(VLOOKUP(F7,البيانات!$A$1:$D$6,4,0)="","",VLOOKUP(F7,البيانات!$A$1:$D$6,4,0)),"") ->  | D11: اسم المرشد | F11: =IFERROR(VLOOKUP(F7,البيانات!$A$1:$E$6,5,0),"") -> 
A14: الرقم | B14: اسم المعتمر | C14: الجنس | D14: الجنسية | E14: رقم الهوية | F14: رقم جواز السفر | G14: تاريخ الاصدار | H14: تاريخ الانتهاء | I14: اسم المحرم | J14: نوع الخدمة | K14: سعر الشراء | L14: سعر البيع
A15: 1 | B15: محمد | C15: رجل | D15: مصرى | E15: 2135206 | F15: 1236555211 | G15: 2018-01-01 | H15: 2019-12-10 | I15: ننن | J15: طيران | K15: 2000 | L15: 3000
A16: 2
A17: 3
A18: 4
A19: 5
A20: 6
A21: 7
A22: 8
A23: 9
A24: 10
A25: 11
A26: 12
A27: 13
A28: 14
A29: 15
A30: 16
A31: 17
A32: 18
A33: 19
A34: 20
A35: 21
A36: 22
A37: 23
A38: 24
A39: 25
A40: 26
A41: 27
A42: 28
A43: 29
A44: 30
A45: الاجمالي | K45: 2000 | L45: 3000

Sheet R144
F6: رقم الحافلة
C7: حساب الرحلة | F7: =IFERROR(INDEX(البيانات!$A$2:$A$320,MATCH($B$9,البيانات!$B$2:$B$320,0)),"") -> 0
A9: رقم الرحلة | B9: R144 | D9: نوع الرحلة | F9: =IFERROR(VLOOKUP(F7,البيانات!$A$1:$C$6,3,0),"") -> 
D10: مدير مسئول
A11: تاريخ الرحلة | B11: =IFERROR(IF(VLOOKUP(F7,البيانات!$A$1:$D$6,4,0)="","",VLOOKUP(F7,البيانات!$A$1:$D$6,4,0)),"") ->  | D11: اسم المرشد | F11: =IFERROR(VLOOKUP(F7,البيانات!$A$1:$E$6,5,0),"") -> 
A14: الرقم | B14: اسم المعتمر | C14: الجنس | D14: الجنسية | E14: رقم الهوية | F14: رقم جواز السفر | G14: تاريخ الاصدار | H14: تاريخ الانتهاء | I14: اسم المحرم | J14: نوع الخدمة | K14: سعر الشراء | L14: سعر البيع
A15: 1 | B15: محمد | C15: رجل | D15: مصرى | E15: 2135206 | F15: 1236555211 | G15: 2018-01-01 | H15: 2019-12-10 | I15: ننن | J15: طيران | K15: 2000 | L15: 3000
A16: 2
A17: 3
A18: 4
A19: 5
A20: 6
A21: 7
A22: 8
A23: 9
A24: 10
A25: 11
A26: 12
A27: 13
A28: 14
A29: 15
A30: 16
A31: 17
A32: 18
A33: 19
A34: 20
A35: 21
A36: 22
A37: 23
A38: 24
A39: 25
A40: 26
A41: 27
A42: 28
A43: 29
A44: 30
A45: الاجمالي | K45: 2000 | L45: 3000

Sheet R145
F6: رقم الحافلة
C7: حساب الرحلة | F7: =IFERROR(INDEX(البيانات!$A$2:$A$320,MATCH($B$9,البيانات!$B$2:$B$320,0)),"") -> 0
A9: رقم الرحلة | B9: R145 | D9: نوع الرحلة | F9: =IFERROR(VLOOKUP(F7,البيانات!$A$1:$C$6,3,0),"") -> 
D10: مدير مسئول
A11: تاريخ الرحلة | B11: =IFERROR(IF(VLOOKUP(F7,البيانات!$A$1:$D$6,4,0)="","",VLOOKUP(F7,البيانات!$A$1:$D$6,4,0)),"") ->  | D11: اسم المرشد | F11: =IFERROR(VLOOKUP(F7,البيانات!$A$1:$E$6,5,0),"") -> 
A14: الرقم | B14: اسم المعتمر | C14: الجنس | D14: الجنسية | E14: رقم الهوية | F14: رقم جواز السفر | G14: تاريخ الاصدار | H14: تاريخ الانتهاء | I14: اسم المحرم | J14: نوع الخدمة | K14: سعر الشراء | L14: سعر البيع
A15: 1 | B15: محمد | C15: رجل | D15: مصرى | E15: 2135206 | F15: 1236555211 | G15: 2018-01-01 | H15: 2019-12-10 | I15: ننن | J15: طيران | K15: 2000 | L15: 3000
A16: 2
A17: 3
A18: 4
A19: 5
A20: 6
A21: 7
A22: 8
A23: 9
A24: 10
A25: 11
A26: 12
A27: 13
A28: 14
A29: 15
A30: 16
A31: 17
A32: 18
A33: 19
A34: 20
A35: 21
A36: 22
A37: 23
A38: 24
A39: 25
A40: 26
A41: 27
A42: 28
A43: 29
A44: 30
A45: الاجمالي | K45: 2000 | L45: 3000

Sheet R146
F6: رقم الحافلة
C7: حساب الرحلة | F7: =IFERROR(INDEX(البيانات!$A$2:$A$320,MATCH($B$9,البيانات!$B$2:$B$320,0)),"") -> 0
A9: رقم الرحلة | B9: R146 | D9: نوع الرحلة | F9: =IFERROR(VLOOKUP(F7,البيانات!$A$1:$C$6,3,0),"") -> 
D10: مدير مسئول
A11: تاريخ الرحلة | B11: =IFERROR(IF(VLOOKUP(F7,البيانات!$A$1:$D$6,4,0)="","",VLOOKUP(F7,البيانات!$A$1:$D$6,4,0)),"") ->  | D11: اسم المرشد | F11: =IFERROR(VLOOKUP(F7,البيانات!$A$1:$E$6,5,0),"") -> 
A14: الرقم | B14: اسم المعتمر | C14: الجنس | D14: الجنسية | E14: رقم الهوية | F14: رقم جواز السفر | G14: تاريخ الاصدار | H14: تاريخ الانتهاء | I14: اسم المحرم | J14: نوع الخدمة | K14: سعر الشراء | L14: سعر البيع
A15: 1 | B15: محمد | C15: رجل | D15: مصرى | E15: 2135206 | F15: 1236555211 | G15: 2018-01-01 | H15: 2019-12-10 | I15: ننن | J15: طيران | K15: 2000 | L15: 3000
A16: 2
A17: 3
A18: 4
A19: 5
A20: 6
A21: 7
A22: 8
A23: 9
A24: 10
A25: 11
A26: 12
A27: 13
A28: 14
A29: 15
A30: 16
A31: 17
A32: 18
A33: 19
A34: 20
A35: 21
A36: 22
A37: 23
A38: 24
A39: 25
A40: 26
A41: 27
A42: 28
A43: 29
A44: 30
A45: الاجمالي | K45: 2000 | L45: 3000

Sheet R147
F6: رقم الحافلة
C7: حساب الرحلة | F7: =IFERROR(INDEX(البيانات!$A$2:$A$320,MATCH($B$9,البيانات!$B$2:$B$320,0)),"") -> 0
A9: رقم الرحلة | B9: R147 | D9: نوع الرحلة | F9: =IFERROR(VLOOKUP(F7,البيانات!$A$1:$C$6,3,0),"") -> 
D10: مدير مسئول
A11: تاريخ الرحلة | B11: =IFERROR(IF(VLOOKUP(F7,البيانات!$A$1:$D$6,4,0)="","",VLOOKUP(F7,البيانات!$A$1:$D$6,4,0)),"") ->  | D11: اسم المرشد | F11: =IFERROR(VLOOKUP(F7,البيانات!$A$1:$E$6,5,0),"") -> 
A14: الرقم | B14: اسم المعتمر | C14: الجنس | D14: الجنسية | E14: رقم الهوية | F14: رقم جواز السفر | G14: تاريخ الاصدار | H14: تاريخ الانتهاء | I14: اسم المحرم | J14: نوع الخدمة | K14: سعر الشراء | L14: سعر البيع
A15: 1 | B15: محمد | C15: رجل | D15: مصرى | E15: 2135206 | F15: 1236555211 | G15: 2018-01-01 | H15: 2019-12-10 | I15: ننن | J15: طيران | K15: 2000 | L15: 3000
A16: 2
A17: 3
A18: 4
A19: 5
A20: 6
A21: 7
A22: 8
A23: 9
A24: 10
A25: 11
A26: 12
A27: 13
A28: 14
A29: 15
A30: 16
A31: 17
A32: 18
A33: 19
A34: 20
A35: 21
A36: 22
A37: 23
A38: 24
A39: 25
A40: 26
A41: 27
A42: 28
A43: 29
A44: 30
A45: الاجمالي | K45: 2000 | L45: 3000

Sheet R148
F6: رقم الحافلة
C7: حساب الرحلة | F7: =IFERROR(INDEX(البيانات!$A$2:$A$320,MATCH($B$9,البيانات!$B$2:$B$320,0)),"") -> 0
A9: رقم الرحلة | B9: R148 | D9: نوع الرحلة | F9: =IFERROR(VLOOKUP(F7,البيانات!$A$1:$C$6,3,0),"") -> 
D10: مدير مسئول
A11: تاريخ الرحلة | B11: =IFERROR(IF(VLOOKUP(F7,البيانات!$A$1:$D$6,4,0)="","",VLOOKUP(F7,البيانات!$A$1:$D$6,4,0)),"") ->  | D11: اسم المرشد | F11: =IFERROR(VLOOKUP(F7,البيانات!$A$1:$E$6,5,0),"") -> 
A14: الرقم | B14: اسم المعتمر | C14: الجنس | D14: الجنسية | E14: رقم الهوية | F14: رقم جواز السفر | G14: تاريخ الاصدار | H14: تاريخ الانتهاء | I14: اسم المحرم | J14: نوع الخدمة | K14: سعر الشراء | L14: سعر البيع
A15: 1 | B15: محمد | C15: رجل | D15: مصرى | E15: 2135206 | F15: 1236555211 | G15: 2018-01-01 | H15: 2019-12-10 | I15: ننن | J15: طيران | K15: 2000 | L15: 3000
A16: 2
A17: 3
A18: 4
A19: 5
A20: 6
A21: 7
A22: 8
A23: 9
A24: 10
A25: 11
A26: 12
A27: 13
A28: 14
A29: 15
A30: 16
A31: 17
A32: 18
A33: 19
A34: 20
A35: 21
A36: 22
A37: 23
A38: 24
A39: 25
A40: 26
A41: 27
A42: 28
A43: 29
A44: 30
A45: الاجمالي | K45: 2000 | L45: 3000

Sheet R149
F6: رقم الحافلة
C7: حساب الرحلة | F7: =IFERROR(INDEX(البيانات!$A$2:$A$320,MATCH($B$9,البيانات!$B$2:$B$320,0)),"") -> 0
A9: رقم الرحلة | B9: R149 | D9: نوع الرحلة | F9: =IFERROR(VLOOKUP(F7,البيانات!$A$1:$C$6,3,0),"") -> 
D10: مدير مسئول
A11: تاريخ الرحلة | B11: =IFERROR(IF(VLOOKUP(F7,البيانات!$A$1:$D$6,4,0)="","",VLOOKUP(F7,البيانات!$A$1:$D$6,4,0)),"") ->  | D11: اسم المرشد | F11: =IFERROR(VLOOKUP(F7,البيانات!$A$1:$E$6,5,0),"") -> 
A14: الرقم | B14: اسم المعتمر | C14: الجنس | D14: الجنسية | E14: رقم الهوية | F14: رقم جواز السفر | G14: تاريخ الاصدار | H14: تاريخ الانتهاء | I14: اسم المحرم | J14: نوع الخدمة | K14: سعر الشراء | L14: سعر البيع
A15: 1 | B15: محمد | C15: رجل | D15: مصرى | E15: 2135206 | F15: 1236555211 | G15: 2018-01-01 | H15: 2019-12-10 | I15: ننن | J15: طيران | K15: 2000 | L15: 3000
A16: 2
A17: 3
A18: 4
A19: 5
A20: 6
A21: 7
A22: 8
A23: 9
A24: 10
A25: 11
A26: 12
A27: 13
A28: 14
A29: 15
A30: 16
A31: 17
A32: 18
A33: 19
A34: 20
A35: 21
A36: 22
A37: 23
A38: 24
A39: 25
A40: 26
A41: 27
A42: 28
A43: 29
A44: 30
A45: الاجمالي | K45: 2000 | L45: 3000

Sheet R150
F6: رقم الحافلة
C7: حساب الرحلة | F7: =IFERROR(INDEX(البيانات!$A$2:$A$320,MATCH($B$9,البيانات!$B$2:$B$320,0)),"") -> 0
A9: رقم الرحلة | B9: R150 | D9: نوع الرحلة | F9: =IFERROR(VLOOKUP(F7,البيانات!$A$1:$C$6,3,0),"") -> 
D10: مدير مسئول
A11: تاريخ الرحلة | B11: =IFERROR(IF(VLOOKUP(F7,البيانات!$A$1:$D$6,4,0)="","",VLOOKUP(F7,البيانات!$A$1:$D$6,4,0)),"") ->  | D11: اسم المرشد | F11: =IFERROR(VLOOKUP(F7,البيانات!$A$1:$E$6,5,0),"") -> 
A14: الرقم | B14: اسم المعتمر | C14: الجنس | D14: الجنسية | E14: رقم الهوية | F14: رقم جواز السفر | G14: تاريخ الاصدار | H14: تاريخ الانتهاء | I14: اسم المحرم | J14: نوع الخدمة | K14: سعر الشراء | L14: سعر البيع
A15: 1 | B15: محمد | C15: رجل | D15: مصرى | E15: 2135206 | F15: 1236555211 | G15: 2018-01-01 | H15: 2019-12-10 | I15: ننن | J15: طيران | K15: 2000 | L15: 3000
A16: 2
A17: 3
A18: 4
A19: 5
A20: 6
A21: 7
A22: 8
A23: 9
A24: 10
A25: 11
A26: 12
A27: 13
A28: 14
A29: 15
A30: 16
A31: 17
A32: 18
A33: 19
A34: 20
A35: 21
A36: 22
A37: 23
A38: 24
A39: 25
A40: 26
A41: 27
A42: 28
A43: 29
A44: 30
A45: الاجمالي | K45: 2000 | L45: 3000

Sheet فاتورة المشتريات الرئيسية
C7: فاتورة مشتريات | D7: رقم الفاتورة | E7: 101
B8: رقم الرحلة | E8: اسم المرشد | F8: =IFERROR(IF(INDEX(البيانات!$E$2:$E$1000,MATCH($C$8,البيانات!$B$2:$B$1000,0))="","",INDEX(البيانات!$E$2:$E$1000,MATCH($C$8,البيانات!$B$2:$B$1000,0))),"") -> 
B9: تاريخ الرحلة | C9: =IFERROR(IF(INDEX(البيانات!$D$2:$D$1000,MATCH($C$8,البيانات!$B$2:$B$1000,0))="","",INDEX(البيانات!$D$2:$D$1000,MATCH($C$8,البيانات!$B$2:$B$1000,0))),"") ->  | E9: فندق المدينة المنورة | F9: =IFERROR(IF(INDEX(البيانات!$F$2:$F$1000,MATCH($C$8,البيانات!$B$2:$B$1000,0))="","",INDEX(البيانات!$F$2:$F$1000,MATCH($C$8,البيانات!$B$2:$B$1000,0))),"") -> 
B10: نوع الرحلة | C10: =IFERROR(IF(INDEX(البيانات!$C$2:$C$1000,MATCH($C$8,البيانات!$B$2:$B$1000,0))="","",INDEX(البيانات!$C$2:$C$1000,MATCH($C$8,البيانات!$B$2:$B$1000,0))),"") ->  | E10: فندق مكة المكرمة | F10: =IFERROR(IF(INDEX(البيانات!$G$2:$G$1000,MATCH($C$8,البيانات!$B$2:$B$1000,0))="","",INDEX(البيانات!$G$2:$G$1000,MATCH($C$8,البيانات!$B$2:$B$1000,0))),"") -> 
B11: نوع الغرفة | C11: عدد الغرف | D11: عدد المعتمرين | E11: السعر | F11: الاجمالي
B12: الثنائية | F12: =D12*E12 -> 0
B13: الثلاثية | F13: =D13*E13 -> 0
B14: الرباعية | F14: 0
B15: الخماسية | F15: 0
B16: تكاليف اخرى | F16: 0
B17: التأشيرة بدون مقعد | F17: 0
B18: التأشيرة + مقعد | F18: 0
B19: اخرى | F19: 0
B20: مجموع المعتمريـن | D20: =SUM(D12:D19) -> 0 | E20: الاجمالي / دينار | F20: =SUM(F12:F19) -> 0
B21: المرشد / ( يطرح )
B22: عمولة مندوبين، مصاريف
B23: اخرى
B24: صافى المشتريات | F24: =F20-F21-F22-F23 -> 0

Sheet فواتير المشتريات الكلية
I1: نوع الغرف | AC1: =SUM(AC4:AC992) -> 1515
I2: الثنائية | L2: الثلاثية | O2: الرباعية | R2: الخماسية
A3: مسلسل | B3: رقم الفاتورة | C3: رقم الرحلة | D3: تاريخ الرحلة | E3: نوع الرحلة | F3: اسم المرشد | G3: فندق المدينة المنورة | H3: فندق مكة المكرمة | I3: عدد الغرف | J3: عدد المعتمرين | K3: السعر | L3: عدد الغرف | M3: عدد المعتمرين | N3: السعر | O3: عدد الغرف | P3: عدد المعتمرين | Q3: السعر | R3: عدد الغرف | S3: عدد المعتمرين | T3: السعر | U3: تكاليف اخرى | V3: التأشيرة بدون مقعد | W3: التأشيرة + مقعد | X3: اخرى | Y3: الاجمالي | Z3: المرشد / ( يطرح ) | AA3: عمولة مندوبين ، مصاريف | AB3: اخرى | AC3: صافى المشتريات
A4: =IF(B4="","",SUBTOTAL(3,$B$4:B4)) -> 1 | B4: 1 | C4: R100 | D4: 25-9-2018 | E4: طيران | F4: محمود | I4: 2 | J4: 4 | K4: 35 | L4: 3 | M4: 9 | N4: 45 | U4: 0 | V4: 0 | W4: 0 | X4: 0 | Y4: =(J4*K4)+(M4*N4)+(P4*Q4)+(S4*T4)+SUM(U4:X4) -> 545 | Z4: 10 | AA4: 20 | AB4: 30 | AC4: =Y4-(Z4+AA4+AB4) -> 485
A5: =IF(B5="","",SUBTOTAL(3,$B$4:B5)) -> 2 | B5: 2 | C5: R101 | E5: حافلات VIP | F5: حذيفه | I5: 3 | J5: 6 | K5: 40 | R5: 2 | S5: 10 | T5: 85 | U5: 0 | V5: 0 | W5: 0 | X5: 0 | Y5: =(J5*K5)+(M5*N5)+(P5*Q5)+(S5*T5)+SUM(U5:X5) -> 1090 | Z5: 20 | AA5: 10 | AB5: 30 | AC5: =Y5-(Z5+AA5+AB5) -> 1030
A6: =IF(B6="","",SUBTOTAL(3,$B$4:B6)) -> 3 | B6: 3 | U6: 0 | V6: 0 | W6: 0 | X6: 0 | Y6: 0 | AC6: 0
A7: =IF(B7="","",SUBTOTAL(3,$B$4:B7)) -> 4 | B7: 100 | U7: 0 | V7: 0 | W7: 0 | X7: 0 | Y7: 0 | AC7: 0
A8: =IF(B8="","",SUBTOTAL(3,$B$4:B8)) ->  | Y8: 0 | AC8: 0
A9: =IF(B9="","",SUBTOTAL(3,$B$4:B9)) ->  | Y9: 0 | AC9: 0
A10: =IF(B10="","",SUBTOTAL(3,$B$4:B10)) ->  | Y10: 0 | AC10: 0
A11: =IF(B11="","",SUBTOTAL(3,$B$4:B11)) ->  | Y11: 0 | AC11: 0
A12: =IF(B12="","",SUBTOTAL(3,$B$4:B12)) ->  | Y12: 0 | AC12: 0
A13: =IF(B13="","",SUBTOTAL(3,$B$4:B13)) ->  | Y13: 0 | AC13: 0
A14: =IF(B14="","",SUBTOTAL(3,$B$4:B14)) ->  | Y14: 0 | AC14: 0
A15: =IF(B15="","",SUBTOTAL(3,$B$4:B15)) ->  | Y15: 0 | AC15: 0
A16: =IF(B16="","",SUBTOTAL(3,$B$4:B16)) ->  | Y16: 0 | AC16: 0
A17: =IF(B17="","",SUBTOTAL(3,$B$4:B17)) ->  | Y17: 0 | AC17: 0
A18: =IF(B18="","",SUBTOTAL(3,$B$4:B18)) ->  | Y18: 0 | AC18: 0
A19: =IF(B19="","",SUBTOTAL(3,$B$4:B19)) ->  | Y19: 0 | AC19: 0
A20: =IF(B20="","",SUBTOTAL(3,$B$4:B20)) ->  | Y20: 0 | AC20: 0
A21: =IF(B21="","",SUBTOTAL(3,$B$4:B21)) ->  | Y21: 0 | AC21: 0
A22: =IF(B22="","",SUBTOTAL(3,$B$4:B22)) ->  | Y22: 0 | AC22: 0
A23: =IF(B23="","",SUBTOTAL(3,$B$4:B23)) ->  | Y23: 0 | AC23: 0
A24: =IF(B24="","",SUBTOTAL(3,$B$4:B24)) ->  | Y24: 0 | AC24: 0
A25: =IF(B25="","",SUBTOTAL(3,$B$4:B25)) ->  | Y25: 0 | AC25: 0
A26: =IF(B26="","",SUBTOTAL(3,$B$4:B26)) ->  | Y26: 0 | AC26: 0
A27: =IF(B27="","",SUBTOTAL(3,$B$4:B27)) ->  | Y27: 0 | AC27: 0
A28: =IF(B28="","",SUBTOTAL(3,$B$4:B28)) ->  | Y28: 0 | AC28: 0
A29: =IF(B29="","",SUBTOTAL(3,$B$4:B29)) ->  | Y29: 0 | AC29: 0
A30: =IF(B30="","",SUBTOTAL(3,$B$4:B30)) ->  | Y30: 0 | AC30: 0
A31: =IF(B31="","",SUBTOTAL(3,$B$4:B31)) ->  | Y31: 0 | AC31: 0
A32: =IF(B32="","",SUBTOTAL(3,$B$4:B32)) ->  | Y32: 0 | AC32: 0
A33: =IF(B33="","",SUBTOTAL(3,$B$4:B33)) ->  | Y33: 0 | AC33: 0
A34: =IF(B34="","",SUBTOTAL(3,$B$4:B34)) ->  | Y34: 0 | AC34: 0
A35: =IF(B35="","",SUBTOTAL(3,$B$4:B35)) ->  | Y35: 0 | AC35: 0
A36: =IF(B36="","",SUBTOTAL(3,$B$4:B36)) ->  | Y36: 0 | AC36: 0
A37: =IF(B37="","",SUBTOTAL(3,$B$4:B37)) ->  | Y37: 0 | AC37: 0
A38: =IF(B38="","",SUBTOTAL(3,$B$4:B38)) ->  | Y38: 0 | AC38: 0
A39: =IF(B39="","",SUBTOTAL(3,$B$4:B39)) ->  | Y39: 0 | AC39: 0
A40: =IF(B40="","",SUBTOTAL(3,$B$4:B40)) ->  | Y40: 0 | AC40: 0
A41: =IF(B41="","",SUBTOTAL(3,$B$4:B41)) ->  | Y41: 0 | AC41: 0
A42: =IF(B42="","",SUBTOTAL(3,$B$4:B42)) ->  | Y42: 0 | AC42: 0
A43: =IF(B43="","",SUBTOTAL(3,$B$4:B43)) ->  | Y43: 0 | AC43: 0
A44: =IF(B44="","",SUBTOTAL(3,$B$4:B44)) ->  | Y44: 0 | AC44: 0
A45: =IF(B45="","",SUBTOTAL(3,$B$4:B45)) ->  | Y45: 0 | AC45: 0
A46: =IF(B46="","",SUBTOTAL(3,$B$4:B46)) ->  | Y46: 0 | AC46: 0
A47: =IF(B47="","",SUBTOTAL(3,$B$4:B47)) ->  | Y47: 0 | AC47: 0
A48: =IF(B48="","",SUBTOTAL(3,$B$4:B48)) ->  | Y48: 0 | AC48: 0
A49: =IF(B49="","",SUBTOTAL(3,$B$4:B49)) ->  | Y49: 0 | AC49: 0
A50: =IF(B50="","",SUBTOTAL(3,$B$4:B50)) ->  | Y50: 0 | AC50: 0
A51: =IF(B51="","",SUBTOTAL(3,$B$4:B51)) ->  | Y51: 0 | AC51: 0
A52: =IF(B52="","",SUBTOTAL(3,$B$4:B52)) ->  | Y52: 0 | AC52: 0
A53: =IF(B53="","",SUBTOTAL(3,$B$4:B53)) ->  | Y53: 0 | AC53: 0
A54: =IF(B54="","",SUBTOTAL(3,$B$4:B54)) ->  | Y54: 0 | AC54: 0
A55: =IF(B55="","",SUBTOTAL(3,$B$4:B55)) ->  | Y55: 0 | AC55: 0
A56: =IF(B56="","",SUBTOTAL(3,$B$4:B56)) ->  | Y56: 0 | AC56: 0
A57: =IF(B57="","",SUBTOTAL(3,$B$4:B57)) ->  | Y57: 0 | AC57: 0
A58: =IF(B58="","",SUBTOTAL(3,$B$4:B58)) ->  | Y58: 0 | AC58: 0
A59: =IF(B59="","",SUBTOTAL(3,$B$4:B59)) ->  | Y59: 0 | AC59: 0
A60: =IF(B60="","",SUBTOTAL(3,$B$4:B60)) ->  | Y60: 0 | AC60: 0
A61: =IF(B61="","",SUBTOTAL(3,$B$4:B61)) ->  | Y61: 0 | AC61: 0
A62: =IF(B62="","",SUBTOTAL(3,$B$4:B62)) ->  | Y62: 0 | AC62: 0
A63: =IF(B63="","",SUBTOTAL(3,$B$4:B63)) ->  | Y63: 0 | AC63: 0
A64: =IF(B64="","",SUBTOTAL(3,$B$4:B64)) ->  | Y64: 0 | AC64: 0
A65: =IF(B65="","",SUBTOTAL(3,$B$4:B65)) ->  | Y65: 0 | AC65: 0
A66: =IF(B66="","",SUBTOTAL(3,$B$4:B66)) ->  | Y66: 0 | AC66: 0
A67: =IF(B67="","",SUBTOTAL(3,$B$4:B67)) ->  | Y67: 0 | AC67: 0
A68: =IF(B68="","",SUBTOTAL(3,$B$4:B68)) ->  | Y68: 0 | AC68: 0
A69: =IF(B69="","",SUBTOTAL(3,$B$4:B69)) ->  | Y69: =(J69*K69)+(M69*N69)+(P69*Q69)+(S69*T69)+SUM(U69:X69) -> 0 | AC69: =Y69-(Z69+AA69+AB69) -> 0
A70: =IF(B70="","",SUBTOTAL(3,$B$4:B70)) ->  | Y70: 0 | AC70: 0
A71: =IF(B71="","",SUBTOTAL(3,$B$4:B71)) ->  | Y71: 0 | AC71: 0
A72: =IF(B72="","",SUBTOTAL(3,$B$4:B72)) ->  | Y72: 0 | AC72: 0
A73: =IF(B73="","",SUBTOTAL(3,$B$4:B73)) ->  | Y73: 0 | AC73: 0
A74: =IF(B74="","",SUBTOTAL(3,$B$4:B74)) ->  | Y74: 0 | AC74: 0
A75: =IF(B75="","",SUBTOTAL(3,$B$4:B75)) ->  | Y75: 0 | AC75: 0
A76: =IF(B76="","",SUBTOTAL(3,$B$4:B76)) ->  | Y76: 0 | AC76: 0
A77: =IF(B77="","",SUBTOTAL(3,$B$4:B77)) ->  | Y77: 0 | AC77: 0
A78: =IF(B78="","",SUBTOTAL(3,$B$4:B78)) ->  | Y78: 0 | AC78: 0
A79: =IF(B79="","",SUBTOTAL(3,$B$4:B79)) ->  | Y79: 0 | AC79: 0
A80: =IF(B80="","",SUBTOTAL(3,$B$4:B80)) ->  | Y80: 0 | AC80: 0
A81: =IF(B81="","",SUBTOTAL(3,$B$4:B81)) ->  | Y81: 0 | AC81: 0
A82: =IF(B82="","",SUBTOTAL(3,$B$4:B82)) ->  | Y82: 0 | AC82: 0
A83: =IF(B83="","",SUBTOTAL(3,$B$4:B83)) ->  | Y83: 0 | AC83: 0
A84: =IF(B84="","",SUBTOTAL(3,$B$4:B84)) ->  | Y84: 0 | AC84: 0
A85: =IF(B85="","",SUBTOTAL(3,$B$4:B85)) ->  | Y85: 0 | AC85: 0
A86: =IF(B86="","",SUBTOTAL(3,$B$4:B86)) ->  | Y86: 0 | AC86: 0
A87: =IF(B87="","",SUBTOTAL(3,$B$4:B87)) ->  | Y87: 0 | AC87: 0
A88: =IF(B88="","",SUBTOTAL(3,$B$4:B88)) ->  | Y88: 0 | AC88: 0
A89: =IF(B89="","",SUBTOTAL(3,$B$4:B89)) ->  | Y89: 0 | AC89: 0
A90: =IF(B90="","",SUBTOTAL(3,$B$4:B90)) ->  | Y90: 0 | AC90: 0
A91: =IF(B91="","",SUBTOTAL(3,$B$4:B91)) ->  | Y91: 0 | AC91: 0
A92: =IF(B92="","",SUBTOTAL(3,$B$4:B92)) ->  | Y92: 0 | AC92: 0
A93: =IF(B93="","",SUBTOTAL(3,$B$4:B93)) ->  | Y93: 0 | AC93: 0
A94: =IF(B94="","",SUBTOTAL(3,$B$4:B94)) ->  | Y94: 0 | AC94: 0
A95: =IF(B95="","",SUBTOTAL(3,$B$4:B95)) ->  | Y95: 0 | AC95: 0
A96: =IF(B96="","",SUBTOTAL(3,$B$4:B96)) ->  | Y96: 0 | AC96: 0
A97: =IF(B97="","",SUBTOTAL(3,$B$4:B97)) ->  | Y97: 0 | AC97: 0
A98: =IF(B98="","",SUBTOTAL(3,$B$4:B98)) ->  | Y98: 0 | AC98: 0
A99: =IF(B99="","",SUBTOTAL(3,$B$4:B99)) ->  | Y99: 0 | AC99: 0
A100: =IF(B100="","",SUBTOTAL(3,$B$4:B100)) ->  | Y100: 0 | AC100: 0
A101: =IF(B101="","",SUBTOTAL(3,$B$4:B101)) ->  | Y101: 0 | AC101: 0
A102: =IF(B102="","",SUBTOTAL(3,$B$4:B102)) ->  | Y102: 0 | AC102: 0
A103: =IF(B103="","",SUBTOTAL(3,$B$4:B103)) ->  | Y103: 0 | AC103: 0
A104: =IF(B104="","",SUBTOTAL(3,$B$4:B104)) ->  | Y104: 0 | AC104: 0
A105: =IF(B105="","",SUBTOTAL(3,$B$4:B105)) ->  | Y105: 0 | AC105: 0
A106: =IF(B106="","",SUBTOTAL(3,$B$4:B106)) ->  | Y106: 0 | AC106: 0
A107: =IF(B107="","",SUBTOTAL(3,$B$4:B107)) ->  | Y107: 0 | AC107: 0
A108: =IF(B108="","",SUBTOTAL(3,$B$4:B108)) ->  | Y108: 0 | AC108: 0
A109: =IF(B109="","",SUBTOTAL(3,$B$4:B109)) ->  | Y109: 0 | AC109: 0
A110: =IF(B110="","",SUBTOTAL(3,$B$4:B110)) ->  | Y110: 0 | AC110: 0
A111: =IF(B111="","",SUBTOTAL(3,$B$4:B111)) ->  | Y111: 0 | AC111: 0
A112: =IF(B112="","",SUBTOTAL(3,$B$4:B112)) ->  | Y112: 0 | AC112: 0
A113: =IF(B113="","",SUBTOTAL(3,$B$4:B113)) ->  | Y113: 0 | AC113: 0
A114: =IF(B114="","",SUBTOTAL(3,$B$4:B114)) ->  | Y114: 0 | AC114: 0
A115: =IF(B115="","",SUBTOTAL(3,$B$4:B115)) ->  | Y115: 0 | AC115: 0
A116: =IF(B116="","",SUBTOTAL(3,$B$4:B116)) ->  | Y116: 0 | AC116: 0
A117: =IF(B117="","",SUBTOTAL(3,$B$4:B117)) ->  | Y117: 0 | AC117: 0
A118: =IF(B118="","",SUBTOTAL(3,$B$4:B118)) ->  | Y118: 0 | AC118: 0
A119: =IF(B119="","",SUBTOTAL(3,$B$4:B119)) ->  | Y119: 0 | AC119: 0
A120: =IF(B120="","",SUBTOTAL(3,$B$4:B120)) ->  | Y120: 0 | AC120: 0
A121: =IF(B121="","",SUBTOTAL(3,$B$4:B121)) ->  | Y121: 0 | AC121: 0
A122: =IF(B122="","",SUBTOTAL(3,$B$4:B122)) ->  | Y122: 0 | AC122: 0
A123: =IF(B123="","",SUBTOTAL(3,$B$4:B123)) ->  | Y123: 0 | AC123: 0
A124: =IF(B124="","",SUBTOTAL(3,$B$4:B124)) ->  | Y124: 0 | AC124: 0
A125: =IF(B125="","",SUBTOTAL(3,$B$4:B125)) ->  | Y125: 0 | AC125: 0
A126: =IF(B126="","",SUBTOTAL(3,$B$4:B126)) ->  | Y126: 0 | AC126: 0
A127: =IF(B127="","",SUBTOTAL(3,$B$4:B127)) ->  | Y127: 0 | AC127: 0
A128: =IF(B128="","",SUBTOTAL(3,$B$4:B128)) ->  | Y128: 0 | AC128: 0
A129: =IF(B129="","",SUBTOTAL(3,$B$4:B129)) ->  | Y129: 0 | AC129: 0
A130: =IF(B130="","",SUBTOTAL(3,$B$4:B130)) ->  | Y130: 0 | AC130: 0
A131: =IF(B131="","",SUBTOTAL(3,$B$4:B131)) ->  | Y131: 0 | AC131: 0
A132: =IF(B132="","",SUBTOTAL(3,$B$4:B132)) ->  | Y132: 0 | AC132: 0
A133: =IF(B133="","",SUBTOTAL(3,$B$4:B133)) ->  | Y133: =(J133*K133)+(M133*N133)+(P133*Q133)+(S133*T133)+SUM(U133:X133) -> 0 | AC133: =Y133-(Z133+AA133+AB133) -> 0
A134: =IF(B134="","",SUBTOTAL(3,$B$4:B134)) ->  | Y134: 0 | AC134: 0
A135: =IF(B135="","",SUBTOTAL(3,$B$4:B135)) ->  | Y135: 0 | AC135: 0
A136: =IF(B136="","",SUBTOTAL(3,$B$4:B136)) ->  | Y136: 0 | AC136: 0
A137: =IF(B137="","",SUBTOTAL(3,$B$4:B137)) ->  | Y137: 0 | AC137: 0
A138: =IF(B138="","",SUBTOTAL(3,$B$4:B138)) ->  | Y138: 0 | AC138: 0
A139: =IF(B139="","",SUBTOTAL(3,$B$4:B139)) ->  | Y139: 0 | AC139: 0
A140: =IF(B140="","",SUBTOTAL(3,$B$4:B140)) ->  | Y140: 0 | AC140: 0
A141: =IF(B141="","",SUBTOTAL(3,$B$4:B141)) ->  | Y141: 0 | AC141: 0
A142: =IF(B142="","",SUBTOTAL(3,$B$4:B142)) ->  | Y142: 0 | AC142: 0
A143: =IF(B143="","",SUBTOTAL(3,$B$4:B143)) ->  | Y143: 0 | AC143: 0
A144: =IF(B144="","",SUBTOTAL(3,$B$4:B144)) ->  | Y144: 0 | AC144: 0
A145: =IF(B145="","",SUBTOTAL(3,$B$4:B145)) ->  | Y145: 0 | AC145: 0
A146: =IF(B146="","",SUBTOTAL(3,$B$4:B146)) ->  | Y146: 0 | AC146: 0
A147: =IF(B147="","",SUBTOTAL(3,$B$4:B147)) ->  | Y147: 0 | AC147: 0
A148: =IF(B148="","",SUBTOTAL(3,$B$4:B148)) ->  | Y148: 0 | AC148: 0
A149: =IF(B149="","",SUBTOTAL(3,$B$4:B149)) ->  | Y149: 0 | AC149: 0
A150: =IF(B150="","",SUBTOTAL(3,$B$4:B150)) ->  | Y150: 0 | AC150: 0
A151: =IF(B151="","",SUBTOTAL(3,$B$4:B151)) ->  | Y151: 0 | AC151: 0
A152: =IF(B152="","",SUBTOTAL(3,$B$4:B152)) ->  | Y152: 0 | AC152: 0
A153: =IF(B153="","",SUBTOTAL(3,$B$4:B153)) ->  | Y153: 0 | AC153: 0
A154: =IF(B154="","",SUBTOTAL(3,$B$4:B154)) ->  | Y154: 0 | AC154: 0
A155: =IF(B155="","",SUBTOTAL(3,$B$4:B155)) ->  | Y155: 0 | AC155: 0
A156: =IF(B156="","",SUBTOTAL(3,$B$4:B156)) ->  | Y156: 0 | AC156: 0
A157: =IF(B157="","",SUBTOTAL(3,$B$4:B157)) ->  | Y157: 0 | AC157: 0
A158: =IF(B158="","",SUBTOTAL(3,$B$4:B158)) ->  | Y158: 0 | AC158: 0
A159: =IF(B159="","",SUBTOTAL(3,$B$4:B159)) ->  | Y159: 0 | AC159: 0
A160: =IF(B160="","",SUBTOTAL(3,$B$4:B160)) ->  | Y160: 0 | AC160: 0
A161: =IF(B161="","",SUBTOTAL(3,$B$4:B161)) ->  | Y161: 0 | AC161: 0
A162: =IF(B162="","",SUBTOTAL(3,$B$4:B162)) ->  | Y162: 0 | AC162: 0
A163: =IF(B163="","",SUBTOTAL(3,$B$4:B163)) ->  | Y163: 0 | AC163: 0
A164: =IF(B164="","",SUBTOTAL(3,$B$4:B164)) ->  | Y164: 0 | AC164: 0
A165: =IF(B165="","",SUBTOTAL(3,$B$4:B165)) ->  | Y165: 0 | AC165: 0
A166: =IF(B166="","",SUBTOTAL(3,$B$4:B166)) ->  | Y166: 0 | AC166: 0
A167: =IF(B167="","",SUBTOTAL(3,$B$4:B167)) ->  | Y167: 0 | AC167: 0
A168: =IF(B168="","",SUBTOTAL(3,$B$4:B168)) ->  | Y168: 0 | AC168: 0
A169: =IF(B169="","",SUBTOTAL(3,$B$4:B169)) ->  | Y169: 0 | AC169: 0
A170: =IF(B170="","",SUBTOTAL(3,$B$4:B170)) ->  | Y170: 0 | AC170: 0
A171: =IF(B171="","",SUBTOTAL(3,$B$4:B171)) ->  | Y171: 0 | AC171: 0
A172: =IF(B172="","",SUBTOTAL(3,$B$4:B172)) ->  | Y172: 0 | AC172: 0
A173: =IF(B173="","",SUBTOTAL(3,$B$4:B173)) ->  | Y173: 0 | AC173: 0
A174: =IF(B174="","",SUBTOTAL(3,$B$4:B174)) ->  | Y174: 0 | AC174: 0
A175: =IF(B175="","",SUBTOTAL(3,$B$4:B175)) ->  | Y175: 0 | AC175: 0
A176: =IF(B176="","",SUBTOTAL(3,$B$4:B176)) ->  | Y176: 0 | AC176: 0
A177: =IF(B177="","",SUBTOTAL(3,$B$4:B177)) ->  | Y177: 0 | AC177: 0
A178: =IF(B178="","",SUBTOTAL(3,$B$4:B178)) ->  | Y178: 0 | AC178: 0
A179: =IF(B179="","",SUBTOTAL(3,$B$4:B179)) ->  | Y179: 0 | AC179: 0
A180: =IF(B180="","",SUBTOTAL(3,$B$4:B180)) ->  | Y180: 0 | AC180: 0
A181: =IF(B181="","",SUBTOTAL(3,$B$4:B181)) ->  | Y181: 0 | AC181: 0
A182: =IF(B182="","",SUBTOTAL(3,$B$4:B182)) ->  | Y182: 0 | AC182: 0
A183: =IF(B183="","",SUBTOTAL(3,$B$4:B183)) ->  | Y183: 0 | AC183: 0
A184: =IF(B184="","",SUBTOTAL(3,$B$4:B184)) ->  | Y184: 0 | AC184: 0
A185: =IF(B185="","",SUBTOTAL(3,$B$4:B185)) ->  | Y185: 0 | AC185: 0
A186: =IF(B186="","",SUBTOTAL(3,$B$4:B186)) ->  | Y186: 0 | AC186: 0
A187: =IF(B187="","",SUBTOTAL(3,$B$4:B187)) ->  | Y187: 0 | AC187: 0
A188: =IF(B188="","",SUBTOTAL(3,$B$4:B188)) ->  | Y188: 0 | AC188: 0
A189: =IF(B189="","",SUBTOTAL(3,$B$4:B189)) ->  | Y189: 0 | AC189: 0
A190: =IF(B190="","",SUBTOTAL(3,$B$4:B190)) ->  | Y190: 0 | AC190: 0
A191: =IF(B191="","",SUBTOTAL(3,$B$4:B191)) ->  | Y191: 0 | AC191: 0
A192: =IF(B192="","",SUBTOTAL(3,$B$4:B192)) ->  | Y192: 0 | AC192: 0
A193: =IF(B193="","",SUBTOTAL(3,$B$4:B193)) ->  | Y193: 0 | AC193: 0
A194: =IF(B194="","",SUBTOTAL(3,$B$4:B194)) ->  | Y194: 0 | AC194: 0
A195: =IF(B195="","",SUBTOTAL(3,$B$4:B195)) ->  | Y195: 0 | AC195: 0
A196: =IF(B196="","",SUBTOTAL(3,$B$4:B196)) ->  | Y196: 0 | AC196: 0
A197: =IF(B197="","",SUBTOTAL(3,$B$4:B197)) ->  | Y197: =(J197*K197)+(M197*N197)+(P197*Q197)+(S197*T197)+SUM(U197:X197) -> 0 | AC197: =Y197-(Z197+AA197+AB197) -> 0
A198: =IF(B198="","",SUBTOTAL(3,$B$4:B198)) ->  | Y198: 0 | AC198: 0
A199: =IF(B199="","",SUBTOTAL(3,$B$4:B199)) ->  | Y199: 0 | AC199: 0
A200: =IF(B200="","",SUBTOTAL(3,$B$4:B200)) ->  | Y200: 0 | AC200: 0
... 561 more rows

Sheet إستدعاء برقم فاتورة المشتريات
D4: بمجرد اختيار رقم الفاتورة من القائمة المنسدلة سوف يتم جلب بيانات الفاتورة المختارة بالمعادلات
C7: فاتورة مشتريات | D7: رقم الفاتورة | E7: 1
B8: رقم الرحلة | C8: =IFERROR(INDEX('فواتير المشتريات الكلية'!$C$4:$C$1000,MATCH($E$7,'فواتير المشتريات الكلية'!$B$4:$B$1000,0)),"") -> R100 | E8: اسم المرشد | F8: =IFERROR(IF(INDEX(البيانات!$E$2:$E$1000,MATCH($C$8,البيانات!$B$2:$B$1000,0))="","",INDEX(البيانات!$E$2:$E$1000,MATCH($C$8,البيانات!$B$2:$B$1000,0))),"") -> محمود
B9: تاريخ الرحلة | C9: =IFERROR(IF(INDEX(البيانات!$D$2:$D$1000,MATCH($C$8,البيانات!$B$2:$B$1000,0))="","",INDEX(البيانات!$D$2:$D$1000,MATCH($C$8,البيانات!$B$2:$B$1000,0))),"") -> 25-9-2018 | E9: فندق المدينة المنورة | F9: =IFERROR(IF(INDEX(البيانات!$F$2:$F$1000,MATCH($C$8,البيانات!$B$2:$B$1000,0))="","",INDEX(البيانات!$F$2:$F$1000,MATCH($C$8,البيانات!$B$2:$B$1000,0))),"") -> 
B10: نوع الرحلة | C10: =IFERROR(IF(INDEX(البيانات!$C$2:$C$1000,MATCH($C$8,البيانات!$B$2:$B$1000,0))="","",INDEX(البيانات!$C$2:$C$1000,MATCH($C$8,البيانات!$B$2:$B$1000,0))),"") -> طيران | E10: فندق مكة المكرمة | F10: =IFERROR(IF(INDEX(البيانات!$G$2:$G$1000,MATCH($C$8,البيانات!$B$2:$B$1000,0))="","",INDEX(البيانات!$G$2:$G$1000,MATCH($C$8,البيانات!$B$2:$B$1000,0))),"") -> 
B11: نوع الغرفة | C11: عدد الغرف | D11: عدد المعتمرين | E11: السعر | F11: الاجمالي
B12: الثنائية | C12: =IFERROR(INDEX('فواتير المشتريات الكلية'!$I$4:$I$1000,MATCH($E$7,'فواتير المشتريات الكلية'!$B$4:$B$1000,0)),"") -> 2 | D12: =IFERROR(INDEX('فواتير المشتريات الكلية'!$J$4:$J$1000,MATCH($E$7,'فواتير المشتريات الكلية'!$B$4:$B$1000,0)),"") -> 4 | E12: =IFERROR(INDEX('فواتير المشتريات الكلية'!$K$4:$K$1000,MATCH($E$7,'فواتير المشتريات الكلية'!$B$4:$B$1000,0)),"") -> 35 | F12: =D12*E12 -> 140
B13: الثلاثية | C13: =IFERROR(INDEX('فواتير المشتريات الكلية'!$L$4:$L$1000,MATCH($E$7,'فواتير المشتريات الكلية'!$B$4:$B$1000,0)),"") -> 3 | D13: =IFERROR(INDEX('فواتير المشتريات الكلية'!$M$4:$M$1000,MATCH($E$7,'فواتير المشتريات الكلية'!$B$4:$B$1000,0)),"") -> 9 | E13: =IFERROR(INDEX('فواتير المشتريات الكلية'!$N$4:$N$1000,MATCH($E$7,'فواتير المشتريات الكلية'!$B$4:$B$1000,0)),"") -> 45 | F13: =D13*E13 -> 405
B14: الرباعية | C14: =IFERROR(INDEX('فواتير المشتريات الكلية'!$O$4:$O$1000,MATCH($E$7,'فواتير المشتريات الكلية'!$B$4:$B$1000,0)),"") -> 0 | D14: =IFERROR(INDEX('فواتير المشتريات الكلية'!$P$4:$P$1000,MATCH($E$7,'فواتير المشتريات الكلية'!$B$4:$B$1000,0)),"") -> 0 | E14: =IFERROR(INDEX('فواتير المشتريات الكلية'!$Q$4:$Q$1000,MATCH($E$7,'فواتير المشتريات الكلية'!$B$4:$B$1000,0)),"") -> 0 | F14: 0
B15: الخماسية | C15: =IFERROR(INDEX('فواتير المشتريات الكلية'!$R$4:$R$1000,MATCH($E$7,'فواتير المشتريات الكلية'!$B$4:$B$1000,0)),"") -> 0 | D15: =IFERROR(INDEX('فواتير المشتريات الكلية'!$S$4:$S$1000,MATCH($E$7,'فواتير المشتريات الكلية'!$B$4:$B$1000,0)),"") -> 0 | E15: =IFERROR(INDEX('فواتير المشتريات الكلية'!$T$4:$T$1000,MATCH($E$7,'فواتير المشتريات الكلية'!$B$4:$B$1000,0)),"") -> 0 | F15: 0
B16: تكاليف اخرى | F16: =IFERROR(INDEX('فواتير المشتريات الكلية'!$U$4:$U$1000,MATCH($E$7,'فواتير المشتريات الكلية'!$B$4:$B$1000,0)),"") -> 0
B17: التأشيرة بدون مقعد | F17: =IFERROR(INDEX('فواتير المشتريات الكلية'!$V$4:$V$1000,MATCH($E$7,'فواتير المشتريات الكلية'!$B$4:$B$1000,0)),"") -> 0
B18: التأشيرة + مقعد | F18: =IFERROR(INDEX('فواتير المشتريات الكلية'!$W$4:$W$1000,MATCH($E$7,'فواتير المشتريات الكلية'!$B$4:$B$1000,0)),"") -> 0
B19: اخرى | F19: =IFERROR(INDEX('فواتير المشتريات الكلية'!$X$4:$X$1000,MATCH($E$7,'فواتير المشتريات الكلية'!$B$4:$B$1000,0)),"") -> 0
B20: مجموع المعتمريـن | D20: =SUM(D12:D19) -> 13 | E20: الاجمالي / دينار | F20: =SUM(F12:F19) -> 545
B21: المرشد / ( يطرح ) | F21: =IFERROR(INDEX('فواتير المشتريات الكلية'!$Z$4:$Z$1000,MATCH($E$7,'فواتير المشتريات الكلية'!$B$4:$B$1000,0)),"") -> 10
B22: عمولة مندوبين، مصاريف | F22: =IFERROR(INDEX('فواتير المشتريات الكلية'!$AA$4:$AA$1000,MATCH($E$7,'فواتير المشتريات الكلية'!$B$4:$B$1000,0)),"") -> 20
B23: اخرى | F23: =IFERROR(INDEX('فواتير المشتريات الكلية'!$AB$4:$AB$1000,MATCH($E$7,'فواتير المشتريات الكلية'!$B$4:$B$1000,0)),"") -> 30
B24: صافى المشتريات | F24: =F20-F21-F22-F23 -> 485

Sheet فاتورة مبيعات الرئيسية
C7: فاتورة مبيعات | D7: رقم الفاتورة | E7: 2
B8: رقم الرحلة | E8: اسم المرشد | F8: =IFERROR(IF(INDEX(البيانات!$E$2:$E$1000,MATCH($C$8,البيانات!$B$2:$B$1000,0))="","",INDEX(البيانات!$E$2:$E$1000,MATCH($C$8,البيانات!$B$2:$B$1000,0))),"") -> 
B9: تاريخ الرحلة | C9: =IFERROR(IF(INDEX(البيانات!$D$2:$D$1000,MATCH($C$8,البيانات!$B$2:$B$1000,0))="","",INDEX(البيانات!$D$2:$D$1000,MATCH($C$8,البيانات!$B$2:$B$1000,0))),"") ->  | E9: فندق المدينة المنورة | F9: =IFERROR(IF(INDEX(البيانات!$F$2:$F$1000,MATCH($C$8,البيانات!$B$2:$B$1000,0))="","",INDEX(البيانات!$F$2:$F$1000,MATCH($C$8,البيانات!$B$2:$B$1000,0))),"") -> 
B10: نوع الرحلة | C10: =IFERROR(IF(INDEX(البيانات!$C$2:$C$1000,MATCH($C$8,البيانات!$B$2:$B$1000,0))="","",INDEX(البيانات!$C$2:$C$1000,MATCH($C$8,البيانات!$B$2:$B$1000,0))),"") ->  | E10: فندق مكة المكرمة | F10: =IFERROR(IF(INDEX(البيانات!$G$2:$G$1000,MATCH($C$8,البيانات!$B$2:$B$1000,0))="","",INDEX(البيانات!$G$2:$G$1000,MATCH($C$8,البيانات!$B$2:$B$1000,0))),"") -> 
B11: نوع الغرفة | C11: عدد الغرف | D11: عدد المعتمرين | E11: السعر | F11: الاجمالي
B12: الثنائية | F12: =D12*E12 -> 0
B13: الثلاثية | F13: =D13*E13 -> 0
B14: الرباعية | F14: 0
B15: الخماسية | F15: 0
B16: تكاليف اخرى | F16: 0
B17: التأشيرة بدون مقعد | F17: 0
B18: التأشيرة + مقعد | F18: 0
B19: اخرى | F19: 0
B20: مجموع المعتمريـن | D20: =SUM(D12:D19) -> 0 | E20: الاجمالي / دينار | F20: =SUM(F12:F19) -> 0
B21: المرشد / ( يطرح )
B22: عمولة مندوبين، مصاريف
B23: اخرى
B24: صافى المبيعات | F24: =F20-F21-F22-F23 -> 0

Sheet فواتير المبيعات الكلية
I1: نوع الغرف | AC1: =SUM(AC4:AC992) -> 1420
I2: الثنائية | L2: الثلاثية | O2: الرباعية | R2: الخماسية
A3: مسلسل | B3: رقم الفاتورة | C3: رقم الرحلة | D3: تاريخ الرحلة | E3: نوع الرحلة | F3: اسم المرشد | G3: فندق المدينة المنورة | H3: فندق مكة المكرمة | I3: عدد الغرف | J3: عدد المعتمرين | K3: السعر | L3: عدد الغرف | M3: عدد المعتمرين | N3: السعر | O3: عدد الغرف | P3: عدد المعتمرين | Q3: السعر | R3: عدد الغرف | S3: عدد المعتمرين | T3: السعر | U3: تكاليف اخرى | V3: التأشيرة بدون مقعد | W3: التأشيرة + مقعد | X3: اخرى | Y3: الاجمالي | Z3: المرشد / ( يطرح ) | AA3: عمولة مندوبين ، مصاريف | AB3: اخرى | AC3: صافى المشتريات
A4: =IF(B4="","",SUBTOTAL(3,$B$4:B4)) -> 1 | B4: 1 | C4: R100 | D4: 25-9-2018 | E4: طيران | F4: محمود | I4: 2 | J4: 4 | K4: 35 | L4: 3 | M4: 9 | N4: 45 | O4: 2 | P4: 8 | Q4: 65 | R4: 1 | S4: 5 | T4: 80 | U4: 0 | V4: 0 | W4: 0 | X4: 0 | Y4: =(J4*K4)+(M4*N4)+(P4*Q4)+(S4*T4)+SUM(U4:X4) -> 1465 | Z4: 10 | AA4: 20 | AB4: 15 | AC4: =Y4-(Z4+AA4+AB4) -> 1420
A5: =IF(B5="","",SUBTOTAL(3,$B$4:B5)) ->  | Y5: =(J5*K5)+(M5*N5)+(P5*Q5)+(S5*T5)+SUM(U5:X5) -> 0 | AC5: =Y5-(Z5+AA5+AB5) -> 0
A6: =IF(B6="","",SUBTOTAL(3,$B$4:B6)) ->  | Y6: 0 | AC6: 0
A7: =IF(B7="","",SUBTOTAL(3,$B$4:B7)) ->  | Y7: 0 | AC7: 0
A8: =IF(B8="","",SUBTOTAL(3,$B$4:B8)) ->  | Y8: 0 | AC8: 0
A9: =IF(B9="","",SUBTOTAL(3,$B$4:B9)) ->  | Y9: 0 | AC9: 0
A10: =IF(B10="","",SUBTOTAL(3,$B$4:B10)) ->  | Y10: 0 | AC10: 0
A11: =IF(B11="","",SUBTOTAL(3,$B$4:B11)) ->  | Y11: 0 | AC11: 0
A12: =IF(B12="","",SUBTOTAL(3,$B$4:B12)) ->  | Y12: 0 | AC12: 0
A13: =IF(B13="","",SUBTOTAL(3,$B$4:B13)) ->  | Y13: 0 | AC13: 0
A14: =IF(B14="","",SUBTOTAL(3,$B$4:B14)) ->  | Y14: 0 | AC14: 0
A15: =IF(B15="","",SUBTOTAL(3,$B$4:B15)) ->  | Y15: 0 | AC15: 0
A16: =IF(B16="","",SUBTOTAL(3,$B$4:B16)) ->  | Y16: 0 | AC16: 0
A17: =IF(B17="","",SUBTOTAL(3,$B$4:B17)) ->  | Y17: 0 | AC17: 0
A18: =IF(B18="","",SUBTOTAL(3,$B$4:B18)) ->  | Y18: 0 | AC18: 0
A19: =IF(B19="","",SUBTOTAL(3,$B$4:B19)) ->  | Y19: 0 | AC19: 0
A20: =IF(B20="","",SUBTOTAL(3,$B$4:B20)) ->  | Y20: 0 | AC20: 0
A21: =IF(B21="","",SUBTOTAL(3,$B$4:B21)) ->  | Y21: 0 | AC21: 0
A22: =IF(B22="","",SUBTOTAL(3,$B$4:B22)) ->  | Y22: 0 | AC22: 0
A23: =IF(B23="","",SUBTOTAL(3,$B$4:B23)) ->  | Y23: 0 | AC23: 0
A24: =IF(B24="","",SUBTOTAL(3,$B$4:B24)) ->  | Y24: 0 | AC24: 0
A25: =IF(B25="","",SUBTOTAL(3,$B$4:B25)) ->  | Y25: 0 | AC25: 0
A26: =IF(B26="","",SUBTOTAL(3,$B$4:B26)) ->  | Y26: 0 | AC26: 0
A27: =IF(B27="","",SUBTOTAL(3,$B$4:B27)) ->  | Y27: 0 | AC27: 0
A28: =IF(B28="","",SUBTOTAL(3,$B$4:B28)) ->  | Y28: 0 | AC28: 0
A29: =IF(B29="","",SUBTOTAL(3,$B$4:B29)) ->  | Y29: 0 | AC29: 0
A30: =IF(B30="","",SUBTOTAL(3,$B$4:B30)) ->  | Y30: 0 | AC30: 0
A31: =IF(B31="","",SUBTOTAL(3,$B$4:B31)) ->  | Y31: 0 | AC31: 0
A32: =IF(B32="","",SUBTOTAL(3,$B$4:B32)) ->  | Y32: 0 | AC32: 0
A33: =IF(B33="","",SUBTOTAL(3,$B$4:B33)) ->  | Y33: 0 | AC33: 0
A34: =IF(B34="","",SUBTOTAL(3,$B$4:B34)) ->  | Y34: 0 | AC34: 0
A35: =IF(B35="","",SUBTOTAL(3,$B$4:B35)) ->  | Y35: 0 | AC35: 0
A36: =IF(B36="","",SUBTOTAL(3,$B$4:B36)) ->  | Y36: 0 | AC36: 0
A37: =IF(B37="","",SUBTOTAL(3,$B$4:B37)) ->  | Y37: 0 | AC37: 0
A38: =IF(B38="","",SUBTOTAL(3,$B$4:B38)) ->  | Y38: 0 | AC38: 0
A39: =IF(B39="","",SUBTOTAL(3,$B$4:B39)) ->  | Y39: 0 | AC39: 0
A40: =IF(B40="","",SUBTOTAL(3,$B$4:B40)) ->  | Y40: 0 | AC40: 0
A41: =IF(B41="","",SUBTOTAL(3,$B$4:B41)) ->  | Y41: 0 | AC41: 0
A42: =IF(B42="","",SUBTOTAL(3,$B$4:B42)) ->  | Y42: 0 | AC42: 0
A43: =IF(B43="","",SUBTOTAL(3,$B$4:B43)) ->  | Y43: 0 | AC43: 0
A44: =IF(B44="","",SUBTOTAL(3,$B$4:B44)) ->  | Y44: 0 | AC44: 0
A45: =IF(B45="","",SUBTOTAL(3,$B$4:B45)) ->  | Y45: 0 | AC45: 0
A46: =IF(B46="","",SUBTOTAL(3,$B$4:B46)) ->  | Y46: 0 | AC46: 0
A47: =IF(B47="","",SUBTOTAL(3,$B$4:B47)) ->  | Y47: 0 | AC47: 0
A48: =IF(B48="","",SUBTOTAL(3,$B$4:B48)) ->  | Y48: 0 | AC48: 0
A49: =IF(B49="","",SUBTOTAL(3,$B$4:B49)) ->  | Y49: 0 | AC49: 0
A50: =IF(B50="","",SUBTOTAL(3,$B$4:B50)) ->  | Y50: 0 | AC50: 0
A51: =IF(B51="","",SUBTOTAL(3,$B$4:B51)) ->  | Y51: 0 | AC51: 0
A52: =IF(B52="","",SUBTOTAL(3,$B$4:B52)) ->  | Y52: 0 | AC52: 0
A53: =IF(B53="","",SUBTOTAL(3,$B$4:B53)) ->  | Y53: 0 | AC53: 0
A54: =IF(B54="","",SUBTOTAL(3,$B$4:B54)) ->  | Y54: 0 | AC54: 0
A55: =IF(B55="","",SUBTOTAL(3,$B$4:B55)) ->  | Y55: 0 | AC55: 0
A56: =IF(B56="","",SUBTOTAL(3,$B$4:B56)) ->  | Y56: 0 | AC56: 0
A57: =IF(B57="","",SUBTOTAL(3,$B$4:B57)) ->  | Y57: 0 | AC57: 0
A58: =IF(B58="","",SUBTOTAL(3,$B$4:B58)) ->  | Y58: 0 | AC58: 0
A59: =IF(B59="","",SUBTOTAL(3,$B$4:B59)) ->  | Y59: 0 | AC59: 0
A60: =IF(B60="","",SUBTOTAL(3,$B$4:B60)) ->  | Y60: 0 | AC60: 0
A61: =IF(B61="","",SUBTOTAL(3,$B$4:B61)) ->  | Y61: 0 | AC61: 0
A62: =IF(B62="","",SUBTOTAL(3,$B$4:B62)) ->  | Y62: 0 | AC62: 0
A63: =IF(B63="","",SUBTOTAL(3,$B$4:B63)) ->  | Y63: 0 | AC63: 0
A64: =IF(B64="","",SUBTOTAL(3,$B$4:B64)) ->  | Y64: 0 | AC64: 0
A65: =IF(B65="","",SUBTOTAL(3,$B$4:B65)) ->  | Y65: 0 | AC65: 0
A66: =IF(B66="","",SUBTOTAL(3,$B$4:B66)) ->  | Y66: 0 | AC66: 0
A67: =IF(B67="","",SUBTOTAL(3,$B$4:B67)) ->  | Y67: 0 | AC67: 0
A68: =IF(B68="","",SUBTOTAL(3,$B$4:B68)) ->  | Y68: 0 | AC68: 0
A69: =IF(B69="","",SUBTOTAL(3,$B$4:B69)) ->  | Y69: =(J69*K69)+(M69*N69)+(P69*Q69)+(S69*T69)+SUM(U69:X69) -> 0 | AC69: =Y69-(Z69+AA69+AB69) -> 0
A70: =IF(B70="","",SUBTOTAL(3,$B$4:B70)) ->  | Y70: 0 | AC70: 0
A71: =IF(B71="","",SUBTOTAL(3,$B$4:B71)) ->  | Y71: 0 | AC71: 0
A72: =IF(B72="","",SUBTOTAL(3,$B$4:B72)) ->  | Y72: 0 | AC72: 0
A73: =IF(B73="","",SUBTOTAL(3,$B$4:B73)) ->  | Y73: 0 | AC73: 0
A74: =IF(B74="","",SUBTOTAL(3,$B$4:B74)) ->  | Y74: 0 | AC74: 0
A75: =IF(B75="","",SUBTOTAL(3,$B$4:B75)) ->  | Y75: 0 | AC75: 0
A76: =IF(B76="","",SUBTOTAL(3,$B$4:B76)) ->  | Y76: 0 | AC76: 0
A77: =IF(B77="","",SUBTOTAL(3,$B$4:B77)) ->  | Y77: 0 | AC77: 0
A78: =IF(B78="","",SUBTOTAL(3,$B$4:B78)) ->  | Y78: 0 | AC78: 0
A79: =IF(B79="","",SUBTOTAL(3,$B$4:B79)) ->  | Y79: 0 | AC79: 0
A80: =IF(B80="","",SUBTOTAL(3,$B$4:B80)) ->  | Y80: 0 | AC80: 0
A81: =IF(B81="","",SUBTOTAL(3,$B$4:B81)) ->  | Y81: 0 | AC81: 0
A82: =IF(B82="","",SUBTOTAL(3,$B$4:B82)) ->  | Y82: 0 | AC82: 0
A83: =IF(B83="","",SUBTOTAL(3,$B$4:B83)) ->  | Y83: 0 | AC83: 0
A84: =IF(B84="","",SUBTOTAL(3,$B$4:B84)) ->  | Y84: 0 | AC84: 0
A85: =IF(B85="","",SUBTOTAL(3,$B$4:B85)) ->  | Y85: 0 | AC85: 0
A86: =IF(B86="","",SUBTOTAL(3,$B$4:B86)) ->  | Y86: 0 | AC86: 0
A87: =IF(B87="","",SUBTOTAL(3,$B$4:B87)) ->  | Y87: 0 | AC87: 0
A88: =IF(B88="","",SUBTOTAL(3,$B$4:B88)) ->  | Y88: 0 | AC88: 0
A89: =IF(B89="","",SUBTOTAL(3,$B$4:B89)) ->  | Y89: 0 | AC89: 0
A90: =IF(B90="","",SUBTOTAL(3,$B$4:B90)) ->  | Y90: 0 | AC90: 0
A91: =IF(B91="","",SUBTOTAL(3,$B$4:B91)) ->  | Y91: 0 | AC91: 0
A92: =IF(B92="","",SUBTOTAL(3,$B$4:B92)) ->  | Y92: 0 | AC92: 0
A93: =IF(B93="","",SUBTOTAL(3,$B$4:B93)) ->  | Y93: 0 | AC93: 0
A94: =IF(B94="","",SUBTOTAL(3,$B$4:B94)) ->  | Y94: 0 | AC94: 0
A95: =IF(B95="","",SUBTOTAL(3,$B$4:B95)) ->  | Y95: 0 | AC95: 0
A96: =IF(B96="","",SUBTOTAL(3,$B$4:B96)) ->  | Y96: 0 | AC96: 0
A97: =IF(B97="","",SUBTOTAL(3,$B$4:B97)) ->  | Y97: 0 | AC97: 0
A98: =IF(B98="","",SUBTOTAL(3,$B$4:B98)) ->  | Y98: 0 | AC98: 0
A99: =IF(B99="","",SUBTOTAL(3,$B$4:B99)) ->  | Y99: 0 | AC99: 0
A100: =IF(B100="","",SUBTOTAL(3,$B$4:B100)) ->  | Y100: 0 | AC100: 0
A101: =IF(B101="","",SUBTOTAL(3,$B$4:B101)) ->  | Y101: 0 | AC101: 0
A102: =IF(B102="","",SUBTOTAL(3,$B$4:B102)) ->  | Y102: 0 | AC102: 0
A103: =IF(B103="","",SUBTOTAL(3,$B$4:B103)) ->  | Y103: 0 | AC103: 0
A104: =IF(B104="","",SUBTOTAL(3,$B$4:B104)) ->  | Y104: 0 | AC104: 0
A105: =IF(B105="","",SUBTOTAL(3,$B$4:B105)) ->  | Y105: 0 | AC105: 0
A106: =IF(B106="","",SUBTOTAL(3,$B$4:B106)) ->  | Y106: 0 | AC106: 0
A107: =IF(B107="","",SUBTOTAL(3,$B$4:B107)) ->  | Y107: 0 | AC107: 0
A108: =IF(B108="","",SUBTOTAL(3,$B$4:B108)) ->  | Y108: 0 | AC108: 0
A109: =IF(B109="","",SUBTOTAL(3,$B$4:B109)) ->  | Y109: 0 | AC109: 0
A110: =IF(B110="","",SUBTOTAL(3,$B$4:B110)) ->  | Y110: 0 | AC110: 0
A111: =IF(B111="","",SUBTOTAL(3,$B$4:B111)) ->  | Y111: 0 | AC111: 0
A112: =IF(B112="","",SUBTOTAL(3,$B$4:B112)) ->  | Y112: 0 | AC112: 0
A113: =IF(B113="","",SUBTOTAL(3,$B$4:B113)) ->  | Y113: 0 | AC113: 0
A114: =IF(B114="","",SUBTOTAL(3,$B$4:B114)) ->  | Y114: 0 | AC114: 0
A115: =IF(B115="","",SUBTOTAL(3,$B$4:B115)) ->  | Y115: 0 | AC115: 0
A116: =IF(B116="","",SUBTOTAL(3,$B$4:B116)) ->  | Y116: 0 | AC116: 0
A117: =IF(B117="","",SUBTOTAL(3,$B$4:B117)) ->  | Y117: 0 | AC117: 0
A118: =IF(B118="","",SUBTOTAL(3,$B$4:B118)) ->  | Y118: 0 | AC118: 0
A119: =IF(B119="","",SUBTOTAL(3,$B$4:B119)) ->  | Y119: 0 | AC119: 0
A120: =IF(B120="","",SUBTOTAL(3,$B$4:B120)) ->  | Y120: 0 | AC120: 0
A121: =IF(B121="","",SUBTOTAL(3,$B$4:B121)) ->  | Y121: 0 | AC121: 0
A122: =IF(B122="","",SUBTOTAL(3,$B$4:B122)) ->  | Y122: 0 | AC122: 0
A123: =IF(B123="","",SUBTOTAL(3,$B$4:B123)) ->  | Y123: 0 | AC123: 0
A124: =IF(B124="","",SUBTOTAL(3,$B$4:B124)) ->  | Y124: 0 | AC124: 0
A125: =IF(B125="","",SUBTOTAL(3,$B$4:B125)) ->  | Y125: 0 | AC125: 0
A126: =IF(B126="","",SUBTOTAL(3,$B$4:B126)) ->  | Y126: 0 | AC126: 0
A127: =IF(B127="","",SUBTOTAL(3,$B$4:B127)) ->  | Y127: 0 | AC127: 0
A128: =IF(B128="","",SUBTOTAL(3,$B$4:B128)) ->  | Y128: 0 | AC128: 0
A129: =IF(B129="","",SUBTOTAL(3,$B$4:B129)) ->  | Y129: 0 | AC129: 0
A130: =IF(B130="","",SUBTOTAL(3,$B$4:B130)) ->  | Y130: 0 | AC130: 0
A131: =IF(B131="","",SUBTOTAL(3,$B$4:B131)) ->  | Y131: 0 | AC131: 0
A132: =IF(B132="","",SUBTOTAL(3,$B$4:B132)) ->  | Y132: 0 | AC132: 0
A133: =IF(B133="","",SUBTOTAL(3,$B$4:B133)) ->  | Y133: =(J133*K133)+(M133*N133)+(P133*Q133)+(S133*T133)+SUM(U133:X133) -> 0 | AC133: =Y133-(Z133+AA133+AB133) -> 0
A134: =IF(B134="","",SUBTOTAL(3,$B$4:B134)) ->  | Y134: 0 | AC134: 0
A135: =IF(B135="","",SUBTOTAL(3,$B$4:B135)) ->  | Y135: 0 | AC135: 0
A136: =IF(B136="","",SUBTOTAL(3,$B$4:B136)) ->  | Y136: 0 | AC136: 0
A137: =IF(B137="","",SUBTOTAL(3,$B$4:B137)) ->  | Y137: 0 | AC137: 0
A138: =IF(B138="","",SUBTOTAL(3,$B$4:B138)) ->  | Y138: 0 | AC138: 0
A139: =IF(B139="","",SUBTOTAL(3,$B$4:B139)) ->  | Y139: 0 | AC139: 0
A140: =IF(B140="","",SUBTOTAL(3,$B$4:B140)) ->  | Y140: 0 | AC140: 0
A141: =IF(B141="","",SUBTOTAL(3,$B$4:B141)) ->  | Y141: 0 | AC141: 0
A142: =IF(B142="","",SUBTOTAL(3,$B$4:B142)) ->  | Y142: 0 | AC142: 0
A143: =IF(B143="","",SUBTOTAL(3,$B$4:B143)) ->  | Y143: 0 | AC143: 0
A144: =IF(B144="","",SUBTOTAL(3,$B$4:B144)) ->  | Y144: 0 | AC144: 0
A145: =IF(B145="","",SUBTOTAL(3,$B$4:B145)) ->  | Y145: 0 | AC145: 0
A146: =IF(B146="","",SUBTOTAL(3,$B$4:B146)) ->  | Y146: 0 | AC146: 0
A147: =IF(B147="","",SUBTOTAL(3,$B$4:B147)) ->  | Y147: 0 | AC147: 0
A148: =IF(B148="","",SUBTOTAL(3,$B$4:B148)) ->  | Y148: 0 | AC148: 0
A149: =IF(B149="","",SUBTOTAL(3,$B$4:B149)) ->  | Y149: 0 | AC149: 0
A150: =IF(B150="","",SUBTOTAL(3,$B$4:B150)) ->  | Y150: 0 | AC150: 0
A151: =IF(B151="","",SUBTOTAL(3,$B$4:B151)) ->  | Y151: 0 | AC151: 0
A152: =IF(B152="","",SUBTOTAL(3,$B$4:B152)) ->  | Y152: 0 | AC152: 0
A153: =IF(B153="","",SUBTOTAL(3,$B$4:B153)) ->  | Y153: 0 | AC153: 0
A154: =IF(B154="","",SUBTOTAL(3,$B$4:B154)) ->  | Y154: 0 | AC154: 0
A155: =IF(B155="","",SUBTOTAL(3,$B$4:B155)) ->  | Y155: 0 | AC155: 0
A156: =IF(B156="","",SUBTOTAL(3,$B$4:B156)) ->  | Y156: 0 | AC156: 0
A157: =IF(B157="","",SUBTOTAL(3,$B$4:B157)) ->  | Y157: 0 | AC157: 0
A158: =IF(B158="","",SUBTOTAL(3,$B$4:B158)) ->  | Y158: 0 | AC158: 0
A159: =IF(B159="","",SUBTOTAL(3,$B$4:B159)) ->  | Y159: 0 | AC159: 0
A160: =IF(B160="","",SUBTOTAL(3,$B$4:B160)) ->  | Y160: 0 | AC160: 0
A161: =IF(B161="","",SUBTOTAL(3,$B$4:B161)) ->  | Y161: 0 | AC161: 0
A162: =IF(B162="","",SUBTOTAL(3,$B$4:B162)) ->  | Y162: 0 | AC162: 0
A163: =IF(B163="","",SUBTOTAL(3,$B$4:B163)) ->  | Y163: 0 | AC163: 0
A164: =IF(B164="","",SUBTOTAL(3,$B$4:B164)) ->  | Y164: 0 | AC164: 0
A165: =IF(B165="","",SUBTOTAL(3,$B$4:B165)) ->  | Y165: 0 | AC165: 0
A166: =IF(B166="","",SUBTOTAL(3,$B$4:B166)) ->  | Y166: 0 | AC166: 0
A167: =IF(B167="","",SUBTOTAL(3,$B$4:B167)) ->  | Y167: 0 | AC167: 0
A168: =IF(B168="","",SUBTOTAL(3,$B$4:B168)) ->  | Y168: 0 | AC168: 0
A169: =IF(B169="","",SUBTOTAL(3,$B$4:B169)) ->  | Y169: 0 | AC169: 0
A170: =IF(B170="","",SUBTOTAL(3,$B$4:B170)) ->  | Y170: 0 | AC170: 0
A171: =IF(B171="","",SUBTOTAL(3,$B$4:B171)) ->  | Y171: 0 | AC171: 0
A172: =IF(B172="","",SUBTOTAL(3,$B$4:B172)) ->  | Y172: 0 | AC172: 0
A173: =IF(B173="","",SUBTOTAL(3,$B$4:B173)) ->  | Y173: 0 | AC173: 0
A174: =IF(B174="","",SUBTOTAL(3,$B$4:B174)) ->  | Y174: 0 | AC174: 0
A175: =IF(B175="","",SUBTOTAL(3,$B$4:B175)) ->  | Y175: 0 | AC175: 0
A176: =IF(B176="","",SUBTOTAL(3,$B$4:B176)) ->  | Y176: 0 | AC176: 0
A177: =IF(B177="","",SUBTOTAL(3,$B$4:B177)) ->  | Y177: 0 | AC177: 0
A178: =IF(B178="","",SUBTOTAL(3,$B$4:B178)) ->  | Y178: 0 | AC178: 0
A179: =IF(B179="","",SUBTOTAL(3,$B$4:B179)) ->  | Y179: 0 | AC179: 0
A180: =IF(B180="","",SUBTOTAL(3,$B$4:B180)) ->  | Y180: 0 | AC180: 0
A181: =IF(B181="","",SUBTOTAL(3,$B$4:B181)) ->  | Y181: 0 | AC181: 0
A182: =IF(B182="","",SUBTOTAL(3,$B$4:B182)) ->  | Y182: 0 | AC182: 0
A183: =IF(B183="","",SUBTOTAL(3,$B$4:B183)) ->  | Y183: 0 | AC183: 0
A184: =IF(B184="","",SUBTOTAL(3,$B$4:B184)) ->  | Y184: 0 | AC184: 0
A185: =IF(B185="","",SUBTOTAL(3,$B$4:B185)) ->  | Y185: 0 | AC185: 0
A186: =IF(B186="","",SUBTOTAL(3,$B$4:B186)) ->  | Y186: 0 | AC186: 0
A187: =IF(B187="","",SUBTOTAL(3,$B$4:B187)) ->  | Y187: 0 | AC187: 0
A188: =IF(B188="","",SUBTOTAL(3,$B$4:B188)) ->  | Y188: 0 | AC188: 0
A189: =IF(B189="","",SUBTOTAL(3,$B$4:B189)) ->  | Y189: 0 | AC189: 0
A190: =IF(B190="","",SUBTOTAL(3,$B$4:B190)) ->  | Y190: 0 | AC190: 0
A191: =IF(B191="","",SUBTOTAL(3,$B$4:B191)) ->  | Y191: 0 | AC191: 0
A192: =IF(B192="","",SUBTOTAL(3,$B$4:B192)) ->  | Y192: 0 | AC192: 0
A193: =IF(B193="","",SUBTOTAL(3,$B$4:B193)) ->  | Y193: 0 | AC193: 0
A194: =IF(B194="","",SUBTOTAL(3,$B$4:B194)) ->  | Y194: 0 | AC194: 0
A195: =IF(B195="","",SUBTOTAL(3,$B$4:B195)) ->  | Y195: 0 | AC195: 0
A196: =IF(B196="","",SUBTOTAL(3,$B$4:B196)) ->  | Y196: 0 | AC196: 0
A197: =IF(B197="","",SUBTOTAL(3,$B$4:B197)) ->  | Y197: =(J197*K197)+(M197*N197)+(P197*Q197)+(S197*T197)+SUM(U197:X197) -> 0 | AC197: =Y197-(Z197+AA197+AB197) -> 0
A198: =IF(B198="","",SUBTOTAL(3,$B$4:B198)) ->  | Y198: 0 | AC198: 0
A199: =IF(B199="","",SUBTOTAL(3,$B$4:B199)) ->  | Y199: 0 | AC199: 0
A200: =IF(B200="","",SUBTOTAL(3,$B$4:B200)) ->  | Y200: 0 | AC200: 0
... 493 more rows

Sheet استدعاء برقم فاتورة مبيعات
D4: بمجرد اختيار رقم الفاتورة من القائمة المنسدلة سوف يتم جلب بيانات الفاتورة المختارة بالمعادلات
C7: فاتورة مبيعات | D7: رقم الفاتورة | E7: 1
B8: رقم الرحلة | C8: =IFERROR(INDEX('فواتير المشتريات الكلية'!$C$4:$C$1000,MATCH($E$7,'فواتير المشتريات الكلية'!$B$4:$B$1000,0)),"") -> R100 | E8: اسم المرشد | F8: =IFERROR(IF(INDEX(البيانات!$E$2:$E$1000,MATCH($C$8,البيانات!$B$2:$B$1000,0))="","",INDEX(البيانات!$E$2:$E$1000,MATCH($C$8,البيانات!$B$2:$B$1000,0))),"") -> محمود
B9: تاريخ الرحلة | C9: =IFERROR(IF(INDEX(البيانات!$D$2:$D$1000,MATCH($C$8,البيانات!$B$2:$B$1000,0))="","",INDEX(البيانات!$D$2:$D$1000,MATCH($C$8,البيانات!$B$2:$B$1000,0))),"") -> 25-9-2018 | E9: فندق المدينة المنورة | F9: =IFERROR(IF(INDEX(البيانات!$F$2:$F$1000,MATCH($C$8,البيانات!$B$2:$B$1000,0))="","",INDEX(البيانات!$F$2:$F$1000,MATCH($C$8,البيانات!$B$2:$B$1000,0))),"") -> 
B10: نوع الرحلة | C10: =IFERROR(IF(INDEX(البيانات!$C$2:$C$1000,MATCH($C$8,البيانات!$B$2:$B$1000,0))="","",INDEX(البيانات!$C$2:$C$1000,MATCH($C$8,البيانات!$B$2:$B$1000,0))),"") -> طيران | E10: فندق مكة المكرمة | F10: =IFERROR(IF(INDEX(البيانات!$G$2:$G$1000,MATCH($C$8,البيانات!$B$2:$B$1000,0))="","",INDEX(البيانات!$G$2:$G$1000,MATCH($C$8,البيانات!$B$2:$B$1000,0))),"") -> 
B11: نوع الغرفة | C11: عدد الغرف | D11: عدد المعتمرين | E11: السعر | F11: الاجمالي
B12: الثنائية | C12: =IFERROR(INDEX('فواتير المبيعات الكلية'!$I$4:$I$1000,MATCH($E$7,'فواتير المبيعات الكلية'!$B$4:$B$1000,0)),"") -> 2 | D12: =IFERROR(INDEX('فواتير المبيعات الكلية'!$J$4:$J$1000,MATCH($E$7,'فواتير المبيعات الكلية'!$B$4:$B$1000,0)),"") -> 4 | E12: =IFERROR(INDEX('فواتير المبيعات الكلية'!$K$4:$K$1000,MATCH($E$7,'فواتير المبيعات الكلية'!$B$4:$B$1000,0)),"") -> 35 | F12: =IFERROR(D12*E12,"") -> 140
B13: الثلاثية | C13: =IFERROR(INDEX('فواتير المبيعات الكلية'!$L$4:$L$1000,MATCH($E$7,'فواتير المبيعات الكلية'!$B$4:$B$1000,0)),"") -> 3 | D13: =IFERROR(INDEX('فواتير المبيعات الكلية'!$M$4:$M$1000,MATCH($E$7,'فواتير المبيعات الكلية'!$B$4:$B$1000,0)),"") -> 9 | E13: =IFERROR(INDEX('فواتير المبيعات الكلية'!$N$4:$N$1000,MATCH($E$7,'فواتير المبيعات الكلية'!$B$4:$B$1000,0)),"") -> 45 | F13: =IFERROR(D13*E13,"") -> 405
B14: الرباعية | C14: =IFERROR(INDEX('فواتير المبيعات الكلية'!$O$4:$O$1000,MATCH($E$7,'فواتير المبيعات الكلية'!$B$4:$B$1000,0)),"") -> 2 | D14: =IFERROR(INDEX('فواتير المبيعات الكلية'!$P$4:$P$1000,MATCH($E$7,'فواتير المبيعات الكلية'!$B$4:$B$1000,0)),"") -> 8 | E14: =IFERROR(INDEX('فواتير المبيعات الكلية'!$Q$4:$Q$1000,MATCH($E$7,'فواتير المبيعات الكلية'!$B$4:$B$1000,0)),"") -> 65 | F14: =IFERROR(D14*E14,"") -> 520
B15: الخماسية | C15: =IFERROR(INDEX('فواتير المبيعات الكلية'!$R$4:$R$1000,MATCH($E$7,'فواتير المبيعات الكلية'!$B$4:$B$1000,0)),"") -> 1 | D15: =IFERROR(INDEX('فواتير المبيعات الكلية'!$S$4:$S$1000,MATCH($E$7,'فواتير المبيعات الكلية'!$B$4:$B$1000,0)),"") -> 5 | E15: =IFERROR(INDEX('فواتير المبيعات الكلية'!$T$4:$T$1000,MATCH($E$7,'فواتير المبيعات الكلية'!$B$4:$B$1000,0)),"") -> 80 | F15: =IFERROR(D15*E15,"") -> 400
B16: تكاليف اخرى | F16: =IFERROR(INDEX('فواتير المبيعات الكلية'!$U$4:$U$1000,MATCH($E$7,'فواتير المبيعات الكلية'!$B$4:$B$1000,0)),"") -> 0
B17: التأشيرة بدون مقعد | F17: =IFERROR(INDEX('فواتير المبيعات الكلية'!$V$4:$V$1000,MATCH($E$7,'فواتير المبيعات الكلية'!$B$4:$B$1000,0)),"") -> 0
B18: التأشيرة + مقعد | F18: =IFERROR(INDEX('فواتير المبيعات الكلية'!$W$4:$W$1000,MATCH($E$7,'فواتير المبيعات الكلية'!$B$4:$B$1000,0)),"") -> 0
B19: اخرى | F19: =IFERROR(INDEX('فواتير المبيعات الكلية'!$X$4:$X$1000,MATCH($E$7,'فواتير المبيعات الكلية'!$B$4:$B$1000,0)),"") -> 0
B20: مجموع المعتمريـن | D20: =SUM(D12:D19) -> 26 | E20: الاجمالي / دينار | F20: =SUM(F12:F19) -> 1465
B21: المرشد / ( يطرح ) | F21: =IFERROR(INDEX('فواتير المبيعات الكلية'!$Z$4:$Z$1000,MATCH($E$7,'فواتير المبيعات الكلية'!$B$4:$B$1000,0)),"") -> 10
B22: عمولة مندوبين، مصاريف | F22: =IFERROR(INDEX('فواتير المبيعات الكلية'!$AA$4:$AA$1000,MATCH($E$7,'فواتير المبيعات الكلية'!$B$4:$B$1000,0)),"") -> 20
B23: اخرى | F23: =IFERROR(INDEX('فواتير المبيعات الكلية'!$AB$4:$AB$1000,MATCH($E$7,'فواتير المبيعات الكلية'!$B$4:$B$1000,0)),"") -> 15
B24: صافى المبيعات | F24: =IFERROR(F20-F21-F22-F23,"") -> 1420

Sheet يومية الصندوق
A4: مسلسل | B4: التاريــــــخ | C4: الاســــم | D4: مدين (مدفوع له) | E4: دائن (مقبوض منه) | F4: الرصيد | G4: البيــــــــــــــــــــــــان
A5: 1 | B5: الأحد 2016/05/01 | C5: رصيد | F5: 5000 | P5: م | Q5: اسم الحساب
A6: 2 | B6: الإثنين 2016/05/02 | C6: منير | D6: 1200 | F6: =F5+E6-D6 -> 3800 | P6: 1 | Q6: رواتب
A7: 3 | B7: الخميس 2016/05/05 | C7: منير | D7: 1500 | F7: =F6+E7-D7 -> 2300 | P7: 2 | Q7: سعيد
A8: 4 | B8: الأربعاء 2016/06/01 | C8: محمد | E8: 2500 | F8: 4800 | P8: 3 | Q8: حسن
A9: 5 | B9: الخميس 2016/06/02 | C9: محمد | D9: 750 | F9: 4050 | P9: 4 | Q9: محمود
A10: 6 | B10: الثلاثاء 22-10-2018 | C10: رواتب | D10: 800 | F10: 3250 | P10: 5 | Q10: منير
F11: 3250 | P11: 6 | Q11: علي
P12: 7 | Q12: محمد
P13: 8 | Q13: هاني1
P14: 9 | Q14: هاني2
P15: 10 | Q15: هاني3
P16: 11 | Q16: هاني4
P17: 12 | Q17: هاني5
P18: 13 | Q18: هاني6
Q19: هاني7
Q20: سامر1
Q21: سامر2
Q22: سامر3
Q23: سامر4
Q24: سامر5
Q25: سامر6
Q26: سامر7
Q27: سامر8
Q28: سامر9
Q29: سامر10
Q30: سامر11
Q31: سامر12
Q32: سامر13
Q33: سامر14
Q34: سامر15

Sheet كشف الحساب
E1: رصيد الصندوق لتاريخه | F1: مجموع مدين | G1: مجموع دائن | H1: الرصيد
C2: اسم الحساب | D2: محمد | E2: ='يومية الصندوق'!F5 -> 5000 | F2: =SUBTOTAL(9,$C$5:$C$250) -> 750 | G2: =SUBTOTAL(9,$D$5:$D$250) -> 2500 | H2: =(E2+F2)-G2 -> 3250
E3: موجود | H3: -----
A4: مسلسل | B4: التاريــــــخ | C4: مدين (مدفوع له) | D4: دائن (مقبوض منه) | E4: البيــــــــــــــــــــــــان
A5: =IFERROR(INDEX('يومية الصندوق'!$A$5:$A$1000,SMALL(IF('يومية الصندوق'!$C$5:$C$1000=$D$2,ROW($A$5:$A$1000)-ROW($A$5)+1),ROWS($A$5:A5))),"") -> 4 | B5: =IFERROR(INDEX('يومية الصندوق'!$B$5:$B$1000,SMALL(IF('يومية الصندوق'!$C$5:$C$1000=$D$2,ROW($A$5:$A$1000)-ROW($A$5)+1),ROWS($A$5:B5))),"") -> الأربعاء 2016/06/01 | C5: =IFERROR(INDEX('يومية الصندوق'!$D$5:$D$1000,SMALL(IF('يومية الصندوق'!$C$5:$C$1000=$D$2,ROW($A$5:$A$1000)-ROW($A$5)+1),ROWS($A$5:C5))),"") -> 0 | D5: =IFERROR(INDEX('يومية الصندوق'!$E$5:$E$1000,SMALL(IF('يومية الصندوق'!$C$5:$C$1000=$D$2,ROW($A$5:$A$1000)-ROW($A$5)+1),ROWS($A$5:D5))),"") -> 2500 | E5: =IFERROR(IF(INDEX('يومية الصندوق'!$G$5:$G$1000,SMALL(IF('يومية الصندوق'!$C$5:$C$1000=$D$2,ROW($A$5:$A$1000)-ROW($A$5)+1),ROWS($A$5:E5)))="","",INDEX('يومية الصندوق'!$G$5:$G$1000,SMALL(IF('يومية الصندوق'!$C$5:$C$1000=$D$2,ROW($A$5:$A$1000)-ROW($A$5)+1),ROWS($A$5:E5)))),"") -> 
A6: =IFERROR(INDEX('يومية الصندوق'!$A$5:$A$1000,SMALL(IF('يومية الصندوق'!$C$5:$C$1000=$D$2,ROW($A$5:$A$1000)-ROW($A$5)+1),ROWS($A$5:A6))),"") -> 5 | B6: =IFERROR(INDEX('يومية الصندوق'!$B$5:$B$1000,SMALL(IF('يومية الصندوق'!$C$5:$C$1000=$D$2,ROW($A$5:$A$1000)-ROW($A$5)+1),ROWS($A$5:B6))),"") -> الخميس 2016/06/02 | C6: =IFERROR(INDEX('يومية الصندوق'!$D$5:$D$1000,SMALL(IF('يومية الصندوق'!$C$5:$C$1000=$D$2,ROW($A$5:$A$1000)-ROW($A$5)+1),ROWS($A$5:C6))),"") -> 750 | D6: =IFERROR(INDEX('يومية الصندوق'!$E$5:$E$1000,SMALL(IF('يومية الصندوق'!$C$5:$C$1000=$D$2,ROW($A$5:$A$1000)-ROW($A$5)+1),ROWS($A$5:D6))),"") -> 0 | E6: =IFERROR(IF(INDEX('يومية الصندوق'!$G$5:$G$1000,SMALL(IF('يومية الصندوق'!$C$5:$C$1000=$D$2,ROW($A$5:$A$1000)-ROW($A$5)+1),ROWS($A$5:E6)))="","",INDEX('يومية الصندوق'!$G$5:$G$1000,SMALL(IF('يومية الصندوق'!$C$5:$C$1000=$D$2,ROW($A$5:$A$1000)-ROW($A$5)+1),ROWS($A$5:E6)))),"") -> 
A7: =IFERROR(INDEX('يومية الصندوق'!$A$5:$A$1000,SMALL(IF('يومية الصندوق'!$C$5:$C$1000=$D$2,ROW($A$5:$A$1000)-ROW($A$5)+1),ROWS($A$5:A7))),"") ->  | B7: =IFERROR(INDEX('يومية الصندوق'!$B$5:$B$1000,SMALL(IF('يومية الصندوق'!$C$5:$C$1000=$D$2,ROW($A$5:$A$1000)-ROW($A$5)+1),ROWS($A$5:B7))),"") ->  | C7: =IFERROR(INDEX('يومية الصندوق'!$D$5:$D$1000,SMALL(IF('يومية الصندوق'!$C$5:$C$1000=$D$2,ROW($A$5:$A$1000)-ROW($A$5)+1),ROWS($A$5:C7))),"") ->  | D7: =IFERROR(INDEX('يومية الصندوق'!$E$5:$E$1000,SMALL(IF('يومية الصندوق'!$C$5:$C$1000=$D$2,ROW($A$5:$A$1000)-ROW($A$5)+1),ROWS($A$5:D7))),"") ->  | E7: =IFERROR(IF(INDEX('يومية الصندوق'!$G$5:$G$1000,SMALL(IF('يومية الصندوق'!$C$5:$C$1000=$D$2,ROW($A$5:$A$1000)-ROW($A$5)+1),ROWS($A$5:E7)))="","",INDEX('يومية الصندوق'!$G$5:$G$1000,SMALL(IF('يومية الصندوق'!$C$5:$C$1000=$D$2,ROW($A$5:$A$1000)-ROW($A$5)+1),ROWS($A$5:E7)))),"") -> 
A8: =IFERROR(INDEX('يومية الصندوق'!$A$5:$A$1000,SMALL(IF('يومية الصندوق'!$C$5:$C$1000=$D$2,ROW($A$5:$A$1000)-ROW($A$5)+1),ROWS($A$5:A8))),"") ->  | B8: =IFERROR(INDEX('يومية الصندوق'!$B$5:$B$1000,SMALL(IF('يومية الصندوق'!$C$5:$C$1000=$D$2,ROW($A$5:$A$1000)-ROW($A$5)+1),ROWS($A$5:B8))),"") ->  | C8: =IFERROR(INDEX('يومية الصندوق'!$D$5:$D$1000,SMALL(IF('يومية الصندوق'!$C$5:$C$1000=$D$2,ROW($A$5:$A$1000)-ROW($A$5)+1),ROWS($A$5:C8))),"") ->  | D8: =IFERROR(INDEX('يومية الصندوق'!$E$5:$E$1000,SMALL(IF('يومية الصندوق'!$C$5:$C$1000=$D$2,ROW($A$5:$A$1000)-ROW($A$5)+1),ROWS($A$5:D8))),"") ->  | E8: =IFERROR(IF(INDEX('يومية الصندوق'!$G$5:$G$1000,SMALL(IF('يومية الصندوق'!$C$5:$C$1000=$D$2,ROW($A$5:$A$1000)-ROW($A$5)+1),ROWS($A$5:E8)))="","",INDEX('يومية الصندوق'!$G$5:$G$1000,SMALL(IF('يومية الصندوق'!$C$5:$C$1000=$D$2,ROW($A$5:$A$1000)-ROW($A$5)+1),ROWS($A$5:E8)))),"") -> 
A9: =IFERROR(INDEX('يومية الصندوق'!$A$5:$A$1000,SMALL(IF('يومية الصندوق'!$C$5:$C$1000=$D$2,ROW($A$5:$A$1000)-ROW($A$5)+1),ROWS($A$5:A9))),"") ->  | B9: =IFERROR(INDEX('يومية الصندوق'!$B$5:$B$1000,SMALL(IF('يومية الصندوق'!$C$5:$C$1000=$D$2,ROW($A$5:$A$1000)-ROW($A$5)+1),ROWS($A$5:B9))),"") ->  | C9: =IFERROR(INDEX('يومية الصندوق'!$D$5:$D$1000,SMALL(IF('يومية الصندوق'!$C$5:$C$1000=$D$2,ROW($A$5:$A$1000)-ROW($A$5)+1),ROWS($A$5:C9))),"") ->  | D9: =IFERROR(INDEX('يومية الصندوق'!$E$5:$E$1000,SMALL(IF('يومية الصندوق'!$C$5:$C$1000=$D$2,ROW($A$5:$A$1000)-ROW($A$5)+1),ROWS($A$5:D9))),"") ->  | E9: =IFERROR(IF(INDEX('يومية الصندوق'!$G$5:$G$1000,SMALL(IF('يومية الصندوق'!$C$5:$C$1000=$D$2,ROW($A$5:$A$1000)-ROW($A$5)+1),ROWS($A$5:E9)))="","",INDEX('يومية الصندوق'!$G$5:$G$1000,SMALL(IF('يومية الصندوق'!$C$5:$C$1000=$D$2,ROW($A$5:$A$1000)-ROW($A$5)+1),ROWS($A$5:E9)))),"") -> 
A10: =IFERROR(INDEX('يومية الصندوق'!$A$5:$A$1000,SMALL(IF('يومية الصندوق'!$C$5:$C$1000=$D$2,ROW($A$5:$A$1000)-ROW($A$5)+1),ROWS($A$5:A10))),"") ->  | B10: =IFERROR(INDEX('يومية الصندوق'!$B$5:$B$1000,SMALL(IF('يومية الصندوق'!$C$5:$C$1000=$D$2,ROW($A$5:$A$1000)-ROW($A$5)+1),ROWS($A$5:B10))),"") ->  | C10: =IFERROR(INDEX('يومية الصندوق'!$D$5:$D$1000,SMALL(IF('يومية الصندوق'!$C$5:$C$1000=$D$2,ROW($A$5:$A$1000)-ROW($A$5)+1),ROWS($A$5:C10))),"") ->  | D10: =IFERROR(INDEX('يومية الصندوق'!$E$5:$E$1000,SMALL(IF('يومية الصندوق'!$C$5:$C$1000=$D$2,ROW($A$5:$A$1000)-ROW($A$5)+1),ROWS($A$5:D10))),"") ->  | E10: =IFERROR(IF(INDEX('يومية الصندوق'!$G$5:$G$1000,SMALL(IF('يومية الصندوق'!$C$5:$C$1000=$D$2,ROW($A$5:$A$1000)-ROW($A$5)+1),ROWS($A$5:E10)))="","",INDEX('يومية الصندوق'!$G$5:$G$1000,SMALL(IF('يومية الصندوق'!$C$5:$C$1000=$D$2,ROW($A$5:$A$1000)-ROW($A$5)+1),ROWS($A$5:E10)))),"") -> 
A11: =IFERROR(INDEX('يومية الصندوق'!$A$5:$A$1000,SMALL(IF('يومية الصندوق'!$C$5:$C$1000=$D$2,ROW($A$5:$A$1000)-ROW($A$5)+1),ROWS($A$5:A11))),"") ->  | B11: =IFERROR(INDEX('يومية الصندوق'!$B$5:$B$1000,SMALL(IF('يومية الصندوق'!$C$5:$C$1000=$D$2,ROW($A$5:$A$1000)-ROW($A$5)+1),ROWS($A$5:B11))),"") ->  | C11: =IFERROR(INDEX('يومية الصندوق'!$D$5:$D$1000,SMALL(IF('يومية الصندوق'!$C$5:$C$1000=$D$2,ROW($A$5:$A$1000)-ROW($A$5)+1),ROWS($A$5:C11))),"") ->  | D11: =IFERROR(INDEX('يومية الصندوق'!$E$5:$E$1000,SMALL(IF('يومية الصندوق'!$C$5:$C$1000=$D$2,ROW($A$5:$A$1000)-ROW($A$5)+1),ROWS($A$5:D11))),"") ->  | E11: =IFERROR(IF(INDEX('يومية الصندوق'!$G$5:$G$1000,SMALL(IF('يومية الصندوق'!$C$5:$C$1000=$D$2,ROW($A$5:$A$1000)-ROW($A$5)+1),ROWS($A$5:E11)))="","",INDEX('يومية الصندوق'!$G$5:$G$1000,SMALL(IF('يومية الصندوق'!$C$5:$C$1000=$D$2,ROW($A$5:$A$1000)-ROW($A$5)+1),ROWS($A$5:E11)))),"") -> 
A12: =IFERROR(INDEX('يومية الصندوق'!$A$5:$A$1000,SMALL(IF('يومية الصندوق'!$C$5:$C$1000=$D$2,ROW($A$5:$A$1000)-ROW($A$5)+1),ROWS($A$5:A12))),"") ->  | B12: =IFERROR(INDEX('يومية الصندوق'!$B$5:$B$1000,SMALL(IF('يومية الصندوق'!$C$5:$C$1000=$D$2,ROW($A$5:$A$1000)-ROW($A$5)+1),ROWS($A$5:B12))),"") ->  | C12: =IFERROR(INDEX('يومية الصندوق'!$D$5:$D$1000,SMALL(IF('يومية الصندوق'!$C$5:$C$1000=$D$2,ROW($A$5:$A$1000)-ROW($A$5)+1),ROWS($A$5:C12))),"") ->  | D12: =IFERROR(INDEX('يومية الصندوق'!$E$5:$E$1000,SMALL(IF('يومية الصندوق'!$C$5:$C$1000=$D$2,ROW($A$5:$A$1000)-ROW($A$5)+1),ROWS($A$5:D12))),"") ->  | E12: =IFERROR(IF(INDEX('يومية الصندوق'!$G$5:$G$1000,SMALL(IF('يومية الصندوق'!$C$5:$C$1000=$D$2,ROW($A$5:$A$1000)-ROW($A$5)+1),ROWS($A$5:E12)))="","",INDEX('يومية الصندوق'!$G$5:$G$1000,SMALL(IF('يومية الصندوق'!$C$5:$C$1000=$D$2,ROW($A$5:$A$1000)-ROW($A$5)+1),ROWS($A$5:E12)))),"") -> 
A13: =IFERROR(INDEX('يومية الصندوق'!$A$5:$A$1000,SMALL(IF('يومية الصندوق'!$C$5:$C$1000=$D$2,ROW($A$5:$A$1000)-ROW($A$5)+1),ROWS($A$5:A13))),"") ->  | B13: =IFERROR(INDEX('يومية الصندوق'!$B$5:$B$1000,SMALL(IF('يومية الصندوق'!$C$5:$C$1000=$D$2,ROW($A$5:$A$1000)-ROW($A$5)+1),ROWS($A$5:B13))),"") ->  | C13: =IFERROR(INDEX('يومية الصندوق'!$D$5:$D$1000,SMALL(IF('يومية الصندوق'!$C$5:$C$1000=$D$2,ROW($A$5:$A$1000)-ROW($A$5)+1),ROWS($A$5:C13))),"") ->  | D13: =IFERROR(INDEX('يومية الصندوق'!$E$5:$E$1000,SMALL(IF('يومية الصندوق'!$C$5:$C$1000=$D$2,ROW($A$5:$A$1000)-ROW($A$5)+1),ROWS($A$5:D13))),"") ->  | E13: =IFERROR(IF(INDEX('يومية الصندوق'!$G$5:$G$1000,SMALL(IF('يومية الصندوق'!$C$5:$C$1000=$D$2,ROW($A$5:$A$1000)-ROW($A$5)+1),ROWS($A$5:E13)))="","",INDEX('يومية الصندوق'!$G$5:$G$1000,SMALL(IF('يومية الصندوق'!$C$5:$C$1000=$D$2,ROW($A$5:$A$1000)-ROW($A$5)+1),ROWS($A$5:E13)))),"") -> 
A14: =IFERROR(INDEX('يومية الصندوق'!$A$5:$A$1000,SMALL(IF('يومية الصندوق'!$C$5:$C$1000=$D$2,ROW($A$5:$A$1000)-ROW($A$5)+1),ROWS($A$5:A14))),"") ->  | B14: =IFERROR(INDEX('يومية الصندوق'!$B$5:$B$1000,SMALL(IF('يومية الصندوق'!$C$5:$C$1000=$D$2,ROW($A$5:$A$1000)-ROW($A$5)+1),ROWS($A$5:B14))),"") ->  | C14: =IFERROR(INDEX('يومية الصندوق'!$D$5:$D$1000,SMALL(IF('يومية الصندوق'!$C$5:$C$1000=$D$2,ROW($A$5:$A$1000)-ROW($A$5)+1),ROWS($A$5:C14))),"") ->  | D14: =IFERROR(INDEX('يومية الصندوق'!$E$5:$E$1000,SMALL(IF('يومية الصندوق'!$C$5:$C$1000=$D$2,ROW($A$5:$A$1000)-ROW($A$5)+1),ROWS($A$5:D14))),"") ->  | E14: =IFERROR(IF(INDEX('يومية الصندوق'!$G$5:$G$1000,SMALL(IF('يومية الصندوق'!$C$5:$C$1000=$D$2,ROW($A$5:$A$1000)-ROW($A$5)+1),ROWS($A$5:E14)))="","",INDEX('يومية الصندوق'!$G$5:$G$1000,SMALL(IF('يومية الصندوق'!$C$5:$C$1000=$D$2,ROW($A$5:$A$1000)-ROW($A$5)+1),ROWS($A$5:E14)))),"") -> 
A15: =IFERROR(INDEX('يومية الصندوق'!$A$5:$A$1000,SMALL(IF('يومية الصندوق'!$C$5:$C$1000=$D$2,ROW($A$5:$A$1000)-ROW($A$5)+1),ROWS($A$5:A15))),"") ->  | B15: =IFERROR(INDEX('يومية الصندوق'!$B$5:$B$1000,SMALL(IF('يومية الصندوق'!$C$5:$C$1000=$D$2,ROW($A$5:$A$1000)-ROW($A$5)+1),ROWS($A$5:B15))),"") ->  | C15: =IFERROR(INDEX('يومية الصندوق'!$D$5:$D$1000,SMALL(IF('يومية الصندوق'!$C$5:$C$1000=$D$2,ROW($A$5:$A$1000)-ROW($A$5)+1),ROWS($A$5:C15))),"") ->  | D15: =IFERROR(INDEX('يومية الصندوق'!$E$5:$E$1000,SMALL(IF('يومية الصندوق'!$C$5:$C$1000=$D$2,ROW($A$5:$A$1000)-ROW($A$5)+1),ROWS($A$5:D15))),"") ->  | E15: =IFERROR(IF(INDEX('يومية الصندوق'!$G$5:$G$1000,SMALL(IF('يومية الصندوق'!$C$5:$C$1000=$D$2,ROW($A$5:$A$1000)-ROW($A$5)+1),ROWS($A$5:E15)))="","",INDEX('يومية الصندوق'!$G$5:$G$1000,SMALL(IF('يومية الصندوق'!$C$5:$C$1000=$D$2,ROW($A$5:$A$1000)-ROW($A$5)+1),ROWS($A$5:E15)))),"") -> 
A16: =IFERROR(INDEX('يومية الصندوق'!$A$5:$A$1000,SMALL(IF('يومية الصندوق'!$C$5:$C$1000=$D$2,ROW($A$5:$A$1000)-ROW($A$5)+1),ROWS($A$5:A16))),"") ->  | B16: =IFERROR(INDEX('يومية الصندوق'!$B$5:$B$1000,SMALL(IF('يومية الصندوق'!$C$5:$C$1000=$D$2,ROW($A$5:$A$1000)-ROW($A$5)+1),ROWS($A$5:B16))),"") ->  | C16: =IFERROR(INDEX('يومية الصندوق'!$D$5:$D$1000,SMALL(IF('يومية الصندوق'!$C$5:$C$1000=$D$2,ROW($A$5:$A$1000)-ROW($A$5)+1),ROWS($A$5:C16))),"") ->  | D16: =IFERROR(INDEX('يومية الصندوق'!$E$5:$E$1000,SMALL(IF('يومية الصندوق'!$C$5:$C$1000=$D$2,ROW($A$5:$A$1000)-ROW($A$5)+1),ROWS($A$5:D16))),"") ->  | E16: =IFERROR(IF(INDEX('يومية الصندوق'!$G$5:$G$1000,SMALL(IF('يومية الصندوق'!$C$5:$C$1000=$D$2,ROW($A$5:$A$1000)-ROW($A$5)+1),ROWS($A$5:E16)))="","",INDEX('يومية الصندوق'!$G$5:$G$1000,SMALL(IF('يومية الصندوق'!$C$5:$C$1000=$D$2,ROW($A$5:$A$1000)-ROW($A$5)+1),ROWS($A$5:E16)))),"") -> 
A17: =IFERROR(INDEX('يومية الصندوق'!$A$5:$A$1000,SMALL(IF('يومية الصندوق'!$C$5:$C$1000=$D$2,ROW($A$5:$A$1000)-ROW($A$5)+1),ROWS($A$5:A17))),"") ->  | B17: =IFERROR(INDEX('يومية الصندوق'!$B$5:$B$1000,SMALL(IF('يومية الصندوق'!$C$5:$C$1000=$D$2,ROW($A$5:$A$1000)-ROW($A$5)+1),ROWS($A$5:B17))),"") ->  | C17: =IFERROR(INDEX('يومية الصندوق'!$D$5:$D$1000,SMALL(IF('يومية الصندوق'!$C$5:$C$1000=$D$2,ROW($A$5:$A$1000)-ROW($A$5)+1),ROWS($A$5:C17))),"") ->  | D17: =IFERROR(INDEX('يومية الصندوق'!$E$5:$E$1000,SMALL(IF('يومية الصندوق'!$C$5:$C$1000=$D$2,ROW($A$5:$A$1000)-ROW($A$5)+1),ROWS($A$5:D17))),"") ->  | E17: =IFERROR(IF(INDEX('يومية الصندوق'!$G$5:$G$1000,SMALL(IF('يومية الصندوق'!$C$5:$C$1000=$D$2,ROW($A$5:$A$1000)-ROW($A$5)+1),ROWS($A$5:E17)))="","",INDEX('يومية الصندوق'!$G$5:$G$1000,SMALL(IF('يومية الصندوق'!$C$5:$C$1000=$D$2,ROW($A$5:$A$1000)-ROW($A$5)+1),ROWS($A$5:E17)))),"") -> 
A18: =IFERROR(INDEX('يومية الصندوق'!$A$5:$A$1000,SMALL(IF('يومية الصندوق'!$C$5:$C$1000=$D$2,ROW($A$5:$A$1000)-ROW($A$5)+1),ROWS($A$5:A18))),"") ->  | B18: =IFERROR(INDEX('يومية الصندوق'!$B$5:$B$1000,SMALL(IF('يومية الصندوق'!$C$5:$C$1000=$D$2,ROW($A$5:$A$1000)-ROW($A$5)+1),ROWS($A$5:B18))),"") ->  | C18: =IFERROR(INDEX('يومية الصندوق'!$D$5:$D$1000,SMALL(IF('يومية الصندوق'!$C$5:$C$1000=$D$2,ROW($A$5:$A$1000)-ROW($A$5)+1),ROWS($A$5:C18))),"") ->  | D18: =IFERROR(INDEX('يومية الصندوق'!$E$5:$E$1000,SMALL(IF('يومية الصندوق'!$C$5:$C$1000=$D$2,ROW($A$5:$A$1000)-ROW($A$5)+1),ROWS($A$5:D18))),"") ->  | E18: =IFERROR(IF(INDEX('يومية الصندوق'!$G$5:$G$1000,SMALL(IF('يومية الصندوق'!$C$5:$C$1000=$D$2,ROW($A$5:$A$1000)-ROW($A$5)+1),ROWS($A$5:E18)))="","",INDEX('يومية الصندوق'!$G$5:$G$1000,SMALL(IF('يومية الصندوق'!$C$5:$C$1000=$D$2,ROW($A$5:$A$1000)-ROW($A$5)+1),ROWS($A$5:E18)))),"") -> 
A19: =IFERROR(INDEX('يومية الصندوق'!$A$5:$A$1000,SMALL(IF('يومية الصندوق'!$C$5:$C$1000=$D$2,ROW($A$5:$A$1000)-ROW($A$5)+1),ROWS($A$5:A19))),"") ->  | B19: =IFERROR(INDEX('يومية الصندوق'!$B$5:$B$1000,SMALL(IF('يومية الصندوق'!$C$5:$C$1000=$D$2,ROW($A$5:$A$1000)-ROW($A$5)+1),ROWS($A$5:B19))),"") ->  | C19: =IFERROR(INDEX('يومية الصندوق'!$D$5:$D$1000,SMALL(IF('يومية الصندوق'!$C$5:$C$1000=$D$2,ROW($A$5:$A$1000)-ROW($A$5)+1),ROWS($A$5:C19))),"") ->  | D19: =IFERROR(INDEX('يومية الصندوق'!$E$5:$E$1000,SMALL(IF('يومية الصندوق'!$C$5:$C$1000=$D$2,ROW($A$5:$A$1000)-ROW($A$5)+1),ROWS($A$5:D19))),"") ->  | E19: =IFERROR(IF(INDEX('يومية الصندوق'!$G$5:$G$1000,SMALL(IF('يومية الصندوق'!$C$5:$C$1000=$D$2,ROW($A$5:$A$1000)-ROW($A$5)+1),ROWS($A$5:E19)))="","",INDEX('يومية الصندوق'!$G$5:$G$1000,SMALL(IF('يومية الصندوق'!$C$5:$C$1000=$D$2,ROW($A$5:$A$1000)-ROW($A$5)+1),ROWS($A$5:E19)))),"") -> 
A20: =IFERROR(INDEX('يومية الصندوق'!$A$5:$A$1000,SMALL(IF('يومية الصندوق'!$C$5:$C$1000=$D$2,ROW($A$5:$A$1000)-ROW($A$5)+1),ROWS($A$5:A20))),"") ->  | B20: =IFERROR(INDEX('يومية الصندوق'!$B$5:$B$1000,SMALL(IF('يومية الصندوق'!$C$5:$C$1000=$D$2,ROW($A$5:$A$1000)-ROW($A$5)+1),ROWS($A$5:B20))),"") ->  | C20: =IFERROR(INDEX('يومية الصندوق'!$D$5:$D$1000,SMALL(IF('يومية الصندوق'!$C$5:$C$1000=$D$2,ROW($A$5:$A$1000)-ROW($A$5)+1),ROWS($A$5:C20))),"") ->  | D20: =IFERROR(INDEX('يومية الصندوق'!$E$5:$E$1000,SMALL(IF('يومية الصندوق'!$C$5:$C$1000=$D$2,ROW($A$5:$A$1000)-ROW($A$5)+1),ROWS($A$5:D20))),"") ->  | E20: =IFERROR(IF(INDEX('يومية الصندوق'!$G$5:$G$1000,SMALL(IF('يومية الصندوق'!$C$5:$C$1000=$D$2,ROW($A$5:$A$1000)-ROW($A$5)+1),ROWS($A$5:E20)))="","",INDEX('يومية الصندوق'!$G$5:$G$1000,SMALL(IF('يومية الصندوق'!$C$5:$C$1000=$D$2,ROW($A$5:$A$1000)-ROW($A$5)+1),ROWS($A$5:E20)))),"") -> 
A21: =IFERROR(INDEX('يومية الصندوق'!$A$5:$A$1000,SMALL(IF('يومية الصندوق'!$C$5:$C$1000=$D$2,ROW($A$5:$A$1000)-ROW($A$5)+1),ROWS($A$5:A21))),"") ->  | B21: =IFERROR(INDEX('يومية الصندوق'!$B$5:$B$1000,SMALL(IF('يومية الصندوق'!$C$5:$C$1000=$D$2,ROW($A$5:$A$1000)-ROW($A$5)+1),ROWS($A$5:B21))),"") ->  | C21: =IFERROR(INDEX('يومية الصندوق'!$D$5:$D$1000,SMALL(IF('يومية الصندوق'!$C$5:$C$1000=$D$2,ROW($A$5:$A$1000)-ROW($A$5)+1),ROWS($A$5:C21))),"") ->  | D21: =IFERROR(INDEX('يومية الصندوق'!$E$5:$E$1000,SMALL(IF('يومية الصندوق'!$C$5:$C$1000=$D$2,ROW($A$5:$A$1000)-ROW($A$5)+1),ROWS($A$5:D21))),"") ->  | E21: =IFERROR(IF(INDEX('يومية الصندوق'!$G$5:$G$1000,SMALL(IF('يومية الصندوق'!$C$5:$C$1000=$D$2,ROW($A$5:$A$1000)-ROW($A$5)+1),ROWS($A$5:E21)))="","",INDEX('يومية الصندوق'!$G$5:$G$1000,SMALL(IF('يومية الصندوق'!$C$5:$C$1000=$D$2,ROW($A$5:$A$1000)-ROW($A$5)+1),ROWS($A$5:E21)))),"") -> 
A22: =IFERROR(INDEX('يومية الصندوق'!$A$5:$A$1000,SMALL(IF('يومية الصندوق'!$C$5:$C$1000=$D$2,ROW($A$5:$A$1000)-ROW($A$5)+1),ROWS($A$5:A22))),"") ->  | B22: =IFERROR(INDEX('يومية الصندوق'!$B$5:$B$1000,SMALL(IF('يومية الصندوق'!$C$5:$C$1000=$D$2,ROW($A$5:$A$1000)-ROW($A$5)+1),ROWS($A$5:B22))),"") ->  | C22: =IFERROR(INDEX('يومية الصندوق'!$D$5:$D$1000,SMALL(IF('يومية الصندوق'!$C$5:$C$1000=$D$2,ROW($A$5:$A$1000)-ROW($A$5)+1),ROWS($A$5:C22))),"") ->  | D22: =IFERROR(INDEX('يومية الصندوق'!$E$5:$E$1000,SMALL(IF('يومية الصندوق'!$C$5:$C$1000=$D$2,ROW($A$5:$A$1000)-ROW($A$5)+1),ROWS($A$5:D22))),"") ->  | E22: =IFERROR(IF(INDEX('يومية الصندوق'!$G$5:$G$1000,SMALL(IF('يومية الصندوق'!$C$5:$C$1000=$D$2,ROW($A$5:$A$1000)-ROW($A$5)+1),ROWS($A$5:E22)))="","",INDEX('يومية الصندوق'!$G$5:$G$1000,SMALL(IF('يومية الصندوق'!$C$5:$C$1000=$D$2,ROW($A$5:$A$1000)-ROW($A$5)+1),ROWS($A$5:E22)))),"") -> 
A23: =IFERROR(INDEX('يومية الصندوق'!$A$5:$A$1000,SMALL(IF('يومية الصندوق'!$C$5:$C$1000=$D$2,ROW($A$5:$A$1000)-ROW($A$5)+1),ROWS($A$5:A23))),"") ->  | B23: =IFERROR(INDEX('يومية الصندوق'!$B$5:$B$1000,SMALL(IF('يومية الصندوق'!$C$5:$C$1000=$D$2,ROW($A$5:$A$1000)-ROW($A$5)+1),ROWS($A$5:B23))),"") ->  | C23: =IFERROR(INDEX('يومية الصندوق'!$D$5:$D$1000,SMALL(IF('يومية الصندوق'!$C$5:$C$1000=$D$2,ROW($A$5:$A$1000)-ROW($A$5)+1),ROWS($A$5:C23))),"") ->  | D23: =IFERROR(INDEX('يومية الصندوق'!$E$5:$E$1000,SMALL(IF('يومية الصندوق'!$C$5:$C$1000=$D$2,ROW($A$5:$A$1000)-ROW($A$5)+1),ROWS($A$5:D23))),"") ->  | E23: =IFERROR(IF(INDEX('يومية الصندوق'!$G$5:$G$1000,SMALL(IF('يومية الصندوق'!$C$5:$C$1000=$D$2,ROW($A$5:$A$1000)-ROW($A$5)+1),ROWS($A$5:E23)))="","",INDEX('يومية الصندوق'!$G$5:$G$1000,SMALL(IF('يومية الصندوق'!$C$5:$C$1000=$D$2,ROW($A$5:$A$1000)-ROW($A$5)+1),ROWS($A$5:E23)))),"") -> 
A24: =IFERROR(INDEX('يومية الصندوق'!$A$5:$A$1000,SMALL(IF('يومية الصندوق'!$C$5:$C$1000=$D$2,ROW($A$5:$A$1000)-ROW($A$5)+1),ROWS($A$5:A24))),"") ->  | B24: =IFERROR(INDEX('يومية الصندوق'!$B$5:$B$1000,SMALL(IF('يومية الصندوق'!$C$5:$C$1000=$D$2,ROW($A$5:$A$1000)-ROW($A$5)+1),ROWS($A$5:B24))),"") ->  | C24: =IFERROR(INDEX('يومية الصندوق'!$D$5:$D$1000,SMALL(IF('يومية الصندوق'!$C$5:$C$1000=$D$2,ROW($A$5:$A$1000)-ROW($A$5)+1),ROWS($A$5:C24))),"") ->  | D24: =IFERROR(INDEX('يومية الصندوق'!$E$5:$E$1000,SMALL(IF('يومية الصندوق'!$C$5:$C$1000=$D$2,ROW($A$5:$A$1000)-ROW($A$5)+1),ROWS($A$5:D24))),"") ->  | E24: =IFERROR(IF(INDEX('يومية الصندوق'!$G$5:$G$1000,SMALL(IF('يومية الصندوق'!$C$5:$C$1000=$D$2,ROW($A$5:$A$1000)-ROW($A$5)+1),ROWS($A$5:E24)))="","",INDEX('يومية الصندوق'!$G$5:$G$1000,SMALL(IF('يومية الصندوق'!$C$5:$C$1000=$D$2,ROW($A$5:$A$1000)-ROW($A$5)+1),ROWS($A$5:E24)))),"") -> 
A25: =IFERROR(INDEX('يومية الصندوق'!$A$5:$A$1000,SMALL(IF('يومية الصندوق'!$C$5:$C$1000=$D$2,ROW($A$5:$A$1000)-ROW($A$5)+1),ROWS($A$5:A25))),"") ->  | B25: =IFERROR(INDEX('يومية الصندوق'!$B$5:$B$1000,SMALL(IF('يومية الصندوق'!$C$5:$C$1000=$D$2,ROW($A$5:$A$1000)-ROW($A$5)+1),ROWS($A$5:B25))),"") ->  | C25: =IFERROR(INDEX('يومية الصندوق'!$D$5:$D$1000,SMALL(IF('يومية الصندوق'!$C$5:$C$1000=$D$2,ROW($A$5:$A$1000)-ROW($A$5)+1),ROWS($A$5:C25))),"") ->  | D25: =IFERROR(INDEX('يومية الصندوق'!$E$5:$E$1000,SMALL(IF('يومية الصندوق'!$C$5:$C$1000=$D$2,ROW($A$5:$A$1000)-ROW($A$5)+1),ROWS($A$5:D25))),"") ->  | E25: =IFERROR(IF(INDEX('يومية الصندوق'!$G$5:$G$1000,SMALL(IF('يومية الصندوق'!$C$5:$C$1000=$D$2,ROW($A$5:$A$1000)-ROW($A$5)+1),ROWS($A$5:E25)))="","",INDEX('يومية الصندوق'!$G$5:$G$1000,SMALL(IF('يومية الصندوق'!$C$5:$C$1000=$D$2,ROW($A$5:$A$1000)-ROW($A$5)+1),ROWS($A$5:E25)))),"") -> 
A26: =IFERROR(INDEX('يومية الصندوق'!$A$5:$A$1000,SMALL(IF('يومية الصندوق'!$C$5:$C$1000=$D$2,ROW($A$5:$A$1000)-ROW($A$5)+1),ROWS($A$5:A26))),"") ->  | B26: =IFERROR(INDEX('يومية الصندوق'!$B$5:$B$1000,SMALL(IF('يومية الصندوق'!$C$5:$C$1000=$D$2,ROW($A$5:$A$1000)-ROW($A$5)+1),ROWS($A$5:B26))),"") ->  | C26: =IFERROR(INDEX('يومية الصندوق'!$D$5:$D$1000,SMALL(IF('يومية الصندوق'!$C$5:$C$1000=$D$2,ROW($A$5:$A$1000)-ROW($A$5)+1),ROWS($A$5:C26))),"") ->  | D26: =IFERROR(INDEX('يومية الصندوق'!$E$5:$E$1000,SMALL(IF('يومية الصندوق'!$C$5:$C$1000=$D$2,ROW($A$5:$A$1000)-ROW($A$5)+1),ROWS($A$5:D26))),"") ->  | E26: =IFERROR(IF(INDEX('يومية الصندوق'!$G$5:$G$1000,SMALL(IF('يومية الصندوق'!$C$5:$C$1000=$D$2,ROW($A$5:$A$1000)-ROW($A$5)+1),ROWS($A$5:E26)))="","",INDEX('يومية الصندوق'!$G$5:$G$1000,SMALL(IF('يومية الصندوق'!$C$5:$C$1000=$D$2,ROW($A$5:$A$1000)-ROW($A$5)+1),ROWS($A$5:E26)))),"") -> 
A27: =IFERROR(INDEX('يومية الصندوق'!$A$5:$A$1000,SMALL(IF('يومية الصندوق'!$C$5:$C$1000=$D$2,ROW($A$5:$A$1000)-ROW($A$5)+1),ROWS($A$5:A27))),"") ->  | B27: =IFERROR(INDEX('يومية الصندوق'!$B$5:$B$1000,SMALL(IF('يومية الصندوق'!$C$5:$C$1000=$D$2,ROW($A$5:$A$1000)-ROW($A$5)+1),ROWS($A$5:B27))),"") ->  | C27: =IFERROR(INDEX('يومية الصندوق'!$D$5:$D$1000,SMALL(IF('يومية الصندوق'!$C$5:$C$1000=$D$2,ROW($A$5:$A$1000)-ROW($A$5)+1),ROWS($A$5:C27))),"") ->  | D27: =IFERROR(INDEX('يومية الصندوق'!$E$5:$E$1000,SMALL(IF('يومية الصندوق'!$C$5:$C$1000=$D$2,ROW($A$5:$A$1000)-ROW($A$5)+1),ROWS($A$5:D27))),"") ->  | E27: =IFERROR(IF(INDEX('يومية الصندوق'!$G$5:$G$1000,SMALL(IF('يومية الصندوق'!$C$5:$C$1000=$D$2,ROW($A$5:$A$1000)-ROW($A$5)+1),ROWS($A$5:E27)))="","",INDEX('يومية الصندوق'!$G$5:$G$1000,SMALL(IF('يومية الصندوق'!$C$5:$C$1000=$D$2,ROW($A$5:$A$1000)-ROW($A$5)+1),ROWS($A$5:E27)))),"") -> 
A28: =IFERROR(INDEX('يومية الصندوق'!$A$5:$A$1000,SMALL(IF('يومية الصندوق'!$C$5:$C$1000=$D$2,ROW($A$5:$A$1000)-ROW($A$5)+1),ROWS($A$5:A28))),"") ->  | B28: =IFERROR(INDEX('يومية الصندوق'!$B$5:$B$1000,SMALL(IF('يومية الصندوق'!$C$5:$C$1000=$D$2,ROW($A$5:$A$1000)-ROW($A$5)+1),ROWS($A$5:B28))),"") ->  | C28: =IFERROR(INDEX('يومية الصندوق'!$D$5:$D$1000,SMALL(IF('يومية الصندوق'!$C$5:$C$1000=$D$2,ROW($A$5:$A$1000)-ROW($A$5)+1),ROWS($A$5:C28))),"") ->  | D28: =IFERROR(INDEX('يومية الصندوق'!$E$5:$E$1000,SMALL(IF('يومية الصندوق'!$C$5:$C$1000=$D$2,ROW($A$5:$A$1000)-ROW($A$5)+1),ROWS($A$5:D28))),"") ->  | E28: =IFERROR(IF(INDEX('يومية الصندوق'!$G$5:$G$1000,SMALL(IF('يومية الصندوق'!$C$5:$C$1000=$D$2,ROW($A$5:$A$1000)-ROW($A$5)+1),ROWS($A$5:E28)))="","",INDEX('يومية الصندوق'!$G$5:$G$1000,SMALL(IF('يومية الصندوق'!$C$5:$C$1000=$D$2,ROW($A$5:$A$1000)-ROW($A$5)+1),ROWS($A$5:E28)))),"") -> 
A29: =IFERROR(INDEX('يومية الصندوق'!$A$5:$A$1000,SMALL(IF('يومية الصندوق'!$C$5:$C$1000=$D$2,ROW($A$5:$A$1000)-ROW($A$5)+1),ROWS($A$5:A29))),"") ->  | B29: =IFERROR(INDEX('يومية الصندوق'!$B$5:$B$1000,SMALL(IF('يومية الصندوق'!$C$5:$C$1000=$D$2,ROW($A$5:$A$1000)-ROW($A$5)+1),ROWS($A$5:B29))),"") ->  | C29: =IFERROR(INDEX('يومية الصندوق'!$D$5:$D$1000,SMALL(IF('يومية الصندوق'!$C$5:$C$1000=$D$2,ROW($A$5:$A$1000)-ROW($A$5)+1),ROWS($A$5:C29))),"") ->  | D29: =IFERROR(INDEX('يومية الصندوق'!$E$5:$E$1000,SMALL(IF('يومية الصندوق'!$C$5:$C$1000=$D$2,ROW($A$5:$A$1000)-ROW($A$5)+1),ROWS($A$5:D29))),"") ->  | E29: =IFERROR(IF(INDEX('يومية الصندوق'!$G$5:$G$1000,SMALL(IF('يومية الصندوق'!$C$5:$C$1000=$D$2,ROW($A$5:$A$1000)-ROW($A$5)+1),ROWS($A$5:E29)))="","",INDEX('يومية الصندوق'!$G$5:$G$1000,SMALL(IF('يومية الصندوق'!$C$5:$C$1000=$D$2,ROW($A$5:$A$1000)-ROW($A$5)+1),ROWS($A$5:E29)))),"") -> 
A30: =IFERROR(INDEX('يومية الصندوق'!$A$5:$A$1000,SMALL(IF('يومية الصندوق'!$C$5:$C$1000=$D$2,ROW($A$5:$A$1000)-ROW($A$5)+1),ROWS($A$5:A30))),"") ->  | B30: =IFERROR(INDEX('يومية الصندوق'!$B$5:$B$1000,SMALL(IF('يومية الصندوق'!$C$5:$C$1000=$D$2,ROW($A$5:$A$1000)-ROW($A$5)+1),ROWS($A$5:B30))),"") ->  | C30: =IFERROR(INDEX('يومية الصندوق'!$D$5:$D$1000,SMALL(IF('يومية الصندوق'!$C$5:$C$1000=$D$2,ROW($A$5:$A$1000)-ROW($A$5)+1),ROWS($A$5:C30))),"") ->  | D30: =IFERROR(INDEX('يومية الصندوق'!$E$5:$E$1000,SMALL(IF('يومية الصندوق'!$C$5:$C$1000=$D$2,ROW($A$5:$A$1000)-ROW($A$5)+1),ROWS($A$5:D30))),"") ->  | E30: =IFERROR(IF(INDEX('يومية الصندوق'!$G$5:$G$1000,SMALL(IF('يومية الصندوق'!$C$5:$C$1000=$D$2,ROW($A$5:$A$1000)-ROW($A$5)+1),ROWS($A$5:E30)))="","",INDEX('يومية الصندوق'!$G$5:$G$1000,SMALL(IF('يومية الصندوق'!$C$5:$C$1000=$D$2,ROW($A$5:$A$1000)-ROW($A$5)+1),ROWS($A$5:E30)))),"") -> 
A31: =IFERROR(INDEX('يومية الصندوق'!$A$5:$A$1000,SMALL(IF('يومية الصندوق'!$C$5:$C$1000=$D$2,ROW($A$5:$A$1000)-ROW($A$5)+1),ROWS($A$5:A31))),"") ->  | B31: =IFERROR(INDEX('يومية الصندوق'!$B$5:$B$1000,SMALL(IF('يومية الصندوق'!$C$5:$C$1000=$D$2,ROW($A$5:$A$1000)-ROW($A$5)+1),ROWS($A$5:B31))),"") ->  | C31: =IFERROR(INDEX('يومية الصندوق'!$D$5:$D$1000,SMALL(IF('يومية الصندوق'!$C$5:$C$1000=$D$2,ROW($A$5:$A$1000)-ROW($A$5)+1),ROWS($A$5:C31))),"") ->  | D31: =IFERROR(INDEX('يومية الصندوق'!$E$5:$E$1000,SMALL(IF('يومية الصندوق'!$C$5:$C$1000=$D$2,ROW($A$5:$A$1000)-ROW($A$5)+1),ROWS($A$5:D31))),"") ->  | E31: =IFERROR(IF(INDEX('يومية الصندوق'!$G$5:$G$1000,SMALL(IF('يومية الصندوق'!$C$5:$C$1000=$D$2,ROW($A$5:$A$1000)-ROW($A$5)+1),ROWS($A$5:E31)))="","",INDEX('يومية الصندوق'!$G$5:$G$1000,SMALL(IF('يومية الصندوق'!$C$5:$C$1000=$D$2,ROW($A$5:$A$1000)-ROW($A$5)+1),ROWS($A$5:E31)))),"") -> 
A32: =IFERROR(INDEX('يومية الصندوق'!$A$5:$A$1000,SMALL(IF('يومية الصندوق'!$C$5:$C$1000=$D$2,ROW($A$5:$A$1000)-ROW($A$5)+1),ROWS($A$5:A32))),"") ->  | B32: =IFERROR(INDEX('يومية الصندوق'!$B$5:$B$1000,SMALL(IF('يومية الصندوق'!$C$5:$C$1000=$D$2,ROW($A$5:$A$1000)-ROW($A$5)+1),ROWS($A$5:B32))),"") ->  | C32: =IFERROR(INDEX('يومية الصندوق'!$D$5:$D$1000,SMALL(IF('يومية الصندوق'!$C$5:$C$1000=$D$2,ROW($A$5:$A$1000)-ROW($A$5)+1),ROWS($A$5:C32))),"") ->  | D32: =IFERROR(INDEX('يومية الصندوق'!$E$5:$E$1000,SMALL(IF('يومية الصندوق'!$C$5:$C$1000=$D$2,ROW($A$5:$A$1000)-ROW($A$5)+1),ROWS($A$5:D32))),"") ->  | E32: =IFERROR(IF(INDEX('يومية الصندوق'!$G$5:$G$1000,SMALL(IF('يومية الصندوق'!$C$5:$C$1000=$D$2,ROW($A$5:$A$1000)-ROW($A$5)+1),ROWS($A$5:E32)))="","",INDEX('يومية الصندوق'!$G$5:$G$1000,SMALL(IF('يومية الصندوق'!$C$5:$C$1000=$D$2,ROW($A$5:$A$1000)-ROW($A$5)+1),ROWS($A$5:E32)))),"") -> 
A33: =IFERROR(INDEX('يومية الصندوق'!$A$5:$A$1000,SMALL(IF('يومية الصندوق'!$C$5:$C$1000=$D$2,ROW($A$5:$A$1000)-ROW($A$5)+1),ROWS($A$5:A33))),"") ->  | B33: =IFERROR(INDEX('يومية الصندوق'!$B$5:$B$1000,SMALL(IF('يومية الصندوق'!$C$5:$C$1000=$D$2,ROW($A$5:$A$1000)-ROW($A$5)+1),ROWS($A$5:B33))),"") ->  | C33: =IFERROR(INDEX('يومية الصندوق'!$D$5:$D$1000,SMALL(IF('يومية الصندوق'!$C$5:$C$1000=$D$2,ROW($A$5:$A$1000)-ROW($A$5)+1),ROWS($A$5:C33))),"") ->  | D33: =IFERROR(INDEX('يومية الصندوق'!$E$5:$E$1000,SMALL(IF('يومية الصندوق'!$C$5:$C$1000=$D$2,ROW($A$5:$A$1000)-ROW($A$5)+1),ROWS($A$5:D33))),"") ->  | E33: =IFERROR(IF(INDEX('يومية الصندوق'!$G$5:$G$1000,SMALL(IF('يومية الصندوق'!$C$5:$C$1000=$D$2,ROW($A$5:$A$1000)-ROW($A$5)+1),ROWS($A$5:E33)))="","",INDEX('يومية الصندوق'!$G$5:$G$1000,SMALL(IF('يومية الصندوق'!$C$5:$C$1000=$D$2,ROW($A$5:$A$1000)-ROW($A$5)+1),ROWS($A$5:E33)))),"") -> 
A34: =IFERROR(INDEX('يومية الصندوق'!$A$5:$A$1000,SMALL(IF('يومية الصندوق'!$C$5:$C$1000=$D$2,ROW($A$5:$A$1000)-ROW($A$5)+1),ROWS($A$5:A34))),"") ->  | B34: =IFERROR(INDEX('يومية الصندوق'!$B$5:$B$1000,SMALL(IF('يومية الصندوق'!$C$5:$C$1000=$D$2,ROW($A$5:$A$1000)-ROW($A$5)+1),ROWS($A$5:B34))),"") ->  | C34: =IFERROR(INDEX('يومية الصندوق'!$D$5:$D$1000,SMALL(IF('يومية الصندوق'!$C$5:$C$1000=$D$2,ROW($A$5:$A$1000)-ROW($A$5)+1),ROWS($A$5:C34))),"") ->  | D34: =IFERROR(INDEX('يومية الصندوق'!$E$5:$E$1000,SMALL(IF('يومية الصندوق'!$C$5:$C$1000=$D$2,ROW($A$5:$A$1000)-ROW($A$5)+1),ROWS($A$5:D34))),"") ->  | E34: =IFERROR(IF(INDEX('يومية الصندوق'!$G$5:$G$1000,SMALL(IF('يومية الصندوق'!$C$5:$C$1000=$D$2,ROW($A$5:$A$1000)-ROW($A$5)+1),ROWS($A$5:E34)))="","",INDEX('يومية الصندوق'!$G$5:$G$1000,SMALL(IF('يومية الصندوق'!$C$5:$C$1000=$D$2,ROW($A$5:$A$1000)-ROW($A$5)+1),ROWS($A$5:E34)))),"") -> 
A35: =IFERROR(INDEX('يومية الصندوق'!$A$5:$A$1000,SMALL(IF('يومية الصندوق'!$C$5:$C$1000=$D$2,ROW($A$5:$A$1000)-ROW($A$5)+1),ROWS($A$5:A35))),"") ->  | B35: =IFERROR(INDEX('يومية الصندوق'!$B$5:$B$1000,SMALL(IF('يومية الصندوق'!$C$5:$C$1000=$D$2,ROW($A$5:$A$1000)-ROW($A$5)+1),ROWS($A$5:B35))),"") ->  | C35: =IFERROR(INDEX('يومية الصندوق'!$D$5:$D$1000,SMALL(IF('يومية الصندوق'!$C$5:$C$1000=$D$2,ROW($A$5:$A$1000)-ROW($A$5)+1),ROWS($A$5:C35))),"") ->  | D35: =IFERROR(INDEX('يومية الصندوق'!$E$5:$E$1000,SMALL(IF('يومية الصندوق'!$C$5:$C$1000=$D$2,ROW($A$5:$A$1000)-ROW($A$5)+1),ROWS($A$5:D35))),"") ->  | E35: =IFERROR(IF(INDEX('يومية الصندوق'!$G$5:$G$1000,SMALL(IF('يومية الصندوق'!$C$5:$C$1000=$D$2,ROW($A$5:$A$1000)-ROW($A$5)+1),ROWS($A$5:E35)))="","",INDEX('يومية الصندوق'!$G$5:$G$1000,SMALL(IF('يومية الصندوق'!$C$5:$C$1000=$D$2,ROW($A$5:$A$1000)-ROW($A$5)+1),ROWS($A$5:E35)))),"") -> 
A36: =IFERROR(INDEX('يومية الصندوق'!$A$5:$A$1000,SMALL(IF('يومية الصندوق'!$C$5:$C$1000=$D$2,ROW($A$5:$A$1000)-ROW($A$5)+1),ROWS($A$5:A36))),"") ->  | B36: =IFERROR(INDEX('يومية الصندوق'!$B$5:$B$1000,SMALL(IF('يومية الصندوق'!$C$5:$C$1000=$D$2,ROW($A$5:$A$1000)-ROW($A$5)+1),ROWS($A$5:B36))),"") ->  | C36: =IFERROR(INDEX('يومية الصندوق'!$D$5:$D$1000,SMALL(IF('يومية الصندوق'!$C$5:$C$1000=$D$2,ROW($A$5:$A$1000)-ROW($A$5)+1),ROWS($A$5:C36))),"") ->  | D36: =IFERROR(INDEX('يومية الصندوق'!$E$5:$E$1000,SMALL(IF('يومية الصندوق'!$C$5:$C$1000=$D$2,ROW($A$5:$A$1000)-ROW($A$5)+1),ROWS($A$5:D36))),"") ->  | E36: =IFERROR(IF(INDEX('يومية الصندوق'!$G$5:$G$1000,SMALL(IF('يومية الصندوق'!$C$5:$C$1000=$D$2,ROW($A$5:$A$1000)-ROW($A$5)+1),ROWS($A$5:E36)))="","",INDEX('يومية الصندوق'!$G$5:$G$1000,SMALL(IF('يومية الصندوق'!$C$5:$C$1000=$D$2,ROW($A$5:$A$1000)-ROW($A$5)+1),ROWS($A$5:E36)))),"") -> 
A37: =IFERROR(INDEX('يومية الصندوق'!$A$5:$A$1000,SMALL(IF('يومية الصندوق'!$C$5:$C$1000=$D$2,ROW($A$5:$A$1000)-ROW($A$5)+1),ROWS($A$5:A37))),"") ->  | B37: =IFERROR(INDEX('يومية الصندوق'!$B$5:$B$1000,SMALL(IF('يومية الصندوق'!$C$5:$C$1000=$D$2,ROW($A$5:$A$1000)-ROW($A$5)+1),ROWS($A$5:B37))),"") ->  | C37: =IFERROR(INDEX('يومية الصندوق'!$D$5:$D$1000,SMALL(IF('يومية الصندوق'!$C$5:$C$1000=$D$2,ROW($A$5:$A$1000)-ROW($A$5)+1),ROWS($A$5:C37))),"") ->  | D37: =IFERROR(INDEX('يومية الصندوق'!$E$5:$E$1000,SMALL(IF('يومية الصندوق'!$C$5:$C$1000=$D$2,ROW($A$5:$A$1000)-ROW($A$5)+1),ROWS($A$5:D37))),"") ->  | E37: =IFERROR(IF(INDEX('يومية الصندوق'!$G$5:$G$1000,SMALL(IF('يومية الصندوق'!$C$5:$C$1000=$D$2,ROW($A$5:$A$1000)-ROW($A$5)+1),ROWS($A$5:E37)))="","",INDEX('يومية الصندوق'!$G$5:$G$1000,SMALL(IF('يومية الصندوق'!$C$5:$C$1000=$D$2,ROW($A$5:$A$1000)-ROW($A$5)+1),ROWS($A$5:E37)))),"") -> 
A38: =IFERROR(INDEX('يومية الصندوق'!$A$5:$A$1000,SMALL(IF('يومية الصندوق'!$C$5:$C$1000=$D$2,ROW($A$5:$A$1000)-ROW($A$5)+1),ROWS($A$5:A38))),"") ->  | B38: =IFERROR(INDEX('يومية الصندوق'!$B$5:$B$1000,SMALL(IF('يومية الصندوق'!$C$5:$C$1000=$D$2,ROW($A$5:$A$1000)-ROW($A$5)+1),ROWS($A$5:B38))),"") ->  | C38: =IFERROR(INDEX('يومية الصندوق'!$D$5:$D$1000,SMALL(IF('يومية الصندوق'!$C$5:$C$1000=$D$2,ROW($A$5:$A$1000)-ROW($A$5)+1),ROWS($A$5:C38))),"") ->  | D38: =IFERROR(INDEX('يومية الصندوق'!$E$5:$E$1000,SMALL(IF('يومية الصندوق'!$C$5:$C$1000=$D$2,ROW($A$5:$A$1000)-ROW($A$5)+1),ROWS($A$5:D38))),"") ->  | E38: =IFERROR(IF(INDEX('يومية الصندوق'!$G$5:$G$1000,SMALL(IF('يومية الصندوق'!$C$5:$C$1000=$D$2,ROW($A$5:$A$1000)-ROW($A$5)+1),ROWS($A$5:E38)))="","",INDEX('يومية الصندوق'!$G$5:$G$1000,SMALL(IF('يومية الصندوق'!$C$5:$C$1000=$D$2,ROW($A$5:$A$1000)-ROW($A$5)+1),ROWS($A$5:E38)))),"") -> 
A39: =IFERROR(INDEX('يومية الصندوق'!$A$5:$A$1000,SMALL(IF('يومية الصندوق'!$C$5:$C$1000=$D$2,ROW($A$5:$A$1000)-ROW($A$5)+1),ROWS($A$5:A39))),"") ->  | B39: =IFERROR(INDEX('يومية الصندوق'!$B$5:$B$1000,SMALL(IF('يومية الصندوق'!$C$5:$C$1000=$D$2,ROW($A$5:$A$1000)-ROW($A$5)+1),ROWS($A$5:B39))),"") ->  | C39: =IFERROR(INDEX('يومية الصندوق'!$D$5:$D$1000,SMALL(IF('يومية الصندوق'!$C$5:$C$1000=$D$2,ROW($A$5:$A$1000)-ROW($A$5)+1),ROWS($A$5:C39))),"") ->  | D39: =IFERROR(INDEX('يومية الصندوق'!$E$5:$E$1000,SMALL(IF('يومية الصندوق'!$C$5:$C$1000=$D$2,ROW($A$5:$A$1000)-ROW($A$5)+1),ROWS($A$5:D39))),"") ->  | E39: =IFERROR(IF(INDEX('يومية الصندوق'!$G$5:$G$1000,SMALL(IF('يومية الصندوق'!$C$5:$C$1000=$D$2,ROW($A$5:$A$1000)-ROW($A$5)+1),ROWS($A$5:E39)))="","",INDEX('يومية الصندوق'!$G$5:$G$1000,SMALL(IF('يومية الصندوق'!$C$5:$C$1000=$D$2,ROW($A$5:$A$1000)-ROW($A$5)+1),ROWS($A$5:E39)))),"") -> 
A40: =IFERROR(INDEX('يومية الصندوق'!$A$5:$A$1000,SMALL(IF('يومية الصندوق'!$C$5:$C$1000=$D$2,ROW($A$5:$A$1000)-ROW($A$5)+1),ROWS($A$5:A40))),"") ->  | B40: =IFERROR(INDEX('يومية الصندوق'!$B$5:$B$1000,SMALL(IF('يومية الصندوق'!$C$5:$C$1000=$D$2,ROW($A$5:$A$1000)-ROW($A$5)+1),ROWS($A$5:B40))),"") ->  | C40: =IFERROR(INDEX('يومية الصندوق'!$D$5:$D$1000,SMALL(IF('يومية الصندوق'!$C$5:$C$1000=$D$2,ROW($A$5:$A$1000)-ROW($A$5)+1),ROWS($A$5:C40))),"") ->  | D40: =IFERROR(INDEX('يومية الصندوق'!$E$5:$E$1000,SMALL(IF('يومية الصندوق'!$C$5:$C$1000=$D$2,ROW($A$5:$A$1000)-ROW($A$5)+1),ROWS($A$5:D40))),"") ->  | E40: =IFERROR(IF(INDEX('يومية الصندوق'!$G$5:$G$1000,SMALL(IF('يومية الصندوق'!$C$5:$C$1000=$D$2,ROW($A$5:$A$1000)-ROW($A$5)+1),ROWS($A$5:E40)))="","",INDEX('يومية الصندوق'!$G$5:$G$1000,SMALL(IF('يومية الصندوق'!$C$5:$C$1000=$D$2,ROW($A$5:$A$1000)-ROW($A$5)+1),ROWS($A$5:E40)))),"") -> 
A41: =IFERROR(INDEX('يومية الصندوق'!$A$5:$A$1000,SMALL(IF('يومية الصندوق'!$C$5:$C$1000=$D$2,ROW($A$5:$A$1000)-ROW($A$5)+1),ROWS($A$5:A41))),"") ->  | B41: =IFERROR(INDEX('يومية الصندوق'!$B$5:$B$1000,SMALL(IF('يومية الصندوق'!$C$5:$C$1000=$D$2,ROW($A$5:$A$1000)-ROW($A$5)+1),ROWS($A$5:B41))),"") ->  | C41: =IFERROR(INDEX('يومية الصندوق'!$D$5:$D$1000,SMALL(IF('يومية الصندوق'!$C$5:$C$1000=$D$2,ROW($A$5:$A$1000)-ROW($A$5)+1),ROWS($A$5:C41))),"") ->  | D41: =IFERROR(INDEX('يومية الصندوق'!$E$5:$E$1000,SMALL(IF('يومية الصندوق'!$C$5:$C$1000=$D$2,ROW($A$5:$A$1000)-ROW($A$5)+1),ROWS($A$5:D41))),"") ->  | E41: =IFERROR(IF(INDEX('يومية الصندوق'!$G$5:$G$1000,SMALL(IF('يومية الصندوق'!$C$5:$C$1000=$D$2,ROW($A$5:$A$1000)-ROW($A$5)+1),ROWS($A$5:E41)))="","",INDEX('يومية الصندوق'!$G$5:$G$1000,SMALL(IF('يومية الصندوق'!$C$5:$C$1000=$D$2,ROW($A$5:$A$1000)-ROW($A$5)+1),ROWS($A$5:E41)))),"") -> 
A42: =IFERROR(INDEX('يومية الصندوق'!$A$5:$A$1000,SMALL(IF('يومية الصندوق'!$C$5:$C$1000=$D$2,ROW($A$5:$A$1000)-ROW($A$5)+1),ROWS($A$5:A42))),"") ->  | B42: =IFERROR(INDEX('يومية الصندوق'!$B$5:$B$1000,SMALL(IF('يومية الصندوق'!$C$5:$C$1000=$D$2,ROW($A$5:$A$1000)-ROW($A$5)+1),ROWS($A$5:B42))),"") ->  | C42: =IFERROR(INDEX('يومية الصندوق'!$D$5:$D$1000,SMALL(IF('يومية الصندوق'!$C$5:$C$1000=$D$2,ROW($A$5:$A$1000)-ROW($A$5)+1),ROWS($A$5:C42))),"") ->  | D42: =IFERROR(INDEX('يومية الصندوق'!$E$5:$E$1000,SMALL(IF('يومية الصندوق'!$C$5:$C$1000=$D$2,ROW($A$5:$A$1000)-ROW($A$5)+1),ROWS($A$5:D42))),"") ->  | E42: =IFERROR(IF(INDEX('يومية الصندوق'!$G$5:$G$1000,SMALL(IF('يومية الصندوق'!$C$5:$C$1000=$D$2,ROW($A$5:$A$1000)-ROW($A$5)+1),ROWS($A$5:E42)))="","",INDEX('يومية الصندوق'!$G$5:$G$1000,SMALL(IF('يومية الصندوق'!$C$5:$C$1000=$D$2,ROW($A$5:$A$1000)-ROW($A$5)+1),ROWS($A$5:E42)))),"") -> 
A43: =IFERROR(INDEX('يومية الصندوق'!$A$5:$A$1000,SMALL(IF('يومية الصندوق'!$C$5:$C$1000=$D$2,ROW($A$5:$A$1000)-ROW($A$5)+1),ROWS($A$5:A43))),"") ->  | B43: =IFERROR(INDEX('يومية الصندوق'!$B$5:$B$1000,SMALL(IF('يومية الصندوق'!$C$5:$C$1000=$D$2,ROW($A$5:$A$1000)-ROW($A$5)+1),ROWS($A$5:B43))),"") ->  | C43: =IFERROR(INDEX('يومية الصندوق'!$D$5:$D$1000,SMALL(IF('يومية الصندوق'!$C$5:$C$1000=$D$2,ROW($A$5:$A$1000)-ROW($A$5)+1),ROWS($A$5:C43))),"") ->  | D43: =IFERROR(INDEX('يومية الصندوق'!$E$5:$E$1000,SMALL(IF('يومية الصندوق'!$C$5:$C$1000=$D$2,ROW($A$5:$A$1000)-ROW($A$5)+1),ROWS($A$5:D43))),"") ->  | E43: =IFERROR(IF(INDEX('يومية الصندوق'!$G$5:$G$1000,SMALL(IF('يومية الصندوق'!$C$5:$C$1000=$D$2,ROW($A$5:$A$1000)-ROW($A$5)+1),ROWS($A$5:E43)))="","",INDEX('يومية الصندوق'!$G$5:$G$1000,SMALL(IF('يومية الصندوق'!$C$5:$C$1000=$D$2,ROW($A$5:$A$1000)-ROW($A$5)+1),ROWS($A$5:E43)))),"") -> 
A44: =IFERROR(INDEX('يومية الصندوق'!$A$5:$A$1000,SMALL(IF('يومية الصندوق'!$C$5:$C$1000=$D$2,ROW($A$5:$A$1000)-ROW($A$5)+1),ROWS($A$5:A44))),"") ->  | B44: =IFERROR(INDEX('يومية الصندوق'!$B$5:$B$1000,SMALL(IF('يومية الصندوق'!$C$5:$C$1000=$D$2,ROW($A$5:$A$1000)-ROW($A$5)+1),ROWS($A$5:B44))),"") ->  | C44: =IFERROR(INDEX('يومية الصندوق'!$D$5:$D$1000,SMALL(IF('يومية الصندوق'!$C$5:$C$1000=$D$2,ROW($A$5:$A$1000)-ROW($A$5)+1),ROWS($A$5:C44))),"") ->  | D44: =IFERROR(INDEX('يومية الصندوق'!$E$5:$E$1000,SMALL(IF('يومية الصندوق'!$C$5:$C$1000=$D$2,ROW($A$5:$A$1000)-ROW($A$5)+1),ROWS($A$5:D44))),"") ->  | E44: =IFERROR(IF(INDEX('يومية الصندوق'!$G$5:$G$1000,SMALL(IF('يومية الصندوق'!$C$5:$C$1000=$D$2,ROW($A$5:$A$1000)-ROW($A$5)+1),ROWS($A$5:E44)))="","",INDEX('يومية الصندوق'!$G$5:$G$1000,SMALL(IF('يومية الصندوق'!$C$5:$C$1000=$D$2,ROW($A$5:$A$1000)-ROW($A$5)+1),ROWS($A$5:E44)))),"") -> 
A45: =IFERROR(INDEX('يومية الصندوق'!$A$5:$A$1000,SMALL(IF('يومية الصندوق'!$C$5:$C$1000=$D$2,ROW($A$5:$A$1000)-ROW($A$5)+1),ROWS($A$5:A45))),"") ->  | B45: =IFERROR(INDEX('يومية الصندوق'!$B$5:$B$1000,SMALL(IF('يومية الصندوق'!$C$5:$C$1000=$D$2,ROW($A$5:$A$1000)-ROW($A$5)+1),ROWS($A$5:B45))),"") ->  | C45: =IFERROR(INDEX('يومية الصندوق'!$D$5:$D$1000,SMALL(IF('يومية الصندوق'!$C$5:$C$1000=$D$2,ROW($A$5:$A$1000)-ROW($A$5)+1),ROWS($A$5:C45))),"") ->  | D45: =IFERROR(INDEX('يومية الصندوق'!$E$5:$E$1000,SMALL(IF('يومية الصندوق'!$C$5:$C$1000=$D$2,ROW($A$5:$A$1000)-ROW($A$5)+1),ROWS($A$5:D45))),"") ->  | E45: =IFERROR(IF(INDEX('يومية الصندوق'!$G$5:$G$1000,SMALL(IF('يومية الصندوق'!$C$5:$C$1000=$D$2,ROW($A$5:$A$1000)-ROW($A$5)+1),ROWS($A$5:E45)))="","",INDEX('يومية الصندوق'!$G$5:$G$1000,SMALL(IF('يومية الصندوق'!$C$5:$C$1000=$D$2,ROW($A$5:$A$1000)-ROW($A$5)+1),ROWS($A$5:E45)))),"") -> 
A46: =IFERROR(INDEX('يومية الصندوق'!$A$5:$A$1000,SMALL(IF('يومية الصندوق'!$C$5:$C$1000=$D$2,ROW($A$5:$A$1000)-ROW($A$5)+1),ROWS($A$5:A46))),"") ->  | B46: =IFERROR(INDEX('يومية الصندوق'!$B$5:$B$1000,SMALL(IF('يومية الصندوق'!$C$5:$C$1000=$D$2,ROW($A$5:$A$1000)-ROW($A$5)+1),ROWS($A$5:B46))),"") ->  | C46: =IFERROR(INDEX('يومية الصندوق'!$D$5:$D$1000,SMALL(IF('يومية الصندوق'!$C$5:$C$1000=$D$2,ROW($A$5:$A$1000)-ROW($A$5)+1),ROWS($A$5:C46))),"") ->  | D46: =IFERROR(INDEX('يومية الصندوق'!$E$5:$E$1000,SMALL(IF('يومية الصندوق'!$C$5:$C$1000=$D$2,ROW($A$5:$A$1000)-ROW($A$5)+1),ROWS($A$5:D46))),"") ->  | E46: =IFERROR(IF(INDEX('يومية الصندوق'!$G$5:$G$1000,SMALL(IF('يومية الصندوق'!$C$5:$C$1000=$D$2,ROW($A$5:$A$1000)-ROW($A$5)+1),ROWS($A$5:E46)))="","",INDEX('يومية الصندوق'!$G$5:$G$1000,SMALL(IF('يومية الصندوق'!$C$5:$C$1000=$D$2,ROW($A$5:$A$1000)-ROW($A$5)+1),ROWS($A$5:E46)))),"") -> 
A47: =IFERROR(INDEX('يومية الصندوق'!$A$5:$A$1000,SMALL(IF('يومية الصندوق'!$C$5:$C$1000=$D$2,ROW($A$5:$A$1000)-ROW($A$5)+1),ROWS($A$5:A47))),"") ->  | B47: =IFERROR(INDEX('يومية الصندوق'!$B$5:$B$1000,SMALL(IF('يومية الصندوق'!$C$5:$C$1000=$D$2,ROW($A$5:$A$1000)-ROW($A$5)+1),ROWS($A$5:B47))),"") ->  | C47: =IFERROR(INDEX('يومية الصندوق'!$D$5:$D$1000,SMALL(IF('يومية الصندوق'!$C$5:$C$1000=$D$2,ROW($A$5:$A$1000)-ROW($A$5)+1),ROWS($A$5:C47))),"") ->  | D47: =IFERROR(INDEX('يومية الصندوق'!$E$5:$E$1000,SMALL(IF('يومية الصندوق'!$C$5:$C$1000=$D$2,ROW($A$5:$A$1000)-ROW($A$5)+1),ROWS($A$5:D47))),"") ->  | E47: =IFERROR(IF(INDEX('يومية الصندوق'!$G$5:$G$1000,SMALL(IF('يومية الصندوق'!$C$5:$C$1000=$D$2,ROW($A$5:$A$1000)-ROW($A$5)+1),ROWS($A$5:E47)))="","",INDEX('يومية الصندوق'!$G$5:$G$1000,SMALL(IF('يومية الصندوق'!$C$5:$C$1000=$D$2,ROW($A$5:$A$1000)-ROW($A$5)+1),ROWS($A$5:E47)))),"") -> 
A48: =IFERROR(INDEX('يومية الصندوق'!$A$5:$A$1000,SMALL(IF('يومية الصندوق'!$C$5:$C$1000=$D$2,ROW($A$5:$A$1000)-ROW($A$5)+1),ROWS($A$5:A48))),"") ->  | B48: =IFERROR(INDEX('يومية الصندوق'!$B$5:$B$1000,SMALL(IF('يومية الصندوق'!$C$5:$C$1000=$D$2,ROW($A$5:$A$1000)-ROW($A$5)+1),ROWS($A$5:B48))),"") ->  | C48: =IFERROR(INDEX('يومية الصندوق'!$D$5:$D$1000,SMALL(IF('يومية الصندوق'!$C$5:$C$1000=$D$2,ROW($A$5:$A$1000)-ROW($A$5)+1),ROWS($A$5:C48))),"") ->  | D48: =IFERROR(INDEX('يومية الصندوق'!$E$5:$E$1000,SMALL(IF('يومية الصندوق'!$C$5:$C$1000=$D$2,ROW($A$5:$A$1000)-ROW($A$5)+1),ROWS($A$5:D48))),"") ->  | E48: =IFERROR(IF(INDEX('يومية الصندوق'!$G$5:$G$1000,SMALL(IF('يومية الصندوق'!$C$5:$C$1000=$D$2,ROW($A$5:$A$1000)-ROW($A$5)+1),ROWS($A$5:E48)))="","",INDEX('يومية الصندوق'!$G$5:$G$1000,SMALL(IF('يومية الصندوق'!$C$5:$C$1000=$D$2,ROW($A$5:$A$1000)-ROW($A$5)+1),ROWS($A$5:E48)))),"") -> 
A49: =IFERROR(INDEX('يومية الصندوق'!$A$5:$A$1000,SMALL(IF('يومية الصندوق'!$C$5:$C$1000=$D$2,ROW($A$5:$A$1000)-ROW($A$5)+1),ROWS($A$5:A49))),"") ->  | B49: =IFERROR(INDEX('يومية الصندوق'!$B$5:$B$1000,SMALL(IF('يومية الصندوق'!$C$5:$C$1000=$D$2,ROW($A$5:$A$1000)-ROW($A$5)+1),ROWS($A$5:B49))),"") ->  | C49: =IFERROR(INDEX('يومية الصندوق'!$D$5:$D$1000,SMALL(IF('يومية الصندوق'!$C$5:$C$1000=$D$2,ROW($A$5:$A$1000)-ROW($A$5)+1),ROWS($A$5:C49))),"") ->  | D49: =IFERROR(INDEX('يومية الصندوق'!$E$5:$E$1000,SMALL(IF('يومية الصندوق'!$C$5:$C$1000=$D$2,ROW($A$5:$A$1000)-ROW($A$5)+1),ROWS($A$5:D49))),"") ->  | E49: =IFERROR(IF(INDEX('يومية الصندوق'!$G$5:$G$1000,SMALL(IF('يومية الصندوق'!$C$5:$C$1000=$D$2,ROW($A$5:$A$1000)-ROW($A$5)+1),ROWS($A$5:E49)))="","",INDEX('يومية الصندوق'!$G$5:$G$1000,SMALL(IF('يومية الصندوق'!$C$5:$C$1000=$D$2,ROW($A$5:$A$1000)-ROW($A$5)+1),ROWS($A$5:E49)))),"") -> 
A50: =IFERROR(INDEX('يومية الصندوق'!$A$5:$A$1000,SMALL(IF('يومية الصندوق'!$C$5:$C$1000=$D$2,ROW($A$5:$A$1000)-ROW($A$5)+1),ROWS($A$5:A50))),"") ->  | B50: =IFERROR(INDEX('يومية الصندوق'!$B$5:$B$1000,SMALL(IF('يومية الصندوق'!$C$5:$C$1000=$D$2,ROW($A$5:$A$1000)-ROW($A$5)+1),ROWS($A$5:B50))),"") ->  | C50: =IFERROR(INDEX('يومية الصندوق'!$D$5:$D$1000,SMALL(IF('يومية الصندوق'!$C$5:$C$1000=$D$2,ROW($A$5:$A$1000)-ROW($A$5)+1),ROWS($A$5:C50))),"") ->  | D50: =IFERROR(INDEX('يومية الصندوق'!$E$5:$E$1000,SMALL(IF('يومية الصندوق'!$C$5:$C$1000=$D$2,ROW($A$5:$A$1000)-ROW($A$5)+1),ROWS($A$5:D50))),"") ->  | E50: =IFERROR(IF(INDEX('يومية الصندوق'!$G$5:$G$1000,SMALL(IF('يومية الصندوق'!$C$5:$C$1000=$D$2,ROW($A$5:$A$1000)-ROW($A$5)+1),ROWS($A$5:E50)))="","",INDEX('يومية الصندوق'!$G$5:$G$1000,SMALL(IF('يومية الصندوق'!$C$5:$C$1000=$D$2,ROW($A$5:$A$1000)-ROW($A$5)+1),ROWS($A$5:E50)))),"") -> 
A51: =IFERROR(INDEX('يومية الصندوق'!$A$5:$A$1000,SMALL(IF('يومية الصندوق'!$C$5:$C$1000=$D$2,ROW($A$5:$A$1000)-ROW($A$5)+1),ROWS($A$5:A51))),"") ->  | B51: =IFERROR(INDEX('يومية الصندوق'!$B$5:$B$1000,SMALL(IF('يومية الصندوق'!$C$5:$C$1000=$D$2,ROW($A$5:$A$1000)-ROW($A$5)+1),ROWS($A$5:B51))),"") ->  | C51: =IFERROR(INDEX('يومية الصندوق'!$D$5:$D$1000,SMALL(IF('يومية الصندوق'!$C$5:$C$1000=$D$2,ROW($A$5:$A$1000)-ROW($A$5)+1),ROWS($A$5:C51))),"") ->  | D51: =IFERROR(INDEX('يومية الصندوق'!$E$5:$E$1000,SMALL(IF('يومية الصندوق'!$C$5:$C$1000=$D$2,ROW($A$5:$A$1000)-ROW($A$5)+1),ROWS($A$5:D51))),"") ->  | E51: =IFERROR(IF(INDEX('يومية الصندوق'!$G$5:$G$1000,SMALL(IF('يومية الصندوق'!$C$5:$C$1000=$D$2,ROW($A$5:$A$1000)-ROW($A$5)+1),ROWS($A$5:E51)))="","",INDEX('يومية الصندوق'!$G$5:$G$1000,SMALL(IF('يومية الصندوق'!$C$5:$C$1000=$D$2,ROW($A$5:$A$1000)-ROW($A$5)+1),ROWS($A$5:E51)))),"") -> 
A52: =IFERROR(INDEX('يومية الصندوق'!$A$5:$A$1000,SMALL(IF('يومية الصندوق'!$C$5:$C$1000=$D$2,ROW($A$5:$A$1000)-ROW($A$5)+1),ROWS($A$5:A52))),"") ->  | B52: =IFERROR(INDEX('يومية الصندوق'!$B$5:$B$1000,SMALL(IF('يومية الصندوق'!$C$5:$C$1000=$D$2,ROW($A$5:$A$1000)-ROW($A$5)+1),ROWS($A$5:B52))),"") ->  | C52: =IFERROR(INDEX('يومية الصندوق'!$D$5:$D$1000,SMALL(IF('يومية الصندوق'!$C$5:$C$1000=$D$2,ROW($A$5:$A$1000)-ROW($A$5)+1),ROWS($A$5:C52))),"") ->  | D52: =IFERROR(INDEX('يومية الصندوق'!$E$5:$E$1000,SMALL(IF('يومية الصندوق'!$C$5:$C$1000=$D$2,ROW($A$5:$A$1000)-ROW($A$5)+1),ROWS($A$5:D52))),"") ->  | E52: =IFERROR(IF(INDEX('يومية الصندوق'!$G$5:$G$1000,SMALL(IF('يومية الصندوق'!$C$5:$C$1000=$D$2,ROW($A$5:$A$1000)-ROW($A$5)+1),ROWS($A$5:E52)))="","",INDEX('يومية الصندوق'!$G$5:$G$1000,SMALL(IF('يومية الصندوق'!$C$5:$C$1000=$D$2,ROW($A$5:$A$1000)-ROW($A$5)+1),ROWS($A$5:E52)))),"") -> 
A53: =IFERROR(INDEX('يومية الصندوق'!$A$5:$A$1000,SMALL(IF('يومية الصندوق'!$C$5:$C$1000=$D$2,ROW($A$5:$A$1000)-ROW($A$5)+1),ROWS($A$5:A53))),"") ->  | B53: =IFERROR(INDEX('يومية الصندوق'!$B$5:$B$1000,SMALL(IF('يومية الصندوق'!$C$5:$C$1000=$D$2,ROW($A$5:$A$1000)-ROW($A$5)+1),ROWS($A$5:B53))),"") ->  | C53: =IFERROR(INDEX('يومية الصندوق'!$D$5:$D$1000,SMALL(IF('يومية الصندوق'!$C$5:$C$1000=$D$2,ROW($A$5:$A$1000)-ROW($A$5)+1),ROWS($A$5:C53))),"") ->  | D53: =IFERROR(INDEX('يومية الصندوق'!$E$5:$E$1000,SMALL(IF('يومية الصندوق'!$C$5:$C$1000=$D$2,ROW($A$5:$A$1000)-ROW($A$5)+1),ROWS($A$5:D53))),"") ->  | E53: =IFERROR(IF(INDEX('يومية الصندوق'!$G$5:$G$1000,SMALL(IF('يومية الصندوق'!$C$5:$C$1000=$D$2,ROW($A$5:$A$1000)-ROW($A$5)+1),ROWS($A$5:E53)))="","",INDEX('يومية الصندوق'!$G$5:$G$1000,SMALL(IF('يومية الصندوق'!$C$5:$C$1000=$D$2,ROW($A$5:$A$1000)-ROW($A$5)+1),ROWS($A$5:E53)))),"") -> 
A54: =IFERROR(INDEX('يومية الصندوق'!$A$5:$A$1000,SMALL(IF('يومية الصندوق'!$C$5:$C$1000=$D$2,ROW($A$5:$A$1000)-ROW($A$5)+1),ROWS($A$5:A54))),"") ->  | B54: =IFERROR(INDEX('يومية الصندوق'!$B$5:$B$1000,SMALL(IF('يومية الصندوق'!$C$5:$C$1000=$D$2,ROW($A$5:$A$1000)-ROW($A$5)+1),ROWS($A$5:B54))),"") ->  | C54: =IFERROR(INDEX('يومية الصندوق'!$D$5:$D$1000,SMALL(IF('يومية الصندوق'!$C$5:$C$1000=$D$2,ROW($A$5:$A$1000)-ROW($A$5)+1),ROWS($A$5:C54))),"") ->  | D54: =IFERROR(INDEX('يومية الصندوق'!$E$5:$E$1000,SMALL(IF('يومية الصندوق'!$C$5:$C$1000=$D$2,ROW($A$5:$A$1000)-ROW($A$5)+1),ROWS($A$5:D54))),"") ->  | E54: =IFERROR(IF(INDEX('يومية الصندوق'!$G$5:$G$1000,SMALL(IF('يومية الصندوق'!$C$5:$C$1000=$D$2,ROW($A$5:$A$1000)-ROW($A$5)+1),ROWS($A$5:E54)))="","",INDEX('يومية الصندوق'!$G$5:$G$1000,SMALL(IF('يومية الصندوق'!$C$5:$C$1000=$D$2,ROW($A$5:$A$1000)-ROW($A$5)+1),ROWS($A$5:E54)))),"") -> 
A55: =IFERROR(INDEX('يومية الصندوق'!$A$5:$A$1000,SMALL(IF('يومية الصندوق'!$C$5:$C$1000=$D$2,ROW($A$5:$A$1000)-ROW($A$5)+1),ROWS($A$5:A55))),"") ->  | B55: =IFERROR(INDEX('يومية الصندوق'!$B$5:$B$1000,SMALL(IF('يومية الصندوق'!$C$5:$C$1000=$D$2,ROW($A$5:$A$1000)-ROW($A$5)+1),ROWS($A$5:B55))),"") ->  | C55: =IFERROR(INDEX('يومية الصندوق'!$D$5:$D$1000,SMALL(IF('يومية الصندوق'!$C$5:$C$1000=$D$2,ROW($A$5:$A$1000)-ROW($A$5)+1),ROWS($A$5:C55))),"") ->  | D55: =IFERROR(INDEX('يومية الصندوق'!$E$5:$E$1000,SMALL(IF('يومية الصندوق'!$C$5:$C$1000=$D$2,ROW($A$5:$A$1000)-ROW($A$5)+1),ROWS($A$5:D55))),"") ->  | E55: =IFERROR(IF(INDEX('يومية الصندوق'!$G$5:$G$1000,SMALL(IF('يومية الصندوق'!$C$5:$C$1000=$D$2,ROW($A$5:$A$1000)-ROW($A$5)+1),ROWS($A$5:E55)))="","",INDEX('يومية الصندوق'!$G$5:$G$1000,SMALL(IF('يومية الصندوق'!$C$5:$C$1000=$D$2,ROW($A$5:$A$1000)-ROW($A$5)+1),ROWS($A$5:E55)))),"") -> 
A56: =IFERROR(INDEX('يومية الصندوق'!$A$5:$A$1000,SMALL(IF('يومية الصندوق'!$C$5:$C$1000=$D$2,ROW($A$5:$A$1000)-ROW($A$5)+1),ROWS($A$5:A56))),"") ->  | B56: =IFERROR(INDEX('يومية الصندوق'!$B$5:$B$1000,SMALL(IF('يومية الصندوق'!$C$5:$C$1000=$D$2,ROW($A$5:$A$1000)-ROW($A$5)+1),ROWS($A$5:B56))),"") ->  | C56: =IFERROR(INDEX('يومية الصندوق'!$D$5:$D$1000,SMALL(IF('يومية الصندوق'!$C$5:$C$1000=$D$2,ROW($A$5:$A$1000)-ROW($A$5)+1),ROWS($A$5:C56))),"") ->  | D56: =IFERROR(INDEX('يومية الصندوق'!$E$5:$E$1000,SMALL(IF('يومية الصندوق'!$C$5:$C$1000=$D$2,ROW($A$5:$A$1000)-ROW($A$5)+1),ROWS($A$5:D56))),"") ->  | E56: =IFERROR(IF(INDEX('يومية الصندوق'!$G$5:$G$1000,SMALL(IF('يومية الصندوق'!$C$5:$C$1000=$D$2,ROW($A$5:$A$1000)-ROW($A$5)+1),ROWS($A$5:E56)))="","",INDEX('يومية الصندوق'!$G$5:$G$1000,SMALL(IF('يومية الصندوق'!$C$5:$C$1000=$D$2,ROW($A$5:$A$1000)-ROW($A$5)+1),ROWS($A$5:E56)))),"") -> 
A57: =IFERROR(INDEX('يومية الصندوق'!$A$5:$A$1000,SMALL(IF('يومية الصندوق'!$C$5:$C$1000=$D$2,ROW($A$5:$A$1000)-ROW($A$5)+1),ROWS($A$5:A57))),"") ->  | B57: =IFERROR(INDEX('يومية الصندوق'!$B$5:$B$1000,SMALL(IF('يومية الصندوق'!$C$5:$C$1000=$D$2,ROW($A$5:$A$1000)-ROW($A$5)+1),ROWS($A$5:B57))),"") ->  | C57: =IFERROR(INDEX('يومية الصندوق'!$D$5:$D$1000,SMALL(IF('يومية الصندوق'!$C$5:$C$1000=$D$2,ROW($A$5:$A$1000)-ROW($A$5)+1),ROWS($A$5:C57))),"") ->  | D57: =IFERROR(INDEX('يومية الصندوق'!$E$5:$E$1000,SMALL(IF('يومية الصندوق'!$C$5:$C$1000=$D$2,ROW($A$5:$A$1000)-ROW($A$5)+1),ROWS($A$5:D57))),"") ->  | E57: =IFERROR(IF(INDEX('يومية الصندوق'!$G$5:$G$1000,SMALL(IF('يومية الصندوق'!$C$5:$C$1000=$D$2,ROW($A$5:$A$1000)-ROW($A$5)+1),ROWS($A$5:E57)))="","",INDEX('يومية الصندوق'!$G$5:$G$1000,SMALL(IF('يومية الصندوق'!$C$5:$C$1000=$D$2,ROW($A$5:$A$1000)-ROW($A$5)+1),ROWS($A$5:E57)))),"") -> 
A58: =IFERROR(INDEX('يومية الصندوق'!$A$5:$A$1000,SMALL(IF('يومية الصندوق'!$C$5:$C$1000=$D$2,ROW($A$5:$A$1000)-ROW($A$5)+1),ROWS($A$5:A58))),"") ->  | B58: =IFERROR(INDEX('يومية الصندوق'!$B$5:$B$1000,SMALL(IF('يومية الصندوق'!$C$5:$C$1000=$D$2,ROW($A$5:$A$1000)-ROW($A$5)+1),ROWS($A$5:B58))),"") ->  | C58: =IFERROR(INDEX('يومية الصندوق'!$D$5:$D$1000,SMALL(IF('يومية الصندوق'!$C$5:$C$1000=$D$2,ROW($A$5:$A$1000)-ROW($A$5)+1),ROWS($A$5:C58))),"") ->  | D58: =IFERROR(INDEX('يومية الصندوق'!$E$5:$E$1000,SMALL(IF('يومية الصندوق'!$C$5:$C$1000=$D$2,ROW($A$5:$A$1000)-ROW($A$5)+1),ROWS($A$5:D58))),"") ->  | E58: =IFERROR(IF(INDEX('يومية الصندوق'!$G$5:$G$1000,SMALL(IF('يومية الصندوق'!$C$5:$C$1000=$D$2,ROW($A$5:$A$1000)-ROW($A$5)+1),ROWS($A$5:E58)))="","",INDEX('يومية الصندوق'!$G$5:$G$1000,SMALL(IF('يومية الصندوق'!$C$5:$C$1000=$D$2,ROW($A$5:$A$1000)-ROW($A$5)+1),ROWS($A$5:E58)))),"") -> 
A59: =IFERROR(INDEX('يومية الصندوق'!$A$5:$A$1000,SMALL(IF('يومية الصندوق'!$C$5:$C$1000=$D$2,ROW($A$5:$A$1000)-ROW($A$5)+1),ROWS($A$5:A59))),"") ->  | B59: =IFERROR(INDEX('يومية الصندوق'!$B$5:$B$1000,SMALL(IF('يومية الصندوق'!$C$5:$C$1000=$D$2,ROW($A$5:$A$1000)-ROW($A$5)+1),ROWS($A$5:B59))),"") ->  | C59: =IFERROR(INDEX('يومية الصندوق'!$D$5:$D$1000,SMALL(IF('يومية الصندوق'!$C$5:$C$1000=$D$2,ROW($A$5:$A$1000)-ROW($A$5)+1),ROWS($A$5:C59))),"") ->  | D59: =IFERROR(INDEX('يومية الصندوق'!$E$5:$E$1000,SMALL(IF('يومية الصندوق'!$C$5:$C$1000=$D$2,ROW($A$5:$A$1000)-ROW($A$5)+1),ROWS($A$5:D59))),"") ->  | E59: =IFERROR(IF(INDEX('يومية الصندوق'!$G$5:$G$1000,SMALL(IF('يومية الصندوق'!$C$5:$C$1000=$D$2,ROW($A$5:$A$1000)-ROW($A$5)+1),ROWS($A$5:E59)))="","",INDEX('يومية الصندوق'!$G$5:$G$1000,SMALL(IF('يومية الصندوق'!$C$5:$C$1000=$D$2,ROW($A$5:$A$1000)-ROW($A$5)+1),ROWS($A$5:E59)))),"") -> 
A60: =IFERROR(INDEX('يومية الصندوق'!$A$5:$A$1000,SMALL(IF('يومية الصندوق'!$C$5:$C$1000=$D$2,ROW($A$5:$A$1000)-ROW($A$5)+1),ROWS($A$5:A60))),"") ->  | B60: =IFERROR(INDEX('يومية الصندوق'!$B$5:$B$1000,SMALL(IF('يومية الصندوق'!$C$5:$C$1000=$D$2,ROW($A$5:$A$1000)-ROW($A$5)+1),ROWS($A$5:B60))),"") ->  | C60: =IFERROR(INDEX('يومية الصندوق'!$D$5:$D$1000,SMALL(IF('يومية الصندوق'!$C$5:$C$1000=$D$2,ROW($A$5:$A$1000)-ROW($A$5)+1),ROWS($A$5:C60))),"") ->  | D60: =IFERROR(INDEX('يومية الصندوق'!$E$5:$E$1000,SMALL(IF('يومية الصندوق'!$C$5:$C$1000=$D$2,ROW($A$5:$A$1000)-ROW($A$5)+1),ROWS($A$5:D60))),"") ->  | E60: =IFERROR(IF(INDEX('يومية الصندوق'!$G$5:$G$1000,SMALL(IF('يومية الصندوق'!$C$5:$C$1000=$D$2,ROW($A$5:$A$1000)-ROW($A$5)+1),ROWS($A$5:E60)))="","",INDEX('يومية الصندوق'!$G$5:$G$1000,SMALL(IF('يومية الصندوق'!$C$5:$C$1000=$D$2,ROW($A$5:$A$1000)-ROW($A$5)+1),ROWS($A$5:E60)))),"") -> 
A61: =IFERROR(INDEX('يومية الصندوق'!$A$5:$A$1000,SMALL(IF('يومية الصندوق'!$C$5:$C$1000=$D$2,ROW($A$5:$A$1000)-ROW($A$5)+1),ROWS($A$5:A61))),"") ->  | B61: =IFERROR(INDEX('يومية الصندوق'!$B$5:$B$1000,SMALL(IF('يومية الصندوق'!$C$5:$C$1000=$D$2,ROW($A$5:$A$1000)-ROW($A$5)+1),ROWS($A$5:B61))),"") ->  | C61: =IFERROR(INDEX('يومية الصندوق'!$D$5:$D$1000,SMALL(IF('يومية الصندوق'!$C$5:$C$1000=$D$2,ROW($A$5:$A$1000)-ROW($A$5)+1),ROWS($A$5:C61))),"") ->  | D61: =IFERROR(INDEX('يومية الصندوق'!$E$5:$E$1000,SMALL(IF('يومية الصندوق'!$C$5:$C$1000=$D$2,ROW($A$5:$A$1000)-ROW($A$5)+1),ROWS($A$5:D61))),"") ->  | E61: =IFERROR(IF(INDEX('يومية الصندوق'!$G$5:$G$1000,SMALL(IF('يومية الصندوق'!$C$5:$C$1000=$D$2,ROW($A$5:$A$1000)-ROW($A$5)+1),ROWS($A$5:E61)))="","",INDEX('يومية الصندوق'!$G$5:$G$1000,SMALL(IF('يومية الصندوق'!$C$5:$C$1000=$D$2,ROW($A$5:$A$1000)-ROW($A$5)+1),ROWS($A$5:E61)))),"") -> 
A62: =IFERROR(INDEX('يومية الصندوق'!$A$5:$A$1000,SMALL(IF('يومية الصندوق'!$C$5:$C$1000=$D$2,ROW($A$5:$A$1000)-ROW($A$5)+1),ROWS($A$5:A62))),"") ->  | B62: =IFERROR(INDEX('يومية الصندوق'!$B$5:$B$1000,SMALL(IF('يومية الصندوق'!$C$5:$C$1000=$D$2,ROW($A$5:$A$1000)-ROW($A$5)+1),ROWS($A$5:B62))),"") ->  | C62: =IFERROR(INDEX('يومية الصندوق'!$D$5:$D$1000,SMALL(IF('يومية الصندوق'!$C$5:$C$1000=$D$2,ROW($A$5:$A$1000)-ROW($A$5)+1),ROWS($A$5:C62))),"") ->  | D62: =IFERROR(INDEX('يومية الصندوق'!$E$5:$E$1000,SMALL(IF('يومية الصندوق'!$C$5:$C$1000=$D$2,ROW($A$5:$A$1000)-ROW($A$5)+1),ROWS($A$5:D62))),"") ->  | E62: =IFERROR(IF(INDEX('يومية الصندوق'!$G$5:$G$1000,SMALL(IF('يومية الصندوق'!$C$5:$C$1000=$D$2,ROW($A$5:$A$1000)-ROW($A$5)+1),ROWS($A$5:E62)))="","",INDEX('يومية الصندوق'!$G$5:$G$1000,SMALL(IF('يومية الصندوق'!$C$5:$C$1000=$D$2,ROW($A$5:$A$1000)-ROW($A$5)+1),ROWS($A$5:E62)))),"") -> 
A63: =IFERROR(INDEX('يومية الصندوق'!$A$5:$A$1000,SMALL(IF('يومية الصندوق'!$C$5:$C$1000=$D$2,ROW($A$5:$A$1000)-ROW($A$5)+1),ROWS($A$5:A63))),"") ->  | B63: =IFERROR(INDEX('يومية الصندوق'!$B$5:$B$1000,SMALL(IF('يومية الصندوق'!$C$5:$C$1000=$D$2,ROW($A$5:$A$1000)-ROW($A$5)+1),ROWS($A$5:B63))),"") ->  | C63: =IFERROR(INDEX('يومية الصندوق'!$D$5:$D$1000,SMALL(IF('يومية الصندوق'!$C$5:$C$1000=$D$2,ROW($A$5:$A$1000)-ROW($A$5)+1),ROWS($A$5:C63))),"") ->  | D63: =IFERROR(INDEX('يومية الصندوق'!$E$5:$E$1000,SMALL(IF('يومية الصندوق'!$C$5:$C$1000=$D$2,ROW($A$5:$A$1000)-ROW($A$5)+1),ROWS($A$5:D63))),"") ->  | E63: =IFERROR(IF(INDEX('يومية الصندوق'!$G$5:$G$1000,SMALL(IF('يومية الصندوق'!$C$5:$C$1000=$D$2,ROW($A$5:$A$1000)-ROW($A$5)+1),ROWS($A$5:E63)))="","",INDEX('يومية الصندوق'!$G$5:$G$1000,SMALL(IF('يومية الصندوق'!$C$5:$C$1000=$D$2,ROW($A$5:$A$1000)-ROW($A$5)+1),ROWS($A$5:E63)))),"") -> 
A64: =IFERROR(INDEX('يومية الصندوق'!$A$5:$A$1000,SMALL(IF('يومية الصندوق'!$C$5:$C$1000=$D$2,ROW($A$5:$A$1000)-ROW($A$5)+1),ROWS($A$5:A64))),"") ->  | B64: =IFERROR(INDEX('يومية الصندوق'!$B$5:$B$1000,SMALL(IF('يومية الصندوق'!$C$5:$C$1000=$D$2,ROW($A$5:$A$1000)-ROW($A$5)+1),ROWS($A$5:B64))),"") ->  | C64: =IFERROR(INDEX('يومية الصندوق'!$D$5:$D$1000,SMALL(IF('يومية الصندوق'!$C$5:$C$1000=$D$2,ROW($A$5:$A$1000)-ROW($A$5)+1),ROWS($A$5:C64))),"") ->  | D64: =IFERROR(INDEX('يومية الصندوق'!$E$5:$E$1000,SMALL(IF('يومية الصندوق'!$C$5:$C$1000=$D$2,ROW($A$5:$A$1000)-ROW($A$5)+1),ROWS($A$5:D64))),"") ->  | E64: =IFERROR(IF(INDEX('يومية الصندوق'!$G$5:$G$1000,SMALL(IF('يومية الصندوق'!$C$5:$C$1000=$D$2,ROW($A$5:$A$1000)-ROW($A$5)+1),ROWS($A$5:E64)))="","",INDEX('يومية الصندوق'!$G$5:$G$1000,SMALL(IF('يومية الصندوق'!$C$5:$C$1000=$D$2,ROW($A$5:$A$1000)-ROW($A$5)+1),ROWS($A$5:E64)))),"") -> 
A65: =IFERROR(INDEX('يومية الصندوق'!$A$5:$A$1000,SMALL(IF('يومية الصندوق'!$C$5:$C$1000=$D$2,ROW($A$5:$A$1000)-ROW($A$5)+1),ROWS($A$5:A65))),"") ->  | B65: =IFERROR(INDEX('يومية الصندوق'!$B$5:$B$1000,SMALL(IF('يومية الصندوق'!$C$5:$C$1000=$D$2,ROW($A$5:$A$1000)-ROW($A$5)+1),ROWS($A$5:B65))),"") ->  | C65: =IFERROR(INDEX('يومية الصندوق'!$D$5:$D$1000,SMALL(IF('يومية الصندوق'!$C$5:$C$1000=$D$2,ROW($A$5:$A$1000)-ROW($A$5)+1),ROWS($A$5:C65))),"") ->  | D65: =IFERROR(INDEX('يومية الصندوق'!$E$5:$E$1000,SMALL(IF('يومية الصندوق'!$C$5:$C$1000=$D$2,ROW($A$5:$A$1000)-ROW($A$5)+1),ROWS($A$5:D65))),"") ->  | E65: =IFERROR(IF(INDEX('يومية الصندوق'!$G$5:$G$1000,SMALL(IF('يومية الصندوق'!$C$5:$C$1000=$D$2,ROW($A$5:$A$1000)-ROW($A$5)+1),ROWS($A$5:E65)))="","",INDEX('يومية الصندوق'!$G$5:$G$1000,SMALL(IF('يومية الصندوق'!$C$5:$C$1000=$D$2,ROW($A$5:$A$1000)-ROW($A$5)+1),ROWS($A$5:E65)))),"") -> 
A66: =IFERROR(INDEX('يومية الصندوق'!$A$5:$A$1000,SMALL(IF('يومية الصندوق'!$C$5:$C$1000=$D$2,ROW($A$5:$A$1000)-ROW($A$5)+1),ROWS($A$5:A66))),"") ->  | B66: =IFERROR(INDEX('يومية الصندوق'!$B$5:$B$1000,SMALL(IF('يومية الصندوق'!$C$5:$C$1000=$D$2,ROW($A$5:$A$1000)-ROW($A$5)+1),ROWS($A$5:B66))),"") ->  | C66: =IFERROR(INDEX('يومية الصندوق'!$D$5:$D$1000,SMALL(IF('يومية الصندوق'!$C$5:$C$1000=$D$2,ROW($A$5:$A$1000)-ROW($A$5)+1),ROWS($A$5:C66))),"") ->  | D66: =IFERROR(INDEX('يومية الصندوق'!$E$5:$E$1000,SMALL(IF('يومية الصندوق'!$C$5:$C$1000=$D$2,ROW($A$5:$A$1000)-ROW($A$5)+1),ROWS($A$5:D66))),"") ->  | E66: =IFERROR(IF(INDEX('يومية الصندوق'!$G$5:$G$1000,SMALL(IF('يومية الصندوق'!$C$5:$C$1000=$D$2,ROW($A$5:$A$1000)-ROW($A$5)+1),ROWS($A$5:E66)))="","",INDEX('يومية الصندوق'!$G$5:$G$1000,SMALL(IF('يومية الصندوق'!$C$5:$C$1000=$D$2,ROW($A$5:$A$1000)-ROW($A$5)+1),ROWS($A$5:E66)))),"") -> 
A67: =IFERROR(INDEX('يومية الصندوق'!$A$5:$A$1000,SMALL(IF('يومية الصندوق'!$C$5:$C$1000=$D$2,ROW($A$5:$A$1000)-ROW($A$5)+1),ROWS($A$5:A67))),"") ->  | B67: =IFERROR(INDEX('يومية الصندوق'!$B$5:$B$1000,SMALL(IF('يومية الصندوق'!$C$5:$C$1000=$D$2,ROW($A$5:$A$1000)-ROW($A$5)+1),ROWS($A$5:B67))),"") ->  | C67: =IFERROR(INDEX('يومية الصندوق'!$D$5:$D$1000,SMALL(IF('يومية الصندوق'!$C$5:$C$1000=$D$2,ROW($A$5:$A$1000)-ROW($A$5)+1),ROWS($A$5:C67))),"") ->  | D67: =IFERROR(INDEX('يومية الصندوق'!$E$5:$E$1000,SMALL(IF('يومية الصندوق'!$C$5:$C$1000=$D$2,ROW($A$5:$A$1000)-ROW($A$5)+1),ROWS($A$5:D67))),"") ->  | E67: =IFERROR(IF(INDEX('يومية الصندوق'!$G$5:$G$1000,SMALL(IF('يومية الصندوق'!$C$5:$C$1000=$D$2,ROW($A$5:$A$1000)-ROW($A$5)+1),ROWS($A$5:E67)))="","",INDEX('يومية الصندوق'!$G$5:$G$1000,SMALL(IF('يومية الصندوق'!$C$5:$C$1000=$D$2,ROW($A$5:$A$1000)-ROW($A$5)+1),ROWS($A$5:E67)))),"") -> 
A68: =IFERROR(INDEX('يومية الصندوق'!$A$5:$A$1000,SMALL(IF('يومية الصندوق'!$C$5:$C$1000=$D$2,ROW($A$5:$A$1000)-ROW($A$5)+1),ROWS($A$5:A68))),"") ->  | B68: =IFERROR(INDEX('يومية الصندوق'!$B$5:$B$1000,SMALL(IF('يومية الصندوق'!$C$5:$C$1000=$D$2,ROW($A$5:$A$1000)-ROW($A$5)+1),ROWS($A$5:B68))),"") ->  | C68: =IFERROR(INDEX('يومية الصندوق'!$D$5:$D$1000,SMALL(IF('يومية الصندوق'!$C$5:$C$1000=$D$2,ROW($A$5:$A$1000)-ROW($A$5)+1),ROWS($A$5:C68))),"") ->  | D68: =IFERROR(INDEX('يومية الصندوق'!$E$5:$E$1000,SMALL(IF('يومية الصندوق'!$C$5:$C$1000=$D$2,ROW($A$5:$A$1000)-ROW($A$5)+1),ROWS($A$5:D68))),"") ->  | E68: =IFERROR(IF(INDEX('يومية الصندوق'!$G$5:$G$1000,SMALL(IF('يومية الصندوق'!$C$5:$C$1000=$D$2,ROW($A$5:$A$1000)-ROW($A$5)+1),ROWS($A$5:E68)))="","",INDEX('يومية الصندوق'!$G$5:$G$1000,SMALL(IF('يومية الصندوق'!$C$5:$C$1000=$D$2,ROW($A$5:$A$1000)-ROW($A$5)+1),ROWS($A$5:E68)))),"") -> 
A69: =IFERROR(INDEX('يومية الصندوق'!$A$5:$A$1000,SMALL(IF('يومية الصندوق'!$C$5:$C$1000=$D$2,ROW($A$5:$A$1000)-ROW($A$5)+1),ROWS($A$5:A69))),"") ->  | B69: =IFERROR(INDEX('يومية الصندوق'!$B$5:$B$1000,SMALL(IF('يومية الصندوق'!$C$5:$C$1000=$D$2,ROW($A$5:$A$1000)-ROW($A$5)+1),ROWS($A$5:B69))),"") ->  | C69: =IFERROR(INDEX('يومية الصندوق'!$D$5:$D$1000,SMALL(IF('يومية الصندوق'!$C$5:$C$1000=$D$2,ROW($A$5:$A$1000)-ROW($A$5)+1),ROWS($A$5:C69))),"") ->  | D69: =IFERROR(INDEX('يومية الصندوق'!$E$5:$E$1000,SMALL(IF('يومية الصندوق'!$C$5:$C$1000=$D$2,ROW($A$5:$A$1000)-ROW($A$5)+1),ROWS($A$5:D69))),"") ->  | E69: =IFERROR(IF(INDEX('يومية الصندوق'!$G$5:$G$1000,SMALL(IF('يومية الصندوق'!$C$5:$C$1000=$D$2,ROW($A$5:$A$1000)-ROW($A$5)+1),ROWS($A$5:E69)))="","",INDEX('يومية الصندوق'!$G$5:$G$1000,SMALL(IF('يومية الصندوق'!$C$5:$C$1000=$D$2,ROW($A$5:$A$1000)-ROW($A$5)+1),ROWS($A$5:E69)))),"") -> 
A70: =IFERROR(INDEX('يومية الصندوق'!$A$5:$A$1000,SMALL(IF('يومية الصندوق'!$C$5:$C$1000=$D$2,ROW($A$5:$A$1000)-ROW($A$5)+1),ROWS($A$5:A70))),"") ->  | B70: =IFERROR(INDEX('يومية الصندوق'!$B$5:$B$1000,SMALL(IF('يومية الصندوق'!$C$5:$C$1000=$D$2,ROW($A$5:$A$1000)-ROW($A$5)+1),ROWS($A$5:B70))),"") ->  | C70: =IFERROR(INDEX('يومية الصندوق'!$D$5:$D$1000,SMALL(IF('يومية الصندوق'!$C$5:$C$1000=$D$2,ROW($A$5:$A$1000)-ROW($A$5)+1),ROWS($A$5:C70))),"") ->  | D70: =IFERROR(INDEX('يومية الصندوق'!$E$5:$E$1000,SMALL(IF('يومية الصندوق'!$C$5:$C$1000=$D$2,ROW($A$5:$A$1000)-ROW($A$5)+1),ROWS($A$5:D70))),"") ->  | E70: =IFERROR(IF(INDEX('يومية الصندوق'!$G$5:$G$1000,SMALL(IF('يومية الصندوق'!$C$5:$C$1000=$D$2,ROW($A$5:$A$1000)-ROW($A$5)+1),ROWS($A$5:E70)))="","",INDEX('يومية الصندوق'!$G$5:$G$1000,SMALL(IF('يومية الصندوق'!$C$5:$C$1000=$D$2,ROW($A$5:$A$1000)-ROW($A$5)+1),ROWS($A$5:E70)))),"") -> 
A71: =IFERROR(INDEX('يومية الصندوق'!$A$5:$A$1000,SMALL(IF('يومية الصندوق'!$C$5:$C$1000=$D$2,ROW($A$5:$A$1000)-ROW($A$5)+1),ROWS($A$5:A71))),"") ->  | B71: =IFERROR(INDEX('يومية الصندوق'!$B$5:$B$1000,SMALL(IF('يومية الصندوق'!$C$5:$C$1000=$D$2,ROW($A$5:$A$1000)-ROW($A$5)+1),ROWS($A$5:B71))),"") ->  | C71: =IFERROR(INDEX('يومية الصندوق'!$D$5:$D$1000,SMALL(IF('يومية الصندوق'!$C$5:$C$1000=$D$2,ROW($A$5:$A$1000)-ROW($A$5)+1),ROWS($A$5:C71))),"") ->  | D71: =IFERROR(INDEX('يومية الصندوق'!$E$5:$E$1000,SMALL(IF('يومية الصندوق'!$C$5:$C$1000=$D$2,ROW($A$5:$A$1000)-ROW($A$5)+1),ROWS($A$5:D71))),"") ->  | E71: =IFERROR(IF(INDEX('يومية الصندوق'!$G$5:$G$1000,SMALL(IF('يومية الصندوق'!$C$5:$C$1000=$D$2,ROW($A$5:$A$1000)-ROW($A$5)+1),ROWS($A$5:E71)))="","",INDEX('يومية الصندوق'!$G$5:$G$1000,SMALL(IF('يومية الصندوق'!$C$5:$C$1000=$D$2,ROW($A$5:$A$1000)-ROW($A$5)+1),ROWS($A$5:E71)))),"") -> 
A72: =IFERROR(INDEX('يومية الصندوق'!$A$5:$A$1000,SMALL(IF('يومية الصندوق'!$C$5:$C$1000=$D$2,ROW($A$5:$A$1000)-ROW($A$5)+1),ROWS($A$5:A72))),"") ->  | B72: =IFERROR(INDEX('يومية الصندوق'!$B$5:$B$1000,SMALL(IF('يومية الصندوق'!$C$5:$C$1000=$D$2,ROW($A$5:$A$1000)-ROW($A$5)+1),ROWS($A$5:B72))),"") ->  | C72: =IFERROR(INDEX('يومية الصندوق'!$D$5:$D$1000,SMALL(IF('يومية الصندوق'!$C$5:$C$1000=$D$2,ROW($A$5:$A$1000)-ROW($A$5)+1),ROWS($A$5:C72))),"") ->  | D72: =IFERROR(INDEX('يومية الصندوق'!$E$5:$E$1000,SMALL(IF('يومية الصندوق'!$C$5:$C$1000=$D$2,ROW($A$5:$A$1000)-ROW($A$5)+1),ROWS($A$5:D72))),"") ->  | E72: =IFERROR(IF(INDEX('يومية الصندوق'!$G$5:$G$1000,SMALL(IF('يومية الصندوق'!$C$5:$C$1000=$D$2,ROW($A$5:$A$1000)-ROW($A$5)+1),ROWS($A$5:E72)))="","",INDEX('يومية الصندوق'!$G$5:$G$1000,SMALL(IF('يومية الصندوق'!$C$5:$C$1000=$D$2,ROW($A$5:$A$1000)-ROW($A$5)+1),ROWS($A$5:E72)))),"") -> 
A73: =IFERROR(INDEX('يومية الصندوق'!$A$5:$A$1000,SMALL(IF('يومية الصندوق'!$C$5:$C$1000=$D$2,ROW($A$5:$A$1000)-ROW($A$5)+1),ROWS($A$5:A73))),"") ->  | B73: =IFERROR(INDEX('يومية الصندوق'!$B$5:$B$1000,SMALL(IF('يومية الصندوق'!$C$5:$C$1000=$D$2,ROW($A$5:$A$1000)-ROW($A$5)+1),ROWS($A$5:B73))),"") ->  | C73: =IFERROR(INDEX('يومية الصندوق'!$D$5:$D$1000,SMALL(IF('يومية الصندوق'!$C$5:$C$1000=$D$2,ROW($A$5:$A$1000)-ROW($A$5)+1),ROWS($A$5:C73))),"") ->  | D73: =IFERROR(INDEX('يومية الصندوق'!$E$5:$E$1000,SMALL(IF('يومية الصندوق'!$C$5:$C$1000=$D$2,ROW($A$5:$A$1000)-ROW($A$5)+1),ROWS($A$5:D73))),"") ->  | E73: =IFERROR(IF(INDEX('يومية الصندوق'!$G$5:$G$1000,SMALL(IF('يومية الصندوق'!$C$5:$C$1000=$D$2,ROW($A$5:$A$1000)-ROW($A$5)+1),ROWS($A$5:E73)))="","",INDEX('يومية الصندوق'!$G$5:$G$1000,SMALL(IF('يومية الصندوق'!$C$5:$C$1000=$D$2,ROW($A$5:$A$1000)-ROW($A$5)+1),ROWS($A$5:E73)))),"") -> 
A74: =IFERROR(INDEX('يومية الصندوق'!$A$5:$A$1000,SMALL(IF('يومية الصندوق'!$C$5:$C$1000=$D$2,ROW($A$5:$A$1000)-ROW($A$5)+1),ROWS($A$5:A74))),"") ->  | B74: =IFERROR(INDEX('يومية الصندوق'!$B$5:$B$1000,SMALL(IF('يومية الصندوق'!$C$5:$C$1000=$D$2,ROW($A$5:$A$1000)-ROW($A$5)+1),ROWS($A$5:B74))),"") ->  | C74: =IFERROR(INDEX('يومية الصندوق'!$D$5:$D$1000,SMALL(IF('يومية الصندوق'!$C$5:$C$1000=$D$2,ROW($A$5:$A$1000)-ROW($A$5)+1),ROWS($A$5:C74))),"") ->  | D74: =IFERROR(INDEX('يومية الصندوق'!$E$5:$E$1000,SMALL(IF('يومية الصندوق'!$C$5:$C$1000=$D$2,ROW($A$5:$A$1000)-ROW($A$5)+1),ROWS($A$5:D74))),"") ->  | E74: =IFERROR(IF(INDEX('يومية الصندوق'!$G$5:$G$1000,SMALL(IF('يومية الصندوق'!$C$5:$C$1000=$D$2,ROW($A$5:$A$1000)-ROW($A$5)+1),ROWS($A$5:E74)))="","",INDEX('يومية الصندوق'!$G$5:$G$1000,SMALL(IF('يومية الصندوق'!$C$5:$C$1000=$D$2,ROW($A$5:$A$1000)-ROW($A$5)+1),ROWS($A$5:E74)))),"") -> 
A75: =IFERROR(INDEX('يومية الصندوق'!$A$5:$A$1000,SMALL(IF('يومية الصندوق'!$C$5:$C$1000=$D$2,ROW($A$5:$A$1000)-ROW($A$5)+1),ROWS($A$5:A75))),"") ->  | B75: =IFERROR(INDEX('يومية الصندوق'!$B$5:$B$1000,SMALL(IF('يومية الصندوق'!$C$5:$C$1000=$D$2,ROW($A$5:$A$1000)-ROW($A$5)+1),ROWS($A$5:B75))),"") ->  | C75: =IFERROR(INDEX('يومية الصندوق'!$D$5:$D$1000,SMALL(IF('يومية الصندوق'!$C$5:$C$1000=$D$2,ROW($A$5:$A$1000)-ROW($A$5)+1),ROWS($A$5:C75))),"") ->  | D75: =IFERROR(INDEX('يومية الصندوق'!$E$5:$E$1000,SMALL(IF('يومية الصندوق'!$C$5:$C$1000=$D$2,ROW($A$5:$A$1000)-ROW($A$5)+1),ROWS($A$5:D75))),"") ->  | E75: =IFERROR(IF(INDEX('يومية الصندوق'!$G$5:$G$1000,SMALL(IF('يومية الصندوق'!$C$5:$C$1000=$D$2,ROW($A$5:$A$1000)-ROW($A$5)+1),ROWS($A$5:E75)))="","",INDEX('يومية الصندوق'!$G$5:$G$1000,SMALL(IF('يومية الصندوق'!$C$5:$C$1000=$D$2,ROW($A$5:$A$1000)-ROW($A$5)+1),ROWS($A$5:E75)))),"") -> 
A76: =IFERROR(INDEX('يومية الصندوق'!$A$5:$A$1000,SMALL(IF('يومية الصندوق'!$C$5:$C$1000=$D$2,ROW($A$5:$A$1000)-ROW($A$5)+1),ROWS($A$5:A76))),"") ->  | B76: =IFERROR(INDEX('يومية الصندوق'!$B$5:$B$1000,SMALL(IF('يومية الصندوق'!$C$5:$C$1000=$D$2,ROW($A$5:$A$1000)-ROW($A$5)+1),ROWS($A$5:B76))),"") ->  | C76: =IFERROR(INDEX('يومية الصندوق'!$D$5:$D$1000,SMALL(IF('يومية الصندوق'!$C$5:$C$1000=$D$2,ROW($A$5:$A$1000)-ROW($A$5)+1),ROWS($A$5:C76))),"") ->  | D76: =IFERROR(INDEX('يومية الصندوق'!$E$5:$E$1000,SMALL(IF('يومية الصندوق'!$C$5:$C$1000=$D$2,ROW($A$5:$A$1000)-ROW($A$5)+1),ROWS($A$5:D76))),"") ->  | E76: =IFERROR(IF(INDEX('يومية الصندوق'!$G$5:$G$1000,SMALL(IF('يومية الصندوق'!$C$5:$C$1000=$D$2,ROW($A$5:$A$1000)-ROW($A$5)+1),ROWS($A$5:E76)))="","",INDEX('يومية الصندوق'!$G$5:$G$1000,SMALL(IF('يومية الصندوق'!$C$5:$C$1000=$D$2,ROW($A$5:$A$1000)-ROW($A$5)+1),ROWS($A$5:E76)))),"") -> 
A77: =IFERROR(INDEX('يومية الصندوق'!$A$5:$A$1000,SMALL(IF('يومية الصندوق'!$C$5:$C$1000=$D$2,ROW($A$5:$A$1000)-ROW($A$5)+1),ROWS($A$5:A77))),"") ->  | B77: =IFERROR(INDEX('يومية الصندوق'!$B$5:$B$1000,SMALL(IF('يومية الصندوق'!$C$5:$C$1000=$D$2,ROW($A$5:$A$1000)-ROW($A$5)+1),ROWS($A$5:B77))),"") ->  | C77: =IFERROR(INDEX('يومية الصندوق'!$D$5:$D$1000,SMALL(IF('يومية الصندوق'!$C$5:$C$1000=$D$2,ROW($A$5:$A$1000)-ROW($A$5)+1),ROWS($A$5:C77))),"") ->  | D77: =IFERROR(INDEX('يومية الصندوق'!$E$5:$E$1000,SMALL(IF('يومية الصندوق'!$C$5:$C$1000=$D$2,ROW($A$5:$A$1000)-ROW($A$5)+1),ROWS($A$5:D77))),"") ->  | E77: =IFERROR(IF(INDEX('يومية الصندوق'!$G$5:$G$1000,SMALL(IF('يومية الصندوق'!$C$5:$C$1000=$D$2,ROW($A$5:$A$1000)-ROW($A$5)+1),ROWS($A$5:E77)))="","",INDEX('يومية الصندوق'!$G$5:$G$1000,SMALL(IF('يومية الصندوق'!$C$5:$C$1000=$D$2,ROW($A$5:$A$1000)-ROW($A$5)+1),ROWS($A$5:E77)))),"") -> 
A78: =IFERROR(INDEX('يومية الصندوق'!$A$5:$A$1000,SMALL(IF('يومية الصندوق'!$C$5:$C$1000=$D$2,ROW($A$5:$A$1000)-ROW($A$5)+1),ROWS($A$5:A78))),"") ->  | B78: =IFERROR(INDEX('يومية الصندوق'!$B$5:$B$1000,SMALL(IF('يومية الصندوق'!$C$5:$C$1000=$D$2,ROW($A$5:$A$1000)-ROW($A$5)+1),ROWS($A$5:B78))),"") ->  | C78: =IFERROR(INDEX('يومية الصندوق'!$D$5:$D$1000,SMALL(IF('يومية الصندوق'!$C$5:$C$1000=$D$2,ROW($A$5:$A$1000)-ROW($A$5)+1),ROWS($A$5:C78))),"") ->  | D78: =IFERROR(INDEX('يومية الصندوق'!$E$5:$E$1000,SMALL(IF('يومية الصندوق'!$C$5:$C$1000=$D$2,ROW($A$5:$A$1000)-ROW($A$5)+1),ROWS($A$5:D78))),"") ->  | E78: =IFERROR(IF(INDEX('يومية الصندوق'!$G$5:$G$1000,SMALL(IF('يومية الصندوق'!$C$5:$C$1000=$D$2,ROW($A$5:$A$1000)-ROW($A$5)+1),ROWS($A$5:E78)))="","",INDEX('يومية الصندوق'!$G$5:$G$1000,SMALL(IF('يومية الصندوق'!$C$5:$C$1000=$D$2,ROW($A$5:$A$1000)-ROW($A$5)+1),ROWS($A$5:E78)))),"") -> 
A79: =IFERROR(INDEX('يومية الصندوق'!$A$5:$A$1000,SMALL(IF('يومية الصندوق'!$C$5:$C$1000=$D$2,ROW($A$5:$A$1000)-ROW($A$5)+1),ROWS($A$5:A79))),"") ->  | B79: =IFERROR(INDEX('يومية الصندوق'!$B$5:$B$1000,SMALL(IF('يومية الصندوق'!$C$5:$C$1000=$D$2,ROW($A$5:$A$1000)-ROW($A$5)+1),ROWS($A$5:B79))),"") ->  | C79: =IFERROR(INDEX('يومية الصندوق'!$D$5:$D$1000,SMALL(IF('يومية الصندوق'!$C$5:$C$1000=$D$2,ROW($A$5:$A$1000)-ROW($A$5)+1),ROWS($A$5:C79))),"") ->  | D79: =IFERROR(INDEX('يومية الصندوق'!$E$5:$E$1000,SMALL(IF('يومية الصندوق'!$C$5:$C$1000=$D$2,ROW($A$5:$A$1000)-ROW($A$5)+1),ROWS($A$5:D79))),"") ->  | E79: =IFERROR(IF(INDEX('يومية الصندوق'!$G$5:$G$1000,SMALL(IF('يومية الصندوق'!$C$5:$C$1000=$D$2,ROW($A$5:$A$1000)-ROW($A$5)+1),ROWS($A$5:E79)))="","",INDEX('يومية الصندوق'!$G$5:$G$1000,SMALL(IF('يومية الصندوق'!$C$5:$C$1000=$D$2,ROW($A$5:$A$1000)-ROW($A$5)+1),ROWS($A$5:E79)))),"") -> 
A80: =IFERROR(INDEX('يومية الصندوق'!$A$5:$A$1000,SMALL(IF('يومية الصندوق'!$C$5:$C$1000=$D$2,ROW($A$5:$A$1000)-ROW($A$5)+1),ROWS($A$5:A80))),"") ->  | B80: =IFERROR(INDEX('يومية الصندوق'!$B$5:$B$1000,SMALL(IF('يومية الصندوق'!$C$5:$C$1000=$D$2,ROW($A$5:$A$1000)-ROW($A$5)+1),ROWS($A$5:B80))),"") ->  | C80: =IFERROR(INDEX('يومية الصندوق'!$D$5:$D$1000,SMALL(IF('يومية الصندوق'!$C$5:$C$1000=$D$2,ROW($A$5:$A$1000)-ROW($A$5)+1),ROWS($A$5:C80))),"") ->  | D80: =IFERROR(INDEX('يومية الصندوق'!$E$5:$E$1000,SMALL(IF('يومية الصندوق'!$C$5:$C$1000=$D$2,ROW($A$5:$A$1000)-ROW($A$5)+1),ROWS($A$5:D80))),"") ->  | E80: =IFERROR(IF(INDEX('يومية الصندوق'!$G$5:$G$1000,SMALL(IF('يومية الصندوق'!$C$5:$C$1000=$D$2,ROW($A$5:$A$1000)-ROW($A$5)+1),ROWS($A$5:E80)))="","",INDEX('يومية الصندوق'!$G$5:$G$1000,SMALL(IF('يومية الصندوق'!$C$5:$C$1000=$D$2,ROW($A$5:$A$1000)-ROW($A$5)+1),ROWS($A$5:E80)))),"") -> 
A81: =IFERROR(INDEX('يومية الصندوق'!$A$5:$A$1000,SMALL(IF('يومية الصندوق'!$C$5:$C$1000=$D$2,ROW($A$5:$A$1000)-ROW($A$5)+1),ROWS($A$5:A81))),"") ->  | B81: =IFERROR(INDEX('يومية الصندوق'!$B$5:$B$1000,SMALL(IF('يومية الصندوق'!$C$5:$C$1000=$D$2,ROW($A$5:$A$1000)-ROW($A$5)+1),ROWS($A$5:B81))),"") ->  | C81: =IFERROR(INDEX('يومية الصندوق'!$D$5:$D$1000,SMALL(IF('يومية الصندوق'!$C$5:$C$1000=$D$2,ROW($A$5:$A$1000)-ROW($A$5)+1),ROWS($A$5:C81))),"") ->  | D81: =IFERROR(INDEX('يومية الصندوق'!$E$5:$E$1000,SMALL(IF('يومية الصندوق'!$C$5:$C$1000=$D$2,ROW($A$5:$A$1000)-ROW($A$5)+1),ROWS($A$5:D81))),"") ->  | E81: =IFERROR(IF(INDEX('يومية الصندوق'!$G$5:$G$1000,SMALL(IF('يومية الصندوق'!$C$5:$C$1000=$D$2,ROW($A$5:$A$1000)-ROW($A$5)+1),ROWS($A$5:E81)))="","",INDEX('يومية الصندوق'!$G$5:$G$1000,SMALL(IF('يومية الصندوق'!$C$5:$C$1000=$D$2,ROW($A$5:$A$1000)-ROW($A$5)+1),ROWS($A$5:E81)))),"") -> 
A82: =IFERROR(INDEX('يومية الصندوق'!$A$5:$A$1000,SMALL(IF('يومية الصندوق'!$C$5:$C$1000=$D$2,ROW($A$5:$A$1000)-ROW($A$5)+1),ROWS($A$5:A82))),"") ->  | B82: =IFERROR(INDEX('يومية الصندوق'!$B$5:$B$1000,SMALL(IF('يومية الصندوق'!$C$5:$C$1000=$D$2,ROW($A$5:$A$1000)-ROW($A$5)+1),ROWS($A$5:B82))),"") ->  | C82: =IFERROR(INDEX('يومية الصندوق'!$D$5:$D$1000,SMALL(IF('يومية الصندوق'!$C$5:$C$1000=$D$2,ROW($A$5:$A$1000)-ROW($A$5)+1),ROWS($A$5:C82))),"") ->  | D82: =IFERROR(INDEX('يومية الصندوق'!$E$5:$E$1000,SMALL(IF('يومية الصندوق'!$C$5:$C$1000=$D$2,ROW($A$5:$A$1000)-ROW($A$5)+1),ROWS($A$5:D82))),"") ->  | E82: =IFERROR(IF(INDEX('يومية الصندوق'!$G$5:$G$1000,SMALL(IF('يومية الصندوق'!$C$5:$C$1000=$D$2,ROW($A$5:$A$1000)-ROW($A$5)+1),ROWS($A$5:E82)))="","",INDEX('يومية الصندوق'!$G$5:$G$1000,SMALL(IF('يومية الصندوق'!$C$5:$C$1000=$D$2,ROW($A$5:$A$1000)-ROW($A$5)+1),ROWS($A$5:E82)))),"") -> 
A83: =IFERROR(INDEX('يومية الصندوق'!$A$5:$A$1000,SMALL(IF('يومية الصندوق'!$C$5:$C$1000=$D$2,ROW($A$5:$A$1000)-ROW($A$5)+1),ROWS($A$5:A83))),"") ->  | B83: =IFERROR(INDEX('يومية الصندوق'!$B$5:$B$1000,SMALL(IF('يومية الصندوق'!$C$5:$C$1000=$D$2,ROW($A$5:$A$1000)-ROW($A$5)+1),ROWS($A$5:B83))),"") ->  | C83: =IFERROR(INDEX('يومية الصندوق'!$D$5:$D$1000,SMALL(IF('يومية الصندوق'!$C$5:$C$1000=$D$2,ROW($A$5:$A$1000)-ROW($A$5)+1),ROWS($A$5:C83))),"") ->  | D83: =IFERROR(INDEX('يومية الصندوق'!$E$5:$E$1000,SMALL(IF('يومية الصندوق'!$C$5:$C$1000=$D$2,ROW($A$5:$A$1000)-ROW($A$5)+1),ROWS($A$5:D83))),"") ->  | E83: =IFERROR(IF(INDEX('يومية الصندوق'!$G$5:$G$1000,SMALL(IF('يومية الصندوق'!$C$5:$C$1000=$D$2,ROW($A$5:$A$1000)-ROW($A$5)+1),ROWS($A$5:E83)))="","",INDEX('يومية الصندوق'!$G$5:$G$1000,SMALL(IF('يومية الصندوق'!$C$5:$C$1000=$D$2,ROW($A$5:$A$1000)-ROW($A$5)+1),ROWS($A$5:E83)))),"") -> 
A84: =IFERROR(INDEX('يومية الصندوق'!$A$5:$A$1000,SMALL(IF('يومية الصندوق'!$C$5:$C$1000=$D$2,ROW($A$5:$A$1000)-ROW($A$5)+1),ROWS($A$5:A84))),"") ->  | B84: =IFERROR(INDEX('يومية الصندوق'!$B$5:$B$1000,SMALL(IF('يومية الصندوق'!$C$5:$C$1000=$D$2,ROW($A$5:$A$1000)-ROW($A$5)+1),ROWS($A$5:B84))),"") ->  | C84: =IFERROR(INDEX('يومية الصندوق'!$D$5:$D$1000,SMALL(IF('يومية الصندوق'!$C$5:$C$1000=$D$2,ROW($A$5:$A$1000)-ROW($A$5)+1),ROWS($A$5:C84))),"") ->  | D84: =IFERROR(INDEX('يومية الصندوق'!$E$5:$E$1000,SMALL(IF('يومية الصندوق'!$C$5:$C$1000=$D$2,ROW($A$5:$A$1000)-ROW($A$5)+1),ROWS($A$5:D84))),"") ->  | E84: =IFERROR(IF(INDEX('يومية الصندوق'!$G$5:$G$1000,SMALL(IF('يومية الصندوق'!$C$5:$C$1000=$D$2,ROW($A$5:$A$1000)-ROW($A$5)+1),ROWS($A$5:E84)))="","",INDEX('يومية الصندوق'!$G$5:$G$1000,SMALL(IF('يومية الصندوق'!$C$5:$C$1000=$D$2,ROW($A$5:$A$1000)-ROW($A$5)+1),ROWS($A$5:E84)))),"") -> 
A85: =IFERROR(INDEX('يومية الصندوق'!$A$5:$A$1000,SMALL(IF('يومية الصندوق'!$C$5:$C$1000=$D$2,ROW($A$5:$A$1000)-ROW($A$5)+1),ROWS($A$5:A85))),"") ->  | B85: =IFERROR(INDEX('يومية الصندوق'!$B$5:$B$1000,SMALL(IF('يومية الصندوق'!$C$5:$C$1000=$D$2,ROW($A$5:$A$1000)-ROW($A$5)+1),ROWS($A$5:B85))),"") ->  | C85: =IFERROR(INDEX('يومية الصندوق'!$D$5:$D$1000,SMALL(IF('يومية الصندوق'!$C$5:$C$1000=$D$2,ROW($A$5:$A$1000)-ROW($A$5)+1),ROWS($A$5:C85))),"") ->  | D85: =IFERROR(INDEX('يومية الصندوق'!$E$5:$E$1000,SMALL(IF('يومية الصندوق'!$C$5:$C$1000=$D$2,ROW($A$5:$A$1000)-ROW($A$5)+1),ROWS($A$5:D85))),"") ->  | E85: =IFERROR(IF(INDEX('يومية الصندوق'!$G$5:$G$1000,SMALL(IF('يومية الصندوق'!$C$5:$C$1000=$D$2,ROW($A$5:$A$1000)-ROW($A$5)+1),ROWS($A$5:E85)))="","",INDEX('يومية الصندوق'!$G$5:$G$1000,SMALL(IF('يومية الصندوق'!$C$5:$C$1000=$D$2,ROW($A$5:$A$1000)-ROW($A$5)+1),ROWS($A$5:E85)))),"") -> 
A86: =IFERROR(INDEX('يومية الصندوق'!$A$5:$A$1000,SMALL(IF('يومية الصندوق'!$C$5:$C$1000=$D$2,ROW($A$5:$A$1000)-ROW($A$5)+1),ROWS($A$5:A86))),"") ->  | B86: =IFERROR(INDEX('يومية الصندوق'!$B$5:$B$1000,SMALL(IF('يومية الصندوق'!$C$5:$C$1000=$D$2,ROW($A$5:$A$1000)-ROW($A$5)+1),ROWS($A$5:B86))),"") ->  | C86: =IFERROR(INDEX('يومية الصندوق'!$D$5:$D$1000,SMALL(IF('يومية الصندوق'!$C$5:$C$1000=$D$2,ROW($A$5:$A$1000)-ROW($A$5)+1),ROWS($A$5:C86))),"") ->  | D86: =IFERROR(INDEX('يومية الصندوق'!$E$5:$E$1000,SMALL(IF('يومية الصندوق'!$C$5:$C$1000=$D$2,ROW($A$5:$A$1000)-ROW($A$5)+1),ROWS($A$5:D86))),"") ->  | E86: =IFERROR(IF(INDEX('يومية الصندوق'!$G$5:$G$1000,SMALL(IF('يومية الصندوق'!$C$5:$C$1000=$D$2,ROW($A$5:$A$1000)-ROW($A$5)+1),ROWS($A$5:E86)))="","",INDEX('يومية الصندوق'!$G$5:$G$1000,SMALL(IF('يومية الصندوق'!$C$5:$C$1000=$D$2,ROW($A$5:$A$1000)-ROW($A$5)+1),ROWS($A$5:E86)))),"") -> 
A87: =IFERROR(INDEX('يومية الصندوق'!$A$5:$A$1000,SMALL(IF('يومية الصندوق'!$C$5:$C$1000=$D$2,ROW($A$5:$A$1000)-ROW($A$5)+1),ROWS($A$5:A87))),"") ->  | B87: =IFERROR(INDEX('يومية الصندوق'!$B$5:$B$1000,SMALL(IF('يومية الصندوق'!$C$5:$C$1000=$D$2,ROW($A$5:$A$1000)-ROW($A$5)+1),ROWS($A$5:B87))),"") ->  | C87: =IFERROR(INDEX('يومية الصندوق'!$D$5:$D$1000,SMALL(IF('يومية الصندوق'!$C$5:$C$1000=$D$2,ROW($A$5:$A$1000)-ROW($A$5)+1),ROWS($A$5:C87))),"") ->  | D87: =IFERROR(INDEX('يومية الصندوق'!$E$5:$E$1000,SMALL(IF('يومية الصندوق'!$C$5:$C$1000=$D$2,ROW($A$5:$A$1000)-ROW($A$5)+1),ROWS($A$5:D87))),"") ->  | E87: =IFERROR(IF(INDEX('يومية الصندوق'!$G$5:$G$1000,SMALL(IF('يومية الصندوق'!$C$5:$C$1000=$D$2,ROW($A$5:$A$1000)-ROW($A$5)+1),ROWS($A$5:E87)))="","",INDEX('يومية الصندوق'!$G$5:$G$1000,SMALL(IF('يومية الصندوق'!$C$5:$C$1000=$D$2,ROW($A$5:$A$1000)-ROW($A$5)+1),ROWS($A$5:E87)))),"") -> 
A88: =IFERROR(INDEX('يومية الصندوق'!$A$5:$A$1000,SMALL(IF('يومية الصندوق'!$C$5:$C$1000=$D$2,ROW($A$5:$A$1000)-ROW($A$5)+1),ROWS($A$5:A88))),"") ->  | B88: =IFERROR(INDEX('يومية الصندوق'!$B$5:$B$1000,SMALL(IF('يومية الصندوق'!$C$5:$C$1000=$D$2,ROW($A$5:$A$1000)-ROW($A$5)+1),ROWS($A$5:B88))),"") ->  | C88: =IFERROR(INDEX('يومية الصندوق'!$D$5:$D$1000,SMALL(IF('يومية الصندوق'!$C$5:$C$1000=$D$2,ROW($A$5:$A$1000)-ROW($A$5)+1),ROWS($A$5:C88))),"") ->  | D88: =IFERROR(INDEX('يومية الصندوق'!$E$5:$E$1000,SMALL(IF('يومية الصندوق'!$C$5:$C$1000=$D$2,ROW($A$5:$A$1000)-ROW($A$5)+1),ROWS($A$5:D88))),"") ->  | E88: =IFERROR(IF(INDEX('يومية الصندوق'!$G$5:$G$1000,SMALL(IF('يومية الصندوق'!$C$5:$C$1000=$D$2,ROW($A$5:$A$1000)-ROW($A$5)+1),ROWS($A$5:E88)))="","",INDEX('يومية الصندوق'!$G$5:$G$1000,SMALL(IF('يومية الصندوق'!$C$5:$C$1000=$D$2,ROW($A$5:$A$1000)-ROW($A$5)+1),ROWS($A$5:E88)))),"") -> 
A89: =IFERROR(INDEX('يومية الصندوق'!$A$5:$A$1000,SMALL(IF('يومية الصندوق'!$C$5:$C$1000=$D$2,ROW($A$5:$A$1000)-ROW($A$5)+1),ROWS($A$5:A89))),"") ->  | B89: =IFERROR(INDEX('يومية الصندوق'!$B$5:$B$1000,SMALL(IF('يومية الصندوق'!$C$5:$C$1000=$D$2,ROW($A$5:$A$1000)-ROW($A$5)+1),ROWS($A$5:B89))),"") ->  | C89: =IFERROR(INDEX('يومية الصندوق'!$D$5:$D$1000,SMALL(IF('يومية الصندوق'!$C$5:$C$1000=$D$2,ROW($A$5:$A$1000)-ROW($A$5)+1),ROWS($A$5:C89))),"") ->  | D89: =IFERROR(INDEX('يومية الصندوق'!$E$5:$E$1000,SMALL(IF('يومية الصندوق'!$C$5:$C$1000=$D$2,ROW($A$5:$A$1000)-ROW($A$5)+1),ROWS($A$5:D89))),"") ->  | E89: =IFERROR(IF(INDEX('يومية الصندوق'!$G$5:$G$1000,SMALL(IF('يومية الصندوق'!$C$5:$C$1000=$D$2,ROW($A$5:$A$1000)-ROW($A$5)+1),ROWS($A$5:E89)))="","",INDEX('يومية الصندوق'!$G$5:$G$1000,SMALL(IF('يومية الصندوق'!$C$5:$C$1000=$D$2,ROW($A$5:$A$1000)-ROW($A$5)+1),ROWS($A$5:E89)))),"") -> 
A90: =IFERROR(INDEX('يومية الصندوق'!$A$5:$A$1000,SMALL(IF('يومية الصندوق'!$C$5:$C$1000=$D$2,ROW($A$5:$A$1000)-ROW($A$5)+1),ROWS($A$5:A90))),"") ->  | B90: =IFERROR(INDEX('يومية الصندوق'!$B$5:$B$1000,SMALL(IF('يومية الصندوق'!$C$5:$C$1000=$D$2,ROW($A$5:$A$1000)-ROW($A$5)+1),ROWS($A$5:B90))),"") ->  | C90: =IFERROR(INDEX('يومية الصندوق'!$D$5:$D$1000,SMALL(IF('يومية الصندوق'!$C$5:$C$1000=$D$2,ROW($A$5:$A$1000)-ROW($A$5)+1),ROWS($A$5:C90))),"") ->  | D90: =IFERROR(INDEX('يومية الصندوق'!$E$5:$E$1000,SMALL(IF('يومية الصندوق'!$C$5:$C$1000=$D$2,ROW($A$5:$A$1000)-ROW($A$5)+1),ROWS($A$5:D90))),"") ->  | E90: =IFERROR(IF(INDEX('يومية الصندوق'!$G$5:$G$1000,SMALL(IF('يومية الصندوق'!$C$5:$C$1000=$D$2,ROW($A$5:$A$1000)-ROW($A$5)+1),ROWS($A$5:E90)))="","",INDEX('يومية الصندوق'!$G$5:$G$1000,SMALL(IF('يومية الصندوق'!$C$5:$C$1000=$D$2,ROW($A$5:$A$1000)-ROW($A$5)+1),ROWS($A$5:E90)))),"") -> 
A91: =IFERROR(INDEX('يومية الصندوق'!$A$5:$A$1000,SMALL(IF('يومية الصندوق'!$C$5:$C$1000=$D$2,ROW($A$5:$A$1000)-ROW($A$5)+1),ROWS($A$5:A91))),"") ->  | B91: =IFERROR(INDEX('يومية الصندوق'!$B$5:$B$1000,SMALL(IF('يومية الصندوق'!$C$5:$C$1000=$D$2,ROW($A$5:$A$1000)-ROW($A$5)+1),ROWS($A$5:B91))),"") ->  | C91: =IFERROR(INDEX('يومية الصندوق'!$D$5:$D$1000,SMALL(IF('يومية الصندوق'!$C$5:$C$1000=$D$2,ROW($A$5:$A$1000)-ROW($A$5)+1),ROWS($A$5:C91))),"") ->  | D91: =IFERROR(INDEX('يومية الصندوق'!$E$5:$E$1000,SMALL(IF('يومية الصندوق'!$C$5:$C$1000=$D$2,ROW($A$5:$A$1000)-ROW($A$5)+1),ROWS($A$5:D91))),"") ->  | E91: =IFERROR(IF(INDEX('يومية الصندوق'!$G$5:$G$1000,SMALL(IF('يومية الصندوق'!$C$5:$C$1000=$D$2,ROW($A$5:$A$1000)-ROW($A$5)+1),ROWS($A$5:E91)))="","",INDEX('يومية الصندوق'!$G$5:$G$1000,SMALL(IF('يومية الصندوق'!$C$5:$C$1000=$D$2,ROW($A$5:$A$1000)-ROW($A$5)+1),ROWS($A$5:E91)))),"") -> 
A92: =IFERROR(INDEX('يومية الصندوق'!$A$5:$A$1000,SMALL(IF('يومية الصندوق'!$C$5:$C$1000=$D$2,ROW($A$5:$A$1000)-ROW($A$5)+1),ROWS($A$5:A92))),"") ->  | B92: =IFERROR(INDEX('يومية الصندوق'!$B$5:$B$1000,SMALL(IF('يومية الصندوق'!$C$5:$C$1000=$D$2,ROW($A$5:$A$1000)-ROW($A$5)+1),ROWS($A$5:B92))),"") ->  | C92: =IFERROR(INDEX('يومية الصندوق'!$D$5:$D$1000,SMALL(IF('يومية الصندوق'!$C$5:$C$1000=$D$2,ROW($A$5:$A$1000)-ROW($A$5)+1),ROWS($A$5:C92))),"") ->  | D92: =IFERROR(INDEX('يومية الصندوق'!$E$5:$E$1000,SMALL(IF('يومية الصندوق'!$C$5:$C$1000=$D$2,ROW($A$5:$A$1000)-ROW($A$5)+1),ROWS($A$5:D92))),"") ->  | E92: =IFERROR(IF(INDEX('يومية الصندوق'!$G$5:$G$1000,SMALL(IF('يومية الصندوق'!$C$5:$C$1000=$D$2,ROW($A$5:$A$1000)-ROW($A$5)+1),ROWS($A$5:E92)))="","",INDEX('يومية الصندوق'!$G$5:$G$1000,SMALL(IF('يومية الصندوق'!$C$5:$C$1000=$D$2,ROW($A$5:$A$1000)-ROW($A$5)+1),ROWS($A$5:E92)))),"") -> 
A93: =IFERROR(INDEX('يومية الصندوق'!$A$5:$A$1000,SMALL(IF('يومية الصندوق'!$C$5:$C$1000=$D$2,ROW($A$5:$A$1000)-ROW($A$5)+1),ROWS($A$5:A93))),"") ->  | B93: =IFERROR(INDEX('يومية الصندوق'!$B$5:$B$1000,SMALL(IF('يومية الصندوق'!$C$5:$C$1000=$D$2,ROW($A$5:$A$1000)-ROW($A$5)+1),ROWS($A$5:B93))),"") ->  | C93: =IFERROR(INDEX('يومية الصندوق'!$D$5:$D$1000,SMALL(IF('يومية الصندوق'!$C$5:$C$1000=$D$2,ROW($A$5:$A$1000)-ROW($A$5)+1),ROWS($A$5:C93))),"") ->  | D93: =IFERROR(INDEX('يومية الصندوق'!$E$5:$E$1000,SMALL(IF('يومية الصندوق'!$C$5:$C$1000=$D$2,ROW($A$5:$A$1000)-ROW($A$5)+1),ROWS($A$5:D93))),"") ->  | E93: =IFERROR(IF(INDEX('يومية الصندوق'!$G$5:$G$1000,SMALL(IF('يومية الصندوق'!$C$5:$C$1000=$D$2,ROW($A$5:$A$1000)-ROW($A$5)+1),ROWS($A$5:E93)))="","",INDEX('يومية الصندوق'!$G$5:$G$1000,SMALL(IF('يومية الصندوق'!$C$5:$C$1000=$D$2,ROW($A$5:$A$1000)-ROW($A$5)+1),ROWS($A$5:E93)))),"") -> 
A94: =IFERROR(INDEX('يومية الصندوق'!$A$5:$A$1000,SMALL(IF('يومية الصندوق'!$C$5:$C$1000=$D$2,ROW($A$5:$A$1000)-ROW($A$5)+1),ROWS($A$5:A94))),"") ->  | B94: =IFERROR(INDEX('يومية الصندوق'!$B$5:$B$1000,SMALL(IF('يومية الصندوق'!$C$5:$C$1000=$D$2,ROW($A$5:$A$1000)-ROW($A$5)+1),ROWS($A$5:B94))),"") ->  | C94: =IFERROR(INDEX('يومية الصندوق'!$D$5:$D$1000,SMALL(IF('يومية الصندوق'!$C$5:$C$1000=$D$2,ROW($A$5:$A$1000)-ROW($A$5)+1),ROWS($A$5:C94))),"") ->  | D94: =IFERROR(INDEX('يومية الصندوق'!$E$5:$E$1000,SMALL(IF('يومية الصندوق'!$C$5:$C$1000=$D$2,ROW($A$5:$A$1000)-ROW($A$5)+1),ROWS($A$5:D94))),"") ->  | E94: =IFERROR(IF(INDEX('يومية الصندوق'!$G$5:$G$1000,SMALL(IF('يومية الصندوق'!$C$5:$C$1000=$D$2,ROW($A$5:$A$1000)-ROW($A$5)+1),ROWS($A$5:E94)))="","",INDEX('يومية الصندوق'!$G$5:$G$1000,SMALL(IF('يومية الصندوق'!$C$5:$C$1000=$D$2,ROW($A$5:$A$1000)-ROW($A$5)+1),ROWS($A$5:E94)))),"") -> 
A95: =IFERROR(INDEX('يومية الصندوق'!$A$5:$A$1000,SMALL(IF('يومية الصندوق'!$C$5:$C$1000=$D$2,ROW($A$5:$A$1000)-ROW($A$5)+1),ROWS($A$5:A95))),"") ->  | B95: =IFERROR(INDEX('يومية الصندوق'!$B$5:$B$1000,SMALL(IF('يومية الصندوق'!$C$5:$C$1000=$D$2,ROW($A$5:$A$1000)-ROW($A$5)+1),ROWS($A$5:B95))),"") ->  | C95: =IFERROR(INDEX('يومية الصندوق'!$D$5:$D$1000,SMALL(IF('يومية الصندوق'!$C$5:$C$1000=$D$2,ROW($A$5:$A$1000)-ROW($A$5)+1),ROWS($A$5:C95))),"") ->  | D95: =IFERROR(INDEX('يومية الصندوق'!$E$5:$E$1000,SMALL(IF('يومية الصندوق'!$C$5:$C$1000=$D$2,ROW($A$5:$A$1000)-ROW($A$5)+1),ROWS($A$5:D95))),"") ->  | E95: =IFERROR(IF(INDEX('يومية الصندوق'!$G$5:$G$1000,SMALL(IF('يومية الصندوق'!$C$5:$C$1000=$D$2,ROW($A$5:$A$1000)-ROW($A$5)+1),ROWS($A$5:E95)))="","",INDEX('يومية الصندوق'!$G$5:$G$1000,SMALL(IF('يومية الصندوق'!$C$5:$C$1000=$D$2,ROW($A$5:$A$1000)-ROW($A$5)+1),ROWS($A$5:E95)))),"") -> 
A96: =IFERROR(INDEX('يومية الصندوق'!$A$5:$A$1000,SMALL(IF('يومية الصندوق'!$C$5:$C$1000=$D$2,ROW($A$5:$A$1000)-ROW($A$5)+1),ROWS($A$5:A96))),"") ->  | B96: =IFERROR(INDEX('يومية الصندوق'!$B$5:$B$1000,SMALL(IF('يومية الصندوق'!$C$5:$C$1000=$D$2,ROW($A$5:$A$1000)-ROW($A$5)+1),ROWS($A$5:B96))),"") ->  | C96: =IFERROR(INDEX('يومية الصندوق'!$D$5:$D$1000,SMALL(IF('يومية الصندوق'!$C$5:$C$1000=$D$2,ROW($A$5:$A$1000)-ROW($A$5)+1),ROWS($A$5:C96))),"") ->  | D96: =IFERROR(INDEX('يومية الصندوق'!$E$5:$E$1000,SMALL(IF('يومية الصندوق'!$C$5:$C$1000=$D$2,ROW($A$5:$A$1000)-ROW($A$5)+1),ROWS($A$5:D96))),"") ->  | E96: =IFERROR(IF(INDEX('يومية الصندوق'!$G$5:$G$1000,SMALL(IF('يومية الصندوق'!$C$5:$C$1000=$D$2,ROW($A$5:$A$1000)-ROW($A$5)+1),ROWS($A$5:E96)))="","",INDEX('يومية الصندوق'!$G$5:$G$1000,SMALL(IF('يومية الصندوق'!$C$5:$C$1000=$D$2,ROW($A$5:$A$1000)-ROW($A$5)+1),ROWS($A$5:E96)))),"") -> 
A97: =IFERROR(INDEX('يومية الصندوق'!$A$5:$A$1000,SMALL(IF('يومية الصندوق'!$C$5:$C$1000=$D$2,ROW($A$5:$A$1000)-ROW($A$5)+1),ROWS($A$5:A97))),"") ->  | B97: =IFERROR(INDEX('يومية الصندوق'!$B$5:$B$1000,SMALL(IF('يومية الصندوق'!$C$5:$C$1000=$D$2,ROW($A$5:$A$1000)-ROW($A$5)+1),ROWS($A$5:B97))),"") ->  | C97: =IFERROR(INDEX('يومية الصندوق'!$D$5:$D$1000,SMALL(IF('يومية الصندوق'!$C$5:$C$1000=$D$2,ROW($A$5:$A$1000)-ROW($A$5)+1),ROWS($A$5:C97))),"") ->  | D97: =IFERROR(INDEX('يومية الصندوق'!$E$5:$E$1000,SMALL(IF('يومية الصندوق'!$C$5:$C$1000=$D$2,ROW($A$5:$A$1000)-ROW($A$5)+1),ROWS($A$5:D97))),"") ->  | E97: =IFERROR(IF(INDEX('يومية الصندوق'!$G$5:$G$1000,SMALL(IF('يومية الصندوق'!$C$5:$C$1000=$D$2,ROW($A$5:$A$1000)-ROW($A$5)+1),ROWS($A$5:E97)))="","",INDEX('يومية الصندوق'!$G$5:$G$1000,SMALL(IF('يومية الصندوق'!$C$5:$C$1000=$D$2,ROW($A$5:$A$1000)-ROW($A$5)+1),ROWS($A$5:E97)))),"") -> 
A98: =IFERROR(INDEX('يومية الصندوق'!$A$5:$A$1000,SMALL(IF('يومية الصندوق'!$C$5:$C$1000=$D$2,ROW($A$5:$A$1000)-ROW($A$5)+1),ROWS($A$5:A98))),"") ->  | B98: =IFERROR(INDEX('يومية الصندوق'!$B$5:$B$1000,SMALL(IF('يومية الصندوق'!$C$5:$C$1000=$D$2,ROW($A$5:$A$1000)-ROW($A$5)+1),ROWS($A$5:B98))),"") ->  | C98: =IFERROR(INDEX('يومية الصندوق'!$D$5:$D$1000,SMALL(IF('يومية الصندوق'!$C$5:$C$1000=$D$2,ROW($A$5:$A$1000)-ROW($A$5)+1),ROWS($A$5:C98))),"") ->  | D98: =IFERROR(INDEX('يومية الصندوق'!$E$5:$E$1000,SMALL(IF('يومية الصندوق'!$C$5:$C$1000=$D$2,ROW($A$5:$A$1000)-ROW($A$5)+1),ROWS($A$5:D98))),"") ->  | E98: =IFERROR(IF(INDEX('يومية الصندوق'!$G$5:$G$1000,SMALL(IF('يومية الصندوق'!$C$5:$C$1000=$D$2,ROW($A$5:$A$1000)-ROW($A$5)+1),ROWS($A$5:E98)))="","",INDEX('يومية الصندوق'!$G$5:$G$1000,SMALL(IF('يومية الصندوق'!$C$5:$C$1000=$D$2,ROW($A$5:$A$1000)-ROW($A$5)+1),ROWS($A$5:E98)))),"") -> 
A99: =IFERROR(INDEX('يومية الصندوق'!$A$5:$A$1000,SMALL(IF('يومية الصندوق'!$C$5:$C$1000=$D$2,ROW($A$5:$A$1000)-ROW($A$5)+1),ROWS($A$5:A99))),"") ->  | B99: =IFERROR(INDEX('يومية الصندوق'!$B$5:$B$1000,SMALL(IF('يومية الصندوق'!$C$5:$C$1000=$D$2,ROW($A$5:$A$1000)-ROW($A$5)+1),ROWS($A$5:B99))),"") ->  | C99: =IFERROR(INDEX('يومية الصندوق'!$D$5:$D$1000,SMALL(IF('يومية الصندوق'!$C$5:$C$1000=$D$2,ROW($A$5:$A$1000)-ROW($A$5)+1),ROWS($A$5:C99))),"") ->  | D99: =IFERROR(INDEX('يومية الصندوق'!$E$5:$E$1000,SMALL(IF('يومية الصندوق'!$C$5:$C$1000=$D$2,ROW($A$5:$A$1000)-ROW($A$5)+1),ROWS($A$5:D99))),"") ->  | E99: =IFERROR(IF(INDEX('يومية الصندوق'!$G$5:$G$1000,SMALL(IF('يومية الصندوق'!$C$5:$C$1000=$D$2,ROW($A$5:$A$1000)-ROW($A$5)+1),ROWS($A$5:E99)))="","",INDEX('يومية الصندوق'!$G$5:$G$1000,SMALL(IF('يومية الصندوق'!$C$5:$C$1000=$D$2,ROW($A$5:$A$1000)-ROW($A$5)+1),ROWS($A$5:E99)))),"") -> 
A100: =IFERROR(INDEX('يومية الصندوق'!$A$5:$A$1000,SMALL(IF('يومية الصندوق'!$C$5:$C$1000=$D$2,ROW($A$5:$A$1000)-ROW($A$5)+1),ROWS($A$5:A100))),"") ->  | B100: =IFERROR(INDEX('يومية الصندوق'!$B$5:$B$1000,SMALL(IF('يومية الصندوق'!$C$5:$C$1000=$D$2,ROW($A$5:$A$1000)-ROW($A$5)+1),ROWS($A$5:B100))),"") ->  | C100: =IFERROR(INDEX('يومية الصندوق'!$D$5:$D$1000,SMALL(IF('يومية الصندوق'!$C$5:$C$1000=$D$2,ROW($A$5:$A$1000)-ROW($A$5)+1),ROWS($A$5:C100))),"") ->  | D100: =IFERROR(INDEX('يومية الصندوق'!$E$5:$E$1000,SMALL(IF('يومية الصندوق'!$C$5:$C$1000=$D$2,ROW($A$5:$A$1000)-ROW($A$5)+1),ROWS($A$5:D100))),"") ->  | E100: =IFERROR(IF(INDEX('يومية الصندوق'!$G$5:$G$1000,SMALL(IF('يومية الصندوق'!$C$5:$C$1000=$D$2,ROW($A$5:$A$1000)-ROW($A$5)+1),ROWS($A$5:E100)))="","",INDEX('يومية الصندوق'!$G$5:$G$1000,SMALL(IF('يومية الصندوق'!$C$5:$C$1000=$D$2,ROW($A$5:$A$1000)-ROW($A$5)+1),ROWS($A$5:E100)))),"") -> 
A101: =IFERROR(INDEX('يومية الصندوق'!$A$5:$A$1000,SMALL(IF('يومية الصندوق'!$C$5:$C$1000=$D$2,ROW($A$5:$A$1000)-ROW($A$5)+1),ROWS($A$5:A101))),"") ->  | B101: =IFERROR(INDEX('يومية الصندوق'!$B$5:$B$1000,SMALL(IF('يومية الصندوق'!$C$5:$C$1000=$D$2,ROW($A$5:$A$1000)-ROW($A$5)+1),ROWS($A$5:B101))),"") ->  | C101: =IFERROR(INDEX('يومية الصندوق'!$D$5:$D$1000,SMALL(IF('يومية الصندوق'!$C$5:$C$1000=$D$2,ROW($A$5:$A$1000)-ROW($A$5)+1),ROWS($A$5:C101))),"") ->  | D101: =IFERROR(INDEX('يومية الصندوق'!$E$5:$E$1000,SMALL(IF('يومية الصندوق'!$C$5:$C$1000=$D$2,ROW($A$5:$A$1000)-ROW($A$5)+1),ROWS($A$5:D101))),"") ->  | E101: =IFERROR(IF(INDEX('يومية الصندوق'!$G$5:$G$1000,SMALL(IF('يومية الصندوق'!$C$5:$C$1000=$D$2,ROW($A$5:$A$1000)-ROW($A$5)+1),ROWS($A$5:E101)))="","",INDEX('يومية الصندوق'!$G$5:$G$1000,SMALL(IF('يومية الصندوق'!$C$5:$C$1000=$D$2,ROW($A$5:$A$1000)-ROW($A$5)+1),ROWS($A$5:E101)))),"") -> 
A102: =IFERROR(INDEX('يومية الصندوق'!$A$5:$A$1000,SMALL(IF('يومية الصندوق'!$C$5:$C$1000=$D$2,ROW($A$5:$A$1000)-ROW($A$5)+1),ROWS($A$5:A102))),"") ->  | B102: =IFERROR(INDEX('يومية الصندوق'!$B$5:$B$1000,SMALL(IF('يومية الصندوق'!$C$5:$C$1000=$D$2,ROW($A$5:$A$1000)-ROW($A$5)+1),ROWS($A$5:B102))),"") ->  | C102: =IFERROR(INDEX('يومية الصندوق'!$D$5:$D$1000,SMALL(IF('يومية الصندوق'!$C$5:$C$1000=$D$2,ROW($A$5:$A$1000)-ROW($A$5)+1),ROWS($A$5:C102))),"") ->  | D102: =IFERROR(INDEX('يومية الصندوق'!$E$5:$E$1000,SMALL(IF('يومية الصندوق'!$C$5:$C$1000=$D$2,ROW($A$5:$A$1000)-ROW($A$5)+1),ROWS($A$5:D102))),"") ->  | E102: =IFERROR(IF(INDEX('يومية الصندوق'!$G$5:$G$1000,SMALL(IF('يومية الصندوق'!$C$5:$C$1000=$D$2,ROW($A$5:$A$1000)-ROW($A$5)+1),ROWS($A$5:E102)))="","",INDEX('يومية الصندوق'!$G$5:$G$1000,SMALL(IF('يومية الصندوق'!$C$5:$C$1000=$D$2,ROW($A$5:$A$1000)-ROW($A$5)+1),ROWS($A$5:E102)))),"") -> 
A103: =IFERROR(INDEX('يومية الصندوق'!$A$5:$A$1000,SMALL(IF('يومية الصندوق'!$C$5:$C$1000=$D$2,ROW($A$5:$A$1000)-ROW($A$5)+1),ROWS($A$5:A103))),"") ->  | B103: =IFERROR(INDEX('يومية الصندوق'!$B$5:$B$1000,SMALL(IF('يومية الصندوق'!$C$5:$C$1000=$D$2,ROW($A$5:$A$1000)-ROW($A$5)+1),ROWS($A$5:B103))),"") ->  | C103: =IFERROR(INDEX('يومية الصندوق'!$D$5:$D$1000,SMALL(IF('يومية الصندوق'!$C$5:$C$1000=$D$2,ROW($A$5:$A$1000)-ROW($A$5)+1),ROWS($A$5:C103))),"") ->  | D103: =IFERROR(INDEX('يومية الصندوق'!$E$5:$E$1000,SMALL(IF('يومية الصندوق'!$C$5:$C$1000=$D$2,ROW($A$5:$A$1000)-ROW($A$5)+1),ROWS($A$5:D103))),"") ->  | E103: =IFERROR(IF(INDEX('يومية الصندوق'!$G$5:$G$1000,SMALL(IF('يومية الصندوق'!$C$5:$C$1000=$D$2,ROW($A$5:$A$1000)-ROW($A$5)+1),ROWS($A$5:E103)))="","",INDEX('يومية الصندوق'!$G$5:$G$1000,SMALL(IF('يومية الصندوق'!$C$5:$C$1000=$D$2,ROW($A$5:$A$1000)-ROW($A$5)+1),ROWS($A$5:E103)))),"") -> 
A104: =IFERROR(INDEX('يومية الصندوق'!$A$5:$A$1000,SMALL(IF('يومية الصندوق'!$C$5:$C$1000=$D$2,ROW($A$5:$A$1000)-ROW($A$5)+1),ROWS($A$5:A104))),"") ->  | B104: =IFERROR(INDEX('يومية الصندوق'!$B$5:$B$1000,SMALL(IF('يومية الصندوق'!$C$5:$C$1000=$D$2,ROW($A$5:$A$1000)-ROW($A$5)+1),ROWS($A$5:B104))),"") ->  | C104: =IFERROR(INDEX('يومية الصندوق'!$D$5:$D$1000,SMALL(IF('يومية الصندوق'!$C$5:$C$1000=$D$2,ROW($A$5:$A$1000)-ROW($A$5)+1),ROWS($A$5:C104))),"") ->  | D104: =IFERROR(INDEX('يومية الصندوق'!$E$5:$E$1000,SMALL(IF('يومية الصندوق'!$C$5:$C$1000=$D$2,ROW($A$5:$A$1000)-ROW($A$5)+1),ROWS($A$5:D104))),"") ->  | E104: =IFERROR(IF(INDEX('يومية الصندوق'!$G$5:$G$1000,SMALL(IF('يومية الصندوق'!$C$5:$C$1000=$D$2,ROW($A$5:$A$1000)-ROW($A$5)+1),ROWS($A$5:E104)))="","",INDEX('يومية الصندوق'!$G$5:$G$1000,SMALL(IF('يومية الصندوق'!$C$5:$C$1000=$D$2,ROW($A$5:$A$1000)-ROW($A$5)+1),ROWS($A$5:E104)))),"") -> 
A105: =IFERROR(INDEX('يومية الصندوق'!$A$5:$A$1000,SMALL(IF('يومية الصندوق'!$C$5:$C$1000=$D$2,ROW($A$5:$A$1000)-ROW($A$5)+1),ROWS($A$5:A105))),"") ->  | B105: =IFERROR(INDEX('يومية الصندوق'!$B$5:$B$1000,SMALL(IF('يومية الصندوق'!$C$5:$C$1000=$D$2,ROW($A$5:$A$1000)-ROW($A$5)+1),ROWS($A$5:B105))),"") ->  | C105: =IFERROR(INDEX('يومية الصندوق'!$D$5:$D$1000,SMALL(IF('يومية الصندوق'!$C$5:$C$1000=$D$2,ROW($A$5:$A$1000)-ROW($A$5)+1),ROWS($A$5:C105))),"") ->  | D105: =IFERROR(INDEX('يومية الصندوق'!$E$5:$E$1000,SMALL(IF('يومية الصندوق'!$C$5:$C$1000=$D$2,ROW($A$5:$A$1000)-ROW($A$5)+1),ROWS($A$5:D105))),"") ->  | E105: =IFERROR(IF(INDEX('يومية الصندوق'!$G$5:$G$1000,SMALL(IF('يومية الصندوق'!$C$5:$C$1000=$D$2,ROW($A$5:$A$1000)-ROW($A$5)+1),ROWS($A$5:E105)))="","",INDEX('يومية الصندوق'!$G$5:$G$1000,SMALL(IF('يومية الصندوق'!$C$5:$C$1000=$D$2,ROW($A$5:$A$1000)-ROW($A$5)+1),ROWS($A$5:E105)))),"") -> 
A106: =IFERROR(INDEX('يومية الصندوق'!$A$5:$A$1000,SMALL(IF('يومية الصندوق'!$C$5:$C$1000=$D$2,ROW($A$5:$A$1000)-ROW($A$5)+1),ROWS($A$5:A106))),"") ->  | B106: =IFERROR(INDEX('يومية الصندوق'!$B$5:$B$1000,SMALL(IF('يومية الصندوق'!$C$5:$C$1000=$D$2,ROW($A$5:$A$1000)-ROW($A$5)+1),ROWS($A$5:B106))),"") ->  | C106: =IFERROR(INDEX('يومية الصندوق'!$D$5:$D$1000,SMALL(IF('يومية الصندوق'!$C$5:$C$1000=$D$2,ROW($A$5:$A$1000)-ROW($A$5)+1),ROWS($A$5:C106))),"") ->  | D106: =IFERROR(INDEX('يومية الصندوق'!$E$5:$E$1000,SMALL(IF('يومية الصندوق'!$C$5:$C$1000=$D$2,ROW($A$5:$A$1000)-ROW($A$5)+1),ROWS($A$5:D106))),"") ->  | E106: =IFERROR(IF(INDEX('يومية الصندوق'!$G$5:$G$1000,SMALL(IF('يومية الصندوق'!$C$5:$C$1000=$D$2,ROW($A$5:$A$1000)-ROW($A$5)+1),ROWS($A$5:E106)))="","",INDEX('يومية الصندوق'!$G$5:$G$1000,SMALL(IF('يومية الصندوق'!$C$5:$C$1000=$D$2,ROW($A$5:$A$1000)-ROW($A$5)+1),ROWS($A$5:E106)))),"") -> 
A107: =IFERROR(INDEX('يومية الصندوق'!$A$5:$A$1000,SMALL(IF('يومية الصندوق'!$C$5:$C$1000=$D$2,ROW($A$5:$A$1000)-ROW($A$5)+1),ROWS($A$5:A107))),"") ->  | B107: =IFERROR(INDEX('يومية الصندوق'!$B$5:$B$1000,SMALL(IF('يومية الصندوق'!$C$5:$C$1000=$D$2,ROW($A$5:$A$1000)-ROW($A$5)+1),ROWS($A$5:B107))),"") ->  | C107: =IFERROR(INDEX('يومية الصندوق'!$D$5:$D$1000,SMALL(IF('يومية الصندوق'!$C$5:$C$1000=$D$2,ROW($A$5:$A$1000)-ROW($A$5)+1),ROWS($A$5:C107))),"") ->  | D107: =IFERROR(INDEX('يومية الصندوق'!$E$5:$E$1000,SMALL(IF('يومية الصندوق'!$C$5:$C$1000=$D$2,ROW($A$5:$A$1000)-ROW($A$5)+1),ROWS($A$5:D107))),"") ->  | E107: =IFERROR(IF(INDEX('يومية الصندوق'!$G$5:$G$1000,SMALL(IF('يومية الصندوق'!$C$5:$C$1000=$D$2,ROW($A$5:$A$1000)-ROW($A$5)+1),ROWS($A$5:E107)))="","",INDEX('يومية الصندوق'!$G$5:$G$1000,SMALL(IF('يومية الصندوق'!$C$5:$C$1000=$D$2,ROW($A$5:$A$1000)-ROW($A$5)+1),ROWS($A$5:E107)))),"") -> 
A108: =IFERROR(INDEX('يومية الصندوق'!$A$5:$A$1000,SMALL(IF('يومية الصندوق'!$C$5:$C$1000=$D$2,ROW($A$5:$A$1000)-ROW($A$5)+1),ROWS($A$5:A108))),"") ->  | B108: =IFERROR(INDEX('يومية الصندوق'!$B$5:$B$1000,SMALL(IF('يومية الصندوق'!$C$5:$C$1000=$D$2,ROW($A$5:$A$1000)-ROW($A$5)+1),ROWS($A$5:B108))),"") ->  | C108: =IFERROR(INDEX('يومية الصندوق'!$D$5:$D$1000,SMALL(IF('يومية الصندوق'!$C$5:$C$1000=$D$2,ROW($A$5:$A$1000)-ROW($A$5)+1),ROWS($A$5:C108))),"") ->  | D108: =IFERROR(INDEX('يومية الصندوق'!$E$5:$E$1000,SMALL(IF('يومية الصندوق'!$C$5:$C$1000=$D$2,ROW($A$5:$A$1000)-ROW($A$5)+1),ROWS($A$5:D108))),"") ->  | E108: =IFERROR(IF(INDEX('يومية الصندوق'!$G$5:$G$1000,SMALL(IF('يومية الصندوق'!$C$5:$C$1000=$D$2,ROW($A$5:$A$1000)-ROW($A$5)+1),ROWS($A$5:E108)))="","",INDEX('يومية الصندوق'!$G$5:$G$1000,SMALL(IF('يومية الصندوق'!$C$5:$C$1000=$D$2,ROW($A$5:$A$1000)-ROW($A$5)+1),ROWS($A$5:E108)))),"") -> 
A109: =IFERROR(INDEX('يومية الصندوق'!$A$5:$A$1000,SMALL(IF('يومية الصندوق'!$C$5:$C$1000=$D$2,ROW($A$5:$A$1000)-ROW($A$5)+1),ROWS($A$5:A109))),"") ->  | B109: =IFERROR(INDEX('يومية الصندوق'!$B$5:$B$1000,SMALL(IF('يومية الصندوق'!$C$5:$C$1000=$D$2,ROW($A$5:$A$1000)-ROW($A$5)+1),ROWS($A$5:B109))),"") ->  | C109: =IFERROR(INDEX('يومية الصندوق'!$D$5:$D$1000,SMALL(IF('يومية الصندوق'!$C$5:$C$1000=$D$2,ROW($A$5:$A$1000)-ROW($A$5)+1),ROWS($A$5:C109))),"") ->  | D109: =IFERROR(INDEX('يومية الصندوق'!$E$5:$E$1000,SMALL(IF('يومية الصندوق'!$C$5:$C$1000=$D$2,ROW($A$5:$A$1000)-ROW($A$5)+1),ROWS($A$5:D109))),"") ->  | E109: =IFERROR(IF(INDEX('يومية الصندوق'!$G$5:$G$1000,SMALL(IF('يومية الصندوق'!$C$5:$C$1000=$D$2,ROW($A$5:$A$1000)-ROW($A$5)+1),ROWS($A$5:E109)))="","",INDEX('يومية الصندوق'!$G$5:$G$1000,SMALL(IF('يومية الصندوق'!$C$5:$C$1000=$D$2,ROW($A$5:$A$1000)-ROW($A$5)+1),ROWS($A$5:E109)))),"") -> 
A110: =IFERROR(INDEX('يومية الصندوق'!$A$5:$A$1000,SMALL(IF('يومية الصندوق'!$C$5:$C$1000=$D$2,ROW($A$5:$A$1000)-ROW($A$5)+1),ROWS($A$5:A110))),"") ->  | B110: =IFERROR(INDEX('يومية الصندوق'!$B$5:$B$1000,SMALL(IF('يومية الصندوق'!$C$5:$C$1000=$D$2,ROW($A$5:$A$1000)-ROW($A$5)+1),ROWS($A$5:B110))),"") ->  | C110: =IFERROR(INDEX('يومية الصندوق'!$D$5:$D$1000,SMALL(IF('يومية الصندوق'!$C$5:$C$1000=$D$2,ROW($A$5:$A$1000)-ROW($A$5)+1),ROWS($A$5:C110))),"") ->  | D110: =IFERROR(INDEX('يومية الصندوق'!$E$5:$E$1000,SMALL(IF('يومية الصندوق'!$C$5:$C$1000=$D$2,ROW($A$5:$A$1000)-ROW($A$5)+1),ROWS($A$5:D110))),"") ->  | E110: =IFERROR(IF(INDEX('يومية الصندوق'!$G$5:$G$1000,SMALL(IF('يومية الصندوق'!$C$5:$C$1000=$D$2,ROW($A$5:$A$1000)-ROW($A$5)+1),ROWS($A$5:E110)))="","",INDEX('يومية الصندوق'!$G$5:$G$1000,SMALL(IF('يومية الصندوق'!$C$5:$C$1000=$D$2,ROW($A$5:$A$1000)-ROW($A$5)+1),ROWS($A$5:E110)))),"") -> 
A111: =IFERROR(INDEX('يومية الصندوق'!$A$5:$A$1000,SMALL(IF('يومية الصندوق'!$C$5:$C$1000=$D$2,ROW($A$5:$A$1000)-ROW($A$5)+1),ROWS($A$5:A111))),"") ->  | B111: =IFERROR(INDEX('يومية الصندوق'!$B$5:$B$1000,SMALL(IF('يومية الصندوق'!$C$5:$C$1000=$D$2,ROW($A$5:$A$1000)-ROW($A$5)+1),ROWS($A$5:B111))),"") ->  | C111: =IFERROR(INDEX('يومية الصندوق'!$D$5:$D$1000,SMALL(IF('يومية الصندوق'!$C$5:$C$1000=$D$2,ROW($A$5:$A$1000)-ROW($A$5)+1),ROWS($A$5:C111))),"") ->  | D111: =IFERROR(INDEX('يومية الصندوق'!$E$5:$E$1000,SMALL(IF('يومية الصندوق'!$C$5:$C$1000=$D$2,ROW($A$5:$A$1000)-ROW($A$5)+1),ROWS($A$5:D111))),"") ->  | E111: =IFERROR(IF(INDEX('يومية الصندوق'!$G$5:$G$1000,SMALL(IF('يومية الصندوق'!$C$5:$C$1000=$D$2,ROW($A$5:$A$1000)-ROW($A$5)+1),ROWS($A$5:E111)))="","",INDEX('يومية الصندوق'!$G$5:$G$1000,SMALL(IF('يومية الصندوق'!$C$5:$C$1000=$D$2,ROW($A$5:$A$1000)-ROW($A$5)+1),ROWS($A$5:E111)))),"") -> 
A112: =IFERROR(INDEX('يومية الصندوق'!$A$5:$A$1000,SMALL(IF('يومية الصندوق'!$C$5:$C$1000=$D$2,ROW($A$5:$A$1000)-ROW($A$5)+1),ROWS($A$5:A112))),"") ->  | B112: =IFERROR(INDEX('يومية الصندوق'!$B$5:$B$1000,SMALL(IF('يومية الصندوق'!$C$5:$C$1000=$D$2,ROW($A$5:$A$1000)-ROW($A$5)+1),ROWS($A$5:B112))),"") ->  | C112: =IFERROR(INDEX('يومية الصندوق'!$D$5:$D$1000,SMALL(IF('يومية الصندوق'!$C$5:$C$1000=$D$2,ROW($A$5:$A$1000)-ROW($A$5)+1),ROWS($A$5:C112))),"") ->  | D112: =IFERROR(INDEX('يومية الصندوق'!$E$5:$E$1000,SMALL(IF('يومية الصندوق'!$C$5:$C$1000=$D$2,ROW($A$5:$A$1000)-ROW($A$5)+1),ROWS($A$5:D112))),"") ->  | E112: =IFERROR(IF(INDEX('يومية الصندوق'!$G$5:$G$1000,SMALL(IF('يومية الصندوق'!$C$5:$C$1000=$D$2,ROW($A$5:$A$1000)-ROW($A$5)+1),ROWS($A$5:E112)))="","",INDEX('يومية الصندوق'!$G$5:$G$1000,SMALL(IF('يومية الصندوق'!$C$5:$C$1000=$D$2,ROW($A$5:$A$1000)-ROW($A$5)+1),ROWS($A$5:E112)))),"") -> 
A113: =IFERROR(INDEX('يومية الصندوق'!$A$5:$A$1000,SMALL(IF('يومية الصندوق'!$C$5:$C$1000=$D$2,ROW($A$5:$A$1000)-ROW($A$5)+1),ROWS($A$5:A113))),"") ->  | B113: =IFERROR(INDEX('يومية الصندوق'!$B$5:$B$1000,SMALL(IF('يومية الصندوق'!$C$5:$C$1000=$D$2,ROW($A$5:$A$1000)-ROW($A$5)+1),ROWS($A$5:B113))),"") ->  | C113: =IFERROR(INDEX('يومية الصندوق'!$D$5:$D$1000,SMALL(IF('يومية الصندوق'!$C$5:$C$1000=$D$2,ROW($A$5:$A$1000)-ROW($A$5)+1),ROWS($A$5:C113))),"") ->  | D113: =IFERROR(INDEX('يومية الصندوق'!$E$5:$E$1000,SMALL(IF('يومية الصندوق'!$C$5:$C$1000=$D$2,ROW($A$5:$A$1000)-ROW($A$5)+1),ROWS($A$5:D113))),"") ->  | E113: =IFERROR(IF(INDEX('يومية الصندوق'!$G$5:$G$1000,SMALL(IF('يومية الصندوق'!$C$5:$C$1000=$D$2,ROW($A$5:$A$1000)-ROW($A$5)+1),ROWS($A$5:E113)))="","",INDEX('يومية الصندوق'!$G$5:$G$1000,SMALL(IF('يومية الصندوق'!$C$5:$C$1000=$D$2,ROW($A$5:$A$1000)-ROW($A$5)+1),ROWS($A$5:E113)))),"") -> 
A114: =IFERROR(INDEX('يومية الصندوق'!$A$5:$A$1000,SMALL(IF('يومية الصندوق'!$C$5:$C$1000=$D$2,ROW($A$5:$A$1000)-ROW($A$5)+1),ROWS($A$5:A114))),"") ->  | B114: =IFERROR(INDEX('يومية الصندوق'!$B$5:$B$1000,SMALL(IF('يومية الصندوق'!$C$5:$C$1000=$D$2,ROW($A$5:$A$1000)-ROW($A$5)+1),ROWS($A$5:B114))),"") ->  | C114: =IFERROR(INDEX('يومية الصندوق'!$D$5:$D$1000,SMALL(IF('يومية الصندوق'!$C$5:$C$1000=$D$2,ROW($A$5:$A$1000)-ROW($A$5)+1),ROWS($A$5:C114))),"") ->  | D114: =IFERROR(INDEX('يومية الصندوق'!$E$5:$E$1000,SMALL(IF('يومية الصندوق'!$C$5:$C$1000=$D$2,ROW($A$5:$A$1000)-ROW($A$5)+1),ROWS($A$5:D114))),"") ->  | E114: =IFERROR(IF(INDEX('يومية الصندوق'!$G$5:$G$1000,SMALL(IF('يومية الصندوق'!$C$5:$C$1000=$D$2,ROW($A$5:$A$1000)-ROW($A$5)+1),ROWS($A$5:E114)))="","",INDEX('يومية الصندوق'!$G$5:$G$1000,SMALL(IF('يومية الصندوق'!$C$5:$C$1000=$D$2,ROW($A$5:$A$1000)-ROW($A$5)+1),ROWS($A$5:E114)))),"") -> 
A115: =IFERROR(INDEX('يومية الصندوق'!$A$5:$A$1000,SMALL(IF('يومية الصندوق'!$C$5:$C$1000=$D$2,ROW($A$5:$A$1000)-ROW($A$5)+1),ROWS($A$5:A115))),"") ->  | B115: =IFERROR(INDEX('يومية الصندوق'!$B$5:$B$1000,SMALL(IF('يومية الصندوق'!$C$5:$C$1000=$D$2,ROW($A$5:$A$1000)-ROW($A$5)+1),ROWS($A$5:B115))),"") ->  | C115: =IFERROR(INDEX('يومية الصندوق'!$D$5:$D$1000,SMALL(IF('يومية الصندوق'!$C$5:$C$1000=$D$2,ROW($A$5:$A$1000)-ROW($A$5)+1),ROWS($A$5:C115))),"") ->  | D115: =IFERROR(INDEX('يومية الصندوق'!$E$5:$E$1000,SMALL(IF('يومية الصندوق'!$C$5:$C$1000=$D$2,ROW($A$5:$A$1000)-ROW($A$5)+1),ROWS($A$5:D115))),"") ->  | E115: =IFERROR(IF(INDEX('يومية الصندوق'!$G$5:$G$1000,SMALL(IF('يومية الصندوق'!$C$5:$C$1000=$D$2,ROW($A$5:$A$1000)-ROW($A$5)+1),ROWS($A$5:E115)))="","",INDEX('يومية الصندوق'!$G$5:$G$1000,SMALL(IF('يومية الصندوق'!$C$5:$C$1000=$D$2,ROW($A$5:$A$1000)-ROW($A$5)+1),ROWS($A$5:E115)))),"") -> 
A116: =IFERROR(INDEX('يومية الصندوق'!$A$5:$A$1000,SMALL(IF('يومية الصندوق'!$C$5:$C$1000=$D$2,ROW($A$5:$A$1000)-ROW($A$5)+1),ROWS($A$5:A116))),"") ->  | B116: =IFERROR(INDEX('يومية الصندوق'!$B$5:$B$1000,SMALL(IF('يومية الصندوق'!$C$5:$C$1000=$D$2,ROW($A$5:$A$1000)-ROW($A$5)+1),ROWS($A$5:B116))),"") ->  | C116: =IFERROR(INDEX('يومية الصندوق'!$D$5:$D$1000,SMALL(IF('يومية الصندوق'!$C$5:$C$1000=$D$2,ROW($A$5:$A$1000)-ROW($A$5)+1),ROWS($A$5:C116))),"") ->  | D116: =IFERROR(INDEX('يومية الصندوق'!$E$5:$E$1000,SMALL(IF('يومية الصندوق'!$C$5:$C$1000=$D$2,ROW($A$5:$A$1000)-ROW($A$5)+1),ROWS($A$5:D116))),"") ->  | E116: =IFERROR(IF(INDEX('يومية الصندوق'!$G$5:$G$1000,SMALL(IF('يومية الصندوق'!$C$5:$C$1000=$D$2,ROW($A$5:$A$1000)-ROW($A$5)+1),ROWS($A$5:E116)))="","",INDEX('يومية الصندوق'!$G$5:$G$1000,SMALL(IF('يومية الصندوق'!$C$5:$C$1000=$D$2,ROW($A$5:$A$1000)-ROW($A$5)+1),ROWS($A$5:E116)))),"") -> 
A117: =IFERROR(INDEX('يومية الصندوق'!$A$5:$A$1000,SMALL(IF('يومية الصندوق'!$C$5:$C$1000=$D$2,ROW($A$5:$A$1000)-ROW($A$5)+1),ROWS($A$5:A117))),"") ->  | B117: =IFERROR(INDEX('يومية الصندوق'!$B$5:$B$1000,SMALL(IF('يومية الصندوق'!$C$5:$C$1000=$D$2,ROW($A$5:$A$1000)-ROW($A$5)+1),ROWS($A$5:B117))),"") ->  | C117: =IFERROR(INDEX('يومية الصندوق'!$D$5:$D$1000,SMALL(IF('يومية الصندوق'!$C$5:$C$1000=$D$2,ROW($A$5:$A$1000)-ROW($A$5)+1),ROWS($A$5:C117))),"") ->  | D117: =IFERROR(INDEX('يومية الصندوق'!$E$5:$E$1000,SMALL(IF('يومية الصندوق'!$C$5:$C$1000=$D$2,ROW($A$5:$A$1000)-ROW($A$5)+1),ROWS($A$5:D117))),"") ->  | E117: =IFERROR(IF(INDEX('يومية الصندوق'!$G$5:$G$1000,SMALL(IF('يومية الصندوق'!$C$5:$C$1000=$D$2,ROW($A$5:$A$1000)-ROW($A$5)+1),ROWS($A$5:E117)))="","",INDEX('يومية الصندوق'!$G$5:$G$1000,SMALL(IF('يومية الصندوق'!$C$5:$C$1000=$D$2,ROW($A$5:$A$1000)-ROW($A$5)+1),ROWS($A$5:E117)))),"") -> 
A118: =IFERROR(INDEX('يومية الصندوق'!$A$5:$A$1000,SMALL(IF('يومية الصندوق'!$C$5:$C$1000=$D$2,ROW($A$5:$A$1000)-ROW($A$5)+1),ROWS($A$5:A118))),"") ->  | B118: =IFERROR(INDEX('يومية الصندوق'!$B$5:$B$1000,SMALL(IF('يومية الصندوق'!$C$5:$C$1000=$D$2,ROW($A$5:$A$1000)-ROW($A$5)+1),ROWS($A$5:B118))),"") ->  | C118: =IFERROR(INDEX('يومية الصندوق'!$D$5:$D$1000,SMALL(IF('يومية الصندوق'!$C$5:$C$1000=$D$2,ROW($A$5:$A$1000)-ROW($A$5)+1),ROWS($A$5:C118))),"") ->  | D118: =IFERROR(INDEX('يومية الصندوق'!$E$5:$E$1000,SMALL(IF('يومية الصندوق'!$C$5:$C$1000=$D$2,ROW($A$5:$A$1000)-ROW($A$5)+1),ROWS($A$5:D118))),"") ->  | E118: =IFERROR(IF(INDEX('يومية الصندوق'!$G$5:$G$1000,SMALL(IF('يومية الصندوق'!$C$5:$C$1000=$D$2,ROW($A$5:$A$1000)-ROW($A$5)+1),ROWS($A$5:E118)))="","",INDEX('يومية الصندوق'!$G$5:$G$1000,SMALL(IF('يومية الصندوق'!$C$5:$C$1000=$D$2,ROW($A$5:$A$1000)-ROW($A$5)+1),ROWS($A$5:E118)))),"") -> 
A119: =IFERROR(INDEX('يومية الصندوق'!$A$5:$A$1000,SMALL(IF('يومية الصندوق'!$C$5:$C$1000=$D$2,ROW($A$5:$A$1000)-ROW($A$5)+1),ROWS($A$5:A119))),"") ->  | B119: =IFERROR(INDEX('يومية الصندوق'!$B$5:$B$1000,SMALL(IF('يومية الصندوق'!$C$5:$C$1000=$D$2,ROW($A$5:$A$1000)-ROW($A$5)+1),ROWS($A$5:B119))),"") ->  | C119: =IFERROR(INDEX('يومية الصندوق'!$D$5:$D$1000,SMALL(IF('يومية الصندوق'!$C$5:$C$1000=$D$2,ROW($A$5:$A$1000)-ROW($A$5)+1),ROWS($A$5:C119))),"") ->  | D119: =IFERROR(INDEX('يومية الصندوق'!$E$5:$E$1000,SMALL(IF('يومية الصندوق'!$C$5:$C$1000=$D$2,ROW($A$5:$A$1000)-ROW($A$5)+1),ROWS($A$5:D119))),"") ->  | E119: =IFERROR(IF(INDEX('يومية الصندوق'!$G$5:$G$1000,SMALL(IF('يومية الصندوق'!$C$5:$C$1000=$D$2,ROW($A$5:$A$1000)-ROW($A$5)+1),ROWS($A$5:E119)))="","",INDEX('يومية الصندوق'!$G$5:$G$1000,SMALL(IF('يومية الصندوق'!$C$5:$C$1000=$D$2,ROW($A$5:$A$1000)-ROW($A$5)+1),ROWS($A$5:E119)))),"") -> 
A120: =IFERROR(INDEX('يومية الصندوق'!$A$5:$A$1000,SMALL(IF('يومية الصندوق'!$C$5:$C$1000=$D$2,ROW($A$5:$A$1000)-ROW($A$5)+1),ROWS($A$5:A120))),"") ->  | B120: =IFERROR(INDEX('يومية الصندوق'!$B$5:$B$1000,SMALL(IF('يومية الصندوق'!$C$5:$C$1000=$D$2,ROW($A$5:$A$1000)-ROW($A$5)+1),ROWS($A$5:B120))),"") ->  | C120: =IFERROR(INDEX('يومية الصندوق'!$D$5:$D$1000,SMALL(IF('يومية الصندوق'!$C$5:$C$1000=$D$2,ROW($A$5:$A$1000)-ROW($A$5)+1),ROWS($A$5:C120))),"") ->  | D120: =IFERROR(INDEX('يومية الصندوق'!$E$5:$E$1000,SMALL(IF('يومية الصندوق'!$C$5:$C$1000=$D$2,ROW($A$5:$A$1000)-ROW($A$5)+1),ROWS($A$5:D120))),"") ->  | E120: =IFERROR(IF(INDEX('يومية الصندوق'!$G$5:$G$1000,SMALL(IF('يومية الصندوق'!$C$5:$C$1000=$D$2,ROW($A$5:$A$1000)-ROW($A$5)+1),ROWS($A$5:E120)))="","",INDEX('يومية الصندوق'!$G$5:$G$1000,SMALL(IF('يومية الصندوق'!$C$5:$C$1000=$D$2,ROW($A$5:$A$1000)-ROW($A$5)+1),ROWS($A$5:E120)))),"") -> 
A121: =IFERROR(INDEX('يومية الصندوق'!$A$5:$A$1000,SMALL(IF('يومية الصندوق'!$C$5:$C$1000=$D$2,ROW($A$5:$A$1000)-ROW($A$5)+1),ROWS($A$5:A121))),"") ->  | B121: =IFERROR(INDEX('يومية الصندوق'!$B$5:$B$1000,SMALL(IF('يومية الصندوق'!$C$5:$C$1000=$D$2,ROW($A$5:$A$1000)-ROW($A$5)+1),ROWS($A$5:B121))),"") ->  | C121: =IFERROR(INDEX('يومية الصندوق'!$D$5:$D$1000,SMALL(IF('يومية الصندوق'!$C$5:$C$1000=$D$2,ROW($A$5:$A$1000)-ROW($A$5)+1),ROWS($A$5:C121))),"") ->  | D121: =IFERROR(INDEX('يومية الصندوق'!$E$5:$E$1000,SMALL(IF('يومية الصندوق'!$C$5:$C$1000=$D$2,ROW($A$5:$A$1000)-ROW($A$5)+1),ROWS($A$5:D121))),"") ->  | E121: =IFERROR(IF(INDEX('يومية الصندوق'!$G$5:$G$1000,SMALL(IF('يومية الصندوق'!$C$5:$C$1000=$D$2,ROW($A$5:$A$1000)-ROW($A$5)+1),ROWS($A$5:E121)))="","",INDEX('يومية الصندوق'!$G$5:$G$1000,SMALL(IF('يومية الصندوق'!$C$5:$C$1000=$D$2,ROW($A$5:$A$1000)-ROW($A$5)+1),ROWS($A$5:E121)))),"") -> 
A122: =IFERROR(INDEX('يومية الصندوق'!$A$5:$A$1000,SMALL(IF('يومية الصندوق'!$C$5:$C$1000=$D$2,ROW($A$5:$A$1000)-ROW($A$5)+1),ROWS($A$5:A122))),"") ->  | B122: =IFERROR(INDEX('يومية الصندوق'!$B$5:$B$1000,SMALL(IF('يومية الصندوق'!$C$5:$C$1000=$D$2,ROW($A$5:$A$1000)-ROW($A$5)+1),ROWS($A$5:B122))),"") ->  | C122: =IFERROR(INDEX('يومية الصندوق'!$D$5:$D$1000,SMALL(IF('يومية الصندوق'!$C$5:$C$1000=$D$2,ROW($A$5:$A$1000)-ROW($A$5)+1),ROWS($A$5:C122))),"") ->  | D122: =IFERROR(INDEX('يومية الصندوق'!$E$5:$E$1000,SMALL(IF('يومية الصندوق'!$C$5:$C$1000=$D$2,ROW($A$5:$A$1000)-ROW($A$5)+1),ROWS($A$5:D122))),"") ->  | E122: =IFERROR(IF(INDEX('يومية الصندوق'!$G$5:$G$1000,SMALL(IF('يومية الصندوق'!$C$5:$C$1000=$D$2,ROW($A$5:$A$1000)-ROW($A$5)+1),ROWS($A$5:E122)))="","",INDEX('يومية الصندوق'!$G$5:$G$1000,SMALL(IF('يومية الصندوق'!$C$5:$C$1000=$D$2,ROW($A$5:$A$1000)-ROW($A$5)+1),ROWS($A$5:E122)))),"") -> 
A123: =IFERROR(INDEX('يومية الصندوق'!$A$5:$A$1000,SMALL(IF('يومية الصندوق'!$C$5:$C$1000=$D$2,ROW($A$5:$A$1000)-ROW($A$5)+1),ROWS($A$5:A123))),"") ->  | B123: =IFERROR(INDEX('يومية الصندوق'!$B$5:$B$1000,SMALL(IF('يومية الصندوق'!$C$5:$C$1000=$D$2,ROW($A$5:$A$1000)-ROW($A$5)+1),ROWS($A$5:B123))),"") ->  | C123: =IFERROR(INDEX('يومية الصندوق'!$D$5:$D$1000,SMALL(IF('يومية الصندوق'!$C$5:$C$1000=$D$2,ROW($A$5:$A$1000)-ROW($A$5)+1),ROWS($A$5:C123))),"") ->  | D123: =IFERROR(INDEX('يومية الصندوق'!$E$5:$E$1000,SMALL(IF('يومية الصندوق'!$C$5:$C$1000=$D$2,ROW($A$5:$A$1000)-ROW($A$5)+1),ROWS($A$5:D123))),"") ->  | E123: =IFERROR(IF(INDEX('يومية الصندوق'!$G$5:$G$1000,SMALL(IF('يومية الصندوق'!$C$5:$C$1000=$D$2,ROW($A$5:$A$1000)-ROW($A$5)+1),ROWS($A$5:E123)))="","",INDEX('يومية الصندوق'!$G$5:$G$1000,SMALL(IF('يومية الصندوق'!$C$5:$C$1000=$D$2,ROW($A$5:$A$1000)-ROW($A$5)+1),ROWS($A$5:E123)))),"") -> 
A124: =IFERROR(INDEX('يومية الصندوق'!$A$5:$A$1000,SMALL(IF('يومية الصندوق'!$C$5:$C$1000=$D$2,ROW($A$5:$A$1000)-ROW($A$5)+1),ROWS($A$5:A124))),"") ->  | B124: =IFERROR(INDEX('يومية الصندوق'!$B$5:$B$1000,SMALL(IF('يومية الصندوق'!$C$5:$C$1000=$D$2,ROW($A$5:$A$1000)-ROW($A$5)+1),ROWS($A$5:B124))),"") ->  | C124: =IFERROR(INDEX('يومية الصندوق'!$D$5:$D$1000,SMALL(IF('يومية الصندوق'!$C$5:$C$1000=$D$2,ROW($A$5:$A$1000)-ROW($A$5)+1),ROWS($A$5:C124))),"") ->  | D124: =IFERROR(INDEX('يومية الصندوق'!$E$5:$E$1000,SMALL(IF('يومية الصندوق'!$C$5:$C$1000=$D$2,ROW($A$5:$A$1000)-ROW($A$5)+1),ROWS($A$5:D124))),"") ->  | E124: =IFERROR(IF(INDEX('يومية الصندوق'!$G$5:$G$1000,SMALL(IF('يومية الصندوق'!$C$5:$C$1000=$D$2,ROW($A$5:$A$1000)-ROW($A$5)+1),ROWS($A$5:E124)))="","",INDEX('يومية الصندوق'!$G$5:$G$1000,SMALL(IF('يومية الصندوق'!$C$5:$C$1000=$D$2,ROW($A$5:$A$1000)-ROW($A$5)+1),ROWS($A$5:E124)))),"") -> 
A125: =IFERROR(INDEX('يومية الصندوق'!$A$5:$A$1000,SMALL(IF('يومية الصندوق'!$C$5:$C$1000=$D$2,ROW($A$5:$A$1000)-ROW($A$5)+1),ROWS($A$5:A125))),"") ->  | B125: =IFERROR(INDEX('يومية الصندوق'!$B$5:$B$1000,SMALL(IF('يومية الصندوق'!$C$5:$C$1000=$D$2,ROW($A$5:$A$1000)-ROW($A$5)+1),ROWS($A$5:B125))),"") ->  | C125: =IFERROR(INDEX('يومية الصندوق'!$D$5:$D$1000,SMALL(IF('يومية الصندوق'!$C$5:$C$1000=$D$2,ROW($A$5:$A$1000)-ROW($A$5)+1),ROWS($A$5:C125))),"") ->  | D125: =IFERROR(INDEX('يومية الصندوق'!$E$5:$E$1000,SMALL(IF('يومية الصندوق'!$C$5:$C$1000=$D$2,ROW($A$5:$A$1000)-ROW($A$5)+1),ROWS($A$5:D125))),"") ->  | E125: =IFERROR(IF(INDEX('يومية الصندوق'!$G$5:$G$1000,SMALL(IF('يومية الصندوق'!$C$5:$C$1000=$D$2,ROW($A$5:$A$1000)-ROW($A$5)+1),ROWS($A$5:E125)))="","",INDEX('يومية الصندوق'!$G$5:$G$1000,SMALL(IF('يومية الصندوق'!$C$5:$C$1000=$D$2,ROW($A$5:$A$1000)-ROW($A$5)+1),ROWS($A$5:E125)))),"") -> 
A126: =IFERROR(INDEX('يومية الصندوق'!$A$5:$A$1000,SMALL(IF('يومية الصندوق'!$C$5:$C$1000=$D$2,ROW($A$5:$A$1000)-ROW($A$5)+1),ROWS($A$5:A126))),"") ->  | B126: =IFERROR(INDEX('يومية الصندوق'!$B$5:$B$1000,SMALL(IF('يومية الصندوق'!$C$5:$C$1000=$D$2,ROW($A$5:$A$1000)-ROW($A$5)+1),ROWS($A$5:B126))),"") ->  | C126: =IFERROR(INDEX('يومية الصندوق'!$D$5:$D$1000,SMALL(IF('يومية الصندوق'!$C$5:$C$1000=$D$2,ROW($A$5:$A$1000)-ROW($A$5)+1),ROWS($A$5:C126))),"") ->  | D126: =IFERROR(INDEX('يومية الصندوق'!$E$5:$E$1000,SMALL(IF('يومية الصندوق'!$C$5:$C$1000=$D$2,ROW($A$5:$A$1000)-ROW($A$5)+1),ROWS($A$5:D126))),"") ->  | E126: =IFERROR(IF(INDEX('يومية الصندوق'!$G$5:$G$1000,SMALL(IF('يومية الصندوق'!$C$5:$C$1000=$D$2,ROW($A$5:$A$1000)-ROW($A$5)+1),ROWS($A$5:E126)))="","",INDEX('يومية الصندوق'!$G$5:$G$1000,SMALL(IF('يومية الصندوق'!$C$5:$C$1000=$D$2,ROW($A$5:$A$1000)-ROW($A$5)+1),ROWS($A$5:E126)))),"") -> 
A127: =IFERROR(INDEX('يومية الصندوق'!$A$5:$A$1000,SMALL(IF('يومية الصندوق'!$C$5:$C$1000=$D$2,ROW($A$5:$A$1000)-ROW($A$5)+1),ROWS($A$5:A127))),"") ->  | B127: =IFERROR(INDEX('يومية الصندوق'!$B$5:$B$1000,SMALL(IF('يومية الصندوق'!$C$5:$C$1000=$D$2,ROW($A$5:$A$1000)-ROW($A$5)+1),ROWS($A$5:B127))),"") ->  | C127: =IFERROR(INDEX('يومية الصندوق'!$D$5:$D$1000,SMALL(IF('يومية الصندوق'!$C$5:$C$1000=$D$2,ROW($A$5:$A$1000)-ROW($A$5)+1),ROWS($A$5:C127))),"") ->  | D127: =IFERROR(INDEX('يومية الصندوق'!$E$5:$E$1000,SMALL(IF('يومية الصندوق'!$C$5:$C$1000=$D$2,ROW($A$5:$A$1000)-ROW($A$5)+1),ROWS($A$5:D127))),"") ->  | E127: =IFERROR(IF(INDEX('يومية الصندوق'!$G$5:$G$1000,SMALL(IF('يومية الصندوق'!$C$5:$C$1000=$D$2,ROW($A$5:$A$1000)-ROW($A$5)+1),ROWS($A$5:E127)))="","",INDEX('يومية الصندوق'!$G$5:$G$1000,SMALL(IF('يومية الصندوق'!$C$5:$C$1000=$D$2,ROW($A$5:$A$1000)-ROW($A$5)+1),ROWS($A$5:E127)))),"") -> 
A128: =IFERROR(INDEX('يومية الصندوق'!$A$5:$A$1000,SMALL(IF('يومية الصندوق'!$C$5:$C$1000=$D$2,ROW($A$5:$A$1000)-ROW($A$5)+1),ROWS($A$5:A128))),"") ->  | B128: =IFERROR(INDEX('يومية الصندوق'!$B$5:$B$1000,SMALL(IF('يومية الصندوق'!$C$5:$C$1000=$D$2,ROW($A$5:$A$1000)-ROW($A$5)+1),ROWS($A$5:B128))),"") ->  | C128: =IFERROR(INDEX('يومية الصندوق'!$D$5:$D$1000,SMALL(IF('يومية الصندوق'!$C$5:$C$1000=$D$2,ROW($A$5:$A$1000)-ROW($A$5)+1),ROWS($A$5:C128))),"") ->  | D128: =IFERROR(INDEX('يومية الصندوق'!$E$5:$E$1000,SMALL(IF('يومية الصندوق'!$C$5:$C$1000=$D$2,ROW($A$5:$A$1000)-ROW($A$5)+1),ROWS($A$5:D128))),"") ->  | E128: =IFERROR(IF(INDEX('يومية الصندوق'!$G$5:$G$1000,SMALL(IF('يومية الصندوق'!$C$5:$C$1000=$D$2,ROW($A$5:$A$1000)-ROW($A$5)+1),ROWS($A$5:E128)))="","",INDEX('يومية الصندوق'!$G$5:$G$1000,SMALL(IF('يومية الصندوق'!$C$5:$C$1000=$D$2,ROW($A$5:$A$1000)-ROW($A$5)+1),ROWS($A$5:E128)))),"") -> 
A129: =IFERROR(INDEX('يومية الصندوق'!$A$5:$A$1000,SMALL(IF('يومية الصندوق'!$C$5:$C$1000=$D$2,ROW($A$5:$A$1000)-ROW($A$5)+1),ROWS($A$5:A129))),"") ->  | B129: =IFERROR(INDEX('يومية الصندوق'!$B$5:$B$1000,SMALL(IF('يومية الصندوق'!$C$5:$C$1000=$D$2,ROW($A$5:$A$1000)-ROW($A$5)+1),ROWS($A$5:B129))),"") ->  | C129: =IFERROR(INDEX('يومية الصندوق'!$D$5:$D$1000,SMALL(IF('يومية الصندوق'!$C$5:$C$1000=$D$2,ROW($A$5:$A$1000)-ROW($A$5)+1),ROWS($A$5:C129))),"") ->  | D129: =IFERROR(INDEX('يومية الصندوق'!$E$5:$E$1000,SMALL(IF('يومية الصندوق'!$C$5:$C$1000=$D$2,ROW($A$5:$A$1000)-ROW($A$5)+1),ROWS($A$5:D129))),"") ->  | E129: =IFERROR(IF(INDEX('يومية الصندوق'!$G$5:$G$1000,SMALL(IF('يومية الصندوق'!$C$5:$C$1000=$D$2,ROW($A$5:$A$1000)-ROW($A$5)+1),ROWS($A$5:E129)))="","",INDEX('يومية الصندوق'!$G$5:$G$1000,SMALL(IF('يومية الصندوق'!$C$5:$C$1000=$D$2,ROW($A$5:$A$1000)-ROW($A$5)+1),ROWS($A$5:E129)))),"") -> 
A130: =IFERROR(INDEX('يومية الصندوق'!$A$5:$A$1000,SMALL(IF('يومية الصندوق'!$C$5:$C$1000=$D$2,ROW($A$5:$A$1000)-ROW($A$5)+1),ROWS($A$5:A130))),"") ->  | B130: =IFERROR(INDEX('يومية الصندوق'!$B$5:$B$1000,SMALL(IF('يومية الصندوق'!$C$5:$C$1000=$D$2,ROW($A$5:$A$1000)-ROW($A$5)+1),ROWS($A$5:B130))),"") ->  | C130: =IFERROR(INDEX('يومية الصندوق'!$D$5:$D$1000,SMALL(IF('يومية الصندوق'!$C$5:$C$1000=$D$2,ROW($A$5:$A$1000)-ROW($A$5)+1),ROWS($A$5:C130))),"") ->  | D130: =IFERROR(INDEX('يومية الصندوق'!$E$5:$E$1000,SMALL(IF('يومية الصندوق'!$C$5:$C$1000=$D$2,ROW($A$5:$A$1000)-ROW($A$5)+1),ROWS($A$5:D130))),"") ->  | E130: =IFERROR(IF(INDEX('يومية الصندوق'!$G$5:$G$1000,SMALL(IF('يومية الصندوق'!$C$5:$C$1000=$D$2,ROW($A$5:$A$1000)-ROW($A$5)+1),ROWS($A$5:E130)))="","",INDEX('يومية الصندوق'!$G$5:$G$1000,SMALL(IF('يومية الصندوق'!$C$5:$C$1000=$D$2,ROW($A$5:$A$1000)-ROW($A$5)+1),ROWS($A$5:E130)))),"") -> 
A131: =IFERROR(INDEX('يومية الصندوق'!$A$5:$A$1000,SMALL(IF('يومية الصندوق'!$C$5:$C$1000=$D$2,ROW($A$5:$A$1000)-ROW($A$5)+1),ROWS($A$5:A131))),"") ->  | B131: =IFERROR(INDEX('يومية الصندوق'!$B$5:$B$1000,SMALL(IF('يومية الصندوق'!$C$5:$C$1000=$D$2,ROW($A$5:$A$1000)-ROW($A$5)+1),ROWS($A$5:B131))),"") ->  | C131: =IFERROR(INDEX('يومية الصندوق'!$D$5:$D$1000,SMALL(IF('يومية الصندوق'!$C$5:$C$1000=$D$2,ROW($A$5:$A$1000)-ROW($A$5)+1),ROWS($A$5:C131))),"") ->  | D131: =IFERROR(INDEX('يومية الصندوق'!$E$5:$E$1000,SMALL(IF('يومية الصندوق'!$C$5:$C$1000=$D$2,ROW($A$5:$A$1000)-ROW($A$5)+1),ROWS($A$5:D131))),"") ->  | E131: =IFERROR(IF(INDEX('يومية الصندوق'!$G$5:$G$1000,SMALL(IF('يومية الصندوق'!$C$5:$C$1000=$D$2,ROW($A$5:$A$1000)-ROW($A$5)+1),ROWS($A$5:E131)))="","",INDEX('يومية الصندوق'!$G$5:$G$1000,SMALL(IF('يومية الصندوق'!$C$5:$C$1000=$D$2,ROW($A$5:$A$1000)-ROW($A$5)+1),ROWS($A$5:E131)))),"") -> 
A132: =IFERROR(INDEX('يومية الصندوق'!$A$5:$A$1000,SMALL(IF('يومية الصندوق'!$C$5:$C$1000=$D$2,ROW($A$5:$A$1000)-ROW($A$5)+1),ROWS($A$5:A132))),"") ->  | B132: =IFERROR(INDEX('يومية الصندوق'!$B$5:$B$1000,SMALL(IF('يومية الصندوق'!$C$5:$C$1000=$D$2,ROW($A$5:$A$1000)-ROW($A$5)+1),ROWS($A$5:B132))),"") ->  | C132: =IFERROR(INDEX('يومية الصندوق'!$D$5:$D$1000,SMALL(IF('يومية الصندوق'!$C$5:$C$1000=$D$2,ROW($A$5:$A$1000)-ROW($A$5)+1),ROWS($A$5:C132))),"") ->  | D132: =IFERROR(INDEX('يومية الصندوق'!$E$5:$E$1000,SMALL(IF('يومية الصندوق'!$C$5:$C$1000=$D$2,ROW($A$5:$A$1000)-ROW($A$5)+1),ROWS($A$5:D132))),"") ->  | E132: =IFERROR(IF(INDEX('يومية الصندوق'!$G$5:$G$1000,SMALL(IF('يومية الصندوق'!$C$5:$C$1000=$D$2,ROW($A$5:$A$1000)-ROW($A$5)+1),ROWS($A$5:E132)))="","",INDEX('يومية الصندوق'!$G$5:$G$1000,SMALL(IF('يومية الصندوق'!$C$5:$C$1000=$D$2,ROW($A$5:$A$1000)-ROW($A$5)+1),ROWS($A$5:E132)))),"") -> 
A133: =IFERROR(INDEX('يومية الصندوق'!$A$5:$A$1000,SMALL(IF('يومية الصندوق'!$C$5:$C$1000=$D$2,ROW($A$5:$A$1000)-ROW($A$5)+1),ROWS($A$5:A133))),"") ->  | B133: =IFERROR(INDEX('يومية الصندوق'!$B$5:$B$1000,SMALL(IF('يومية الصندوق'!$C$5:$C$1000=$D$2,ROW($A$5:$A$1000)-ROW($A$5)+1),ROWS($A$5:B133))),"") ->  | C133: =IFERROR(INDEX('يومية الصندوق'!$D$5:$D$1000,SMALL(IF('يومية الصندوق'!$C$5:$C$1000=$D$2,ROW($A$5:$A$1000)-ROW($A$5)+1),ROWS($A$5:C133))),"") ->  | D133: =IFERROR(INDEX('يومية الصندوق'!$E$5:$E$1000,SMALL(IF('يومية الصندوق'!$C$5:$C$1000=$D$2,ROW($A$5:$A$1000)-ROW($A$5)+1),ROWS($A$5:D133))),"") ->  | E133: =IFERROR(IF(INDEX('يومية الصندوق'!$G$5:$G$1000,SMALL(IF('يومية الصندوق'!$C$5:$C$1000=$D$2,ROW($A$5:$A$1000)-ROW($A$5)+1),ROWS($A$5:E133)))="","",INDEX('يومية الصندوق'!$G$5:$G$1000,SMALL(IF('يومية الصندوق'!$C$5:$C$1000=$D$2,ROW($A$5:$A$1000)-ROW($A$5)+1),ROWS($A$5:E133)))),"") -> 
A134: =IFERROR(INDEX('يومية الصندوق'!$A$5:$A$1000,SMALL(IF('يومية الصندوق'!$C$5:$C$1000=$D$2,ROW($A$5:$A$1000)-ROW($A$5)+1),ROWS($A$5:A134))),"") ->  | B134: =IFERROR(INDEX('يومية الصندوق'!$B$5:$B$1000,SMALL(IF('يومية الصندوق'!$C$5:$C$1000=$D$2,ROW($A$5:$A$1000)-ROW($A$5)+1),ROWS($A$5:B134))),"") ->  | C134: =IFERROR(INDEX('يومية الصندوق'!$D$5:$D$1000,SMALL(IF('يومية الصندوق'!$C$5:$C$1000=$D$2,ROW($A$5:$A$1000)-ROW($A$5)+1),ROWS($A$5:C134))),"") ->  | D134: =IFERROR(INDEX('يومية الصندوق'!$E$5:$E$1000,SMALL(IF('يومية الصندوق'!$C$5:$C$1000=$D$2,ROW($A$5:$A$1000)-ROW($A$5)+1),ROWS($A$5:D134))),"") ->  | E134: =IFERROR(IF(INDEX('يومية الصندوق'!$G$5:$G$1000,SMALL(IF('يومية الصندوق'!$C$5:$C$1000=$D$2,ROW($A$5:$A$1000)-ROW($A$5)+1),ROWS($A$5:E134)))="","",INDEX('يومية الصندوق'!$G$5:$G$1000,SMALL(IF('يومية الصندوق'!$C$5:$C$1000=$D$2,ROW($A$5:$A$1000)-ROW($A$5)+1),ROWS($A$5:E134)))),"") -> 
A135: =IFERROR(INDEX('يومية الصندوق'!$A$5:$A$1000,SMALL(IF('يومية الصندوق'!$C$5:$C$1000=$D$2,ROW($A$5:$A$1000)-ROW($A$5)+1),ROWS($A$5:A135))),"") ->  | B135: =IFERROR(INDEX('يومية الصندوق'!$B$5:$B$1000,SMALL(IF('يومية الصندوق'!$C$5:$C$1000=$D$2,ROW($A$5:$A$1000)-ROW($A$5)+1),ROWS($A$5:B135))),"") ->  | C135: =IFERROR(INDEX('يومية الصندوق'!$D$5:$D$1000,SMALL(IF('يومية الصندوق'!$C$5:$C$1000=$D$2,ROW($A$5:$A$1000)-ROW($A$5)+1),ROWS($A$5:C135))),"") ->  | D135: =IFERROR(INDEX('يومية الصندوق'!$E$5:$E$1000,SMALL(IF('يومية الصندوق'!$C$5:$C$1000=$D$2,ROW($A$5:$A$1000)-ROW($A$5)+1),ROWS($A$5:D135))),"") ->  | E135: =IFERROR(IF(INDEX('يومية الصندوق'!$G$5:$G$1000,SMALL(IF('يومية الصندوق'!$C$5:$C$1000=$D$2,ROW($A$5:$A$1000)-ROW($A$5)+1),ROWS($A$5:E135)))="","",INDEX('يومية الصندوق'!$G$5:$G$1000,SMALL(IF('يومية الصندوق'!$C$5:$C$1000=$D$2,ROW($A$5:$A$1000)-ROW($A$5)+1),ROWS($A$5:E135)))),"") -> 
A136: =IFERROR(INDEX('يومية الصندوق'!$A$5:$A$1000,SMALL(IF('يومية الصندوق'!$C$5:$C$1000=$D$2,ROW($A$5:$A$1000)-ROW($A$5)+1),ROWS($A$5:A136))),"") ->  | B136: =IFERROR(INDEX('يومية الصندوق'!$B$5:$B$1000,SMALL(IF('يومية الصندوق'!$C$5:$C$1000=$D$2,ROW($A$5:$A$1000)-ROW($A$5)+1),ROWS($A$5:B136))),"") ->  | C136: =IFERROR(INDEX('يومية الصندوق'!$D$5:$D$1000,SMALL(IF('يومية الصندوق'!$C$5:$C$1000=$D$2,ROW($A$5:$A$1000)-ROW($A$5)+1),ROWS($A$5:C136))),"") ->  | D136: =IFERROR(INDEX('يومية الصندوق'!$E$5:$E$1000,SMALL(IF('يومية الصندوق'!$C$5:$C$1000=$D$2,ROW($A$5:$A$1000)-ROW($A$5)+1),ROWS($A$5:D136))),"") ->  | E136: =IFERROR(IF(INDEX('يومية الصندوق'!$G$5:$G$1000,SMALL(IF('يومية الصندوق'!$C$5:$C$1000=$D$2,ROW($A$5:$A$1000)-ROW($A$5)+1),ROWS($A$5:E136)))="","",INDEX('يومية الصندوق'!$G$5:$G$1000,SMALL(IF('يومية الصندوق'!$C$5:$C$1000=$D$2,ROW($A$5:$A$1000)-ROW($A$5)+1),ROWS($A$5:E136)))),"") -> 
A137: =IFERROR(INDEX('يومية الصندوق'!$A$5:$A$1000,SMALL(IF('يومية الصندوق'!$C$5:$C$1000=$D$2,ROW($A$5:$A$1000)-ROW($A$5)+1),ROWS($A$5:A137))),"") ->  | B137: =IFERROR(INDEX('يومية الصندوق'!$B$5:$B$1000,SMALL(IF('يومية الصندوق'!$C$5:$C$1000=$D$2,ROW($A$5:$A$1000)-ROW($A$5)+1),ROWS($A$5:B137))),"") ->  | C137: =IFERROR(INDEX('يومية الصندوق'!$D$5:$D$1000,SMALL(IF('يومية الصندوق'!$C$5:$C$1000=$D$2,ROW($A$5:$A$1000)-ROW($A$5)+1),ROWS($A$5:C137))),"") ->  | D137: =IFERROR(INDEX('يومية الصندوق'!$E$5:$E$1000,SMALL(IF('يومية الصندوق'!$C$5:$C$1000=$D$2,ROW($A$5:$A$1000)-ROW($A$5)+1),ROWS($A$5:D137))),"") ->  | E137: =IFERROR(IF(INDEX('يومية الصندوق'!$G$5:$G$1000,SMALL(IF('يومية الصندوق'!$C$5:$C$1000=$D$2,ROW($A$5:$A$1000)-ROW($A$5)+1),ROWS($A$5:E137)))="","",INDEX('يومية الصندوق'!$G$5:$G$1000,SMALL(IF('يومية الصندوق'!$C$5:$C$1000=$D$2,ROW($A$5:$A$1000)-ROW($A$5)+1),ROWS($A$5:E137)))),"") -> 
A138: =IFERROR(INDEX('يومية الصندوق'!$A$5:$A$1000,SMALL(IF('يومية الصندوق'!$C$5:$C$1000=$D$2,ROW($A$5:$A$1000)-ROW($A$5)+1),ROWS($A$5:A138))),"") ->  | B138: =IFERROR(INDEX('يومية الصندوق'!$B$5:$B$1000,SMALL(IF('يومية الصندوق'!$C$5:$C$1000=$D$2,ROW($A$5:$A$1000)-ROW($A$5)+1),ROWS($A$5:B138))),"") ->  | C138: =IFERROR(INDEX('يومية الصندوق'!$D$5:$D$1000,SMALL(IF('يومية الصندوق'!$C$5:$C$1000=$D$2,ROW($A$5:$A$1000)-ROW($A$5)+1),ROWS($A$5:C138))),"") ->  | D138: =IFERROR(INDEX('يومية الصندوق'!$E$5:$E$1000,SMALL(IF('يومية الصندوق'!$C$5:$C$1000=$D$2,ROW($A$5:$A$1000)-ROW($A$5)+1),ROWS($A$5:D138))),"") ->  | E138: =IFERROR(IF(INDEX('يومية الصندوق'!$G$5:$G$1000,SMALL(IF('يومية الصندوق'!$C$5:$C$1000=$D$2,ROW($A$5:$A$1000)-ROW($A$5)+1),ROWS($A$5:E138)))="","",INDEX('يومية الصندوق'!$G$5:$G$1000,SMALL(IF('يومية الصندوق'!$C$5:$C$1000=$D$2,ROW($A$5:$A$1000)-ROW($A$5)+1),ROWS($A$5:E138)))),"") -> 
A139: =IFERROR(INDEX('يومية الصندوق'!$A$5:$A$1000,SMALL(IF('يومية الصندوق'!$C$5:$C$1000=$D$2,ROW($A$5:$A$1000)-ROW($A$5)+1),ROWS($A$5:A139))),"") ->  | B139: =IFERROR(INDEX('يومية الصندوق'!$B$5:$B$1000,SMALL(IF('يومية الصندوق'!$C$5:$C$1000=$D$2,ROW($A$5:$A$1000)-ROW($A$5)+1),ROWS($A$5:B139))),"") ->  | C139: =IFERROR(INDEX('يومية الصندوق'!$D$5:$D$1000,SMALL(IF('يومية الصندوق'!$C$5:$C$1000=$D$2,ROW($A$5:$A$1000)-ROW($A$5)+1),ROWS($A$5:C139))),"") ->  | D139: =IFERROR(INDEX('يومية الصندوق'!$E$5:$E$1000,SMALL(IF('يومية الصندوق'!$C$5:$C$1000=$D$2,ROW($A$5:$A$1000)-ROW($A$5)+1),ROWS($A$5:D139))),"") ->  | E139: =IFERROR(IF(INDEX('يومية الصندوق'!$G$5:$G$1000,SMALL(IF('يومية الصندوق'!$C$5:$C$1000=$D$2,ROW($A$5:$A$1000)-ROW($A$5)+1),ROWS($A$5:E139)))="","",INDEX('يومية الصندوق'!$G$5:$G$1000,SMALL(IF('يومية الصندوق'!$C$5:$C$1000=$D$2,ROW($A$5:$A$1000)-ROW($A$5)+1),ROWS($A$5:E139)))),"") -> 
A140: =IFERROR(INDEX('يومية الصندوق'!$A$5:$A$1000,SMALL(IF('يومية الصندوق'!$C$5:$C$1000=$D$2,ROW($A$5:$A$1000)-ROW($A$5)+1),ROWS($A$5:A140))),"") ->  | B140: =IFERROR(INDEX('يومية الصندوق'!$B$5:$B$1000,SMALL(IF('يومية الصندوق'!$C$5:$C$1000=$D$2,ROW($A$5:$A$1000)-ROW($A$5)+1),ROWS($A$5:B140))),"") ->  | C140: =IFERROR(INDEX('يومية الصندوق'!$D$5:$D$1000,SMALL(IF('يومية الصندوق'!$C$5:$C$1000=$D$2,ROW($A$5:$A$1000)-ROW($A$5)+1),ROWS($A$5:C140))),"") ->  | D140: =IFERROR(INDEX('يومية الصندوق'!$E$5:$E$1000,SMALL(IF('يومية الصندوق'!$C$5:$C$1000=$D$2,ROW($A$5:$A$1000)-ROW($A$5)+1),ROWS($A$5:D140))),"") ->  | E140: =IFERROR(IF(INDEX('يومية الصندوق'!$G$5:$G$1000,SMALL(IF('يومية الصندوق'!$C$5:$C$1000=$D$2,ROW($A$5:$A$1000)-ROW($A$5)+1),ROWS($A$5:E140)))="","",INDEX('يومية الصندوق'!$G$5:$G$1000,SMALL(IF('يومية الصندوق'!$C$5:$C$1000=$D$2,ROW($A$5:$A$1000)-ROW($A$5)+1),ROWS($A$5:E140)))),"") -> 
A141: =IFERROR(INDEX('يومية الصندوق'!$A$5:$A$1000,SMALL(IF('يومية الصندوق'!$C$5:$C$1000=$D$2,ROW($A$5:$A$1000)-ROW($A$5)+1),ROWS($A$5:A141))),"") ->  | B141: =IFERROR(INDEX('يومية الصندوق'!$B$5:$B$1000,SMALL(IF('يومية الصندوق'!$C$5:$C$1000=$D$2,ROW($A$5:$A$1000)-ROW($A$5)+1),ROWS($A$5:B141))),"") ->  | C141: =IFERROR(INDEX('يومية الصندوق'!$D$5:$D$1000,SMALL(IF('يومية الصندوق'!$C$5:$C$1000=$D$2,ROW($A$5:$A$1000)-ROW($A$5)+1),ROWS($A$5:C141))),"") ->  | D141: =IFERROR(INDEX('يومية الصندوق'!$E$5:$E$1000,SMALL(IF('يومية الصندوق'!$C$5:$C$1000=$D$2,ROW($A$5:$A$1000)-ROW($A$5)+1),ROWS($A$5:D141))),"") ->  | E141: =IFERROR(IF(INDEX('يومية الصندوق'!$G$5:$G$1000,SMALL(IF('يومية الصندوق'!$C$5:$C$1000=$D$2,ROW($A$5:$A$1000)-ROW($A$5)+1),ROWS($A$5:E141)))="","",INDEX('يومية الصندوق'!$G$5:$G$1000,SMALL(IF('يومية الصندوق'!$C$5:$C$1000=$D$2,ROW($A$5:$A$1000)-ROW($A$5)+1),ROWS($A$5:E141)))),"") -> 
A142: =IFERROR(INDEX('يومية الصندوق'!$A$5:$A$1000,SMALL(IF('يومية الصندوق'!$C$5:$C$1000=$D$2,ROW($A$5:$A$1000)-ROW($A$5)+1),ROWS($A$5:A142))),"") ->  | B142: =IFERROR(INDEX('يومية الصندوق'!$B$5:$B$1000,SMALL(IF('يومية الصندوق'!$C$5:$C$1000=$D$2,ROW($A$5:$A$1000)-ROW($A$5)+1),ROWS($A$5:B142))),"") ->  | C142: =IFERROR(INDEX('يومية الصندوق'!$D$5:$D$1000,SMALL(IF('يومية الصندوق'!$C$5:$C$1000=$D$2,ROW($A$5:$A$1000)-ROW($A$5)+1),ROWS($A$5:C142))),"") ->  | D142: =IFERROR(INDEX('يومية الصندوق'!$E$5:$E$1000,SMALL(IF('يومية الصندوق'!$C$5:$C$1000=$D$2,ROW($A$5:$A$1000)-ROW($A$5)+1),ROWS($A$5:D142))),"") ->  | E142: =IFERROR(IF(INDEX('يومية الصندوق'!$G$5:$G$1000,SMALL(IF('يومية الصندوق'!$C$5:$C$1000=$D$2,ROW($A$5:$A$1000)-ROW($A$5)+1),ROWS($A$5:E142)))="","",INDEX('يومية الصندوق'!$G$5:$G$1000,SMALL(IF('يومية الصندوق'!$C$5:$C$1000=$D$2,ROW($A$5:$A$1000)-ROW($A$5)+1),ROWS($A$5:E142)))),"") -> 
A143: =IFERROR(INDEX('يومية الصندوق'!$A$5:$A$1000,SMALL(IF('يومية الصندوق'!$C$5:$C$1000=$D$2,ROW($A$5:$A$1000)-ROW($A$5)+1),ROWS($A$5:A143))),"") ->  | B143: =IFERROR(INDEX('يومية الصندوق'!$B$5:$B$1000,SMALL(IF('يومية الصندوق'!$C$5:$C$1000=$D$2,ROW($A$5:$A$1000)-ROW($A$5)+1),ROWS($A$5:B143))),"") ->  | C143: =IFERROR(INDEX('يومية الصندوق'!$D$5:$D$1000,SMALL(IF('يومية الصندوق'!$C$5:$C$1000=$D$2,ROW($A$5:$A$1000)-ROW($A$5)+1),ROWS($A$5:C143))),"") ->  | D143: =IFERROR(INDEX('يومية الصندوق'!$E$5:$E$1000,SMALL(IF('يومية الصندوق'!$C$5:$C$1000=$D$2,ROW($A$5:$A$1000)-ROW($A$5)+1),ROWS($A$5:D143))),"") ->  | E143: =IFERROR(IF(INDEX('يومية الصندوق'!$G$5:$G$1000,SMALL(IF('يومية الصندوق'!$C$5:$C$1000=$D$2,ROW($A$5:$A$1000)-ROW($A$5)+1),ROWS($A$5:E143)))="","",INDEX('يومية الصندوق'!$G$5:$G$1000,SMALL(IF('يومية الصندوق'!$C$5:$C$1000=$D$2,ROW($A$5:$A$1000)-ROW($A$5)+1),ROWS($A$5:E143)))),"") -> 
A144: =IFERROR(INDEX('يومية الصندوق'!$A$5:$A$1000,SMALL(IF('يومية الصندوق'!$C$5:$C$1000=$D$2,ROW($A$5:$A$1000)-ROW($A$5)+1),ROWS($A$5:A144))),"") ->  | B144: =IFERROR(INDEX('يومية الصندوق'!$B$5:$B$1000,SMALL(IF('يومية الصندوق'!$C$5:$C$1000=$D$2,ROW($A$5:$A$1000)-ROW($A$5)+1),ROWS($A$5:B144))),"") ->  | C144: =IFERROR(INDEX('يومية الصندوق'!$D$5:$D$1000,SMALL(IF('يومية الصندوق'!$C$5:$C$1000=$D$2,ROW($A$5:$A$1000)-ROW($A$5)+1),ROWS($A$5:C144))),"") ->  | D144: =IFERROR(INDEX('يومية الصندوق'!$E$5:$E$1000,SMALL(IF('يومية الصندوق'!$C$5:$C$1000=$D$2,ROW($A$5:$A$1000)-ROW($A$5)+1),ROWS($A$5:D144))),"") ->  | E144: =IFERROR(IF(INDEX('يومية الصندوق'!$G$5:$G$1000,SMALL(IF('يومية الصندوق'!$C$5:$C$1000=$D$2,ROW($A$5:$A$1000)-ROW($A$5)+1),ROWS($A$5:E144)))="","",INDEX('يومية الصندوق'!$G$5:$G$1000,SMALL(IF('يومية الصندوق'!$C$5:$C$1000=$D$2,ROW($A$5:$A$1000)-ROW($A$5)+1),ROWS($A$5:E144)))),"") -> 
A145: =IFERROR(INDEX('يومية الصندوق'!$A$5:$A$1000,SMALL(IF('يومية الصندوق'!$C$5:$C$1000=$D$2,ROW($A$5:$A$1000)-ROW($A$5)+1),ROWS($A$5:A145))),"") ->  | B145: =IFERROR(INDEX('يومية الصندوق'!$B$5:$B$1000,SMALL(IF('يومية الصندوق'!$C$5:$C$1000=$D$2,ROW($A$5:$A$1000)-ROW($A$5)+1),ROWS($A$5:B145))),"") ->  | C145: =IFERROR(INDEX('يومية الصندوق'!$D$5:$D$1000,SMALL(IF('يومية الصندوق'!$C$5:$C$1000=$D$2,ROW($A$5:$A$1000)-ROW($A$5)+1),ROWS($A$5:C145))),"") ->  | D145: =IFERROR(INDEX('يومية الصندوق'!$E$5:$E$1000,SMALL(IF('يومية الصندوق'!$C$5:$C$1000=$D$2,ROW($A$5:$A$1000)-ROW($A$5)+1),ROWS($A$5:D145))),"") ->  | E145: =IFERROR(IF(INDEX('يومية الصندوق'!$G$5:$G$1000,SMALL(IF('يومية الصندوق'!$C$5:$C$1000=$D$2,ROW($A$5:$A$1000)-ROW($A$5)+1),ROWS($A$5:E145)))="","",INDEX('يومية الصندوق'!$G$5:$G$1000,SMALL(IF('يومية الصندوق'!$C$5:$C$1000=$D$2,ROW($A$5:$A$1000)-ROW($A$5)+1),ROWS($A$5:E145)))),"") -> 
A146: =IFERROR(INDEX('يومية الصندوق'!$A$5:$A$1000,SMALL(IF('يومية الصندوق'!$C$5:$C$1000=$D$2,ROW($A$5:$A$1000)-ROW($A$5)+1),ROWS($A$5:A146))),"") ->  | B146: =IFERROR(INDEX('يومية الصندوق'!$B$5:$B$1000,SMALL(IF('يومية الصندوق'!$C$5:$C$1000=$D$2,ROW($A$5:$A$1000)-ROW($A$5)+1),ROWS($A$5:B146))),"") ->  | C146: =IFERROR(INDEX('يومية الصندوق'!$D$5:$D$1000,SMALL(IF('يومية الصندوق'!$C$5:$C$1000=$D$2,ROW($A$5:$A$1000)-ROW($A$5)+1),ROWS($A$5:C146))),"") ->  | D146: =IFERROR(INDEX('يومية الصندوق'!$E$5:$E$1000,SMALL(IF('يومية الصندوق'!$C$5:$C$1000=$D$2,ROW($A$5:$A$1000)-ROW($A$5)+1),ROWS($A$5:D146))),"") ->  | E146: =IFERROR(IF(INDEX('يومية الصندوق'!$G$5:$G$1000,SMALL(IF('يومية الصندوق'!$C$5:$C$1000=$D$2,ROW($A$5:$A$1000)-ROW($A$5)+1),ROWS($A$5:E146)))="","",INDEX('يومية الصندوق'!$G$5:$G$1000,SMALL(IF('يومية الصندوق'!$C$5:$C$1000=$D$2,ROW($A$5:$A$1000)-ROW($A$5)+1),ROWS($A$5:E146)))),"") -> 
A147: =IFERROR(INDEX('يومية الصندوق'!$A$5:$A$1000,SMALL(IF('يومية الصندوق'!$C$5:$C$1000=$D$2,ROW($A$5:$A$1000)-ROW($A$5)+1),ROWS($A$5:A147))),"") ->  | B147: =IFERROR(INDEX('يومية الصندوق'!$B$5:$B$1000,SMALL(IF('يومية الصندوق'!$C$5:$C$1000=$D$2,ROW($A$5:$A$1000)-ROW($A$5)+1),ROWS($A$5:B147))),"") ->  | C147: =IFERROR(INDEX('يومية الصندوق'!$D$5:$D$1000,SMALL(IF('يومية الصندوق'!$C$5:$C$1000=$D$2,ROW($A$5:$A$1000)-ROW($A$5)+1),ROWS($A$5:C147))),"") ->  | D147: =IFERROR(INDEX('يومية الصندوق'!$E$5:$E$1000,SMALL(IF('يومية الصندوق'!$C$5:$C$1000=$D$2,ROW($A$5:$A$1000)-ROW($A$5)+1),ROWS($A$5:D147))),"") ->  | E147: =IFERROR(IF(INDEX('يومية الصندوق'!$G$5:$G$1000,SMALL(IF('يومية الصندوق'!$C$5:$C$1000=$D$2,ROW($A$5:$A$1000)-ROW($A$5)+1),ROWS($A$5:E147)))="","",INDEX('يومية الصندوق'!$G$5:$G$1000,SMALL(IF('يومية الصندوق'!$C$5:$C$1000=$D$2,ROW($A$5:$A$1000)-ROW($A$5)+1),ROWS($A$5:E147)))),"") -> 
A148: =IFERROR(INDEX('يومية الصندوق'!$A$5:$A$1000,SMALL(IF('يومية الصندوق'!$C$5:$C$1000=$D$2,ROW($A$5:$A$1000)-ROW($A$5)+1),ROWS($A$5:A148))),"") ->  | B148: =IFERROR(INDEX('يومية الصندوق'!$B$5:$B$1000,SMALL(IF('يومية الصندوق'!$C$5:$C$1000=$D$2,ROW($A$5:$A$1000)-ROW($A$5)+1),ROWS($A$5:B148))),"") ->  | C148: =IFERROR(INDEX('يومية الصندوق'!$D$5:$D$1000,SMALL(IF('يومية الصندوق'!$C$5:$C$1000=$D$2,ROW($A$5:$A$1000)-ROW($A$5)+1),ROWS($A$5:C148))),"") ->  | D148: =IFERROR(INDEX('يومية الصندوق'!$E$5:$E$1000,SMALL(IF('يومية الصندوق'!$C$5:$C$1000=$D$2,ROW($A$5:$A$1000)-ROW($A$5)+1),ROWS($A$5:D148))),"") ->  | E148: =IFERROR(IF(INDEX('يومية الصندوق'!$G$5:$G$1000,SMALL(IF('يومية الصندوق'!$C$5:$C$1000=$D$2,ROW($A$5:$A$1000)-ROW($A$5)+1),ROWS($A$5:E148)))="","",INDEX('يومية الصندوق'!$G$5:$G$1000,SMALL(IF('يومية الصندوق'!$C$5:$C$1000=$D$2,ROW($A$5:$A$1000)-ROW($A$5)+1),ROWS($A$5:E148)))),"") -> 
A149: =IFERROR(INDEX('يومية الصندوق'!$A$5:$A$1000,SMALL(IF('يومية الصندوق'!$C$5:$C$1000=$D$2,ROW($A$5:$A$1000)-ROW($A$5)+1),ROWS($A$5:A149))),"") ->  | B149: =IFERROR(INDEX('يومية الصندوق'!$B$5:$B$1000,SMALL(IF('يومية الصندوق'!$C$5:$C$1000=$D$2,ROW($A$5:$A$1000)-ROW($A$5)+1),ROWS($A$5:B149))),"") ->  | C149: =IFERROR(INDEX('يومية الصندوق'!$D$5:$D$1000,SMALL(IF('يومية الصندوق'!$C$5:$C$1000=$D$2,ROW($A$5:$A$1000)-ROW($A$5)+1),ROWS($A$5:C149))),"") ->  | D149: =IFERROR(INDEX('يومية الصندوق'!$E$5:$E$1000,SMALL(IF('يومية الصندوق'!$C$5:$C$1000=$D$2,ROW($A$5:$A$1000)-ROW($A$5)+1),ROWS($A$5:D149))),"") ->  | E149: =IFERROR(IF(INDEX('يومية الصندوق'!$G$5:$G$1000,SMALL(IF('يومية الصندوق'!$C$5:$C$1000=$D$2,ROW($A$5:$A$1000)-ROW($A$5)+1),ROWS($A$5:E149)))="","",INDEX('يومية الصندوق'!$G$5:$G$1000,SMALL(IF('يومية الصندوق'!$C$5:$C$1000=$D$2,ROW($A$5:$A$1000)-ROW($A$5)+1),ROWS($A$5:E149)))),"") -> 
A150: =IFERROR(INDEX('يومية الصندوق'!$A$5:$A$1000,SMALL(IF('يومية الصندوق'!$C$5:$C$1000=$D$2,ROW($A$5:$A$1000)-ROW($A$5)+1),ROWS($A$5:A150))),"") ->  | B150: =IFERROR(INDEX('يومية الصندوق'!$B$5:$B$1000,SMALL(IF('يومية الصندوق'!$C$5:$C$1000=$D$2,ROW($A$5:$A$1000)-ROW($A$5)+1),ROWS($A$5:B150))),"") ->  | C150: =IFERROR(INDEX('يومية الصندوق'!$D$5:$D$1000,SMALL(IF('يومية الصندوق'!$C$5:$C$1000=$D$2,ROW($A$5:$A$1000)-ROW($A$5)+1),ROWS($A$5:C150))),"") ->  | D150: =IFERROR(INDEX('يومية الصندوق'!$E$5:$E$1000,SMALL(IF('يومية الصندوق'!$C$5:$C$1000=$D$2,ROW($A$5:$A$1000)-ROW($A$5)+1),ROWS($A$5:D150))),"") ->  | E150: =IFERROR(IF(INDEX('يومية الصندوق'!$G$5:$G$1000,SMALL(IF('يومية الصندوق'!$C$5:$C$1000=$D$2,ROW($A$5:$A$1000)-ROW($A$5)+1),ROWS($A$5:E150)))="","",INDEX('يومية الصندوق'!$G$5:$G$1000,SMALL(IF('يومية الصندوق'!$C$5:$C$1000=$D$2,ROW($A$5:$A$1000)-ROW($A$5)+1),ROWS($A$5:E150)))),"") -> 
A151: =IFERROR(INDEX('يومية الصندوق'!$A$5:$A$1000,SMALL(IF('يومية الصندوق'!$C$5:$C$1000=$D$2,ROW($A$5:$A$1000)-ROW($A$5)+1),ROWS($A$5:A151))),"") ->  | B151: =IFERROR(INDEX('يومية الصندوق'!$B$5:$B$1000,SMALL(IF('يومية الصندوق'!$C$5:$C$1000=$D$2,ROW($A$5:$A$1000)-ROW($A$5)+1),ROWS($A$5:B151))),"") ->  | C151: =IFERROR(INDEX('يومية الصندوق'!$D$5:$D$1000,SMALL(IF('يومية الصندوق'!$C$5:$C$1000=$D$2,ROW($A$5:$A$1000)-ROW($A$5)+1),ROWS($A$5:C151))),"") ->  | D151: =IFERROR(INDEX('يومية الصندوق'!$E$5:$E$1000,SMALL(IF('يومية الصندوق'!$C$5:$C$1000=$D$2,ROW($A$5:$A$1000)-ROW($A$5)+1),ROWS($A$5:D151))),"") ->  | E151: =IFERROR(IF(INDEX('يومية الصندوق'!$G$5:$G$1000,SMALL(IF('يومية الصندوق'!$C$5:$C$1000=$D$2,ROW($A$5:$A$1000)-ROW($A$5)+1),ROWS($A$5:E151)))="","",INDEX('يومية الصندوق'!$G$5:$G$1000,SMALL(IF('يومية الصندوق'!$C$5:$C$1000=$D$2,ROW($A$5:$A$1000)-ROW($A$5)+1),ROWS($A$5:E151)))),"") -> 
A152: =IFERROR(INDEX('يومية الصندوق'!$A$5:$A$1000,SMALL(IF('يومية الصندوق'!$C$5:$C$1000=$D$2,ROW($A$5:$A$1000)-ROW($A$5)+1),ROWS($A$5:A152))),"") ->  | B152: =IFERROR(INDEX('يومية الصندوق'!$B$5:$B$1000,SMALL(IF('يومية الصندوق'!$C$5:$C$1000=$D$2,ROW($A$5:$A$1000)-ROW($A$5)+1),ROWS($A$5:B152))),"") ->  | C152: =IFERROR(INDEX('يومية الصندوق'!$D$5:$D$1000,SMALL(IF('يومية الصندوق'!$C$5:$C$1000=$D$2,ROW($A$5:$A$1000)-ROW($A$5)+1),ROWS($A$5:C152))),"") ->  | D152: =IFERROR(INDEX('يومية الصندوق'!$E$5:$E$1000,SMALL(IF('يومية الصندوق'!$C$5:$C$1000=$D$2,ROW($A$5:$A$1000)-ROW($A$5)+1),ROWS($A$5:D152))),"") ->  | E152: =IFERROR(IF(INDEX('يومية الصندوق'!$G$5:$G$1000,SMALL(IF('يومية الصندوق'!$C$5:$C$1000=$D$2,ROW($A$5:$A$1000)-ROW($A$5)+1),ROWS($A$5:E152)))="","",INDEX('يومية الصندوق'!$G$5:$G$1000,SMALL(IF('يومية الصندوق'!$C$5:$C$1000=$D$2,ROW($A$5:$A$1000)-ROW($A$5)+1),ROWS($A$5:E152)))),"") -> 
A153: =IFERROR(INDEX('يومية الصندوق'!$A$5:$A$1000,SMALL(IF('يومية الصندوق'!$C$5:$C$1000=$D$2,ROW($A$5:$A$1000)-ROW($A$5)+1),ROWS($A$5:A153))),"") ->  | B153: =IFERROR(INDEX('يومية الصندوق'!$B$5:$B$1000,SMALL(IF('يومية الصندوق'!$C$5:$C$1000=$D$2,ROW($A$5:$A$1000)-ROW($A$5)+1),ROWS($A$5:B153))),"") ->  | C153: =IFERROR(INDEX('يومية الصندوق'!$D$5:$D$1000,SMALL(IF('يومية الصندوق'!$C$5:$C$1000=$D$2,ROW($A$5:$A$1000)-ROW($A$5)+1),ROWS($A$5:C153))),"") ->  | D153: =IFERROR(INDEX('يومية الصندوق'!$E$5:$E$1000,SMALL(IF('يومية الصندوق'!$C$5:$C$1000=$D$2,ROW($A$5:$A$1000)-ROW($A$5)+1),ROWS($A$5:D153))),"") ->  | E153: =IFERROR(IF(INDEX('يومية الصندوق'!$G$5:$G$1000,SMALL(IF('يومية الصندوق'!$C$5:$C$1000=$D$2,ROW($A$5:$A$1000)-ROW($A$5)+1),ROWS($A$5:E153)))="","",INDEX('يومية الصندوق'!$G$5:$G$1000,SMALL(IF('يومية الصندوق'!$C$5:$C$1000=$D$2,ROW($A$5:$A$1000)-ROW($A$5)+1),ROWS($A$5:E153)))),"") -> 
A154: =IFERROR(INDEX('يومية الصندوق'!$A$5:$A$1000,SMALL(IF('يومية الصندوق'!$C$5:$C$1000=$D$2,ROW($A$5:$A$1000)-ROW($A$5)+1),ROWS($A$5:A154))),"") ->  | B154: =IFERROR(INDEX('يومية الصندوق'!$B$5:$B$1000,SMALL(IF('يومية الصندوق'!$C$5:$C$1000=$D$2,ROW($A$5:$A$1000)-ROW($A$5)+1),ROWS($A$5:B154))),"") ->  | C154: =IFERROR(INDEX('يومية الصندوق'!$D$5:$D$1000,SMALL(IF('يومية الصندوق'!$C$5:$C$1000=$D$2,ROW($A$5:$A$1000)-ROW($A$5)+1),ROWS($A$5:C154))),"") ->  | D154: =IFERROR(INDEX('يومية الصندوق'!$E$5:$E$1000,SMALL(IF('يومية الصندوق'!$C$5:$C$1000=$D$2,ROW($A$5:$A$1000)-ROW($A$5)+1),ROWS($A$5:D154))),"") ->  | E154: =IFERROR(IF(INDEX('يومية الصندوق'!$G$5:$G$1000,SMALL(IF('يومية الصندوق'!$C$5:$C$1000=$D$2,ROW($A$5:$A$1000)-ROW($A$5)+1),ROWS($A$5:E154)))="","",INDEX('يومية الصندوق'!$G$5:$G$1000,SMALL(IF('يومية الصندوق'!$C$5:$C$1000=$D$2,ROW($A$5:$A$1000)-ROW($A$5)+1),ROWS($A$5:E154)))),"") -> 
A155: =IFERROR(INDEX('يومية الصندوق'!$A$5:$A$1000,SMALL(IF('يومية الصندوق'!$C$5:$C$1000=$D$2,ROW($A$5:$A$1000)-ROW($A$5)+1),ROWS($A$5:A155))),"") ->  | B155: =IFERROR(INDEX('يومية الصندوق'!$B$5:$B$1000,SMALL(IF('يومية الصندوق'!$C$5:$C$1000=$D$2,ROW($A$5:$A$1000)-ROW($A$5)+1),ROWS($A$5:B155))),"") ->  | C155: =IFERROR(INDEX('يومية الصندوق'!$D$5:$D$1000,SMALL(IF('يومية الصندوق'!$C$5:$C$1000=$D$2,ROW($A$5:$A$1000)-ROW($A$5)+1),ROWS($A$5:C155))),"") ->  | D155: =IFERROR(INDEX('يومية الصندوق'!$E$5:$E$1000,SMALL(IF('يومية الصندوق'!$C$5:$C$1000=$D$2,ROW($A$5:$A$1000)-ROW($A$5)+1),ROWS($A$5:D155))),"") ->  | E155: =IFERROR(IF(INDEX('يومية الصندوق'!$G$5:$G$1000,SMALL(IF('يومية الصندوق'!$C$5:$C$1000=$D$2,ROW($A$5:$A$1000)-ROW($A$5)+1),ROWS($A$5:E155)))="","",INDEX('يومية الصندوق'!$G$5:$G$1000,SMALL(IF('يومية الصندوق'!$C$5:$C$1000=$D$2,ROW($A$5:$A$1000)-ROW($A$5)+1),ROWS($A$5:E155)))),"") -> 
A156: =IFERROR(INDEX('يومية الصندوق'!$A$5:$A$1000,SMALL(IF('يومية الصندوق'!$C$5:$C$1000=$D$2,ROW($A$5:$A$1000)-ROW($A$5)+1),ROWS($A$5:A156))),"") ->  | B156: =IFERROR(INDEX('يومية الصندوق'!$B$5:$B$1000,SMALL(IF('يومية الصندوق'!$C$5:$C$1000=$D$2,ROW($A$5:$A$1000)-ROW($A$5)+1),ROWS($A$5:B156))),"") ->  | C156: =IFERROR(INDEX('يومية الصندوق'!$D$5:$D$1000,SMALL(IF('يومية الصندوق'!$C$5:$C$1000=$D$2,ROW($A$5:$A$1000)-ROW($A$5)+1),ROWS($A$5:C156))),"") ->  | D156: =IFERROR(INDEX('يومية الصندوق'!$E$5:$E$1000,SMALL(IF('يومية الصندوق'!$C$5:$C$1000=$D$2,ROW($A$5:$A$1000)-ROW($A$5)+1),ROWS($A$5:D156))),"") ->  | E156: =IFERROR(IF(INDEX('يومية الصندوق'!$G$5:$G$1000,SMALL(IF('يومية الصندوق'!$C$5:$C$1000=$D$2,ROW($A$5:$A$1000)-ROW($A$5)+1),ROWS($A$5:E156)))="","",INDEX('يومية الصندوق'!$G$5:$G$1000,SMALL(IF('يومية الصندوق'!$C$5:$C$1000=$D$2,ROW($A$5:$A$1000)-ROW($A$5)+1),ROWS($A$5:E156)))),"") -> 
A157: =IFERROR(INDEX('يومية الصندوق'!$A$5:$A$1000,SMALL(IF('يومية الصندوق'!$C$5:$C$1000=$D$2,ROW($A$5:$A$1000)-ROW($A$5)+1),ROWS($A$5:A157))),"") ->  | B157: =IFERROR(INDEX('يومية الصندوق'!$B$5:$B$1000,SMALL(IF('يومية الصندوق'!$C$5:$C$1000=$D$2,ROW($A$5:$A$1000)-ROW($A$5)+1),ROWS($A$5:B157))),"") ->  | C157: =IFERROR(INDEX('يومية الصندوق'!$D$5:$D$1000,SMALL(IF('يومية الصندوق'!$C$5:$C$1000=$D$2,ROW($A$5:$A$1000)-ROW($A$5)+1),ROWS($A$5:C157))),"") ->  | D157: =IFERROR(INDEX('يومية الصندوق'!$E$5:$E$1000,SMALL(IF('يومية الصندوق'!$C$5:$C$1000=$D$2,ROW($A$5:$A$1000)-ROW($A$5)+1),ROWS($A$5:D157))),"") ->  | E157: =IFERROR(IF(INDEX('يومية الصندوق'!$G$5:$G$1000,SMALL(IF('يومية الصندوق'!$C$5:$C$1000=$D$2,ROW($A$5:$A$1000)-ROW($A$5)+1),ROWS($A$5:E157)))="","",INDEX('يومية الصندوق'!$G$5:$G$1000,SMALL(IF('يومية الصندوق'!$C$5:$C$1000=$D$2,ROW($A$5:$A$1000)-ROW($A$5)+1),ROWS($A$5:E157)))),"") -> 
A158: =IFERROR(INDEX('يومية الصندوق'!$A$5:$A$1000,SMALL(IF('يومية الصندوق'!$C$5:$C$1000=$D$2,ROW($A$5:$A$1000)-ROW($A$5)+1),ROWS($A$5:A158))),"") ->  | B158: =IFERROR(INDEX('يومية الصندوق'!$B$5:$B$1000,SMALL(IF('يومية الصندوق'!$C$5:$C$1000=$D$2,ROW($A$5:$A$1000)-ROW($A$5)+1),ROWS($A$5:B158))),"") ->  | C158: =IFERROR(INDEX('يومية الصندوق'!$D$5:$D$1000,SMALL(IF('يومية الصندوق'!$C$5:$C$1000=$D$2,ROW($A$5:$A$1000)-ROW($A$5)+1),ROWS($A$5:C158))),"") ->  | D158: =IFERROR(INDEX('يومية الصندوق'!$E$5:$E$1000,SMALL(IF('يومية الصندوق'!$C$5:$C$1000=$D$2,ROW($A$5:$A$1000)-ROW($A$5)+1),ROWS($A$5:D158))),"") ->  | E158: =IFERROR(IF(INDEX('يومية الصندوق'!$G$5:$G$1000,SMALL(IF('يومية الصندوق'!$C$5:$C$1000=$D$2,ROW($A$5:$A$1000)-ROW($A$5)+1),ROWS($A$5:E158)))="","",INDEX('يومية الصندوق'!$G$5:$G$1000,SMALL(IF('يومية الصندوق'!$C$5:$C$1000=$D$2,ROW($A$5:$A$1000)-ROW($A$5)+1),ROWS($A$5:E158)))),"") -> 
A159: =IFERROR(INDEX('يومية الصندوق'!$A$5:$A$1000,SMALL(IF('يومية الصندوق'!$C$5:$C$1000=$D$2,ROW($A$5:$A$1000)-ROW($A$5)+1),ROWS($A$5:A159))),"") ->  | B159: =IFERROR(INDEX('يومية الصندوق'!$B$5:$B$1000,SMALL(IF('يومية الصندوق'!$C$5:$C$1000=$D$2,ROW($A$5:$A$1000)-ROW($A$5)+1),ROWS($A$5:B159))),"") ->  | C159: =IFERROR(INDEX('يومية الصندوق'!$D$5:$D$1000,SMALL(IF('يومية الصندوق'!$C$5:$C$1000=$D$2,ROW($A$5:$A$1000)-ROW($A$5)+1),ROWS($A$5:C159))),"") ->  | D159: =IFERROR(INDEX('يومية الصندوق'!$E$5:$E$1000,SMALL(IF('يومية الصندوق'!$C$5:$C$1000=$D$2,ROW($A$5:$A$1000)-ROW($A$5)+1),ROWS($A$5:D159))),"") ->  | E159: =IFERROR(IF(INDEX('يومية الصندوق'!$G$5:$G$1000,SMALL(IF('يومية الصندوق'!$C$5:$C$1000=$D$2,ROW($A$5:$A$1000)-ROW($A$5)+1),ROWS($A$5:E159)))="","",INDEX('يومية الصندوق'!$G$5:$G$1000,SMALL(IF('يومية الصندوق'!$C$5:$C$1000=$D$2,ROW($A$5:$A$1000)-ROW($A$5)+1),ROWS($A$5:E159)))),"") -> 
A160: =IFERROR(INDEX('يومية الصندوق'!$A$5:$A$1000,SMALL(IF('يومية الصندوق'!$C$5:$C$1000=$D$2,ROW($A$5:$A$1000)-ROW($A$5)+1),ROWS($A$5:A160))),"") ->  | B160: =IFERROR(INDEX('يومية الصندوق'!$B$5:$B$1000,SMALL(IF('يومية الصندوق'!$C$5:$C$1000=$D$2,ROW($A$5:$A$1000)-ROW($A$5)+1),ROWS($A$5:B160))),"") ->  | C160: =IFERROR(INDEX('يومية الصندوق'!$D$5:$D$1000,SMALL(IF('يومية الصندوق'!$C$5:$C$1000=$D$2,ROW($A$5:$A$1000)-ROW($A$5)+1),ROWS($A$5:C160))),"") ->  | D160: =IFERROR(INDEX('يومية الصندوق'!$E$5:$E$1000,SMALL(IF('يومية الصندوق'!$C$5:$C$1000=$D$2,ROW($A$5:$A$1000)-ROW($A$5)+1),ROWS($A$5:D160))),"") ->  | E160: =IFERROR(IF(INDEX('يومية الصندوق'!$G$5:$G$1000,SMALL(IF('يومية الصندوق'!$C$5:$C$1000=$D$2,ROW($A$5:$A$1000)-ROW($A$5)+1),ROWS($A$5:E160)))="","",INDEX('يومية الصندوق'!$G$5:$G$1000,SMALL(IF('يومية الصندوق'!$C$5:$C$1000=$D$2,ROW($A$5:$A$1000)-ROW($A$5)+1),ROWS($A$5:E160)))),"") -> 
A161: =IFERROR(INDEX('يومية الصندوق'!$A$5:$A$1000,SMALL(IF('يومية الصندوق'!$C$5:$C$1000=$D$2,ROW($A$5:$A$1000)-ROW($A$5)+1),ROWS($A$5:A161))),"") ->  | B161: =IFERROR(INDEX('يومية الصندوق'!$B$5:$B$1000,SMALL(IF('يومية الصندوق'!$C$5:$C$1000=$D$2,ROW($A$5:$A$1000)-ROW($A$5)+1),ROWS($A$5:B161))),"") ->  | C161: =IFERROR(INDEX('يومية الصندوق'!$D$5:$D$1000,SMALL(IF('يومية الصندوق'!$C$5:$C$1000=$D$2,ROW($A$5:$A$1000)-ROW($A$5)+1),ROWS($A$5:C161))),"") ->  | D161: =IFERROR(INDEX('يومية الصندوق'!$E$5:$E$1000,SMALL(IF('يومية الصندوق'!$C$5:$C$1000=$D$2,ROW($A$5:$A$1000)-ROW($A$5)+1),ROWS($A$5:D161))),"") ->  | E161: =IFERROR(IF(INDEX('يومية الصندوق'!$G$5:$G$1000,SMALL(IF('يومية الصندوق'!$C$5:$C$1000=$D$2,ROW($A$5:$A$1000)-ROW($A$5)+1),ROWS($A$5:E161)))="","",INDEX('يومية الصندوق'!$G$5:$G$1000,SMALL(IF('يومية الصندوق'!$C$5:$C$1000=$D$2,ROW($A$5:$A$1000)-ROW($A$5)+1),ROWS($A$5:E161)))),"") -> 
A162: =IFERROR(INDEX('يومية الصندوق'!$A$5:$A$1000,SMALL(IF('يومية الصندوق'!$C$5:$C$1000=$D$2,ROW($A$5:$A$1000)-ROW($A$5)+1),ROWS($A$5:A162))),"") ->  | B162: =IFERROR(INDEX('يومية الصندوق'!$B$5:$B$1000,SMALL(IF('يومية الصندوق'!$C$5:$C$1000=$D$2,ROW($A$5:$A$1000)-ROW($A$5)+1),ROWS($A$5:B162))),"") ->  | C162: =IFERROR(INDEX('يومية الصندوق'!$D$5:$D$1000,SMALL(IF('يومية الصندوق'!$C$5:$C$1000=$D$2,ROW($A$5:$A$1000)-ROW($A$5)+1),ROWS($A$5:C162))),"") ->  | D162: =IFERROR(INDEX('يومية الصندوق'!$E$5:$E$1000,SMALL(IF('يومية الصندوق'!$C$5:$C$1000=$D$2,ROW($A$5:$A$1000)-ROW($A$5)+1),ROWS($A$5:D162))),"") ->  | E162: =IFERROR(IF(INDEX('يومية الصندوق'!$G$5:$G$1000,SMALL(IF('يومية الصندوق'!$C$5:$C$1000=$D$2,ROW($A$5:$A$1000)-ROW($A$5)+1),ROWS($A$5:E162)))="","",INDEX('يومية الصندوق'!$G$5:$G$1000,SMALL(IF('يومية الصندوق'!$C$5:$C$1000=$D$2,ROW($A$5:$A$1000)-ROW($A$5)+1),ROWS($A$5:E162)))),"") -> 
A163: =IFERROR(INDEX('يومية الصندوق'!$A$5:$A$1000,SMALL(IF('يومية الصندوق'!$C$5:$C$1000=$D$2,ROW($A$5:$A$1000)-ROW($A$5)+1),ROWS($A$5:A163))),"") ->  | B163: =IFERROR(INDEX('يومية الصندوق'!$B$5:$B$1000,SMALL(IF('يومية الصندوق'!$C$5:$C$1000=$D$2,ROW($A$5:$A$1000)-ROW($A$5)+1),ROWS($A$5:B163))),"") ->  | C163: =IFERROR(INDEX('يومية الصندوق'!$D$5:$D$1000,SMALL(IF('يومية الصندوق'!$C$5:$C$1000=$D$2,ROW($A$5:$A$1000)-ROW($A$5)+1),ROWS($A$5:C163))),"") ->  | D163: =IFERROR(INDEX('يومية الصندوق'!$E$5:$E$1000,SMALL(IF('يومية الصندوق'!$C$5:$C$1000=$D$2,ROW($A$5:$A$1000)-ROW($A$5)+1),ROWS($A$5:D163))),"") ->  | E163: =IFERROR(IF(INDEX('يومية الصندوق'!$G$5:$G$1000,SMALL(IF('يومية الصندوق'!$C$5:$C$1000=$D$2,ROW($A$5:$A$1000)-ROW($A$5)+1),ROWS($A$5:E163)))="","",INDEX('يومية الصندوق'!$G$5:$G$1000,SMALL(IF('يومية الصندوق'!$C$5:$C$1000=$D$2,ROW($A$5:$A$1000)-ROW($A$5)+1),ROWS($A$5:E163)))),"") -> 
A164: =IFERROR(INDEX('يومية الصندوق'!$A$5:$A$1000,SMALL(IF('يومية الصندوق'!$C$5:$C$1000=$D$2,ROW($A$5:$A$1000)-ROW($A$5)+1),ROWS($A$5:A164))),"") ->  | B164: =IFERROR(INDEX('يومية الصندوق'!$B$5:$B$1000,SMALL(IF('يومية الصندوق'!$C$5:$C$1000=$D$2,ROW($A$5:$A$1000)-ROW($A$5)+1),ROWS($A$5:B164))),"") ->  | C164: =IFERROR(INDEX('يومية الصندوق'!$D$5:$D$1000,SMALL(IF('يومية الصندوق'!$C$5:$C$1000=$D$2,ROW($A$5:$A$1000)-ROW($A$5)+1),ROWS($A$5:C164))),"") ->  | D164: =IFERROR(INDEX('يومية الصندوق'!$E$5:$E$1000,SMALL(IF('يومية الصندوق'!$C$5:$C$1000=$D$2,ROW($A$5:$A$1000)-ROW($A$5)+1),ROWS($A$5:D164))),"") ->  | E164: =IFERROR(IF(INDEX('يومية الصندوق'!$G$5:$G$1000,SMALL(IF('يومية الصندوق'!$C$5:$C$1000=$D$2,ROW($A$5:$A$1000)-ROW($A$5)+1),ROWS($A$5:E164)))="","",INDEX('يومية الصندوق'!$G$5:$G$1000,SMALL(IF('يومية الصندوق'!$C$5:$C$1000=$D$2,ROW($A$5:$A$1000)-ROW($A$5)+1),ROWS($A$5:E164)))),"") -> 
A165: =IFERROR(INDEX('يومية الصندوق'!$A$5:$A$1000,SMALL(IF('يومية الصندوق'!$C$5:$C$1000=$D$2,ROW($A$5:$A$1000)-ROW($A$5)+1),ROWS($A$5:A165))),"") ->  | B165: =IFERROR(INDEX('يومية الصندوق'!$B$5:$B$1000,SMALL(IF('يومية الصندوق'!$C$5:$C$1000=$D$2,ROW($A$5:$A$1000)-ROW($A$5)+1),ROWS($A$5:B165))),"") ->  | C165: =IFERROR(INDEX('يومية الصندوق'!$D$5:$D$1000,SMALL(IF('يومية الصندوق'!$C$5:$C$1000=$D$2,ROW($A$5:$A$1000)-ROW($A$5)+1),ROWS($A$5:C165))),"") ->  | D165: =IFERROR(INDEX('يومية الصندوق'!$E$5:$E$1000,SMALL(IF('يومية الصندوق'!$C$5:$C$1000=$D$2,ROW($A$5:$A$1000)-ROW($A$5)+1),ROWS($A$5:D165))),"") ->  | E165: =IFERROR(IF(INDEX('يومية الصندوق'!$G$5:$G$1000,SMALL(IF('يومية الصندوق'!$C$5:$C$1000=$D$2,ROW($A$5:$A$1000)-ROW($A$5)+1),ROWS($A$5:E165)))="","",INDEX('يومية الصندوق'!$G$5:$G$1000,SMALL(IF('يومية الصندوق'!$C$5:$C$1000=$D$2,ROW($A$5:$A$1000)-ROW($A$5)+1),ROWS($A$5:E165)))),"") -> 
A166: =IFERROR(INDEX('يومية الصندوق'!$A$5:$A$1000,SMALL(IF('يومية الصندوق'!$C$5:$C$1000=$D$2,ROW($A$5:$A$1000)-ROW($A$5)+1),ROWS($A$5:A166))),"") ->  | B166: =IFERROR(INDEX('يومية الصندوق'!$B$5:$B$1000,SMALL(IF('يومية الصندوق'!$C$5:$C$1000=$D$2,ROW($A$5:$A$1000)-ROW($A$5)+1),ROWS($A$5:B166))),"") ->  | C166: =IFERROR(INDEX('يومية الصندوق'!$D$5:$D$1000,SMALL(IF('يومية الصندوق'!$C$5:$C$1000=$D$2,ROW($A$5:$A$1000)-ROW($A$5)+1),ROWS($A$5:C166))),"") ->  | D166: =IFERROR(INDEX('يومية الصندوق'!$E$5:$E$1000,SMALL(IF('يومية الصندوق'!$C$5:$C$1000=$D$2,ROW($A$5:$A$1000)-ROW($A$5)+1),ROWS($A$5:D166))),"") ->  | E166: =IFERROR(IF(INDEX('يومية الصندوق'!$G$5:$G$1000,SMALL(IF('يومية الصندوق'!$C$5:$C$1000=$D$2,ROW($A$5:$A$1000)-ROW($A$5)+1),ROWS($A$5:E166)))="","",INDEX('يومية الصندوق'!$G$5:$G$1000,SMALL(IF('يومية الصندوق'!$C$5:$C$1000=$D$2,ROW($A$5:$A$1000)-ROW($A$5)+1),ROWS($A$5:E166)))),"") -> 
A167: =IFERROR(INDEX('يومية الصندوق'!$A$5:$A$1000,SMALL(IF('يومية الصندوق'!$C$5:$C$1000=$D$2,ROW($A$5:$A$1000)-ROW($A$5)+1),ROWS($A$5:A167))),"") ->  | B167: =IFERROR(INDEX('يومية الصندوق'!$B$5:$B$1000,SMALL(IF('يومية الصندوق'!$C$5:$C$1000=$D$2,ROW($A$5:$A$1000)-ROW($A$5)+1),ROWS($A$5:B167))),"") ->  | C167: =IFERROR(INDEX('يومية الصندوق'!$D$5:$D$1000,SMALL(IF('يومية الصندوق'!$C$5:$C$1000=$D$2,ROW($A$5:$A$1000)-ROW($A$5)+1),ROWS($A$5:C167))),"") ->  | D167: =IFERROR(INDEX('يومية الصندوق'!$E$5:$E$1000,SMALL(IF('يومية الصندوق'!$C$5:$C$1000=$D$2,ROW($A$5:$A$1000)-ROW($A$5)+1),ROWS($A$5:D167))),"") ->  | E167: =IFERROR(IF(INDEX('يومية الصندوق'!$G$5:$G$1000,SMALL(IF('يومية الصندوق'!$C$5:$C$1000=$D$2,ROW($A$5:$A$1000)-ROW($A$5)+1),ROWS($A$5:E167)))="","",INDEX('يومية الصندوق'!$G$5:$G$1000,SMALL(IF('يومية الصندوق'!$C$5:$C$1000=$D$2,ROW($A$5:$A$1000)-ROW($A$5)+1),ROWS($A$5:E167)))),"") -> 
A168: =IFERROR(INDEX('يومية الصندوق'!$A$5:$A$1000,SMALL(IF('يومية الصندوق'!$C$5:$C$1000=$D$2,ROW($A$5:$A$1000)-ROW($A$5)+1),ROWS($A$5:A168))),"") ->  | B168: =IFERROR(INDEX('يومية الصندوق'!$B$5:$B$1000,SMALL(IF('يومية الصندوق'!$C$5:$C$1000=$D$2,ROW($A$5:$A$1000)-ROW($A$5)+1),ROWS($A$5:B168))),"") ->  | C168: =IFERROR(INDEX('يومية الصندوق'!$D$5:$D$1000,SMALL(IF('يومية الصندوق'!$C$5:$C$1000=$D$2,ROW($A$5:$A$1000)-ROW($A$5)+1),ROWS($A$5:C168))),"") ->  | D168: =IFERROR(INDEX('يومية الصندوق'!$E$5:$E$1000,SMALL(IF('يومية الصندوق'!$C$5:$C$1000=$D$2,ROW($A$5:$A$1000)-ROW($A$5)+1),ROWS($A$5:D168))),"") ->  | E168: =IFERROR(IF(INDEX('يومية الصندوق'!$G$5:$G$1000,SMALL(IF('يومية الصندوق'!$C$5:$C$1000=$D$2,ROW($A$5:$A$1000)-ROW($A$5)+1),ROWS($A$5:E168)))="","",INDEX('يومية الصندوق'!$G$5:$G$1000,SMALL(IF('يومية الصندوق'!$C$5:$C$1000=$D$2,ROW($A$5:$A$1000)-ROW($A$5)+1),ROWS($A$5:E168)))),"") -> 
A169: =IFERROR(INDEX('يومية الصندوق'!$A$5:$A$1000,SMALL(IF('يومية الصندوق'!$C$5:$C$1000=$D$2,ROW($A$5:$A$1000)-ROW($A$5)+1),ROWS($A$5:A169))),"") ->  | B169: =IFERROR(INDEX('يومية الصندوق'!$B$5:$B$1000,SMALL(IF('يومية الصندوق'!$C$5:$C$1000=$D$2,ROW($A$5:$A$1000)-ROW($A$5)+1),ROWS($A$5:B169))),"") ->  | C169: =IFERROR(INDEX('يومية الصندوق'!$D$5:$D$1000,SMALL(IF('يومية الصندوق'!$C$5:$C$1000=$D$2,ROW($A$5:$A$1000)-ROW($A$5)+1),ROWS($A$5:C169))),"") ->  | D169: =IFERROR(INDEX('يومية الصندوق'!$E$5:$E$1000,SMALL(IF('يومية الصندوق'!$C$5:$C$1000=$D$2,ROW($A$5:$A$1000)-ROW($A$5)+1),ROWS($A$5:D169))),"") ->  | E169: =IFERROR(IF(INDEX('يومية الصندوق'!$G$5:$G$1000,SMALL(IF('يومية الصندوق'!$C$5:$C$1000=$D$2,ROW($A$5:$A$1000)-ROW($A$5)+1),ROWS($A$5:E169)))="","",INDEX('يومية الصندوق'!$G$5:$G$1000,SMALL(IF('يومية الصندوق'!$C$5:$C$1000=$D$2,ROW($A$5:$A$1000)-ROW($A$5)+1),ROWS($A$5:E169)))),"") -> 
A170: =IFERROR(INDEX('يومية الصندوق'!$A$5:$A$1000,SMALL(IF('يومية الصندوق'!$C$5:$C$1000=$D$2,ROW($A$5:$A$1000)-ROW($A$5)+1),ROWS($A$5:A170))),"") ->  | B170: =IFERROR(INDEX('يومية الصندوق'!$B$5:$B$1000,SMALL(IF('يومية الصندوق'!$C$5:$C$1000=$D$2,ROW($A$5:$A$1000)-ROW($A$5)+1),ROWS($A$5:B170))),"") ->  | C170: =IFERROR(INDEX('يومية الصندوق'!$D$5:$D$1000,SMALL(IF('يومية الصندوق'!$C$5:$C$1000=$D$2,ROW($A$5:$A$1000)-ROW($A$5)+1),ROWS($A$5:C170))),"") ->  | D170: =IFERROR(INDEX('يومية الصندوق'!$E$5:$E$1000,SMALL(IF('يومية الصندوق'!$C$5:$C$1000=$D$2,ROW($A$5:$A$1000)-ROW($A$5)+1),ROWS($A$5:D170))),"") ->  | E170: =IFERROR(IF(INDEX('يومية الصندوق'!$G$5:$G$1000,SMALL(IF('يومية الصندوق'!$C$5:$C$1000=$D$2,ROW($A$5:$A$1000)-ROW($A$5)+1),ROWS($A$5:E170)))="","",INDEX('يومية الصندوق'!$G$5:$G$1000,SMALL(IF('يومية الصندوق'!$C$5:$C$1000=$D$2,ROW($A$5:$A$1000)-ROW($A$5)+1),ROWS($A$5:E170)))),"") -> 
A171: =IFERROR(INDEX('يومية الصندوق'!$A$5:$A$1000,SMALL(IF('يومية الصندوق'!$C$5:$C$1000=$D$2,ROW($A$5:$A$1000)-ROW($A$5)+1),ROWS($A$5:A171))),"") ->  | B171: =IFERROR(INDEX('يومية الصندوق'!$B$5:$B$1000,SMALL(IF('يومية الصندوق'!$C$5:$C$1000=$D$2,ROW($A$5:$A$1000)-ROW($A$5)+1),ROWS($A$5:B171))),"") ->  | C171: =IFERROR(INDEX('يومية الصندوق'!$D$5:$D$1000,SMALL(IF('يومية الصندوق'!$C$5:$C$1000=$D$2,ROW($A$5:$A$1000)-ROW($A$5)+1),ROWS($A$5:C171))),"") ->  | D171: =IFERROR(INDEX('يومية الصندوق'!$E$5:$E$1000,SMALL(IF('يومية الصندوق'!$C$5:$C$1000=$D$2,ROW($A$5:$A$1000)-ROW($A$5)+1),ROWS($A$5:D171))),"") ->  | E171: =IFERROR(IF(INDEX('يومية الصندوق'!$G$5:$G$1000,SMALL(IF('يومية الصندوق'!$C$5:$C$1000=$D$2,ROW($A$5:$A$1000)-ROW($A$5)+1),ROWS($A$5:E171)))="","",INDEX('يومية الصندوق'!$G$5:$G$1000,SMALL(IF('يومية الصندوق'!$C$5:$C$1000=$D$2,ROW($A$5:$A$1000)-ROW($A$5)+1),ROWS($A$5:E171)))),"") -> 
A172: =IFERROR(INDEX('يومية الصندوق'!$A$5:$A$1000,SMALL(IF('يومية الصندوق'!$C$5:$C$1000=$D$2,ROW($A$5:$A$1000)-ROW($A$5)+1),ROWS($A$5:A172))),"") ->  | B172: =IFERROR(INDEX('يومية الصندوق'!$B$5:$B$1000,SMALL(IF('يومية الصندوق'!$C$5:$C$1000=$D$2,ROW($A$5:$A$1000)-ROW($A$5)+1),ROWS($A$5:B172))),"") ->  | C172: =IFERROR(INDEX('يومية الصندوق'!$D$5:$D$1000,SMALL(IF('يومية الصندوق'!$C$5:$C$1000=$D$2,ROW($A$5:$A$1000)-ROW($A$5)+1),ROWS($A$5:C172))),"") ->  | D172: =IFERROR(INDEX('يومية الصندوق'!$E$5:$E$1000,SMALL(IF('يومية الصندوق'!$C$5:$C$1000=$D$2,ROW($A$5:$A$1000)-ROW($A$5)+1),ROWS($A$5:D172))),"") ->  | E172: =IFERROR(IF(INDEX('يومية الصندوق'!$G$5:$G$1000,SMALL(IF('يومية الصندوق'!$C$5:$C$1000=$D$2,ROW($A$5:$A$1000)-ROW($A$5)+1),ROWS($A$5:E172)))="","",INDEX('يومية الصندوق'!$G$5:$G$1000,SMALL(IF('يومية الصندوق'!$C$5:$C$1000=$D$2,ROW($A$5:$A$1000)-ROW($A$5)+1),ROWS($A$5:E172)))),"") -> 
A173: =IFERROR(INDEX('يومية الصندوق'!$A$5:$A$1000,SMALL(IF('يومية الصندوق'!$C$5:$C$1000=$D$2,ROW($A$5:$A$1000)-ROW($A$5)+1),ROWS($A$5:A173))),"") ->  | B173: =IFERROR(INDEX('يومية الصندوق'!$B$5:$B$1000,SMALL(IF('يومية الصندوق'!$C$5:$C$1000=$D$2,ROW($A$5:$A$1000)-ROW($A$5)+1),ROWS($A$5:B173))),"") ->  | C173: =IFERROR(INDEX('يومية الصندوق'!$D$5:$D$1000,SMALL(IF('يومية الصندوق'!$C$5:$C$1000=$D$2,ROW($A$5:$A$1000)-ROW($A$5)+1),ROWS($A$5:C173))),"") ->  | D173: =IFERROR(INDEX('يومية الصندوق'!$E$5:$E$1000,SMALL(IF('يومية الصندوق'!$C$5:$C$1000=$D$2,ROW($A$5:$A$1000)-ROW($A$5)+1),ROWS($A$5:D173))),"") ->  | E173: =IFERROR(IF(INDEX('يومية الصندوق'!$G$5:$G$1000,SMALL(IF('يومية الصندوق'!$C$5:$C$1000=$D$2,ROW($A$5:$A$1000)-ROW($A$5)+1),ROWS($A$5:E173)))="","",INDEX('يومية الصندوق'!$G$5:$G$1000,SMALL(IF('يومية الصندوق'!$C$5:$C$1000=$D$2,ROW($A$5:$A$1000)-ROW($A$5)+1),ROWS($A$5:E173)))),"") -> 
A174: =IFERROR(INDEX('يومية الصندوق'!$A$5:$A$1000,SMALL(IF('يومية الصندوق'!$C$5:$C$1000=$D$2,ROW($A$5:$A$1000)-ROW($A$5)+1),ROWS($A$5:A174))),"") ->  | B174: =IFERROR(INDEX('يومية الصندوق'!$B$5:$B$1000,SMALL(IF('يومية الصندوق'!$C$5:$C$1000=$D$2,ROW($A$5:$A$1000)-ROW($A$5)+1),ROWS($A$5:B174))),"") ->  | C174: =IFERROR(INDEX('يومية الصندوق'!$D$5:$D$1000,SMALL(IF('يومية الصندوق'!$C$5:$C$1000=$D$2,ROW($A$5:$A$1000)-ROW($A$5)+1),ROWS($A$5:C174))),"") ->  | D174: =IFERROR(INDEX('يومية الصندوق'!$E$5:$E$1000,SMALL(IF('يومية الصندوق'!$C$5:$C$1000=$D$2,ROW($A$5:$A$1000)-ROW($A$5)+1),ROWS($A$5:D174))),"") ->  | E174: =IFERROR(IF(INDEX('يومية الصندوق'!$G$5:$G$1000,SMALL(IF('يومية الصندوق'!$C$5:$C$1000=$D$2,ROW($A$5:$A$1000)-ROW($A$5)+1),ROWS($A$5:E174)))="","",INDEX('يومية الصندوق'!$G$5:$G$1000,SMALL(IF('يومية الصندوق'!$C$5:$C$1000=$D$2,ROW($A$5:$A$1000)-ROW($A$5)+1),ROWS($A$5:E174)))),"") -> 
A175: =IFERROR(INDEX('يومية الصندوق'!$A$5:$A$1000,SMALL(IF('يومية الصندوق'!$C$5:$C$1000=$D$2,ROW($A$5:$A$1000)-ROW($A$5)+1),ROWS($A$5:A175))),"") ->  | B175: =IFERROR(INDEX('يومية الصندوق'!$B$5:$B$1000,SMALL(IF('يومية الصندوق'!$C$5:$C$1000=$D$2,ROW($A$5:$A$1000)-ROW($A$5)+1),ROWS($A$5:B175))),"") ->  | C175: =IFERROR(INDEX('يومية الصندوق'!$D$5:$D$1000,SMALL(IF('يومية الصندوق'!$C$5:$C$1000=$D$2,ROW($A$5:$A$1000)-ROW($A$5)+1),ROWS($A$5:C175))),"") ->  | D175: =IFERROR(INDEX('يومية الصندوق'!$E$5:$E$1000,SMALL(IF('يومية الصندوق'!$C$5:$C$1000=$D$2,ROW($A$5:$A$1000)-ROW($A$5)+1),ROWS($A$5:D175))),"") ->  | E175: =IFERROR(IF(INDEX('يومية الصندوق'!$G$5:$G$1000,SMALL(IF('يومية الصندوق'!$C$5:$C$1000=$D$2,ROW($A$5:$A$1000)-ROW($A$5)+1),ROWS($A$5:E175)))="","",INDEX('يومية الصندوق'!$G$5:$G$1000,SMALL(IF('يومية الصندوق'!$C$5:$C$1000=$D$2,ROW($A$5:$A$1000)-ROW($A$5)+1),ROWS($A$5:E175)))),"") -> 
A176: =IFERROR(INDEX('يومية الصندوق'!$A$5:$A$1000,SMALL(IF('يومية الصندوق'!$C$5:$C$1000=$D$2,ROW($A$5:$A$1000)-ROW($A$5)+1),ROWS($A$5:A176))),"") ->  | B176: =IFERROR(INDEX('يومية الصندوق'!$B$5:$B$1000,SMALL(IF('يومية الصندوق'!$C$5:$C$1000=$D$2,ROW($A$5:$A$1000)-ROW($A$5)+1),ROWS($A$5:B176))),"") ->  | C176: =IFERROR(INDEX('يومية الصندوق'!$D$5:$D$1000,SMALL(IF('يومية الصندوق'!$C$5:$C$1000=$D$2,ROW($A$5:$A$1000)-ROW($A$5)+1),ROWS($A$5:C176))),"") ->  | D176: =IFERROR(INDEX('يومية الصندوق'!$E$5:$E$1000,SMALL(IF('يومية الصندوق'!$C$5:$C$1000=$D$2,ROW($A$5:$A$1000)-ROW($A$5)+1),ROWS($A$5:D176))),"") ->  | E176: =IFERROR(IF(INDEX('يومية الصندوق'!$G$5:$G$1000,SMALL(IF('يومية الصندوق'!$C$5:$C$1000=$D$2,ROW($A$5:$A$1000)-ROW($A$5)+1),ROWS($A$5:E176)))="","",INDEX('يومية الصندوق'!$G$5:$G$1000,SMALL(IF('يومية الصندوق'!$C$5:$C$1000=$D$2,ROW($A$5:$A$1000)-ROW($A$5)+1),ROWS($A$5:E176)))),"") -> 
A177: =IFERROR(INDEX('يومية الصندوق'!$A$5:$A$1000,SMALL(IF('يومية الصندوق'!$C$5:$C$1000=$D$2,ROW($A$5:$A$1000)-ROW($A$5)+1),ROWS($A$5:A177))),"") ->  | B177: =IFERROR(INDEX('يومية الصندوق'!$B$5:$B$1000,SMALL(IF('يومية الصندوق'!$C$5:$C$1000=$D$2,ROW($A$5:$A$1000)-ROW($A$5)+1),ROWS($A$5:B177))),"") ->  | C177: =IFERROR(INDEX('يومية الصندوق'!$D$5:$D$1000,SMALL(IF('يومية الصندوق'!$C$5:$C$1000=$D$2,ROW($A$5:$A$1000)-ROW($A$5)+1),ROWS($A$5:C177))),"") ->  | D177: =IFERROR(INDEX('يومية الصندوق'!$E$5:$E$1000,SMALL(IF('يومية الصندوق'!$C$5:$C$1000=$D$2,ROW($A$5:$A$1000)-ROW($A$5)+1),ROWS($A$5:D177))),"") ->  | E177: =IFERROR(IF(INDEX('يومية الصندوق'!$G$5:$G$1000,SMALL(IF('يومية الصندوق'!$C$5:$C$1000=$D$2,ROW($A$5:$A$1000)-ROW($A$5)+1),ROWS($A$5:E177)))="","",INDEX('يومية الصندوق'!$G$5:$G$1000,SMALL(IF('يومية الصندوق'!$C$5:$C$1000=$D$2,ROW($A$5:$A$1000)-ROW($A$5)+1),ROWS($A$5:E177)))),"") -> 
A178: =IFERROR(INDEX('يومية الصندوق'!$A$5:$A$1000,SMALL(IF('يومية الصندوق'!$C$5:$C$1000=$D$2,ROW($A$5:$A$1000)-ROW($A$5)+1),ROWS($A$5:A178))),"") ->  | B178: =IFERROR(INDEX('يومية الصندوق'!$B$5:$B$1000,SMALL(IF('يومية الصندوق'!$C$5:$C$1000=$D$2,ROW($A$5:$A$1000)-ROW($A$5)+1),ROWS($A$5:B178))),"") ->  | C178: =IFERROR(INDEX('يومية الصندوق'!$D$5:$D$1000,SMALL(IF('يومية الصندوق'!$C$5:$C$1000=$D$2,ROW($A$5:$A$1000)-ROW($A$5)+1),ROWS($A$5:C178))),"") ->  | D178: =IFERROR(INDEX('يومية الصندوق'!$E$5:$E$1000,SMALL(IF('يومية الصندوق'!$C$5:$C$1000=$D$2,ROW($A$5:$A$1000)-ROW($A$5)+1),ROWS($A$5:D178))),"") ->  | E178: =IFERROR(IF(INDEX('يومية الصندوق'!$G$5:$G$1000,SMALL(IF('يومية الصندوق'!$C$5:$C$1000=$D$2,ROW($A$5:$A$1000)-ROW($A$5)+1),ROWS($A$5:E178)))="","",INDEX('يومية الصندوق'!$G$5:$G$1000,SMALL(IF('يومية الصندوق'!$C$5:$C$1000=$D$2,ROW($A$5:$A$1000)-ROW($A$5)+1),ROWS($A$5:E178)))),"") -> 
A179: =IFERROR(INDEX('يومية الصندوق'!$A$5:$A$1000,SMALL(IF('يومية الصندوق'!$C$5:$C$1000=$D$2,ROW($A$5:$A$1000)-ROW($A$5)+1),ROWS($A$5:A179))),"") ->  | B179: =IFERROR(INDEX('يومية الصندوق'!$B$5:$B$1000,SMALL(IF('يومية الصندوق'!$C$5:$C$1000=$D$2,ROW($A$5:$A$1000)-ROW($A$5)+1),ROWS($A$5:B179))),"") ->  | C179: =IFERROR(INDEX('يومية الصندوق'!$D$5:$D$1000,SMALL(IF('يومية الصندوق'!$C$5:$C$1000=$D$2,ROW($A$5:$A$1000)-ROW($A$5)+1),ROWS($A$5:C179))),"") ->  | D179: =IFERROR(INDEX('يومية الصندوق'!$E$5:$E$1000,SMALL(IF('يومية الصندوق'!$C$5:$C$1000=$D$2,ROW($A$5:$A$1000)-ROW($A$5)+1),ROWS($A$5:D179))),"") ->  | E179: =IFERROR(IF(INDEX('يومية الصندوق'!$G$5:$G$1000,SMALL(IF('يومية الصندوق'!$C$5:$C$1000=$D$2,ROW($A$5:$A$1000)-ROW($A$5)+1),ROWS($A$5:E179)))="","",INDEX('يومية الصندوق'!$G$5:$G$1000,SMALL(IF('يومية الصندوق'!$C$5:$C$1000=$D$2,ROW($A$5:$A$1000)-ROW($A$5)+1),ROWS($A$5:E179)))),"") -> 
A180: =IFERROR(INDEX('يومية الصندوق'!$A$5:$A$1000,SMALL(IF('يومية الصندوق'!$C$5:$C$1000=$D$2,ROW($A$5:$A$1000)-ROW($A$5)+1),ROWS($A$5:A180))),"") ->  | B180: =IFERROR(INDEX('يومية الصندوق'!$B$5:$B$1000,SMALL(IF('يومية الصندوق'!$C$5:$C$1000=$D$2,ROW($A$5:$A$1000)-ROW($A$5)+1),ROWS($A$5:B180))),"") ->  | C180: =IFERROR(INDEX('يومية الصندوق'!$D$5:$D$1000,SMALL(IF('يومية الصندوق'!$C$5:$C$1000=$D$2,ROW($A$5:$A$1000)-ROW($A$5)+1),ROWS($A$5:C180))),"") ->  | D180: =IFERROR(INDEX('يومية الصندوق'!$E$5:$E$1000,SMALL(IF('يومية الصندوق'!$C$5:$C$1000=$D$2,ROW($A$5:$A$1000)-ROW($A$5)+1),ROWS($A$5:D180))),"") ->  | E180: =IFERROR(IF(INDEX('يومية الصندوق'!$G$5:$G$1000,SMALL(IF('يومية الصندوق'!$C$5:$C$1000=$D$2,ROW($A$5:$A$1000)-ROW($A$5)+1),ROWS($A$5:E180)))="","",INDEX('يومية الصندوق'!$G$5:$G$1000,SMALL(IF('يومية الصندوق'!$C$5:$C$1000=$D$2,ROW($A$5:$A$1000)-ROW($A$5)+1),ROWS($A$5:E180)))),"") -> 
A181: =IFERROR(INDEX('يومية الصندوق'!$A$5:$A$1000,SMALL(IF('يومية الصندوق'!$C$5:$C$1000=$D$2,ROW($A$5:$A$1000)-ROW($A$5)+1),ROWS($A$5:A181))),"") ->  | B181: =IFERROR(INDEX('يومية الصندوق'!$B$5:$B$1000,SMALL(IF('يومية الصندوق'!$C$5:$C$1000=$D$2,ROW($A$5:$A$1000)-ROW($A$5)+1),ROWS($A$5:B181))),"") ->  | C181: =IFERROR(INDEX('يومية الصندوق'!$D$5:$D$1000,SMALL(IF('يومية الصندوق'!$C$5:$C$1000=$D$2,ROW($A$5:$A$1000)-ROW($A$5)+1),ROWS($A$5:C181))),"") ->  | D181: =IFERROR(INDEX('يومية الصندوق'!$E$5:$E$1000,SMALL(IF('يومية الصندوق'!$C$5:$C$1000=$D$2,ROW($A$5:$A$1000)-ROW($A$5)+1),ROWS($A$5:D181))),"") ->  | E181: =IFERROR(IF(INDEX('يومية الصندوق'!$G$5:$G$1000,SMALL(IF('يومية الصندوق'!$C$5:$C$1000=$D$2,ROW($A$5:$A$1000)-ROW($A$5)+1),ROWS($A$5:E181)))="","",INDEX('يومية الصندوق'!$G$5:$G$1000,SMALL(IF('يومية الصندوق'!$C$5:$C$1000=$D$2,ROW($A$5:$A$1000)-ROW($A$5)+1),ROWS($A$5:E181)))),"") -> 
A182: =IFERROR(INDEX('يومية الصندوق'!$A$5:$A$1000,SMALL(IF('يومية الصندوق'!$C$5:$C$1000=$D$2,ROW($A$5:$A$1000)-ROW($A$5)+1),ROWS($A$5:A182))),"") ->  | B182: =IFERROR(INDEX('يومية الصندوق'!$B$5:$B$1000,SMALL(IF('يومية الصندوق'!$C$5:$C$1000=$D$2,ROW($A$5:$A$1000)-ROW($A$5)+1),ROWS($A$5:B182))),"") ->  | C182: =IFERROR(INDEX('يومية الصندوق'!$D$5:$D$1000,SMALL(IF('يومية الصندوق'!$C$5:$C$1000=$D$2,ROW($A$5:$A$1000)-ROW($A$5)+1),ROWS($A$5:C182))),"") ->  | D182: =IFERROR(INDEX('يومية الصندوق'!$E$5:$E$1000,SMALL(IF('يومية الصندوق'!$C$5:$C$1000=$D$2,ROW($A$5:$A$1000)-ROW($A$5)+1),ROWS($A$5:D182))),"") ->  | E182: =IFERROR(IF(INDEX('يومية الصندوق'!$G$5:$G$1000,SMALL(IF('يومية الصندوق'!$C$5:$C$1000=$D$2,ROW($A$5:$A$1000)-ROW($A$5)+1),ROWS($A$5:E182)))="","",INDEX('يومية الصندوق'!$G$5:$G$1000,SMALL(IF('يومية الصندوق'!$C$5:$C$1000=$D$2,ROW($A$5:$A$1000)-ROW($A$5)+1),ROWS($A$5:E182)))),"") -> 
A183: =IFERROR(INDEX('يومية الصندوق'!$A$5:$A$1000,SMALL(IF('يومية الصندوق'!$C$5:$C$1000=$D$2,ROW($A$5:$A$1000)-ROW($A$5)+1),ROWS($A$5:A183))),"") ->  | B183: =IFERROR(INDEX('يومية الصندوق'!$B$5:$B$1000,SMALL(IF('يومية الصندوق'!$C$5:$C$1000=$D$2,ROW($A$5:$A$1000)-ROW($A$5)+1),ROWS($A$5:B183))),"") ->  | C183: =IFERROR(INDEX('يومية الصندوق'!$D$5:$D$1000,SMALL(IF('يومية الصندوق'!$C$5:$C$1000=$D$2,ROW($A$5:$A$1000)-ROW($A$5)+1),ROWS($A$5:C183))),"") ->  | D183: =IFERROR(INDEX('يومية الصندوق'!$E$5:$E$1000,SMALL(IF('يومية الصندوق'!$C$5:$C$1000=$D$2,ROW($A$5:$A$1000)-ROW($A$5)+1),ROWS($A$5:D183))),"") ->  | E183: =IFERROR(IF(INDEX('يومية الصندوق'!$G$5:$G$1000,SMALL(IF('يومية الصندوق'!$C$5:$C$1000=$D$2,ROW($A$5:$A$1000)-ROW($A$5)+1),ROWS($A$5:E183)))="","",INDEX('يومية الصندوق'!$G$5:$G$1000,SMALL(IF('يومية الصندوق'!$C$5:$C$1000=$D$2,ROW($A$5:$A$1000)-ROW($A$5)+1),ROWS($A$5:E183)))),"") -> 
A184: =IFERROR(INDEX('يومية الصندوق'!$A$5:$A$1000,SMALL(IF('يومية الصندوق'!$C$5:$C$1000=$D$2,ROW($A$5:$A$1000)-ROW($A$5)+1),ROWS($A$5:A184))),"") ->  | B184: =IFERROR(INDEX('يومية الصندوق'!$B$5:$B$1000,SMALL(IF('يومية الصندوق'!$C$5:$C$1000=$D$2,ROW($A$5:$A$1000)-ROW($A$5)+1),ROWS($A$5:B184))),"") ->  | C184: =IFERROR(INDEX('يومية الصندوق'!$D$5:$D$1000,SMALL(IF('يومية الصندوق'!$C$5:$C$1000=$D$2,ROW($A$5:$A$1000)-ROW($A$5)+1),ROWS($A$5:C184))),"") ->  | D184: =IFERROR(INDEX('يومية الصندوق'!$E$5:$E$1000,SMALL(IF('يومية الصندوق'!$C$5:$C$1000=$D$2,ROW($A$5:$A$1000)-ROW($A$5)+1),ROWS($A$5:D184))),"") ->  | E184: =IFERROR(IF(INDEX('يومية الصندوق'!$G$5:$G$1000,SMALL(IF('يومية الصندوق'!$C$5:$C$1000=$D$2,ROW($A$5:$A$1000)-ROW($A$5)+1),ROWS($A$5:E184)))="","",INDEX('يومية الصندوق'!$G$5:$G$1000,SMALL(IF('يومية الصندوق'!$C$5:$C$1000=$D$2,ROW($A$5:$A$1000)-ROW($A$5)+1),ROWS($A$5:E184)))),"") -> 
A185: =IFERROR(INDEX('يومية الصندوق'!$A$5:$A$1000,SMALL(IF('يومية الصندوق'!$C$5:$C$1000=$D$2,ROW($A$5:$A$1000)-ROW($A$5)+1),ROWS($A$5:A185))),"") ->  | B185: =IFERROR(INDEX('يومية الصندوق'!$B$5:$B$1000,SMALL(IF('يومية الصندوق'!$C$5:$C$1000=$D$2,ROW($A$5:$A$1000)-ROW($A$5)+1),ROWS($A$5:B185))),"") ->  | C185: =IFERROR(INDEX('يومية الصندوق'!$D$5:$D$1000,SMALL(IF('يومية الصندوق'!$C$5:$C$1000=$D$2,ROW($A$5:$A$1000)-ROW($A$5)+1),ROWS($A$5:C185))),"") ->  | D185: =IFERROR(INDEX('يومية الصندوق'!$E$5:$E$1000,SMALL(IF('يومية الصندوق'!$C$5:$C$1000=$D$2,ROW($A$5:$A$1000)-ROW($A$5)+1),ROWS($A$5:D185))),"") ->  | E185: =IFERROR(IF(INDEX('يومية الصندوق'!$G$5:$G$1000,SMALL(IF('يومية الصندوق'!$C$5:$C$1000=$D$2,ROW($A$5:$A$1000)-ROW($A$5)+1),ROWS($A$5:E185)))="","",INDEX('يومية الصندوق'!$G$5:$G$1000,SMALL(IF('يومية الصندوق'!$C$5:$C$1000=$D$2,ROW($A$5:$A$1000)-ROW($A$5)+1),ROWS($A$5:E185)))),"") -> 
A186: =IFERROR(INDEX('يومية الصندوق'!$A$5:$A$1000,SMALL(IF('يومية الصندوق'!$C$5:$C$1000=$D$2,ROW($A$5:$A$1000)-ROW($A$5)+1),ROWS($A$5:A186))),"") ->  | B186: =IFERROR(INDEX('يومية الصندوق'!$B$5:$B$1000,SMALL(IF('يومية الصندوق'!$C$5:$C$1000=$D$2,ROW($A$5:$A$1000)-ROW($A$5)+1),ROWS($A$5:B186))),"") ->  | C186: =IFERROR(INDEX('يومية الصندوق'!$D$5:$D$1000,SMALL(IF('يومية الصندوق'!$C$5:$C$1000=$D$2,ROW($A$5:$A$1000)-ROW($A$5)+1),ROWS($A$5:C186))),"") ->  | D186: =IFERROR(INDEX('يومية الصندوق'!$E$5:$E$1000,SMALL(IF('يومية الصندوق'!$C$5:$C$1000=$D$2,ROW($A$5:$A$1000)-ROW($A$5)+1),ROWS($A$5:D186))),"") ->  | E186: =IFERROR(IF(INDEX('يومية الصندوق'!$G$5:$G$1000,SMALL(IF('يومية الصندوق'!$C$5:$C$1000=$D$2,ROW($A$5:$A$1000)-ROW($A$5)+1),ROWS($A$5:E186)))="","",INDEX('يومية الصندوق'!$G$5:$G$1000,SMALL(IF('يومية الصندوق'!$C$5:$C$1000=$D$2,ROW($A$5:$A$1000)-ROW($A$5)+1),ROWS($A$5:E186)))),"") -> 
A187: =IFERROR(INDEX('يومية الصندوق'!$A$5:$A$1000,SMALL(IF('يومية الصندوق'!$C$5:$C$1000=$D$2,ROW($A$5:$A$1000)-ROW($A$5)+1),ROWS($A$5:A187))),"") ->  | B187: =IFERROR(INDEX('يومية الصندوق'!$B$5:$B$1000,SMALL(IF('يومية الصندوق'!$C$5:$C$1000=$D$2,ROW($A$5:$A$1000)-ROW($A$5)+1),ROWS($A$5:B187))),"") ->  | C187: =IFERROR(INDEX('يومية الصندوق'!$D$5:$D$1000,SMALL(IF('يومية الصندوق'!$C$5:$C$1000=$D$2,ROW($A$5:$A$1000)-ROW($A$5)+1),ROWS($A$5:C187))),"") ->  | D187: =IFERROR(INDEX('يومية الصندوق'!$E$5:$E$1000,SMALL(IF('يومية الصندوق'!$C$5:$C$1000=$D$2,ROW($A$5:$A$1000)-ROW($A$5)+1),ROWS($A$5:D187))),"") ->  | E187: =IFERROR(IF(INDEX('يومية الصندوق'!$G$5:$G$1000,SMALL(IF('يومية الصندوق'!$C$5:$C$1000=$D$2,ROW($A$5:$A$1000)-ROW($A$5)+1),ROWS($A$5:E187)))="","",INDEX('يومية الصندوق'!$G$5:$G$1000,SMALL(IF('يومية الصندوق'!$C$5:$C$1000=$D$2,ROW($A$5:$A$1000)-ROW($A$5)+1),ROWS($A$5:E187)))),"") -> 
A188: =IFERROR(INDEX('يومية الصندوق'!$A$5:$A$1000,SMALL(IF('يومية الصندوق'!$C$5:$C$1000=$D$2,ROW($A$5:$A$1000)-ROW($A$5)+1),ROWS($A$5:A188))),"") ->  | B188: =IFERROR(INDEX('يومية الصندوق'!$B$5:$B$1000,SMALL(IF('يومية الصندوق'!$C$5:$C$1000=$D$2,ROW($A$5:$A$1000)-ROW($A$5)+1),ROWS($A$5:B188))),"") ->  | C188: =IFERROR(INDEX('يومية الصندوق'!$D$5:$D$1000,SMALL(IF('يومية الصندوق'!$C$5:$C$1000=$D$2,ROW($A$5:$A$1000)-ROW($A$5)+1),ROWS($A$5:C188))),"") ->  | D188: =IFERROR(INDEX('يومية الصندوق'!$E$5:$E$1000,SMALL(IF('يومية الصندوق'!$C$5:$C$1000=$D$2,ROW($A$5:$A$1000)-ROW($A$5)+1),ROWS($A$5:D188))),"") ->  | E188: =IFERROR(IF(INDEX('يومية الصندوق'!$G$5:$G$1000,SMALL(IF('يومية الصندوق'!$C$5:$C$1000=$D$2,ROW($A$5:$A$1000)-ROW($A$5)+1),ROWS($A$5:E188)))="","",INDEX('يومية الصندوق'!$G$5:$G$1000,SMALL(IF('يومية الصندوق'!$C$5:$C$1000=$D$2,ROW($A$5:$A$1000)-ROW($A$5)+1),ROWS($A$5:E188)))),"") -> 
A189: =IFERROR(INDEX('يومية الصندوق'!$A$5:$A$1000,SMALL(IF('يومية الصندوق'!$C$5:$C$1000=$D$2,ROW($A$5:$A$1000)-ROW($A$5)+1),ROWS($A$5:A189))),"") ->  | B189: =IFERROR(INDEX('يومية الصندوق'!$B$5:$B$1000,SMALL(IF('يومية الصندوق'!$C$5:$C$1000=$D$2,ROW($A$5:$A$1000)-ROW($A$5)+1),ROWS($A$5:B189))),"") ->  | C189: =IFERROR(INDEX('يومية الصندوق'!$D$5:$D$1000,SMALL(IF('يومية الصندوق'!$C$5:$C$1000=$D$2,ROW($A$5:$A$1000)-ROW($A$5)+1),ROWS($A$5:C189))),"") ->  | D189: =IFERROR(INDEX('يومية الصندوق'!$E$5:$E$1000,SMALL(IF('يومية الصندوق'!$C$5:$C$1000=$D$2,ROW($A$5:$A$1000)-ROW($A$5)+1),ROWS($A$5:D189))),"") ->  | E189: =IFERROR(IF(INDEX('يومية الصندوق'!$G$5:$G$1000,SMALL(IF('يومية الصندوق'!$C$5:$C$1000=$D$2,ROW($A$5:$A$1000)-ROW($A$5)+1),ROWS($A$5:E189)))="","",INDEX('يومية الصندوق'!$G$5:$G$1000,SMALL(IF('يومية الصندوق'!$C$5:$C$1000=$D$2,ROW($A$5:$A$1000)-ROW($A$5)+1),ROWS($A$5:E189)))),"") -> 
A190: =IFERROR(INDEX('يومية الصندوق'!$A$5:$A$1000,SMALL(IF('يومية الصندوق'!$C$5:$C$1000=$D$2,ROW($A$5:$A$1000)-ROW($A$5)+1),ROWS($A$5:A190))),"") ->  | B190: =IFERROR(INDEX('يومية الصندوق'!$B$5:$B$1000,SMALL(IF('يومية الصندوق'!$C$5:$C$1000=$D$2,ROW($A$5:$A$1000)-ROW($A$5)+1),ROWS($A$5:B190))),"") ->  | C190: =IFERROR(INDEX('يومية الصندوق'!$D$5:$D$1000,SMALL(IF('يومية الصندوق'!$C$5:$C$1000=$D$2,ROW($A$5:$A$1000)-ROW($A$5)+1),ROWS($A$5:C190))),"") ->  | D190: =IFERROR(INDEX('يومية الصندوق'!$E$5:$E$1000,SMALL(IF('يومية الصندوق'!$C$5:$C$1000=$D$2,ROW($A$5:$A$1000)-ROW($A$5)+1),ROWS($A$5:D190))),"") ->  | E190: =IFERROR(IF(INDEX('يومية الصندوق'!$G$5:$G$1000,SMALL(IF('يومية الصندوق'!$C$5:$C$1000=$D$2,ROW($A$5:$A$1000)-ROW($A$5)+1),ROWS($A$5:E190)))="","",INDEX('يومية الصندوق'!$G$5:$G$1000,SMALL(IF('يومية الصندوق'!$C$5:$C$1000=$D$2,ROW($A$5:$A$1000)-ROW($A$5)+1),ROWS($A$5:E190)))),"") -> 
A191: =IFERROR(INDEX('يومية الصندوق'!$A$5:$A$1000,SMALL(IF('يومية الصندوق'!$C$5:$C$1000=$D$2,ROW($A$5:$A$1000)-ROW($A$5)+1),ROWS($A$5:A191))),"") ->  | B191: =IFERROR(INDEX('يومية الصندوق'!$B$5:$B$1000,SMALL(IF('يومية الصندوق'!$C$5:$C$1000=$D$2,ROW($A$5:$A$1000)-ROW($A$5)+1),ROWS($A$5:B191))),"") ->  | C191: =IFERROR(INDEX('يومية الصندوق'!$D$5:$D$1000,SMALL(IF('يومية الصندوق'!$C$5:$C$1000=$D$2,ROW($A$5:$A$1000)-ROW($A$5)+1),ROWS($A$5:C191))),"") ->  | D191: =IFERROR(INDEX('يومية الصندوق'!$E$5:$E$1000,SMALL(IF('يومية الصندوق'!$C$5:$C$1000=$D$2,ROW($A$5:$A$1000)-ROW($A$5)+1),ROWS($A$5:D191))),"") ->  | E191: =IFERROR(IF(INDEX('يومية الصندوق'!$G$5:$G$1000,SMALL(IF('يومية الصندوق'!$C$5:$C$1000=$D$2,ROW($A$5:$A$1000)-ROW($A$5)+1),ROWS($A$5:E191)))="","",INDEX('يومية الصندوق'!$G$5:$G$1000,SMALL(IF('يومية الصندوق'!$C$5:$C$1000=$D$2,ROW($A$5:$A$1000)-ROW($A$5)+1),ROWS($A$5:E191)))),"") -> 
A192: =IFERROR(INDEX('يومية الصندوق'!$A$5:$A$1000,SMALL(IF('يومية الصندوق'!$C$5:$C$1000=$D$2,ROW($A$5:$A$1000)-ROW($A$5)+1),ROWS($A$5:A192))),"") ->  | B192: =IFERROR(INDEX('يومية الصندوق'!$B$5:$B$1000,SMALL(IF('يومية الصندوق'!$C$5:$C$1000=$D$2,ROW($A$5:$A$1000)-ROW($A$5)+1),ROWS($A$5:B192))),"") ->  | C192: =IFERROR(INDEX('يومية الصندوق'!$D$5:$D$1000,SMALL(IF('يومية الصندوق'!$C$5:$C$1000=$D$2,ROW($A$5:$A$1000)-ROW($A$5)+1),ROWS($A$5:C192))),"") ->  | D192: =IFERROR(INDEX('يومية الصندوق'!$E$5:$E$1000,SMALL(IF('يومية الصندوق'!$C$5:$C$1000=$D$2,ROW($A$5:$A$1000)-ROW($A$5)+1),ROWS($A$5:D192))),"") ->  | E192: =IFERROR(IF(INDEX('يومية الصندوق'!$G$5:$G$1000,SMALL(IF('يومية الصندوق'!$C$5:$C$1000=$D$2,ROW($A$5:$A$1000)-ROW($A$5)+1),ROWS($A$5:E192)))="","",INDEX('يومية الصندوق'!$G$5:$G$1000,SMALL(IF('يومية الصندوق'!$C$5:$C$1000=$D$2,ROW($A$5:$A$1000)-ROW($A$5)+1),ROWS($A$5:E192)))),"") -> 
A193: =IFERROR(INDEX('يومية الصندوق'!$A$5:$A$1000,SMALL(IF('يومية الصندوق'!$C$5:$C$1000=$D$2,ROW($A$5:$A$1000)-ROW($A$5)+1),ROWS($A$5:A193))),"") ->  | B193: =IFERROR(INDEX('يومية الصندوق'!$B$5:$B$1000,SMALL(IF('يومية الصندوق'!$C$5:$C$1000=$D$2,ROW($A$5:$A$1000)-ROW($A$5)+1),ROWS($A$5:B193))),"") ->  | C193: =IFERROR(INDEX('يومية الصندوق'!$D$5:$D$1000,SMALL(IF('يومية الصندوق'!$C$5:$C$1000=$D$2,ROW($A$5:$A$1000)-ROW($A$5)+1),ROWS($A$5:C193))),"") ->  | D193: =IFERROR(INDEX('يومية الصندوق'!$E$5:$E$1000,SMALL(IF('يومية الصندوق'!$C$5:$C$1000=$D$2,ROW($A$5:$A$1000)-ROW($A$5)+1),ROWS($A$5:D193))),"") ->  | E193: =IFERROR(IF(INDEX('يومية الصندوق'!$G$5:$G$1000,SMALL(IF('يومية الصندوق'!$C$5:$C$1000=$D$2,ROW($A$5:$A$1000)-ROW($A$5)+1),ROWS($A$5:E193)))="","",INDEX('يومية الصندوق'!$G$5:$G$1000,SMALL(IF('يومية الصندوق'!$C$5:$C$1000=$D$2,ROW($A$5:$A$1000)-ROW($A$5)+1),ROWS($A$5:E193)))),"") -> 
A194: =IFERROR(INDEX('يومية الصندوق'!$A$5:$A$1000,SMALL(IF('يومية الصندوق'!$C$5:$C$1000=$D$2,ROW($A$5:$A$1000)-ROW($A$5)+1),ROWS($A$5:A194))),"") ->  | B194: =IFERROR(INDEX('يومية الصندوق'!$B$5:$B$1000,SMALL(IF('يومية الصندوق'!$C$5:$C$1000=$D$2,ROW($A$5:$A$1000)-ROW($A$5)+1),ROWS($A$5:B194))),"") ->  | C194: =IFERROR(INDEX('يومية الصندوق'!$D$5:$D$1000,SMALL(IF('يومية الصندوق'!$C$5:$C$1000=$D$2,ROW($A$5:$A$1000)-ROW($A$5)+1),ROWS($A$5:C194))),"") ->  | D194: =IFERROR(INDEX('يومية الصندوق'!$E$5:$E$1000,SMALL(IF('يومية الصندوق'!$C$5:$C$1000=$D$2,ROW($A$5:$A$1000)-ROW($A$5)+1),ROWS($A$5:D194))),"") ->  | E194: =IFERROR(IF(INDEX('يومية الصندوق'!$G$5:$G$1000,SMALL(IF('يومية الصندوق'!$C$5:$C$1000=$D$2,ROW($A$5:$A$1000)-ROW($A$5)+1),ROWS($A$5:E194)))="","",INDEX('يومية الصندوق'!$G$5:$G$1000,SMALL(IF('يومية الصندوق'!$C$5:$C$1000=$D$2,ROW($A$5:$A$1000)-ROW($A$5)+1),ROWS($A$5:E194)))),"") -> 
A195: =IFERROR(INDEX('يومية الصندوق'!$A$5:$A$1000,SMALL(IF('يومية الصندوق'!$C$5:$C$1000=$D$2,ROW($A$5:$A$1000)-ROW($A$5)+1),ROWS($A$5:A195))),"") ->  | B195: =IFERROR(INDEX('يومية الصندوق'!$B$5:$B$1000,SMALL(IF('يومية الصندوق'!$C$5:$C$1000=$D$2,ROW($A$5:$A$1000)-ROW($A$5)+1),ROWS($A$5:B195))),"") ->  | C195: =IFERROR(INDEX('يومية الصندوق'!$D$5:$D$1000,SMALL(IF('يومية الصندوق'!$C$5:$C$1000=$D$2,ROW($A$5:$A$1000)-ROW($A$5)+1),ROWS($A$5:C195))),"") ->  | D195: =IFERROR(INDEX('يومية الصندوق'!$E$5:$E$1000,SMALL(IF('يومية الصندوق'!$C$5:$C$1000=$D$2,ROW($A$5:$A$1000)-ROW($A$5)+1),ROWS($A$5:D195))),"") ->  | E195: =IFERROR(IF(INDEX('يومية الصندوق'!$G$5:$G$1000,SMALL(IF('يومية الصندوق'!$C$5:$C$1000=$D$2,ROW($A$5:$A$1000)-ROW($A$5)+1),ROWS($A$5:E195)))="","",INDEX('يومية الصندوق'!$G$5:$G$1000,SMALL(IF('يومية الصندوق'!$C$5:$C$1000=$D$2,ROW($A$5:$A$1000)-ROW($A$5)+1),ROWS($A$5:E195)))),"") -> 
A196: =IFERROR(INDEX('يومية الصندوق'!$A$5:$A$1000,SMALL(IF('يومية الصندوق'!$C$5:$C$1000=$D$2,ROW($A$5:$A$1000)-ROW($A$5)+1),ROWS($A$5:A196))),"") ->  | B196: =IFERROR(INDEX('يومية الصندوق'!$B$5:$B$1000,SMALL(IF('يومية الصندوق'!$C$5:$C$1000=$D$2,ROW($A$5:$A$1000)-ROW($A$5)+1),ROWS($A$5:B196))),"") ->  | C196: =IFERROR(INDEX('يومية الصندوق'!$D$5:$D$1000,SMALL(IF('يومية الصندوق'!$C$5:$C$1000=$D$2,ROW($A$5:$A$1000)-ROW($A$5)+1),ROWS($A$5:C196))),"") ->  | D196: =IFERROR(INDEX('يومية الصندوق'!$E$5:$E$1000,SMALL(IF('يومية الصندوق'!$C$5:$C$1000=$D$2,ROW($A$5:$A$1000)-ROW($A$5)+1),ROWS($A$5:D196))),"") ->  | E196: =IFERROR(IF(INDEX('يومية الصندوق'!$G$5:$G$1000,SMALL(IF('يومية الصندوق'!$C$5:$C$1000=$D$2,ROW($A$5:$A$1000)-ROW($A$5)+1),ROWS($A$5:E196)))="","",INDEX('يومية الصندوق'!$G$5:$G$1000,SMALL(IF('يومية الصندوق'!$C$5:$C$1000=$D$2,ROW($A$5:$A$1000)-ROW($A$5)+1),ROWS($A$5:E196)))),"") -> 
A197: =IFERROR(INDEX('يومية الصندوق'!$A$5:$A$1000,SMALL(IF('يومية الصندوق'!$C$5:$C$1000=$D$2,ROW($A$5:$A$1000)-ROW($A$5)+1),ROWS($A$5:A197))),"") ->  | B197: =IFERROR(INDEX('يومية الصندوق'!$B$5:$B$1000,SMALL(IF('يومية الصندوق'!$C$5:$C$1000=$D$2,ROW($A$5:$A$1000)-ROW($A$5)+1),ROWS($A$5:B197))),"") ->  | C197: =IFERROR(INDEX('يومية الصندوق'!$D$5:$D$1000,SMALL(IF('يومية الصندوق'!$C$5:$C$1000=$D$2,ROW($A$5:$A$1000)-ROW($A$5)+1),ROWS($A$5:C197))),"") ->  | D197: =IFERROR(INDEX('يومية الصندوق'!$E$5:$E$1000,SMALL(IF('يومية الصندوق'!$C$5:$C$1000=$D$2,ROW($A$5:$A$1000)-ROW($A$5)+1),ROWS($A$5:D197))),"") ->  | E197: =IFERROR(IF(INDEX('يومية الصندوق'!$G$5:$G$1000,SMALL(IF('يومية الصندوق'!$C$5:$C$1000=$D$2,ROW($A$5:$A$1000)-ROW($A$5)+1),ROWS($A$5:E197)))="","",INDEX('يومية الصندوق'!$G$5:$G$1000,SMALL(IF('يومية الصندوق'!$C$5:$C$1000=$D$2,ROW($A$5:$A$1000)-ROW($A$5)+1),ROWS($A$5:E197)))),"") -> 
A198: =IFERROR(INDEX('يومية الصندوق'!$A$5:$A$1000,SMALL(IF('يومية الصندوق'!$C$5:$C$1000=$D$2,ROW($A$5:$A$1000)-ROW($A$5)+1),ROWS($A$5:A198))),"") ->  | B198: =IFERROR(INDEX('يومية الصندوق'!$B$5:$B$1000,SMALL(IF('يومية الصندوق'!$C$5:$C$1000=$D$2,ROW($A$5:$A$1000)-ROW($A$5)+1),ROWS($A$5:B198))),"") ->  | C198: =IFERROR(INDEX('يومية الصندوق'!$D$5:$D$1000,SMALL(IF('يومية الصندوق'!$C$5:$C$1000=$D$2,ROW($A$5:$A$1000)-ROW($A$5)+1),ROWS($A$5:C198))),"") ->  | D198: =IFERROR(INDEX('يومية الصندوق'!$E$5:$E$1000,SMALL(IF('يومية الصندوق'!$C$5:$C$1000=$D$2,ROW($A$5:$A$1000)-ROW($A$5)+1),ROWS($A$5:D198))),"") ->  | E198: =IFERROR(IF(INDEX('يومية الصندوق'!$G$5:$G$1000,SMALL(IF('يومية الصندوق'!$C$5:$C$1000=$D$2,ROW($A$5:$A$1000)-ROW($A$5)+1),ROWS($A$5:E198)))="","",INDEX('يومية الصندوق'!$G$5:$G$1000,SMALL(IF('يومية الصندوق'!$C$5:$C$1000=$D$2,ROW($A$5:$A$1000)-ROW($A$5)+1),ROWS($A$5:E198)))),"") -> 
A199: =IFERROR(INDEX('يومية الصندوق'!$A$5:$A$1000,SMALL(IF('يومية الصندوق'!$C$5:$C$1000=$D$2,ROW($A$5:$A$1000)-ROW($A$5)+1),ROWS($A$5:A199))),"") ->  | B199: =IFERROR(INDEX('يومية الصندوق'!$B$5:$B$1000,SMALL(IF('يومية الصندوق'!$C$5:$C$1000=$D$2,ROW($A$5:$A$1000)-ROW($A$5)+1),ROWS($A$5:B199))),"") ->  | C199: =IFERROR(INDEX('يومية الصندوق'!$D$5:$D$1000,SMALL(IF('يومية الصندوق'!$C$5:$C$1000=$D$2,ROW($A$5:$A$1000)-ROW($A$5)+1),ROWS($A$5:C199))),"") ->  | D199: =IFERROR(INDEX('يومية الصندوق'!$E$5:$E$1000,SMALL(IF('يومية الصندوق'!$C$5:$C$1000=$D$2,ROW($A$5:$A$1000)-ROW($A$5)+1),ROWS($A$5:D199))),"") ->  | E199: =IFERROR(IF(INDEX('يومية الصندوق'!$G$5:$G$1000,SMALL(IF('يومية الصندوق'!$C$5:$C$1000=$D$2,ROW($A$5:$A$1000)-ROW($A$5)+1),ROWS($A$5:E199)))="","",INDEX('يومية الصندوق'!$G$5:$G$1000,SMALL(IF('يومية الصندوق'!$C$5:$C$1000=$D$2,ROW($A$5:$A$1000)-ROW($A$5)+1),ROWS($A$5:E199)))),"") -> 
A200: =IFERROR(INDEX('يومية الصندوق'!$A$5:$A$1000,SMALL(IF('يومية الصندوق'!$C$5:$C$1000=$D$2,ROW($A$5:$A$1000)-ROW($A$5)+1),ROWS($A$5:A200))),"") ->  | B200: =IFERROR(INDEX('يومية الصندوق'!$B$5:$B$1000,SMALL(IF('يومية الصندوق'!$C$5:$C$1000=$D$2,ROW($A$5:$A$1000)-ROW($A$5)+1),ROWS($A$5:B200))),"") ->  | C200: =IFERROR(INDEX('يومية الصندوق'!$D$5:$D$1000,SMALL(IF('يومية الصندوق'!$C$5:$C$1000=$D$2,ROW($A$5:$A$1000)-ROW($A$5)+1),ROWS($A$5:C200))),"") ->  | D200: =IFERROR(INDEX('يومية الصندوق'!$E$5:$E$1000,SMALL(IF('يومية الصندوق'!$C$5:$C$1000=$D$2,ROW($A$5:$A$1000)-ROW($A$5)+1),ROWS($A$5:D200))),"") ->  | E200: =IFERROR(IF(INDEX('يومية الصندوق'!$G$5:$G$1000,SMALL(IF('يومية الصندوق'!$C$5:$C$1000=$D$2,ROW($A$5:$A$1000)-ROW($A$5)+1),ROWS($A$5:E200)))="","",INDEX('يومية الصندوق'!$G$5:$G$1000,SMALL(IF('يومية الصندوق'!$C$5:$C$1000=$D$2,ROW($A$5:$A$1000)-ROW($A$5)+1),ROWS($A$5:E200)))),"") -> 
... 812 more rows
